{"text_format":"1","workbook":"xlsx","n_sheets":5,"sheets":["Cerere de Finantare_28","Cerere de Finantare","Anexa 1","Anexa 2","Anexa 3"],"not_rendered":{"charts":0,"images":1,"macros":1,"external_links":0,"defined_names":2,"comments":0,"pivot_tables":0},"unopened":[],"bounds":{"document_bytes":16777216,"sheet_cells":100000,"rows_first":2000,"rows_last":500,"rows_between":2000,"halvings":0,"cell_chars":16384,"cell_head_chars":4096},"cells_cut":0,"cells_raw":0,"read":"whole","date_system":"1900"}

{"sheet":"Cerere de Finantare_28","index":0,"n_rows":1101,"n_cols":58,"rows_kept":1101,"cut":false,"hidden":true,"merged":[[1021,50,1021,60],[1021,0,1021,49],[822,0,822,29],[822,30,822,34],[822,42,822,49],[822,50,822,54],[822,55,822,60],[822,35,822,41],[858,0,858,29],[858,35,858,41],[858,30,858,34],[858,42,858,49],[858,50,858,54],[862,0,862,29],[862,35,862,41],[862,42,862,49],[867,0,867,29],[867,30,867,34],[867,35,867,41],[867,42,867,49],[963,54,963,60],[964,0,964,6],[1000,0,1000,2],[1001,0,1001,2],[999,0,999,2],[968,0,975,60],[989,3,989,60],[990,3,990,60],[986,0,986,60],[1013,0,1013,60],[1011,0,1011,2],[998,0,998,2],[1022,0,1022,49],[1022,50,1022,60],[1007,0,1007,2],[1008,0,1008,2],[1009,0,1009,2],[1010,0,1010,2],[993,3,993,60],[994,3,994,60],[995,3,995,60],[996,3,996,60],[997,3,997,60],[982,0,982,60],[958,26,958,32],[958,33,958,39],[958,40,958,46],[958,47,958,53],[958,54,958,60],[964,7,964,25],[964,26,964,32],[964,33,964,39],[964,40,964,46],[964,47,964,53],[964,54,964,60],[959,0,959,6],[959,7,959,25],[1014,41,1014,52],[1015,41,1015,50],[1007,5,1007,60],[1008,5,1008,60],[1009,5,1009,60],[1010,5,1010,60],[985,31,985,59],[728,4,728,50],[730,4,730,50],[732,4,732,50],[733,4,733,50],[736,4,736,50],[738,4,738,50],[740,4,740,50],[741,4,741,50],[769,1,769,25],[771,16,771,20],[874,42,874,49],[987,3,988,60],[992,3,992,60],[1012,0,1012,2],[1014,1,1014,31],[961,47,961,53],[961,54,961,60],[958,0,958,6],[958,7,958,25],[1012,5,1012,60],[1006,0,1006,2],[959,26,959,32],[959,33,959,39],[959,40,959,46],[959,47,959,53],[959,54,959,60],[960,0,960,6],[960,7,960,25],[960,26,960,32],[960,33,960,39],[960,40,960,46],[960,47,960,53],[960,54,960,60],[961,0,961,6],[961,7,961,25],[961,26,961,32],[961,33,961,39],[961,40,961,46],[976,0,977,60],[965,0,965,6],[965,7,965,25],[965,26,965,32],[965,33,965,39],[965,40,965,46],[965,47,965,53],[965,54,965,60],[967,0,967,60],[1015,1,1015,31],[962,0,962,6],[962,7,962,25],[962,26,962,32],[962,33,962,39],[962,40,962,46],[962,47,962,53],[962,54,962,60],[963,0,963,6],[963,7,963,25],[963,26,963,32],[963,33,963,39],[963,40,963,46],[963,47,963,53],[955,0,955,6],[955,7,955,25],[955,26,955,32],[955,33,955,39],[955,40,955,46],[955,47,955,53],[955,54,955,60],[956,0,956,6],[956,7,956,25],[956,26,956,32],[956,33,956,39],[956,40,956,46],[956,47,956,53],[956,54,956,60],[957,0,957,6],[957,7,957,25],[957,26,957,32],[957,33,957,39],[957,40,957,46],[957,47,957,53],[957,54,957,60],[952,0,952,6],[952,7,952,25],[952,26,952,32],[952,33,952,39],[952,40,952,46],[952,47,952,53],[952,54,952,60],[953,0,953,6],[953,7,953,25],[953,26,953,32],[953,33,953,39],[953,40,953,46],[953,47,953,53],[953,54,953,60],[954,0,954,6],[954,7,954,25],[954,26,954,32],[954,33,954,39],[954,40,954,46],[954,47,954,53],[954,54,954,60],[949,0,949,6],[949,7,949,25],[949,26,949,32],[949,33,949,39],[949,40,949,46],[949,47,949,53],[949,54,949,60],[950,0,950,6],[950,7,950,25],[950,26,950,32],[950,33,950,39],[950,40,950,46],[950,47,950,53],[950,54,950,60],[951,0,951,6],[951,7,951,25],[951,26,951,32],[951,33,951,39],[951,40,951,46],[951,47,951,53],[951,54,951,60],[946,0,946,6],[946,7,946,25],[946,26,946,32],[946,33,946,39],[946,40,946,46],[946,47,946,53],[946,54,946,60],[947,0,947,6],[947,7,947,25],[947,26,947,32],[947,33,947,39],[947,40,947,46],[947,47,947,53],[947,54,947,60],[948,0,948,6],[948,7,948,25],[948,26,948,32],[948,33,948,39],[948,40,948,46],[948,47,948,53],[948,54,948,60],[943,0,943,6],[943,7,943,25],[943,26,943,32],[943,33,943,39],[943,40,943,46],[943,47,943,53],[943,54,943,60],[944,0,944,6],[944,7,944,25],[944,26,944,32],[944,33,944,39],[944,40,944,46],[944,47,944,53],[944,54,944,60],[945,0,945,6],[945,7,945,25],[945,26,945,32],[945,33,945,39],[945,40,945,46],[945,47,945,53],[945,54,945,60],[940,0,940,6],[940,7,940,25],[940,26,940,32],[940,33,940,39],[940,40,940,46],[940,47,940,53],[940,54,940,60],[941,0,941,6],[941,7,941,25],[941,26,941,32],[941,33,941,39],[941,40,941,46],[941,47,941,53],[941,54,941,60],[942,0,942,6],[942,7,942,25],[942,26,942,32],[942,33,942,39],[942,40,942,46],[942,47,942,53],[942,54,942,60],[934,0,934,6],[934,7,934,25],[934,26,934,32],[934,33,934,39],[934,40,934,46],[934,47,934,53],[934,54,934,60],[936,0,936,60],[938,0,938,6],[938,7,938,25],[938,26,938,32],[938,33,938,39],[938,40,938,46],[938,47,938,53],[938,54,938,60],[939,0,939,6],[939,7,939,25],[939,26,939,32],[939,33,939,39],[939,40,939,46],[939,47,939,53],[939,54,939,60],[933,7,933,25],[930,0,930,6],[930,7,930,25],[930,26,930,32],[930,33,930,39],[930,40,930,46],[930,47,930,53],[930,54,930,60],[931,0,931,6],[931,7,931,25],[931,26,931,32],[931,33,931,39],[931,40,931,46],[931,47,931,53],[931,54,931,60],[932,0,932,6],[932,7,932,25],[932,26,932,32],[932,33,932,39],[932,40,932,46],[932,47,932,53],[932,54,932,60],[933,0,933,6],[933,33,933,39],[933,40,933,46],[933,47,933,53],[933,54,933,60],[933,26,933,32],[927,0,927,6],[927,7,927,25],[927,26,927,32],[927,33,927,39],[927,40,927,46],[927,47,927,53],[927,54,927,60],[928,0,928,6],[928,7,928,25],[928,26,928,32],[928,33,928,39],[928,40,928,46],[928,47,928,53],[928,54,928,60],[929,0,929,6],[929,7,929,25],[929,26,929,32],[929,33,929,39],[929,40,929,46],[929,47,929,53],[929,54,929,60],[924,0,924,6],[924,7,924,25],[924,26,924,32],[924,33,924,39],[924,40,924,46],[924,47,924,53],[924,54,924,60],[925,0,925,6],[925,7,925,25],[925,26,925,32],[925,33,925,39],[925,40,925,46],[925,47,925,53],[925,54,925,60],[926,0,926,6],[926,7,926,25],[926,26,926,32],[926,33,926,39],[926,40,926,46],[926,47,926,53],[926,54,926,60],[921,0,921,6],[921,7,921,25],[921,26,921,32],[921,33,921,39],[921,40,921,46],[921,47,921,53],[921,54,921,60],[922,0,922,6],[922,7,922,25],[922,26,922,32],[922,33,922,39],[922,40,922,46],[922,47,922,53],[922,54,922,60],[923,0,923,6],[923,7,923,25],[923,26,923,32],[923,33,923,39],[923,40,923,46],[923,47,923,53],[923,54,923,60],[918,0,918,6],[918,7,918,25],[918,26,918,32],[918,33,918,39],[918,40,918,46],[918,47,918,53],[918,54,918,60],[919,0,919,6],[919,7,919,25],[919,26,919,32],[919,33,919,39],[919,40,919,46],[919,47,919,53],[919,54,919,60],[920,0,920,6],[920,7,920,25],[920,26,920,32],[920,33,920,39],[920,40,920,46],[920,47,920,53],[920,54,920,60],[915,0,915,6],[915,7,915,25],[915,26,915,32],[915,33,915,39],[915,40,915,46],[915,47,915,53],[915,54,915,60],[916,0,916,6],[916,7,916,25],[916,26,916,32],[916,33,916,39],[916,40,916,46],[916,47,916,53],[916,54,916,60],[917,0,917,6],[917,7,917,25],[917,26,917,32],[917,33,917,39],[917,40,917,46],[917,47,917,53],[917,54,917,60],[912,0,912,6],[912,7,912,25],[912,26,912,32],[912,33,912,39],[912,40,912,46],[912,47,912,53],[912,54,912,60],[913,0,913,6],[913,7,913,25],[913,26,913,32],[913,33,913,39],[913,40,913,46],[913,47,913,53],[913,54,913,60],[914,0,914,6],[914,7,914,25],[914,26,914,32],[914,33,914,39],[914,40,914,46],[914,47,914,53],[914,54,914,60],[910,0,910,6],[910,7,910,25],[910,26,910,32],[910,33,910,39],[910,40,910,46],[910,47,910,53],[910,54,910,60],[911,0,911,6],[911,7,911,25],[911,26,911,32],[911,33,911,39],[911,40,911,46],[911,47,911,53],[911,54,911,60],[907,0,907,6],[907,7,907,25],[907,26,907,32],[907,33,907,39],[907,40,907,46],[907,47,907,53],[907,54,907,60],[908,0,908,6],[908,7,908,25],[908,26,908,32],[908,33,908,39],[908,40,908,46],[908,47,908,53],[908,54,908,60],[909,0,909,6],[909,7,909,25],[909,26,909,32],[909,33,909,39],[903,0,903,6],[903,7,903,25],[903,26,903,32],[903,33,903,39],[903,40,903,46],[903,47,903,53],[903,54,903,60],[909,40,909,46],[909,47,909,53],[909,54,909,60],[904,0,904,6],[904,7,904,25],[904,26,904,32],[904,33,904,39],[904,40,904,46],[904,47,904,53],[904,54,904,60],[905,0,905,6],[905,7,905,25],[905,26,905,32],[905,33,905,39],[905,40,905,46],[905,47,905,53],[905,54,905,60],[906,0,906,6],[906,7,906,25],[906,26,906,32],[906,33,906,39],[906,40,906,46],[906,47,906,53],[906,54,906,60],[900,0,900,6],[900,7,900,25],[900,26,900,32],[900,33,900,39],[900,40,900,46],[900,47,900,53],[900,54,900,60],[901,0,901,6],[901,7,901,25],[901,26,901,32],[901,33,901,39],[901,40,901,46],[901,47,901,53],[901,54,901,60],[902,0,902,6],[902,7,902,25],[902,26,902,32],[902,33,902,39],[902,40,902,46],[902,47,902,53],[902,54,902,60],[897,0,897,6],[897,7,897,25],[897,26,897,32],[897,33,897,39],[897,40,897,46],[897,47,897,53],[897,54,897,60],[898,0,898,6],[898,7,898,25],[898,26,898,32],[898,33,898,39],[898,40,898,46],[898,47,898,53],[898,54,898,60],[899,0,899,6],[899,7,899,25],[899,26,899,32],[899,33,899,39],[899,40,899,46],[899,47,899,53],[899,54,899,60],[894,26,894,32],[894,33,894,39],[894,40,894,46],[894,47,894,53],[894,54,894,60],[895,0,895,6],[895,7,895,25],[895,26,895,32],[895,33,895,39],[895,40,895,46],[895,47,895,53],[895,54,895,60],[896,0,896,6],[896,7,896,25],[896,26,896,32],[896,33,896,39],[896,40,896,46],[896,47,896,53],[896,54,896,60],[873,35,873,41],[873,42,873,49],[874,30,874,34],[874,35,874,41],[888,47,888,53],[888,54,888,60],[889,0,889,6],[889,7,889,25],[889,26,889,32],[889,33,889,39],[889,40,889,46],[889,47,889,53],[889,54,889,60],[877,50,877,54],[877,55,877,60],[872,0,872,29],[872,30,872,34],[888,0,888,6],[888,7,888,25],[888,26,888,32],[888,33,888,39],[888,40,888,46],[878,0,878,29],[879,0,879,29],[880,0,880,29],[881,0,881,29],[882,0,882,29],[865,35,865,41],[865,42,865,49],[865,50,865,54],[865,55,865,60],[885,0,885,60],[886,54,886,60],[886,47,886,53],[886,0,886,6],[886,7,886,25],[886,26,886,32],[886,33,886,39],[886,40,886,46],[866,0,866,29],[866,30,866,34],[866,35,866,41],[866,42,866,49],[866,50,866,54],[866,55,866,60],[871,0,871,29],[871,30,871,34],[871,35,871,41],[871,42,871,49],[871,50,871,54],[871,55,871,60],[870,0,870,29],[870,30,870,34],[870,35,870,41],[870,42,870,49],[873,0,873,29],[874,0,874,29],[875,0,875,29],[873,30,873,34],[824,0,824,29],[824,30,824,34],[824,35,824,41],[824,42,824,49],[824,50,824,54],[824,55,824,60],[825,0,825,29],[826,0,826,29],[825,50,825,54],[825,55,825,60],[826,50,826,54],[826,55,826,60],[825,42,825,49],[826,42,826,49],[825,30,825,34],[826,30,826,34],[825,35,825,41],[826,35,826,41],[806,0,806,1],[806,2,806,12],[806,13,806,16],[806,17,806,20],[806,21,806,24],[806,25,806,28],[806,29,806,33],[806,34,806,37],[806,38,806,41],[806,42,806,45],[806,46,806,49],[806,50,806,53],[806,54,806,56],[820,0,820,29],[821,0,821,29],[821,30,821,34],[821,35,821,41],[821,42,821,49],[821,50,821,54],[821,55,821,60],[819,0,819,29],[811,30,814,60],[814,0,814,16],[814,17,814,18],[816,0,817,54],[816,55,816,60],[817,55,817,60],[818,0,818,60],[806,57,806,61],[819,30,819,34],[819,35,819,41],[819,42,819,49],[801,0,801,61],[808,0,808,61],[823,0,823,29],[823,30,823,34],[823,35,823,41],[823,42,823,49],[823,50,823,54],[823,55,823,60],[802,13,802,61],[807,0,807,1],[807,2,807,12],[807,13,807,16],[807,17,807,20],[807,21,807,24],[807,25,807,28],[807,29,807,33],[807,34,807,37],[807,38,807,41],[807,42,807,45],[807,46,807,49],[807,50,807,53],[807,54,807,56],[807,57,807,61],[803,0,803,1],[803,2,803,12],[805,0,805,1],[805,2,805,12],[805,13,805,16],[805,17,805,20],[805,21,805,24],[805,25,805,28],[805,29,805,33],[805,34,805,37],[805,38,805,41],[805,42,805,45],[805,46,805,49],[805,50,805,53],[805,54,805,56],[805,57,805,61],[802,0,802,1],[802,2,802,12],[799,21,799,24],[799,25,799,28],[799,29,799,33],[799,34,799,37],[799,38,799,41],[799,42,799,45],[799,46,799,49],[799,50,799,53],[799,54,799,56],[799,57,799,61],[800,0,800,1],[800,2,800,12],[800,13,800,16],[800,17,800,20],[800,21,800,24],[800,25,800,28],[800,29,800,33],[800,34,800,37],[800,38,800,41],[800,42,800,45],[800,46,800,49],[800,50,800,53],[800,54,800,56],[800,57,800,61],[775,38,775,61],[796,0,796,61],[797,0,797,12],[798,0,798,1],[798,2,798,12],[798,13,798,16],[798,17,798,20],[798,21,798,24],[798,25,798,28],[798,29,798,33],[798,34,798,37],[798,38,798,41],[798,42,798,45],[798,46,798,49],[798,50,798,53],[798,54,798,56],[798,57,798,61],[797,13,797,16],[797,17,797,20],[797,21,797,24],[797,25,797,28],[797,29,797,33],[797,34,797,37],[797,38,797,41],[797,42,797,45],[797,46,797,49],[797,50,797,53],[797,54,797,56],[797,57,797,61],[795,2,795,12],[795,13,795,16],[804,0,804,1],[804,2,804,12],[804,13,804,16],[804,17,804,20],[804,21,804,24],[804,25,804,28],[804,29,804,33],[804,34,804,37],[804,38,804,41],[804,42,804,45],[804,46,804,49],[804,50,804,53],[804,54,804,56],[804,57,804,61],[773,0,773,1],[773,2,773,12],[773,13,773,61],[775,0,775,1],[775,2,775,12],[803,13,803,16],[803,17,803,20],[803,21,803,24],[803,25,803,28],[803,29,803,33],[803,34,803,37],[803,38,803,41],[803,42,803,45],[803,46,803,49],[803,50,803,53],[803,54,803,56],[803,57,803,61],[795,0,795,1],[795,17,795,20],[795,21,795,24],[795,25,795,28],[795,29,795,33],[795,34,795,37],[795,38,795,41],[795,42,795,45],[795,46,795,49],[795,50,795,53],[795,54,795,56],[795,57,795,61],[799,0,799,1],[799,2,799,12],[799,13,799,16],[799,17,799,20],[793,0,793,1],[793,2,793,12],[793,13,793,16],[793,17,793,20],[793,21,793,24],[793,25,793,28],[793,29,793,33],[793,34,793,37],[793,38,793,41],[793,42,793,45],[793,46,793,49],[793,50,793,53],[793,54,793,56],[793,57,793,61],[794,0,794,1],[794,2,794,12],[794,13,794,16],[794,17,794,20],[794,21,794,24],[794,25,794,28],[794,29,794,33],[794,34,794,37],[794,38,794,41],[794,42,794,45],[794,46,794,49],[794,50,794,53],[794,54,794,56],[794,57,794,61],[791,0,791,1],[791,2,791,12],[791,13,791,16],[791,17,791,20],[791,21,791,24],[791,25,791,28],[791,29,791,33],[791,34,791,37],[791,38,791,41],[791,42,791,45],[791,46,791,49],[791,50,791,53],[791,54,791,56],[791,57,791,61],[792,0,792,1],[792,2,792,12],[792,13,792,16],[792,17,792,20],[792,21,792,24],[792,25,792,28],[792,29,792,33],[792,34,792,37],[792,38,792,41],[792,42,792,45],[792,46,792,49],[792,50,792,53],[792,54,792,56],[792,57,792,61],[789,0,789,1],[789,2,789,12],[789,13,789,16],[789,17,789,20],[789,21,789,24],[789,25,789,28],[789,29,789,33],[789,34,789,37],[789,38,789,41],[789,42,789,45],[789,46,789,49],[789,50,789,53],[789,54,789,56],[789,57,789,61],[790,0,790,1],[790,2,790,12],[790,13,790,16],[790,17,790,20],[790,21,790,24],[790,25,790,28],[790,29,790,33],[790,34,790,37],[790,38,790,41],[790,42,790,45],[790,46,790,49],[790,50,790,53],[790,54,790,56],[790,57,790,61],[787,0,787,1],[787,2,787,12],[787,13,787,16],[787,17,787,20],[787,21,787,24],[787,25,787,28],[787,29,787,33],[787,34,787,37],[787,38,787,41],[787,42,787,45],[787,46,787,49],[787,50,787,53],[787,54,787,56],[787,57,787,61],[788,0,788,1],[788,2,788,12],[788,13,788,16],[788,17,788,20],[788,21,788,24],[788,25,788,28],[788,29,788,33],[788,34,788,37],[788,38,788,41],[788,42,788,45],[788,46,788,49],[788,50,788,53],[788,54,788,56],[788,57,788,61],[785,0,785,1],[785,2,785,12],[785,13,785,16],[785,17,785,20],[785,21,785,24],[785,25,785,28],[785,29,785,33],[785,34,785,37],[785,38,785,41],[785,42,785,45],[785,46,785,49],[785,50,785,53],[785,54,785,56],[785,57,785,61],[786,0,786,1],[786,2,786,12],[786,13,786,16],[786,17,786,20],[786,21,786,24],[786,25,786,28],[786,29,786,33],[786,34,786,37],[786,38,786,41],[786,42,786,45],[786,46,786,49],[786,50,786,53],[786,54,786,56],[786,57,786,61],[783,0,783,1],[783,2,783,12],[783,13,783,16],[783,17,783,20],[783,21,783,24],[783,25,783,28],[783,29,783,33],[783,34,783,37],[783,38,783,41],[783,42,783,45],[783,46,783,49],[783,50,783,53],[783,54,783,56],[783,57,783,61],[784,0,784,1],[784,2,784,12],[784,13,784,16],[784,17,784,20],[784,21,784,24],[784,25,784,28],[784,29,784,33],[784,34,784,37],[784,38,784,41],[784,42,784,45],[784,46,784,49],[784,50,784,53],[784,54,784,56],[784,57,784,61],[781,0,781,1],[781,2,781,12],[781,13,781,16],[781,17,781,20],[781,21,781,24],[781,25,781,28],[781,29,781,33],[781,34,781,37],[781,38,781,41],[781,42,781,45],[781,46,781,49],[781,50,781,53],[781,54,781,56],[781,57,781,61],[782,0,782,1],[782,2,782,12],[782,13,782,16],[782,17,782,20],[782,21,782,24],[782,25,782,28],[782,29,782,33],[782,34,782,37],[782,38,782,41],[782,42,782,45],[782,46,782,49],[782,50,782,53],[782,54,782,56],[782,57,782,61],[779,0,779,1]],"merged_total":3510,"flags":["merged_cut"]}
[null,null,null,null,null,null,"MINISTERUL AGRICULTURII ŞI DEZVOLTĂRII RURALE"]
[null,null,null,null,null,null,"AGENŢIA PENTRU FINANŢAREA INVESTIŢIILOR RURALE"]
[]
[null,null,null,null,null,null,null,null,null,null,null,null,null,null,null,null,null,null,null,null,null,null,null,null,null,null,null,null,null,null,null,null,null,null,null,null,null,null,null,null,null,null,"SECŢIUNE GENERALĂ"]
[]
["DATE DE ÎNREGISTRARE",null,null,null,null,null,null,null,null,null,null,null,null,null,null,null,null,null,null,null,null,null,null,null,null,null,null,null,null,null,null,null,null,null,null,null,"NUME ŞI PRENUME DIRECTOR OJFIR/"]
[null,null,null,null,null,null,null,null,null,null,null,null,null,null,null,null,null,null,null,null,null,null,null,null,null,null,null,null,null,null,null,null,null,null,null,null,"DIRECTOR GENERAL ADJUNCT CRFIR"]
["Se completează de către Agenția pentru Finanțarea Investițiilor Rurale - Oficiul"]
["Judeţean/ Centrul Regional - Programul FEADR pentru cereri de finanţare"]
[null,null,null,null,null,null,null,null,null,null,null,null,null,null,null,null,null,null,null,null,null,null,null,null,null,null,null,null,null,null,null,null,null,null,null,null,"Semnătura Director OJFIR/Director General Adjunct CRFIR"]
["OJFIR/CRFIR"]
[null,null,null,null,null,null,null,null,null,null,null,null,null,null,null,null,null,null,null,null,null,null,null,null,null,null,null,null,null,null,null,null,null,null,null,null,"Ştampila OJFIR/ CRFIR"]
["Număr "]
["înregistrare"]
[]
[]
[]
[]
["Data Înregistrării",null,null,null,null,null,null,null,null," "]
["Numele şi prenumele persoanei care înregistrează"]
["Semnătura:"]
["Data primirii cererii de finanţare la contractare:"]
["Se completează de către solicitant"]
["A PREZENTARE GENERALĂ"]
[]
[]
[]
[null,"            A1  Măsura 2/2A Investiţii în exploataţii agricole şi procesare                                "]
[null,"A2 Nume prenume / Denumire solicitant:"]
[]
[null,"A3 Titlu proiect:"]
[]
[]
[]
[]
[null,"A4 Descrierea succintă a proiectului:"]
[]
[]
[]
[]
[]
[]
[]
[]
[]
[]
[]
[null,null,"A5 Amplasarea proiectului:"]
[]
["Regiunea de dezvoltare:",null,null,null,null,null,null,null,null,null,null,null,null,null,null,null,null,null,null,null,null,null,null,null,null,null,null,"Judeţ/Municipiul Bucureşti:"]
[]
[null,"Obiectivele investiţiei",null,null,null,null,null,null,null,null,null,null,null,null,null,"Judeţ",null,null,null,null,null,null,null,null,null,null,null,"Comună/Oraş",null,null,null,null,null,null,null,null,null,null,null,"Sat/Sector",null,null,null,null,null,null,null,null,null,null,"Sat/Sector"]
[]
[]
[]
[]
[]
[]
[]
[]
[]
[]
[]
[]
[]
[]
[]
[]
[]
[]
[]
[]
[]
[]
[]
[]
[]
[]
[]
[]
[]
[]
[]
[]
[]
[]
[]
[]
[]
[]
[]
[]
[null,"A6 Date despre tipul de proiect şi beneficiar:",null,null,null,null,null,null,null,null,null,null,null,null,null,null,null,null,null,null,null,null,null,null,null,null,null,null,null,null,null,null,null,null,null,null,null,null,null,null,"A 6.5 Sectoare vizate prin proiect"]
[]
[null,"A 6.1",null,null,null,null,"Proiect cu construcţii-montaj",null,null,null,null,null,null,null,null,null,null,null,null,null,null,null,"A 6.3",null,null,null,null,"Beneficiar privat",null,null,null,null,null,null,null,null,null,null,null,null,null,null,null,null,null,"animal"]
[null,null,null,null,null,null,"Proiect fără construcţii-montaj",null,null,null,null,null,null,null,null,null,null,null,null,null,null,null,null,null,null,null,null,null,null,null,null,null,null,null,null,null,null,null,null,null,null,null,null,null,null,"vegetal"]
[null,null,null,null,null,null,null,null,null,null,null,null,null,null,null,null,null,null,null,null,null,null,null,null,null,null,null,null,null,null,null,null,null,null,null,null,null,null,null,null,null,null,null,null,null,"ferma de familie"]
[null,null,null,null,null,null,"Modernizare şi/sau Extindere"]
[null,null,null,null,null,null,"Investiţie nouă"]
[]
[]
[null,null,null,null,null,null,"Bugete indicative şi anexe conform HG28/2008"]
[]
[null,null,null,null,null,null,null,null,null,null,null,null,null,"Proiect tehnic",null,null,null,null,null,null,null,null,null,"Acord de mediu",null,null,null,null,null,null,null,null,null,null,null,null,"Aviz Natura2000"]
[]
[null,"Denumire consultant:"]
[null,null,null,null,null,null,null,null,null,null,null,null,null,null,null,null,null,null,null,null,null,null,null,null,null,null,null,null,null,null,"CUI"]
[]
[null,null,null,null,null,null,null,null,null,null,null,null,null,null,null,null,null,null,null,null,null,null,null,null,null,null,null,null,null,null,"Nr. Înreg. ONRC"]
[]
[null,"Denumire proiectant:"]
[null,null,null,null,null,null,null,null,null,null,null,null,null,null,null,null,null,null,null,null,null,null,null,null,null,null,null,null,null,null,"CUI"]
[]
[null,null,null,null,null,null,null,null,null,null,null,null,null,null,null,null,null,null,null,null,null,null,null,null,null,null,null,null,null,null,"Nr. Înreg. ONRC"]
[]
[null,"Detaliere criterii de selecţie îndeplinite"]
[]
[]
[]
[]
[]
[]
[]
[]
[]
[]
["B INFORMAŢII PRIVIND SOLICITANTUL"]
["B1 Descrierea solicitantului"]
["B1.1 Informaţii privind solicitantul"]
[null,"Data înființării / Data de naştere",null,null,null,null,null,null,null,null,null,null,null,null,null,null,null,null,null,"Cod Unic de Înregistrare și/sau Codul de",null,null,null,null,null,null,null,null,null,null,null,null,null,null,null,null,null,null,null,null,null,null,null,"Statut juridic al solicitantului"]
[null,null,null,null,null,null,null,null,null,null,null,null,null,null,null,null,null,null,null,"Înregistrare Fiscală"]
[]
[]
[null,"Număr de înregistrare în registrul comerțului /Registrul asociaţiilor şi fundaţiilor"]
[]
[null,"Codul CAEN al activităţii/activităţilor finanţate prin proiect:"]
[]
[]
[]
[null,"Codul unic de înregistrare APIA",null,null,null,null,null,null,null,null,null,null,null,null,null,null,null,null,null,null,null,null,null,null,null,null,null,null,null,null,null,null,null,null,null,null,"Anul atribuirii codului"]
[]
[]
[null,"B1.2 Sediul social / Domiciliul stabil al solicitantului / Reşedinţa din România"]
[null,"Judeţ",null,null,null,null,null,null,null,null,null,null,null,null,null,null,null,null,null,null,null,null,"Localitate",null,null,null,null,null,null,null,null,null,null,null,null,null,null,null,null,null,null,null,"Sat"]
[]
[null,"Cod Poştal",null,null,null,null,null,null,null,null,null,null,null,null,null,"Strada",null,null,null,null,null,null,null,null,null,null,null,null,null,null,null,null,null,null,null,null,null,null,null,null,null,null,null,null,null,null,null,null,null,null,null,null,"Nr."]
[]
[null,"Bloc",null,null,null,null,null,null,null,null,null,null,null,null,null,null,null,"Scara",null,null,null,null,null,null,null,null,null,null,null,null,null,null,"Et. ",null,null,null,null,null,null,"Ap.",null,null,null,null,null,null,"Sector"]
[]
[null,"Telefon fix/ mobil",null,null,null,null,null,null,null,null,null,null,null,null,null,null,null,null,null,null,"Fax",null,null,null,null,null,null,null,null,null,null,null,null,null,null,null,"E-mail"]
[]
[]
[null,"B1.3 Numele şi prenumele reprezentantului legal şi funcţia acestuia în cadrul organizaţiei, precum şi"]
[null,"specimenul de semnatură:"]
[]
[null,null,null,"Numele",null,null,null,null,null,null,null,null,null,null,"Prenumele",null,null,null,null,null,null,null,null,null,null,"Funcţia",null,null,null,null,null,null,null,null,null,null,"Reprezentant legal",null,null,null,null,null,null,null,null,null,null,"Specimen de"]
[null,null,null,null,null,null,null,null,null,null,null,null,null,null,null,null,null,null,null,null,null,null,null,null,null,null,null,null,null,null,null,null,null,null,null,null,null,null,null,null,null,null,null,null,null,null,null,"semnătură"]
[]
[null,null,null,null,null,null,null,null,null,null,null,null,null,null,null,null,null,null,null,null,null,null,null,null,null,null,null,null,null,null,null,null,null,null,null,null,"LEGAL"]
[]
[]
["B2 Informaţii referitoare la reprezentantul legal de proiect"]
[null,"B2.1 Date de identitate ale reprezentantului legal de proiect"]
[]
[null,null,null,"Data naşterii",null,null,null,null,null,null,null,null,null,null,null,null,null,null,null,null,null,null,null,null,"Cod numeric personal"]
[]
[]
[]
[]
[null,null,null,null,"Act de identitate",null,null,null,null,null,null,null,null,null,null,null,null,null,"Seria",null,null,"Nr.",null,null,null,null,null,null,"Eliberat la data de",null,null,null,null,null,null,null,null,"de:",null,null,null,null,null,null,null,null,null,null,null,null,null,"Valabil până la:"]
[null,null,null,null,"B.I.",null,null,"C.I.",null,null,"Paşaport"]
[]
[]
[]
[null,null,null,"Studii şi coordonate:"]
[]
[]
[]
[]
[]
[]
[]
[]
[]
[]
[]
[]
[null,"B2.2 Domiciliul stabil al reprezentantului legal de proiect"]
[null,"Judeţ",null,null,null,null,null,null,null,null,null,null,null,null,null,null,null,null,null,null,null,null,"Localitate",null,null,null,null,null,null,null,null,null,null,null,null,null,null,null,null,null,null,null,"Sat"]
[]
[null,"Cod Poştal",null,null,null,null,null,null,null,null,null,null,"Strada",null,null,null,null,null,null,null,null,null,null,null,null,null,null,null,null,null,"Nr.",null,null,null,null,null,"Bloc",null,null,null,null,null,null,null,null,null,null,null,"Scara",null,null,null,null,null,"Ap."]
[]
[null,"Telefon fix",null,null,null,null,null,null,null,null,null,null,null,null,null,null,null,null,null,null,"Telefon mobil",null,null,null,null,null,null,null,null,null,null,null,null,null,null,null,null,null,"Fax"]
[]
[null,"E-mail"]
[]
[]
["B3 Informaţii privind contul bancar pentru proiect F.E.A.D.R."]
[]
[null,null,"B3.1 Denumirea Băncii",null,null,null,null,null,null,null,null,null,null,null,null,null,null,null,null,null,null,null,null,null,null,null,null,null,null,null,null,"Denumirea Sucursalei/Filialei"]
[]
[]
[null,null,"B3.2 Adresa Băncii/Sucursalei"]
[]
[]
[null,null,"B3.3 Cod IBAN",null,null,null,null,null,null,null,null,null,null,null,null,null,null,null,null,null,null,null,null,null,null,null,null,null,null,null,null,"B3.4 Titularul contului bancar"]
[]
[]
["REGULI DE COMPLETARE\n\nCâmpurile \"Numele şi prenumele persoanei care înregistrează. Semnătura\", se vor completa după data primirii în format letric a acesteia împreună cu documentele justificative.\nSolicitantul are posibilitatea să opteze pentru Buget indicativ şi anexe conform HG 907/2016, prin bifarea check-box-ului corespunzător din câmpul A6 sau pentru Buget indicativ şi anexe conform HG 28/2008 prin nebifarea check-box-ului.\nCompletaţi devizele aferente capitolelor de cheltuieli, defalcat pe cheltuieli eligibile şi neeligibile prin completarea tabelelor incluse în acest document, respectiv:\n1. Tabelul \"Deviz financiar_cap3\" cuprinde cheltuielile aferente capitolului 3 - Cheltuieli pentru proiectare şi asistenţă tehnică, cheltuieli care trebuie să se regăsească atât în Bugetul Indicativ (Tabel \"Buget indicativ\" din cererea de finanţare, partea specifică) cât şi în Devizul General din Studiul de Fezabilitate.\n2. Tabelul \"Devize obiect\" cuprinde formatul cadru al devizului pe obiect, iar solicitantul va completa atâtea devize pe obiect câte obiecte de investiţie sunt incluse în proiect. Suma tuturor devizelor pe obiect trebuie să se regăseasca atat in Bugetul Indicativ (tabelul \"Buget indicativ\" din cererea de finanţare, partea specifică) cât şi în Devizul General din Studiul de Fezabilitate În cazul în care proiectul de investiţii presupune mai multe devize pe obiect, solicitantul va crea în documentul curent câte o copie a tabelului \"Devize obiect\" pentru fiecare deviz pe obiect şi va detalia cheltuielile eligibile şi neeligibile pe fiecare în parte.\n3. Tabelul \"cap.2+cap.5\" cuprinde cheltuieli aferente capitolelor 2 şi 5 şi trebuie să se regăsească atât în Bugetul Indicativ (tabel \"Buget indicativ\" din cererea de finanţare, partea specifică) cât şi Devizul General din Studiul de Fezabilitate.\n4. Tabelul \"Deviz culturi\" cuprinde devizele aferente tuturor tipurilor de culturi, plantaţii, vizate de proiect.\n5. Câmpul \"Prescorare\" de la secţiunea A6 este obligatoriu.\n6. Pentru \"Plantaţiile specifice pentru struguri de masă\", se completează Deviz pe obiect separat.\n7. În cazul art 28 (Agromediu), intensitatea suplimentară se acordă după cum urmează:\n1 - Pentru investiţiile adresate terenurilor arabile cu condiția ca suprafața aflată sub angajament sa reprezinte mai mult de 50% din terenul arabil aparținand exploataţiei agricole.\nIntensitatea mărită se acordă pentru utilajele si echipamentele specifice lucrărilor de arat, grăpat, discuit, semănat/însămânţat, tocat resturi vegetale, încorporat resturi vegetale în sol, numai în cazul în care peste 50% din terenul arabil deținut în cadrul fermei se află sub un angajament în derulare in cazul următoarelor pachete promovate prin Măsura 10 - Agromediu și climă (AGM): Pachetul 4 - culturi verzi, Pachetul 7 - terenuri arabile importante ca zone de hrănire pentru gâsca cu gât roșu (Branta ruficollis), suprafețe pe care se realizează lucrări de tehnologie a culturilor; Intensitatea mărită se acordă pentru facilităţi necesare depozitării şi compostării gunoiului de grajd numai în cazul în care peste 50% din terenul arabil deținut în cadrul fermei se află sub un angajament în derulare in cazul Pachetului 4 - culturi verzi, Pachetului 5 - adaptarea la efectele schimbărilor climatice şi Pachetului 7 - terenuri arabile importante ca zone de hrănire pentru gâsca cu gât roșu (Branta ruficollis).\n2 -Pentru investiţiile adresate pajiștilor cu condiția ca suprafața aflată sub angajament să reprezinte mai mult de 50% din suprafața de pajiști aparținând fermei.\nIntensitatea suplimentară se acordă doar pentru contravaloarea următoarelor:\n- utilajelor folosite pentru cosit, strâns, balotat şi transportat fânul și a altor asemenea investitii utilizate in cazul pajistilor care fac obiectul sprijinului acordat prin Pachetul 1 - pajiști cu înaltă valoare naturală (HNV) fără Pachetul 2 - practici agricole tradiţionale,\n- utilajelor uşoare (utilaje cu lama scurtă, greutate redusă și viteză mică de deplasare) folosite pentru cosit, strâns, balotat şi transportat fânul și a altor asemenea investitii utilizate in cazul pajistilor care fac obiectul sprijinului acordat prin varianta 2.2 - utilaje ușoare pe pajiști permanente utilizate ca fânețe din pachetul 2 - practici agricole tradiţionale, varianta 3.1.2 -utilaje ușoare pe pajiști importante pentru Crex crex din sub-pachetul 3.1 - Crex crex, varianta 3.2.2 -utilaje ușoare pe pajiști importante pentru Lanius minor și Falco vespertinus din sub-pachetul 3.2 - Lanius minor și Falco vespertinus, varianta 6.2 - utilaje ușoare pe pajiști importante pentru fluturi (Maculinea sp.) din pachetul 6 - pajiști importante pentru fluturi (Maculinea sp.);\n- platformele pentru depozitarea şi/sau compostarea gunoiul de grajd şi utilajele/echipamentele de transport şi de\nîmprăştiere a gunoiului de grajd - în cazul pachetelor 1, 3.1, 3.2 şi 6;\n3 -Pentru investitiile ce deservesc animalele care fac obiectul angajamentelor pachetului nr. 8 (rase locale în pericol de abandon)\n- contravaloarea investiţiei în cauză se obţine înmulțind procentul pe care îl detine nucleul de rase locale în pericol de\nabandon în total efective de animale, cu total valoare eligibilă a proiectului. Intensitatea mărită se acordă doar pentru această contravaloare.\nEx. dacă rasele în pericol de abandon reprezintă 10% din total efective (exprimate in UVM), se aplica acest procent la valoarea totala eligibila, si se acorda 20 puncte procentuale suplimentare la intensitate sprijin doar pentru această cota de 10% din valoarea totala eligibilă.\n\n8. Punctul A6.2 se va completa ţinând cont de următoarele:\nInvestiţie nouă - cuprinde lucrările de construcţii-montaj, utilaje, instalaţii, care se realizează pe amplasamente noi, lucrarile pentru construcţiile existente cărora li se schimbă destinaţia nefuncționale/dezafectate\nModernizarea - cuprinde lucrările de construcţii şi instalaţii privind retehnologizarea, reutilarea și refacerea sau extinderea construcţiilor existente aferente unităţilor în funcţiune şi cu autorizaţii de funcţionare valabile, fără modificarea destinaţiei iniţiale, inclusiv utilarea/reutilarea cu mașini, utilaje și echipamente necesare unei exploatații agricole pentru producția agricolă primară și, după caz, pentru procesare la nivel de fermă.\n"]
[]
[]
[]
[]
[]
[]
[]
[]
[]
[]
[]
[]
[]
[]
[]
[]
[]
[]
[]
[]
[]
[]
[]
[]
[]
[]
[]
[]
[]
[]
[]
[]
[]
[]
[]
[]
[]
[]
[]
[]
[]
[]
[]
[]
[]
[]
[]
[]
[]
[]
[]
["9. Încadrarea cererii de finanțare în zona montană se va face dacă amplasarea investiției și, acolo unde este cazul, peste 50% din terenurile agricole ale exploatației se află în una dintre localitățile în dreptul cărora exista mențiunea ANC ZM în Anexa 3 la Ghidul solicitantului.\n10. Trebuie bifate şi anexate toate documentele de pe coloana “DEPUNERE-Obligatoriu pentru toate proiectele” din secțiunea E - Lista documentelor anexate."]
[]
[]
[]
[]
[]
[]
[]
[]
[]
[]
[]
[]
[]
[]
[null,"Buget Indicativ (Euro) pentru INVESTIŢII în activitatea de producţie AGRICOLĂ"]
["MINISTERUL AGRICULTURII ŞI DEZVOLTĂRII RURALE"]
["AGENŢIA PENTRU FINANŢAREA INVESTIŢIILOR RURALE"]
[]
[]
[null,"Procentul aferent intensităţii",null,null,null,null,null,null,null,null,null,null,null,null,null,null,null,null,null,"Curs EURO",null,null,null,null,null,null,null,null,null,null,null,null,null,null,null,"Data întocmirii devizului general din SF/DALI"]
[]
["Măsura",null,null,null,null,null,null,null,null,null,null,null,null,null,null,null,null,null,null,null,null,null,null,null,null,null,null,null,null,null,null,null,null,null,null,"M2/2A"]
["Denumirea capitolelor de cheltuieli",null,null,null,null,null,null,null,null,null,null,null,null,null,null,null,null,null,null,null,null,null,null,null,null,null,null,null,null,null,null,null,null,null,null,"Cheltuieli eligibile",null,null,null,null,null,null,null,null,"Cheltuieli neeligibile",null,null,null,null,null,null,null,"Total"]
[null,null,null,null,null,null,null,null,null,null,null,null,null,null,null,null,null,null,null,null,null,null,null,null,null,null,null,null,null,null,null,null,null,null,null,"EURO",null,null,null,null,null,null,null,null,"EURO",null,null,null,null,null,null,null,"EURO"]
[1,null,null,null,null,null,null,null,null,null,null,null,null,null,null,null,null,null,null,null,null,null,null,null,null,null,null,null,null,null,null,null,null,null,null,2,null,null,null,null,null,null,null,null,3,null,null,null,null,null,null,null,4]
["Capitolul 1 Cheltuieli pentru obtinerea şi amenajarea terenului - total, din care:",null,null,null,null,null,null,null,null,null,null,null,null,null,null,null,null,null,null,null,null,null,null,null,null,null,null,null,null,null,null,null,null,null,null,{"$f":"SUM(AJ289:AR290)","v":0},null,null,null,null,null,null,null,null,{"$f":"SUM(AS288:AZ290)","v":0},null,null,null,null,null,null,null,{"$f":"SUM(AJ287:AZ287)","v":0}]
["1.1 Cheltuieli pentru obţinerea terenului",null,null,null,null,null,null,null,null,null,null,null,null,null,null,null,null,null,null,null,null,null,null,null,null,null,null,null,null,null,null,null,null,null,null,null,null,null,null,null,null,null,null,null,null,null,null,null,null,null,null,null,{"$f":"SUM(AJ288:AZ288)","v":0}]
["1.2 Cheltuieli pentru amenajarea terenului",null,null,null,null,null,null,null,null,null,null,null,null,null,null,null,null,null,null,null,null,null,null,null,null,null,null,null,null,null,null,null,null,null,null,null,null,null,null,null,null,null,null,null,null,null,null,null,null,null,null,null,0]
["1.3 Cheltuieli cu amenajari pentru protecţia mediului şi aducerea la starea iniţială",null,null,null,null,null,null,null,null,null,null,null,null,null,null,null,null,null,null,null,null,null,null,null,null,null,null,null,null,null,null,null,null,null,null,null,null,null,null,null,null,null,null,null,null,null,null,null,null,null,null,null,0]
["Capitolul 2 Cheltuieli pentru asigurarea utilităţilor necesare obiectivului",null,null,null,null,null,null,null,null,null,null,null,null,null,null,null,null,null,null,null,null,null,null,null,null,null,null,null,null,null,null,null,null,null,null,null,null,null,null,null,null,null,null,null,null,null,null,null,null,null,null,null,0]
["Capitolul 3 Cheltuieli pentru proiectare şi asistenţă tehnică - total, din care:",null,null,null,null,null,null,null,null,null,null,null,null,null,null,null,null,null,null,null,null,null,null,null,null,null,null,null,null,null,null,null,null,null,null,{"$f":"SUM(AJ293:AR298)","v":0},null,null,null,null,null,null,null,null,{"$f":"SUM(AS293:AZ298)","v":0},null,null,null,null,null,null,null,0]
["3.1 Studii de teren",null,null,null,null,null,null,null,null,null,null,null,null,null,null,null,null,null,null,null,null,null,null,null,null,null,null,null,null,null,null,null,null,null,null,null,null,null,null,null,null,null,null,null,null,null,null,null,null,null,null,null,0]
["3.2 Obţinerea de avize, acorduri şi autorizaţii",null,null,null,null,null,null,null,null,null,null,null,null,null,null,null,null,null,null,null,null,null,null,null,null,null,null,null,null,null,null,null,null,null,null,null,null,null,null,null,null,null,null,null,null,null,null,null,null,null,null,null,0]
["3.3 Proiectare şi inginerie",null,null,null,null,null,null,null,null,null,null,null,null,null,null,null,null,null,null,null,null,null,null,null,null,null,null,null,null,null,null,null,null,null,null,null,null,null,null,null,null,null,null,null,null,null,null,null,null,null,null,null,0]
["3.4 Organizarea procedurilor de achiziţie",null,null,null,null,null,null,null,null,null,null,null,null,null,null,null,null,null,null,null,null,null,null,null,null,null,null,null,null,null,null,null,null,null,null,null,null,null,null,null,null,null,null,null,null,null,null,null,null,null,null,null,0]
["3.5 Consultanţă",null,null,null,null,null,null,null,null,null,null,null,null,null,null,null,null,null,null,null,null,null,null,null,null,null,null,null,null,null,null,null,null,null,null,null,null,null,null,null,null,null,null,null,null,null,null,null,null,null,null,null,0]
["3.6 Asistenţă tehnică",null,null,null,null,null,null,null,null,null,null,null,null,null,null,null,null,null,null,null,null,null,null,null,null,null,null,null,null,null,null,null,null,null,null,null,null,null,null,null,null,null,null,null,null,null,null,null,null,null,null,null,0]
["Verificare încadrare cheltuieli capitolul 3",null,null,null,null,null,null,null,null,null,null,null,null,null,null,null,null,null,null,null,null,null,null,null,null,null,null,null,null,null,null,null,{"$f":"AJ287+AJ291+AJ300","v":0},{"$f":"IF(AG299=0,0,AI299)","v":0},{"$f":"AJ292*100/AG299","v":{"$error":"#DIV/0!"}}]
["Capitolul 4 Cheltuieli pentru investiţia de bază - total, din care:",null,null,null,null,null,null,null,null,null,null,null,null,null,null,null,null,null,null,null,null,null,null,null,null,null,null,null,null,null,null,null,null,null,null,{"$f":"AJ301+AJ308","v":0},null,null,null,null,null,null,null,null,{"$f":"AS301+AS308","v":0},null,null,null,null,null,null,null,{"$f":"SUM(AJ300:AZ300)","v":0}]
["A - Constructii şi lucrări de intervenţii - total, din care:",null,null,null,null,null,null,null,null,null,null,null,null,null,null,null,null,null,null,null,null,null,null,null,null,null,null,null,null,null,null,null,null,null,null,{"$f":"SUM(AJ302:AR307)","v":0},null,null,null,null,null,null,null,null,{"$f":"SUM(AS302:AZ307)","v":0},null,null,null,null,null,null,null,{"$f":"SUM(AJ301:AZ301)","v":0}]
["4.1 Construcţii şi instalaţii",null,null,null,null,null,null,null,null,null,null,null,null,null,null,null,null,null,null,null,null,null,null,null,null,null,null,null,null,null,null,null,null,null,null,null,null,null,null,null,null,null,null,null,null,null,null,null,null,null,null,null,0]
["4.2 Montaj utilaj tehnologic",null,null,null,null,null,null,null,null,null,null,null,null,null,null,null,null,null,null,null,null,null,null,null,null,null,null,null,null,null,null,null,null,null,null,null,null,null,null,null,null,null,null,null,null,null,null,null,null,null,null,null,0]
["4.3 Utilaje, echipamente tehnologice şi funcţionale cu montaj (procurare)",null,null,null,null,null,null,null,null,null,null,null,null,null,null,null,null,null,null,null,null,null,null,null,null,null,null,null,null,null,null,null,null,null,null,null,null,null,null,null,null,null,null,null,null,null,null,null,null,null,null,null,0]
["4.4 Utilaje şi echipamente fară montaj, mijloace de transport, alte achiziţii specifice",null,null,null,null,null,null,null,null,null,null,null,null,null,null,null,null,null,null,null,null,null,null,null,null,null,null,null,null,null,null,null,null,null,null,null,null,null,null,null,null,null,null,null,null,null,null,null,null,null,null,null,0]
["4.5 Dotări",null,null,null,null,null,null,null,null,null,null,null,null,null,null,null,null,null,null,null,null,null,null,null,null,null,null,null,null,null,null,null,null,null,null,null,null,null,null,null,null,null,null,null,null,null,null,null,null,null,null,null,0]
["4.6 Active necorporale",null,null,null,null,null,null,null,null,null,null,null,null,null,null,null,null,null,null,null,null,null,null,null,null,null,null,null,null,null,null,null,null,null,null,null,null,null,null,null,null,null,null,null,null,null,null,null,null,null,null,null,0]
["B - Cheltuieli pentru investitii în culturi/plantaţii",null,null,null,null,null,null,null,null,null,null,null,null,null,null,null,null,null,null,null,null,null,null,null,null,null,null,null,null,null,null,null,null,null,null,{"$f":"SUM(AJ309:AR313)","v":0},null,null,null,null,null,null,null,null,{"$f":"SUM(AS309:AZ313)","v":0},null,null,null,null,null,null,null,{"$f":"SUM(AJ308:AZ308)","v":0}]
["Subcapitol 1 - Lucrări de pregătire a terenului",null,null,null,null,null,null,null,null,null,null,null,null,null,null,null,null,null,null,null,null,null,null,null,null,null,null,null,null,null,null,null,null,null,null,null,null,null,null,null,null,null,null,null,null,null,null,null,null,null,null,null,0]
["Subcapitol 2 - Infiinţarea plantaţiei",null,null,null,null,null,null,null,null,null,null,null,null,null,null,null,null,null,null,null,null,null,null,null,null,null,null,null,null,null,null,null,null,null,null,null,null,null,null,null,null,null,null,null,null,null,null,null,null,null,null,null,0]
["Subcapitol 3 - Intreţinere plantaţie în anul 1",null,null,null,null,null,null,null,null,null,null,null,null,null,null,null,null,null,null,null,null,null,null,null,null,null,null,null,null,null,null,null,null,null,null,null,null,null,null,null,null,null,null,null,null,null,null,null,null,null,null,null,0]
["Subcapitol 4 - Intreţinere plantaţie în anul 2",null,null,null,null,null,null,null,null,null,null,null,null,null,null,null,null,null,null,null,null,null,null,null,null,null,null,null,null,null,null,null,null,null,null,null,null,null,null,null,null,null,null,null,null,null,null,null,null,null,null,null,0]
["Subcapitol 5 - Instalat sistem susţinere şi împrejmuire",null,null,null,null,null,null,null,null,null,null,null,null,null,null,null,null,null,null,null,null,null,null,null,null,null,null,null,null,null,null,null,null,null,null,null,null,null,null,null,null,null,null,null,null,null,null,null,null,null,null,null,0]
["Capitolul 5 Alte cheltuieli - total, din care:",null,null,null,null,null,null,null,null,null,null,null,null,null,null,null,null,null,null,null,null,null,null,null,null,null,null,null,null,null,null,null,null,null,null,{"$f":"AJ315+AJ318+AJ319","v":0},null,null,null,null,null,null,null,null,{"$f":"AS315+AS318+AS319","v":0},null,null,null,null,null,null,null,0]
["5.1 Organizare de şantier",null,null,null,null,null,null,null,null,null,null,null,null,null,null,null,null,null,null,null,null,null,null,null,null,null,null,null,null,null,null,null,null,null,null,{"$f":"SUM(AJ316:AR317)","v":0},null,null,null,null,null,null,null,null,{"$f":"SUM(AS316:AZ317)","v":0},null,null,null,null,null,null,null,0]
["      5.1.1 lucrări de construcţii şi instalaţii aferente organizării de şantier",null,null,null,null,null,null,null,null,null,null,null,null,null,null,null,null,null,null,null,null,null,null,null,null,null,null,null,null,null,null,null,null,null,null,null,null,null,null,null,null,null,null,null,null,null,null,null,null,null,null,null,0]
["      5.1.2 cheltuieli conexe orgănizării şantierului",null,null,null,null,null,null,null,null,null,null,null,null,null,null,null,null,null,null,null,null,null,null,null,null,null,null,null,null,null,null,null,null,null,null,null,null,null,null,null,null,null,null,null,null,null,null,null,null,null,null,null,0]
["5.2 Comisioane, taxe, costul creditului",null,null,null,null,null,null,null,null,null,null,null,null,null,null,null,null,null,null,null,null,null,null,null,null,null,null,null,null,null,null,null,null,null,null,null,null,null,null,null,null,null,null,null,null,null,null,null,null,null,null,null,0]
["5.3 Cheltuieli diverse şi neprevăzute",null,null,null,null,null,null,null,null,null,null,null,null,null,null,null,null,null,null,null,null,null,null,null,null,null,null,null,null,null,null,null,null,null,null,null,null,null,null,null,null,null,null,null,null,null,null,null,null,null,null,null,0]
["Procent cheltuieli diverse şi neprevăzute"]
["Capitolul 6 Cheltuieli pentru darea în exploatare - total, din care:",null,null,null,null,null,null,null,null,null,null,null,null,null,null,null,null,null,null,null,null,null,null,null,null,null,null,null,null,null,null,null,null,null,null,{"$f":"SUM(AJ322:AR323)","v":0},null,null,null,null,null,null,null,null,{"$f":"SUM(AS322:AZ323)","v":0},null,null,null,null,null,null,null,0]
["6.1 Pregătirea personalului de exploatare",null,null,null,null,null,null,null,null,null,null,null,null,null,null,null,null,null,null,null,null,null,null,null,null,null,null,null,null,null,null,null,null,null,null,null,null,null,null,null,null,null,null,null,null,null,null,null,null,null,null,null,0]
["6.2 Probe tehnologice şi teste",null,null,null,null,null,null,null,null,null,null,null,null,null,null,null,null,null,null,null,null,null,null,null,null,null,null,null,null,null,null,null,null,null,null,null,null,null,null,null,null,null,null,null,null,null,null,null,null,null,null,null,0]
["TOTAL GENERAL",null,null,null,null,null,null,null,null,null,null,null,null,null,null,null,null,null,null,null,null,null,null,null,null,null,null,null,null,null,null,null,null,null,null,{"$f":"AJ287+AJ291+AJ292+AJ300+AJ314+AJ321","v":0},null,null,null,null,null,null,null,null,{"$f":"AS287+AS291+AS292+AS300+AS314+AS321","v":0},null,null,null,null,null,null,null,0]
["Verificare actualizare",null,null,null,null,null,null,null,null,null,null,null,null,null,null,null,null,null,null,null,null,null,null,null,null,null,null,null,null,null,null,{"$f":"AJ326*100/AJ324","v":{"$error":"#DIV/0!"}},null,null,{"$f":"IF(AJ324=0,0,AF325)","v":0},{"$f":"IF(AI325<=5,\"actualizare mai mică de 5% din valoarea eligibila\",\"actualizare mai mare de 5% din valoarea eligibila\")","v":"actualizare mai mică de 5% din valoarea eligibila"}]
["ACTUALIZARE Cheltuieli Eligibile (max 5%)",null,null,null,null,null,null,null,null,null,null,null,null,null,null,null,null,null,null,null,null,null,null,null,null,null,null,null,null,null,null,null,null,null,null,null,null,null,null,null,null,null,null,null,null,null,null,null,null,null,null,null,{"$f":"SUM(AJ326:AZ326)","v":0}]
["TOTAL GENERAL CU ACTUALIZARE",null,null,null,null,null,null,null,null,null,null,null,null,null,null,null,null,null,null,null,null,null,null,null,null,null,null,null,null,null,null,null,null,null,null,{"$f":"AJ324+AJ326","v":0},null,null,null,null,null,null,null,null,{"$f":"AS324","v":0},null,null,null,null,null,null,null,{"$f":"SUM(AJ327:AZ327)","v":0}]
["Valoare TVA",null,null,null,null,null,null,null,null,null,null,null,null,null,null,null,null,null,null,null,null,null,null,null,null,null,null,null,null,null,null,null,null,null,null,null,null,null,null,null,null,null,null,null,null,null,null,null,null,null,null,null,0]
[null,null,null,null,null,null,null,null,null,null,null,null,null,null,null,null,null,null,null,null,null,null,null,null,null,null,null,null,null,null,null,null,null,null,null,null,null,null,null,null,null,null,null,null,null,null,null,null,null,null,null,null,0]
["TOTAL GENERAL inclusiv TVA",null,null,null,null,null,null,null,null,null,null,null,null,null,null,null,null,null,null,null,null,null,null,null,null,null,null,null,null,null,null,null,null,null,null,{"$f":"BA327+BA328","v":0}]
[null,null,null,null,null,null,null,null,null,null,null,null,null,null,null,null,null,null,null,null,null,null,null,null,null,null,null,null,null,null,null,null,null,null,null,"LEI",null,null,null,null,null,null,null,null,"EURO"]
["VALOARE TOTALĂ",null,null,null,null,null,null,null,null,null,null,null,null,null,null,null,null,null,null,null,null,null,null,null,null,null,null,null,null,null,null,null,null,null,null,{"$f":"AS332*Z281","v":0},null,null,null,null,null,null,null,null,{"$f":"AJ330","v":0}]
["VALOARE ELIGIBILĂ",null,null,null,null,null,null,null,null,null,null,null,null,null,null,null,null,null,null,null,null,null,null,null,null,null,null,null,null,null,null,null,null,null,null,{"$f":"AS333*Z281","v":0},null,null,null,null,null,null,null,null,{"$f":"AJ327+AJ328","v":0}]
["VALOARE NEELIGIBILĂ",null,null,null,null,null,null,null,null,null,null,null,null,null,null,null,null,null,null,null,null,null,null,null,null,null,null,null,null,null,null,null,null,null,null,{"$f":"AS334*Z281","v":0},null,null,null,null,null,null,null,null,{"$f":"AS327+AS328","v":0}]
[]
["Plan Financiar",null,null,null,null,null,null,null,null,null,null,null,null,null,null,null,null,null,null,null,null,null,null,null,null,null,null,null,null,null,null,null,null,null,null,"Cheltuieli eligibile EURO",null,null,null,null,null,null,null,null,"Cheltuieli neeligibile EURO",null,null,null,null,null,null,null,"Total"]
["Ajutor public nerambursabil (contribuţie UE şi cofinanţare naţională)",null,null,null,null,null,null,null,null,null,null,null,null,null,null,null,null,null,null,null,null,null,null,null,null,null,null,null,null,null,null,null,null,null,null,null,null,null,null,null,null,null,null,null,null,null,null,null,null,null,null,null,{"$f":"SUM(AJ337:AZ337)","v":0}]
["Cofinantare privata, din care:",null,null,null,null,null,null,null,null,null,null,null,null,null,null,null,null,null,null,null,null,null,null,null,null,null,null,null,null,null,null,null,null,null,null,{"$f":"SUM(AJ339:AR341)","v":0},null,null,null,null,null,null,null,null,{"$f":"SUM(AS339:AZ341)","v":0},null,null,null,null,null,null,null,{"$f":"SUM(AJ338:AZ338)","v":0}]
[null,null,null,null,null,null,null,null,null,null,null,null,null,null,null,"- contributia in natura",null,null,null,null,null,null,null,null,null,null,null,null,null,null,null,null,null,null,null,null,null,null,null,null,null,null,null,null,null,null,null,null,null,null,null,null,0]
[null,null,null,null,null,null,null,null,null,null,null,null,null,null,null,"- autofinanțare",null,null,null,null,null,null,null,null,null,null,null,null,null,null,null,null,null,null,null,null,null,null,null,null,null,null,null,null,null,null,null,null,null,null,null,null,0]
[null,null,null,null,null,null,null,null,null,null,null,null,null,null,null,"- împrumuturi",null,null,null,null,null,null,null,null,null,null,null,null,null,null,null,null,null,null,null,null,null,null,null,null,null,null,null,null,null,null,null,null,null,null,null,null,{"$f":"SUM(AJ341:AZ341)","v":0}]
["TOTAL PROIECT",null,null,null,null,null,null,null,null,null,null,null,null,null,null,null,null,null,null,null,null,null,null,null,null,null,null,null,null,null,null,null,null,null,null,{"$f":"AJ337+AJ338","v":0},null,null,null,null,null,null,null,null,{"$f":"AS338","v":0},null,null,null,null,null,null,null,0]
["Procent contribuţie publică",null,null,null,null,null,null,null,null,null,null,null,null,null,null,null,null,null,null,null,null,null,null,null,null,null,null,null,null,null,null,null,null,{"$f":"AJ337*100/AJ342","v":{"$error":"#DIV/0!"}},{"$f":"IF(AJ342=0,0,AH343)","v":0},{"$f":"AI343","v":0},null,null,null,null,null,null,null,"%"]
["Avans solicitat"]
["Procent avans solicitat ca procent din ajutorul public nerambursabil",null,null,null,null,null,null,null,null,null,null,null,null,null,null,null,null,null,null,null,null,null,null,null,null,null,null,null,null,null,null,null,null,null,{"$f":"AJ344*100/AJ337","v":{"$error":"#DIV/0!"}},{"$f":"IF(AJ337=0,0,AI345)","v":0},null,null,null,null,null,null,null,null,{"$f":"IF(AJ345<=50,\"Suma avans mai mica de 50% din ajutorul public\",\"Suma avans mai mare de 50% din ajutorul public\")","v":"Suma avans mai mica de 50% din ajutorul public"}]
[null,"Buget Indicativ (Euro) pentru INVESTIŢII în activitatea de procesare şi/sau comercializare"]
["MINISTERUL AGRICULTURII ŞI DEZVOLTĂRII RURALE"]
["AGENŢIA PENTRU FINANŢAREA INVESTIŢIILOR RURALE"]
[]
[]
[null,"Procentul aferent intensităţii",null,null,null,null,null,null,null,null,null,null,null,null,null,null,null,null,null,"Curs EURO",null,null,null,null,null,{"$f":"Z281","v":0},null,null,null,null,null,null,null,null,null,"Data întocmirii devizului general din SF/DALI"]
[]
["Măsura",null,null,null,null,null,null,null,null,null,null,null,null,null,null,null,null,null,null,null,null,null,null,null,null,null,null,null,null,null,null,null,null,null,null,"M2/2A"]
["Denumirea capitolelor de cheltuieli",null,null,null,null,null,null,null,null,null,null,null,null,null,null,null,null,null,null,null,null,null,null,null,null,null,null,null,null,null,null,null,null,null,null,"Cheltuieli eligibile",null,null,null,null,null,null,null,null,"Cheltuieli neeligibile",null,null,null,null,null,null,null,"Total"]
[null,null,null,null,null,null,null,null,null,null,null,null,null,null,null,null,null,null,null,null,null,null,null,null,null,null,null,null,null,null,null,null,null,null,null,"EURO",null,null,null,null,null,null,null,null,"EURO",null,null,null,null,null,null,null,"EURO"]
[1,null,null,null,null,null,null,null,null,null,null,null,null,null,null,null,null,null,null,null,null,null,null,null,null,null,null,null,null,null,null,null,null,null,null,2,null,null,null,null,null,null,null,null,3,null,null,null,null,null,null,null,4]
["Capitolul 1 Cheltuieli pentru obtinerea şi amenajarea terenului - total, din care:",null,null,null,null,null,null,null,null,null,null,null,null,null,null,null,null,null,null,null,null,null,null,null,null,null,null,null,null,null,null,null,null,null,null,{"$f":"SUM(AJ359:AR360)","v":0},null,null,null,null,null,null,null,null,{"$f":"SUM(AS358:AZ360)","v":0},null,null,null,null,null,null,null,{"$f":"SUM(AJ357:AZ357)","v":0}]
["1.1 Cheltuieli pentru obţinerea terenului",null,null,null,null,null,null,null,null,null,null,null,null,null,null,null,null,null,null,null,null,null,null,null,null,null,null,null,null,null,null,null,null,null,null,null,null,null,null,null,null,null,null,null,null,null,null,null,null,null,null,null,{"$f":"SUM(AJ358:AZ358)","v":0}]
["1.2 Cheltuieli pentru amenajarea terenului",null,null,null,null,null,null,null,null,null,null,null,null,null,null,null,null,null,null,null,null,null,null,null,null,null,null,null,null,null,null,null,null,null,null,null,null,null,null,null,null,null,null,null,null,null,null,null,null,null,null,null,0]
["1.3 Cheltuieli cu amenajari pentru protecţia mediului şi aducerea la starea iniţială",null,null,null,null,null,null,null,null,null,null,null,null,null,null,null,null,null,null,null,null,null,null,null,null,null,null,null,null,null,null,null,null,null,null,null,null,null,null,null,null,null,null,null,null,null,null,null,null,null,null,null,0]
["Capitolul 2 Cheltuieli pentru asigurarea utilităţilor necesare obiectivului",null,null,null,null,null,null,null,null,null,null,null,null,null,null,null,null,null,null,null,null,null,null,null,null,null,null,null,null,null,null,null,null,null,null,null,null,null,null,null,null,null,null,null,null,null,null,null,null,null,null,null,0]
["Capitolul 3 Cheltuieli pentru proiectare şi asistenţă tehnică - total, din care:",null,null,null,null,null,null,null,null,null,null,null,null,null,null,null,null,null,null,null,null,null,null,null,null,null,null,null,null,null,null,null,null,null,null,{"$f":"SUM(AJ363:AR368)","v":0},null,null,null,null,null,null,null,null,{"$f":"SUM(AS363:AZ368)","v":0},null,null,null,null,null,null,null,0]
["3.1 Studii de teren",null,null,null,null,null,null,null,null,null,null,null,null,null,null,null,null,null,null,null,null,null,null,null,null,null,null,null,null,null,null,null,null,null,null,null,null,null,null,null,null,null,null,null,null,null,null,null,null,null,null,null,0]
["3.2 Obţinerea de avize, acorduri şi autorizaţii",null,null,null,null,null,null,null,null,null,null,null,null,null,null,null,null,null,null,null,null,null,null,null,null,null,null,null,null,null,null,null,null,null,null,null,null,null,null,null,null,null,null,null,null,null,null,null,null,null,null,null,0]
["3.3 Proiectare şi inginerie",null,null,null,null,null,null,null,null,null,null,null,null,null,null,null,null,null,null,null,null,null,null,null,null,null,null,null,null,null,null,null,null,null,null,null,null,null,null,null,null,null,null,null,null,null,null,null,null,null,null,null,0]
["3.4 Organizarea procedurilor de achiziţie",null,null,null,null,null,null,null,null,null,null,null,null,null,null,null,null,null,null,null,null,null,null,null,null,null,null,null,null,null,null,null,null,null,null,null,null,null,null,null,null,null,null,null,null,null,null,null,null,null,null,null,0]
["3.5 Consultanţă",null,null,null,null,null,null,null,null,null,null,null,null,null,null,null,null,null,null,null,null,null,null,null,null,null,null,null,null,null,null,null,null,null,null,null,null,null,null,null,null,null,null,null,null,null,null,null,null,null,null,null,0]
["3.6 Asistenţă tehnică",null,null,null,null,null,null,null,null,null,null,null,null,null,null,null,null,null,null,null,null,null,null,null,null,null,null,null,null,null,null,null,null,null,null,null,null,null,null,null,null,null,null,null,null,null,null,null,null,null,null,null,0]
["Verificare încadrare cheltuieli capitolul 3",null,null,null,null,null,null,null,null,null,null,null,null,null,null,null,null,null,null,null,null,null,null,null,null,null,null,null,null,null,null,null,{"$f":"AJ357+AJ361+AJ370","v":0},{"$f":"IF(AG369=0,0,AI369)","v":0}]
["Capitolul 4 Cheltuieli pentru investiţia de bază - total, din care:",null,null,null,null,null,null,null,null,null,null,null,null,null,null,null,null,null,null,null,null,null,null,null,null,null,null,null,null,null,null,null,null,null,null,{"$f":"AJ371+AJ378","v":0},null,null,null,null,null,null,null,null,{"$f":"AS371+AS378","v":0},null,null,null,null,null,null,null,{"$f":"SUM(AJ370:AZ370)","v":0}]
["A - Constructii şi lucrări de intervenţii - total, din care:",null,null,null,null,null,null,null,null,null,null,null,null,null,null,null,null,null,null,null,null,null,null,null,null,null,null,null,null,null,null,null,null,null,null,{"$f":"SUM(AJ372:AR377)","v":0},null,null,null,null,null,null,null,null,{"$f":"SUM(AS372:AZ377)","v":0},null,null,null,null,null,null,null,0]
["4.1 Construcţii şi instalaţii",null,null,null,null,null,null,null,null,null,null,null,null,null,null,null,null,null,null,null,null,null,null,null,null,null,null,null,null,null,null,null,null,null,null,null,null,null,null,null,null,null,null,null,null,null,null,null,null,null,null,null,0]
["4.2 Montaj utilaj tehnologic",null,null,null,null,null,null,null,null,null,null,null,null,null,null,null,null,null,null,null,null,null,null,null,null,null,null,null,null,null,null,null,null,null,null,null,null,null,null,null,null,null,null,null,null,null,null,null,null,null,null,null,0]
["4.3 Utilaje, echipamente tehnologice şi funcţionale cu montaj (procurare)",null,null,null,null,null,null,null,null,null,null,null,null,null,null,null,null,null,null,null,null,null,null,null,null,null,null,null,null,null,null,null,null,null,null,null,null,null,null,null,null,null,null,null,null,null,null,null,null,null,null,null,0]
["4.4 Utilaje şi echipamente fară montaj, mijloace de transport, alte achiziţii specifice",null,null,null,null,null,null,null,null,null,null,null,null,null,null,null,null,null,null,null,null,null,null,null,null,null,null,null,null,null,null,null,null,null,null,null,null,null,null,null,null,null,null,null,null,null,null,null,null,null,null,null,0]
["4.5 Dotări",null,null,null,null,null,null,null,null,null,null,null,null,null,null,null,null,null,null,null,null,null,null,null,null,null,null,null,null,null,null,null,null,null,null,null,null,null,null,null,null,null,null,null,null,null,null,null,null,null,null,null,0]
["4.6 Active necorporale",null,null,null,null,null,null,null,null,null,null,null,null,null,null,null,null,null,null,null,null,null,null,null,null,null,null,null,null,null,null,null,null,null,null,null,null,null,null,null,null,null,null,null,null,null,null,null,null,null,null,null,0]
["B - Cheltuieli pentru investitii în culturi/plantaţii",null,null,null,null,null,null,null,null,null,null,null,null,null,null,null,null,null,null,null,null,null,null,null,null,null,null,null,null,null,null,null,null,null,null,{"$f":"SUM(AJ379:AR383)","v":0},null,null,null,null,null,null,null,null,{"$f":"SUM(AS379:AZ383)","v":0},null,null,null,null,null,null,null,0]
["Subcapitol 1 - Lucrări de pregătire a terenului",null,null,null,null,null,null,null,null,null,null,null,null,null,null,null,null,null,null,null,null,null,null,null,null,null,null,null,null,null,null,null,null,null,null,null,null,null,null,null,null,null,null,null,null,null,null,null,null,null,null,null,0]
["Subcapitol 2 - Infiinţarea plantaţiei",null,null,null,null,null,null,null,null,null,null,null,null,null,null,null,null,null,null,null,null,null,null,null,null,null,null,null,null,null,null,null,null,null,null,null,null,null,null,null,null,null,null,null,null,null,null,null,null,null,null,null,0]
["Subcapitol 3 - Intreţinere plantaţie în anul 1",null,null,null,null,null,null,null,null,null,null,null,null,null,null,null,null,null,null,null,null,null,null,null,null,null,null,null,null,null,null,null,null,null,null,null,null,null,null,null,null,null,null,null,null,null,null,null,null,null,null,null,0]
["Subcapitol 4 - Intreţinere plantaţie în anul 2",null,null,null,null,null,null,null,null,null,null,null,null,null,null,null,null,null,null,null,null,null,null,null,null,null,null,null,null,null,null,null,null,null,null,null,null,null,null,null,null,null,null,null,null,null,null,null,null,null,null,null,0]
["Subcapitol 5 - Instalat sistem susţinere şi împrejmuire",null,null,null,null,null,null,null,null,null,null,null,null,null,null,null,null,null,null,null,null,null,null,null,null,null,null,null,null,null,null,null,null,null,null,null,null,null,null,null,null,null,null,null,null,null,null,null,null,null,null,null,0]
["Capitolul 5 Alte cheltuieli - total, din care:",null,null,null,null,null,null,null,null,null,null,null,null,null,null,null,null,null,null,null,null,null,null,null,null,null,null,null,null,null,null,null,null,null,null,{"$f":"AJ385+AJ388+AJ389","v":0},null,null,null,null,null,null,null,null,{"$f":"AS385+AS388+AS389","v":0},null,null,null,null,null,null,null,0]
["5.1 Organizare de şantier",null,null,null,null,null,null,null,null,null,null,null,null,null,null,null,null,null,null,null,null,null,null,null,null,null,null,null,null,null,null,null,null,null,null,{"$f":"SUM(AJ386:AR387)","v":0},null,null,null,null,null,null,null,null,{"$f":"SUM(AS386:AZ387)","v":0},null,null,null,null,null,null,null,0]
["      5.1.1 lucrări de construcţii şi instalaţii aferente organizării de şantier",null,null,null,null,null,null,null,null,null,null,null,null,null,null,null,null,null,null,null,null,null,null,null,null,null,null,null,null,null,null,null,null,null,null,null,null,null,null,null,null,null,null,null,null,null,null,null,null,null,null,null,0]
["      5.1.2 cheltuieli conexe orgănizării şantierului",null,null,null,null,null,null,null,null,null,null,null,null,null,null,null,null,null,null,null,null,null,null,null,null,null,null,null,null,null,null,null,null,null,null,null,null,null,null,null,null,null,null,null,null,null,null,null,null,null,null,null,0]
["5.2 Comisioane, taxe, costul creditului",null,null,null,null,null,null,null,null,null,null,null,null,null,null,null,null,null,null,null,null,null,null,null,null,null,null,null,null,null,null,null,null,null,null,null,null,null,null,null,null,null,null,null,null,null,null,null,null,null,null,null,0]
["5.3 Cheltuieli diverse şi neprevăzute",null,null,null,null,null,null,null,null,null,null,null,null,null,null,null,null,null,null,null,null,null,null,null,null,null,null,null,null,null,null,null,null,null,null,null,null,null,null,null,null,null,null,null,null,null,null,null,null,null,null,null,0]
["Procent cheltuieli diverse şi neprevăzute"]
["Capitolul 6 Cheltuieli pentru darea în exploatare - total, din care:",null,null,null,null,null,null,null,null,null,null,null,null,null,null,null,null,null,null,null,null,null,null,null,null,null,null,null,null,null,null,null,null,null,null,{"$f":"SUM(AJ392:AR393)","v":0},null,null,null,null,null,null,null,null,{"$f":"SUM(AS392:AZ393)","v":0},null,null,null,null,null,null,null,{"$f":"SUM(AJ391:AZ391)","v":0}]
["6.1 Pregătirea personalului de exploatare",null,null,null,null,null,null,null,null,null,null,null,null,null,null,null,null,null,null,null,null,null,null,null,null,null,null,null,null,null,null,null,null,null,null,null,null,null,null,null,null,null,null,null,null,null,null,null,null,null,null,null,0]
["6.2 Probe tehnologice şi teste",null,null,null,null,null,null,null,null,null,null,null,null,null,null,null,null,null,null,null,null,null,null,null,null,null,null,null,null,null,null,null,null,null,null,null,null,null,null,null,null,null,null,null,null,null,null,null,null,null,null,null,0]
["TOTAL GENERAL",null,null,null,null,null,null,null,null,null,null,null,null,null,null,null,null,null,null,null,null,null,null,null,null,null,null,null,null,null,null,null,null,null,null,{"$f":"AJ357+AJ361+AJ362+AJ370+AJ384+AJ391","v":0},null,null,null,null,null,null,null,null,{"$f":"AS357+AS361+AS362+AS370+AS384+AS391","v":0},null,null,null,null,null,null,null,0]
["Verificare actualizare",null,null,null,null,null,null,null,null,null,null,null,null,null,null,null,null,null,null,null,null,null,null,null,null,null,null,null,null,null,null,null,null,null,{"$f":"IF(AJ394=0,0,AF395)","v":0}]
["ACTUALIZARE Cheltuieli Eligibile (max 5%)",null,null,null,null,null,null,null,null,null,null,null,null,null,null,null,null,null,null,null,null,null,null,null,null,null,null,null,null,null,null,null,null,null,null,null,null,null,null,null,null,null,null,null,null,null,null,null,null,null,null,null,{"$f":"SUM(AJ396:AZ396)","v":0}]
["TOTAL GENERAL CU ACTUALIZARE",null,null,null,null,null,null,null,null,null,null,null,null,null,null,null,null,null,null,null,null,null,null,null,null,null,null,null,null,null,null,null,null,null,null,{"$f":"AJ394+AJ396","v":0},null,null,null,null,null,null,null,null,{"$f":"AS394","v":0},null,null,null,null,null,null,null,0]
["Valoare TVA",null,null,null,null,null,null,null,null,null,null,null,null,null,null,null,null,null,null,null,null,null,null,null,null,null,null,null,null,null,null,null,null,null,null,null,null,null,null,null,null,null,null,null,null,null,null,null,null,null,null,null,0]
[null,null,null,null,null,null,null,null,null,null,null,null,null,null,null,null,null,null,null,null,null,null,null,null,null,null,null,null,null,null,null,null,null,null,null,null,null,null,null,null,null,null,null,null,null,null,null,null,null,null,null,null,0]
["TOTAL GENERAL inclusiv TVA",null,null,null,null,null,null,null,null,null,null,null,null,null,null,null,null,null,null,null,null,null,null,null,null,null,null,null,null,null,null,null,null,null,null,{"$f":"BA397+BA398","v":0}]
[null,null,null,null,null,null,null,null,null,null,null,null,null,null,null,null,null,null,null,null,null,null,null,null,null,null,null,null,null,null,null,null,null,null,null,"LEI",null,null,null,null,null,null,null,null,"EURO"]
["VALOARE TOTALĂ",null,null,null,null,null,null,null,null,null,null,null,null,null,null,null,null,null,null,null,null,null,null,null,null,null,null,null,null,null,null,null,null,null,null,{"$f":"AS402*Z351","v":0},null,null,null,null,null,null,null,null,{"$f":"AJ400","v":0}]
["VALOARE ELIGIBILĂ",null,null,null,null,null,null,null,null,null,null,null,null,null,null,null,null,null,null,null,null,null,null,null,null,null,null,null,null,null,null,null,null,null,null,{"$f":"AS403*Z351","v":0},null,null,null,null,null,null,null,null,{"$f":"AJ397+AJ398","v":0}]
["VALOARE NEELIGIBILĂ",null,null,null,null,null,null,null,null,null,null,null,null,null,null,null,null,null,null,null,null,null,null,null,null,null,null,null,null,null,null,null,null,null,null,{"$f":"AS404*Z351","v":0},null,null,null,null,null,null,null,null,{"$f":"AS397+AS398","v":0}]
[]
["Plan Financiar",null,null,null,null,null,null,null,null,null,null,null,null,null,null,null,null,null,null,null,null,null,null,null,null,null,null,null,null,null,null,null,null,null,null,"Cheltuieli eligibile EURO",null,null,null,null,null,null,null,null,"Cheltuieli neeligibile EURO",null,null,null,null,null,null,null,"Total"]
["Ajutor public nerambursabil (contribuţie UE şi cofinanţare naţională)",null,null,null,null,null,null,null,null,null,null,null,null,null,null,null,null,null,null,null,null,null,null,null,null,null,null,null,null,null,null,null,null,null,null,null,null,null,null,null,null,null,null,null,null,null,null,null,null,null,null,null,{"$f":"SUM(AJ407:AZ407)","v":0}]
["Cofinantare privata, din care:",null,null,null,null,null,null,null,null,null,null,null,null,null,null,null,null,null,null,null,null,null,null,null,null,null,null,null,null,null,null,null,null,null,null,{"$f":"SUM(AJ409:AR410)","v":0},null,null,null,null,null,null,null,null,{"$f":"SUM(AS409:AZ410)","v":0},null,null,null,null,null,null,null,0]
[null,null,null,null,null,null,null,null,null,null,null,null,null,null,null,"- autofinantare",null,null,null,null,null,null,null,null,null,null,null,null,null,null,null,null,null,null,null,null,null,null,null,null,null,null,null,null,null,null,null,null,null,null,null,null,{"$f":"SUM(AJ409:AZ409)","v":0}]
[null,null,null,null,null,null,null,null,null,null,null,null,null,null,null,"- imprumuturi",null,null,null,null,null,null,null,null,null,null,null,null,null,null,null,null,null,null,null,null,null,null,null,null,null,null,null,null,null,null,null,null,null,null,null,null,0]
["TOTAL PROIECT",null,null,null,null,null,null,null,null,null,null,null,null,null,null,null,null,null,null,null,null,null,null,null,null,null,null,null,null,null,null,null,null,null,null,{"$f":"AJ407+AJ408","v":0},null,null,null,null,null,null,null,null,{"$f":"AS408","v":0},null,null,null,null,null,null,null,0]
["Procent contribuţie publică",null,null,null,null,null,null,null,null,null,null,null,null,null,null,null,null,null,null,null,null,null,null,null,null,null,null,null,null,null,null,null,null,{"$f":"AJ407*100/AJ411","v":{"$error":"#DIV/0!"}},{"$f":"IF(AJ411=0,0,AH412)","v":0},{"$f":"AI412","v":0},null,null,null,null,null,null,null,"%"]
["Avans solicitat"]
["Procent avans solicitat ca procent din ajutorul public nerambursabil",null,null,null,null,null,null,null,null,null,null,null,null,null,null,null,null,null,null,null,null,null,null,null,null,null,null,null,null,null,null,null,null,null,null,{"$f":"IF(AJ407=0,0,AI414)","v":0},null,null,null,null,null,null,null,null,{"$f":"IF(AJ414<=50,\"Suma avans mai mica de 50% din ajutorul public\",\"Suma avans mai mare de 50% din ajutorul public\")","v":"Suma avans mai mica de 50% din ajutorul public"}]
[null,"Buget Indicativ (Euro) pentru INVESTIŢII pentru agromediu"]
["MINISTERUL AGRICULTURII ŞI DEZVOLTĂRII RURALE"]
["AGENŢIA PENTRU FINANŢAREA INVESTIŢIILOR RURALE"]
[]
[]
[null,"Procentul aferent intensităţii",null,null,null,null,null,null,null,null,null,null,null,null,null,null,null,null,null,"Curs EURO",null,null,null,null,null,{"$f":"Z281","v":0},null,null,null,null,null,null,null,null,null,"Data întocmirii devizului general din SF/DALI"]
[]
["Măsura",null,null,null,null,null,null,null,null,null,null,null,null,null,null,null,null,null,null,null,null,null,null,null,null,null,null,null,null,null,null,null,null,null,null,"M2/2A"]
["Denumirea capitolelor de cheltuieli",null,null,null,null,null,null,null,null,null,null,null,null,null,null,null,null,null,null,null,null,null,null,null,null,null,null,null,null,null,null,null,null,null,null,"Cheltuieli eligibile",null,null,null,null,null,null,null,null,"Cheltuieli neeligibile",null,null,null,null,null,null,null,"Total"]
[null,null,null,null,null,null,null,null,null,null,null,null,null,null,null,null,null,null,null,null,null,null,null,null,null,null,null,null,null,null,null,null,null,null,null,"EURO",null,null,null,null,null,null,null,null,"EURO",null,null,null,null,null,null,null,"EURO"]
[1,null,null,null,null,null,null,null,null,null,null,null,null,null,null,null,null,null,null,null,null,null,null,null,null,null,null,null,null,null,null,null,null,null,null,2,null,null,null,null,null,null,null,null,3,null,null,null,null,null,null,null,4]
["Capitolul 1 Cheltuieli pentru obtinerea şi amenajarea terenului - total, din care:",null,null,null,null,null,null,null,null,null,null,null,null,null,null,null,null,null,null,null,null,null,null,null,null,null,null,null,null,null,null,null,null,null,null,{"$f":"SUM(AJ428:AR429)","v":0},null,null,null,null,null,null,null,null,{"$f":"SUM(AS427:AZ429)","v":0},null,null,null,null,null,null,null,{"$f":"SUM(AJ426:AZ426)","v":0}]
["1.1 Cheltuieli pentru obţinerea terenului",null,null,null,null,null,null,null,null,null,null,null,null,null,null,null,null,null,null,null,null,null,null,null,null,null,null,null,null,null,null,null,null,null,null,null,null,null,null,null,null,null,null,null,null,null,null,null,null,null,null,null,{"$f":"SUM(AJ427:AZ427)","v":0}]
["1.2 Cheltuieli pentru amenajarea terenului",null,null,null,null,null,null,null,null,null,null,null,null,null,null,null,null,null,null,null,null,null,null,null,null,null,null,null,null,null,null,null,null,null,null,null,null,null,null,null,null,null,null,null,null,null,null,null,null,null,null,null,0]
["1.3 Cheltuieli cu amenajari pentru protecţia mediului şi aducerea la starea iniţială",null,null,null,null,null,null,null,null,null,null,null,null,null,null,null,null,null,null,null,null,null,null,null,null,null,null,null,null,null,null,null,null,null,null,null,null,null,null,null,null,null,null,null,null,null,null,null,null,null,null,null,0]
["Capitolul 2 Cheltuieli pentru asigurarea utilităţilor necesare obiectivului",null,null,null,null,null,null,null,null,null,null,null,null,null,null,null,null,null,null,null,null,null,null,null,null,null,null,null,null,null,null,null,null,null,null,null,null,null,null,null,null,null,null,null,null,null,null,null,null,null,null,null,0]
["Capitolul 3 Cheltuieli pentru proiectare şi asistenţă tehnică - total, din care:",null,null,null,null,null,null,null,null,null,null,null,null,null,null,null,null,null,null,null,null,null,null,null,null,null,null,null,null,null,null,null,null,null,null,{"$f":"SUM(AJ432:AR437)","v":0},null,null,null,null,null,null,null,null,{"$f":"SUM(AS432:AZ437)","v":0},null,null,null,null,null,null,null,0]
["3.1 Studii de teren",null,null,null,null,null,null,null,null,null,null,null,null,null,null,null,null,null,null,null,null,null,null,null,null,null,null,null,null,null,null,null,null,null,null,null,null,null,null,null,null,null,null,null,null,null,null,null,null,null,null,null,0]
["3.2 Obţinerea de avize, acorduri şi autorizaţii",null,null,null,null,null,null,null,null,null,null,null,null,null,null,null,null,null,null,null,null,null,null,null,null,null,null,null,null,null,null,null,null,null,null,null,null,null,null,null,null,null,null,null,null,null,null,null,null,null,null,null,0]
["3.3 Proiectare şi inginerie",null,null,null,null,null,null,null,null,null,null,null,null,null,null,null,null,null,null,null,null,null,null,null,null,null,null,null,null,null,null,null,null,null,null,null,null,null,null,null,null,null,null,null,null,null,null,null,null,null,null,null,0]
["3.4 Organizarea procedurilor de achiziţie",null,null,null,null,null,null,null,null,null,null,null,null,null,null,null,null,null,null,null,null,null,null,null,null,null,null,null,null,null,null,null,null,null,null,null,null,null,null,null,null,null,null,null,null,null,null,null,null,null,null,null,0]
["3.5 Consultanţă",null,null,null,null,null,null,null,null,null,null,null,null,null,null,null,null,null,null,null,null,null,null,null,null,null,null,null,null,null,null,null,null,null,null,null,null,null,null,null,null,null,null,null,null,null,null,null,null,null,null,null,0]
["3.6 Asistenţă tehnică",null,null,null,null,null,null,null,null,null,null,null,null,null,null,null,null,null,null,null,null,null,null,null,null,null,null,null,null,null,null,null,null,null,null,null,null,null,null,null,null,null,null,null,null,null,null,null,null,null,null,null,0]
["Verificare încadrare cheltuieli capitolul 3",null,null,null,null,null,null,null,null,null,null,null,null,null,null,null,null,null,null,null,null,null,null,null,null,null,null,null,null,null,null,null,{"$f":"AJ426+AJ430+AJ439","v":0},{"$f":"IF(AG438=0,0,AI438)","v":0}]
["Capitolul 4 Cheltuieli pentru investiţia de bază - total, din care:",null,null,null,null,null,null,null,null,null,null,null,null,null,null,null,null,null,null,null,null,null,null,null,null,null,null,null,null,null,null,null,null,null,null,{"$f":"AJ440+AJ447","v":0},null,null,null,null,null,null,null,null,{"$f":"AS440+AS447","v":0},null,null,null,null,null,null,null,{"$f":"SUM(AJ439:AZ439)","v":0}]
["A - Constructii şi lucrări de intervenţii - total, din care:",null,null,null,null,null,null,null,null,null,null,null,null,null,null,null,null,null,null,null,null,null,null,null,null,null,null,null,null,null,null,null,null,null,null,{"$f":"SUM(AJ441:AR446)","v":0},null,null,null,null,null,null,null,null,{"$f":"SUM(AS441:AZ446)","v":0},null,null,null,null,null,null,null,0]
["4.1 Construcţii şi instalaţii",null,null,null,null,null,null,null,null,null,null,null,null,null,null,null,null,null,null,null,null,null,null,null,null,null,null,null,null,null,null,null,null,null,null,null,null,null,null,null,null,null,null,null,null,null,null,null,null,null,null,null,0]
["4.2 Montaj utilaj tehnologic",null,null,null,null,null,null,null,null,null,null,null,null,null,null,null,null,null,null,null,null,null,null,null,null,null,null,null,null,null,null,null,null,null,null,null,null,null,null,null,null,null,null,null,null,null,null,null,null,null,null,null,0]
["4.3 Utilaje, echipamente tehnologice şi funcţionale cu montaj (procurare)",null,null,null,null,null,null,null,null,null,null,null,null,null,null,null,null,null,null,null,null,null,null,null,null,null,null,null,null,null,null,null,null,null,null,null,null,null,null,null,null,null,null,null,null,null,null,null,null,null,null,null,0]
["4.4 Utilaje şi echipamente fară montaj, mijloace de transport, alte achiziţii specifice",null,null,null,null,null,null,null,null,null,null,null,null,null,null,null,null,null,null,null,null,null,null,null,null,null,null,null,null,null,null,null,null,null,null,null,null,null,null,null,null,null,null,null,null,null,null,null,null,null,null,null,0]
["4.5 Dotări",null,null,null,null,null,null,null,null,null,null,null,null,null,null,null,null,null,null,null,null,null,null,null,null,null,null,null,null,null,null,null,null,null,null,null,null,null,null,null,null,null,null,null,null,null,null,null,null,null,null,null,0]
["4.6 Active necorporale",null,null,null,null,null,null,null,null,null,null,null,null,null,null,null,null,null,null,null,null,null,null,null,null,null,null,null,null,null,null,null,null,null,null,null,null,null,null,null,null,null,null,null,null,null,null,null,null,null,null,null,0]
["B - Cheltuieli pentru investitii în culturi/plantaţii",null,null,null,null,null,null,null,null,null,null,null,null,null,null,null,null,null,null,null,null,null,null,null,null,null,null,null,null,null,null,null,null,null,null,{"$f":"SUM(AJ448:AR452)","v":0},null,null,null,null,null,null,null,null,{"$f":"SUM(AS448:AZ452)","v":0},null,null,null,null,null,null,null,0]
["Subcapitol 1 - Lucrări de pregătire a terenului",null,null,null,null,null,null,null,null,null,null,null,null,null,null,null,null,null,null,null,null,null,null,null,null,null,null,null,null,null,null,null,null,null,null,null,null,null,null,null,null,null,null,null,null,null,null,null,null,null,null,null,0]
["Subcapitol 2 - Infiinţarea plantaţiei",null,null,null,null,null,null,null,null,null,null,null,null,null,null,null,null,null,null,null,null,null,null,null,null,null,null,null,null,null,null,null,null,null,null,null,null,null,null,null,null,null,null,null,null,null,null,null,null,null,null,null,0]
["Subcapitol 3 - Intreţinere plantaţie în anul 1",null,null,null,null,null,null,null,null,null,null,null,null,null,null,null,null,null,null,null,null,null,null,null,null,null,null,null,null,null,null,null,null,null,null,null,null,null,null,null,null,null,null,null,null,null,null,null,null,null,null,null,0]
["Subcapitol 4 - Intreţinere plantaţie în anul 2",null,null,null,null,null,null,null,null,null,null,null,null,null,null,null,null,null,null,null,null,null,null,null,null,null,null,null,null,null,null,null,null,null,null,null,null,null,null,null,null,null,null,null,null,null,null,null,null,null,null,null,0]
["Subcapitol 5 - Instalat sistem susţinere şi împrejmuire",null,null,null,null,null,null,null,null,null,null,null,null,null,null,null,null,null,null,null,null,null,null,null,null,null,null,null,null,null,null,null,null,null,null,null,null,null,null,null,null,null,null,null,null,null,null,null,null,null,null,null,0]
["Capitolul 5 Alte cheltuieli - total, din care:",null,null,null,null,null,null,null,null,null,null,null,null,null,null,null,null,null,null,null,null,null,null,null,null,null,null,null,null,null,null,null,null,null,null,{"$f":"AJ454+AJ457+AJ458","v":0},null,null,null,null,null,null,null,null,{"$f":"AS454+AS457+AS458","v":0},null,null,null,null,null,null,null,0]
["5.1 Organizare de şantier",null,null,null,null,null,null,null,null,null,null,null,null,null,null,null,null,null,null,null,null,null,null,null,null,null,null,null,null,null,null,null,null,null,null,{"$f":"SUM(AJ455:AR456)","v":0},null,null,null,null,null,null,null,null,{"$f":"SUM(AS455:AZ456)","v":0},null,null,null,null,null,null,null,0]
["      5.1.1 lucrări de construcţii şi instalaţii aferente organizării de şantier",null,null,null,null,null,null,null,null,null,null,null,null,null,null,null,null,null,null,null,null,null,null,null,null,null,null,null,null,null,null,null,null,null,null,null,null,null,null,null,null,null,null,null,null,null,null,null,null,null,null,null,0]
["      5.1.2 cheltuieli conexe orgănizării şantierului",null,null,null,null,null,null,null,null,null,null,null,null,null,null,null,null,null,null,null,null,null,null,null,null,null,null,null,null,null,null,null,null,null,null,null,null,null,null,null,null,null,null,null,null,null,null,null,null,null,null,null,0]
["5.2 Comisioane, taxe, costul creditului",null,null,null,null,null,null,null,null,null,null,null,null,null,null,null,null,null,null,null,null,null,null,null,null,null,null,null,null,null,null,null,null,null,null,null,null,null,null,null,null,null,null,null,null,null,null,null,null,null,null,null,0]
["5.3 Cheltuieli diverse şi neprevăzute",null,null,null,null,null,null,null,null,null,null,null,null,null,null,null,null,null,null,null,null,null,null,null,null,null,null,null,null,null,null,null,null,null,null,null,null,null,null,null,null,null,null,null,null,null,null,null,null,null,null,null,0]
["Procent cheltuieli diverse şi neprevăzute"]
["Capitolul 6 Cheltuieli pentru darea în exploatare - total, din care:",null,null,null,null,null,null,null,null,null,null,null,null,null,null,null,null,null,null,null,null,null,null,null,null,null,null,null,null,null,null,null,null,null,null,{"$f":"SUM(AJ461:AR462)","v":0},null,null,null,null,null,null,null,null,{"$f":"SUM(AS461:AZ462)","v":0},null,null,null,null,null,null,null,{"$f":"SUM(AJ460:AZ460)","v":0}]
["6.1 Pregătirea personalului de exploatare",null,null,null,null,null,null,null,null,null,null,null,null,null,null,null,null,null,null,null,null,null,null,null,null,null,null,null,null,null,null,null,null,null,null,null,null,null,null,null,null,null,null,null,null,null,null,null,null,null,null,null,0]
["6.2 Probe tehnologice şi teste",null,null,null,null,null,null,null,null,null,null,null,null,null,null,null,null,null,null,null,null,null,null,null,null,null,null,null,null,null,null,null,null,null,null,null,null,null,null,null,null,null,null,null,null,null,null,null,null,null,null,null,0]
["TOTAL GENERAL",null,null,null,null,null,null,null,null,null,null,null,null,null,null,null,null,null,null,null,null,null,null,null,null,null,null,null,null,null,null,null,null,null,null,{"$f":"AJ426+AJ430+AJ431+AJ439+AJ453+AJ460","v":0},null,null,null,null,null,null,null,null,{"$f":"AS426+AS430+AS431+AS439+AS453+AS460","v":0},null,null,null,null,null,null,null,0]
["Verificare actualizare",null,null,null,null,null,null,null,null,null,null,null,null,null,null,null,null,null,null,null,null,null,null,null,null,null,null,null,null,null,null,null,null,null,{"$f":"IF(AJ463=0,0,AF464)","v":0},{"$f":"IF(AI464<=5,\"actualizare mai mică de 5% din valoarea eligibila\",\"actualizare mai mare de 5% din valoarea eligibila\")","v":"actualizare mai mică de 5% din valoarea eligibila"}]
["ACTUALIZARE Cheltuieli Eligibile (max 5%)",null,null,null,null,null,null,null,null,null,null,null,null,null,null,null,null,null,null,null,null,null,null,null,null,null,null,null,null,null,null,null,null,null,null,null,null,null,null,null,null,null,null,null,null,null,null,null,null,null,null,null,{"$f":"SUM(AJ465:AZ465)","v":0}]
["TOTAL GENERAL CU ACTUALIZARE",null,null,null,null,null,null,null,null,null,null,null,null,null,null,null,null,null,null,null,null,null,null,null,null,null,null,null,null,null,null,null,null,null,null,{"$f":"AJ463+AJ465","v":0},null,null,null,null,null,null,null,null,{"$f":"AS463","v":0},null,null,null,null,null,null,null,0]
["Valoare TVA",null,null,null,null,null,null,null,null,null,null,null,null,null,null,null,null,null,null,null,null,null,null,null,null,null,null,null,null,null,null,null,null,null,null,null,null,null,null,null,null,null,null,null,null,null,null,null,null,null,null,null,0]
[null,null,null,null,null,null,null,null,null,null,null,null,null,null,null,null,null,null,null,null,null,null,null,null,null,null,null,null,null,null,null,null,null,null,null,null,null,null,null,null,null,null,null,null,null,null,null,null,null,null,null,null,0]
["TOTAL GENERAL inclusiv TVA",null,null,null,null,null,null,null,null,null,null,null,null,null,null,null,null,null,null,null,null,null,null,null,null,null,null,null,null,null,null,null,null,null,null,{"$f":"BA466+BA467","v":0}]
[null,null,null,null,null,null,null,null,null,null,null,null,null,null,null,null,null,null,null,null,null,null,null,null,null,null,null,null,null,null,null,null,null,null,null,"LEI",null,null,null,null,null,null,null,null,"EURO"]
["VALOARE TOTALĂ",null,null,null,null,null,null,null,null,null,null,null,null,null,null,null,null,null,null,null,null,null,null,null,null,null,null,null,null,null,null,null,null,null,null,{"$f":"AS471*Z420","v":0},null,null,null,null,null,null,null,null,{"$f":"AJ469","v":0}]
["VALOARE ELIGIBILĂ",null,null,null,null,null,null,null,null,null,null,null,null,null,null,null,null,null,null,null,null,null,null,null,null,null,null,null,null,null,null,null,null,null,null,{"$f":"AS472*Z420","v":0},null,null,null,null,null,null,null,null,{"$f":"AJ466+AJ467","v":0}]
["VALOARE NEELIGIBILĂ",null,null,null,null,null,null,null,null,null,null,null,null,null,null,null,null,null,null,null,null,null,null,null,null,null,null,null,null,null,null,null,null,null,null,{"$f":"AS473*Z420","v":0},null,null,null,null,null,null,null,null,{"$f":"AS466+AS467","v":0}]
[]
["Plan Financiar",null,null,null,null,null,null,null,null,null,null,null,null,null,null,null,null,null,null,null,null,null,null,null,null,null,null,null,null,null,null,null,null,null,null,"Cheltuieli eligibile EURO",null,null,null,null,null,null,null,null,"Cheltuieli neeligibile EURO",null,null,null,null,null,null,null,"Total"]
["Ajutor public nerambursabil (contribuţie UE şi cofinanţare naţională)",null,null,null,null,null,null,null,null,null,null,null,null,null,null,null,null,null,null,null,null,null,null,null,null,null,null,null,null,null,null,null,null,null,null,null,null,null,null,null,null,null,null,null,null,null,null,null,null,null,null,null,{"$f":"SUM(AJ476:AZ476)","v":0}]
["Cofinantare privata, din care:",null,null,null,null,null,null,null,null,null,null,null,null,null,null,null,null,null,null,null,null,null,null,null,null,null,null,null,null,null,null,null,null,null,null,{"$f":"SUM(AJ478:AR479)","v":0},null,null,null,null,null,null,null,null,{"$f":"SUM(AS478:AZ479)","v":0},null,null,null,null,null,null,null,0]
[null,null,null,null,null,null,null,null,null,null,null,null,null,null,null,"- autofinantare",null,null,null,null,null,null,null,null,null,null,null,null,null,null,null,null,null,null,null,null,null,null,null,null,null,null,null,null,null,null,null,null,null,null,null,null,0]
[null,null,null,null,null,null,null,null,null,null,null,null,null,null,null,"- imprumuturi",null,null,null,null,null,null,null,null,null,null,null,null,null,null,null,null,null,null,null,null,null,null,null,null,null,null,null,null,null,null,null,null,null,null,null,null,0]
["TOTAL PROIECT",null,null,null,null,null,null,null,null,null,null,null,null,null,null,null,null,null,null,null,null,null,null,null,null,null,null,null,null,null,null,null,null,null,null,{"$f":"AJ476+AJ477","v":0},null,null,null,null,null,null,null,null,{"$f":"AS477","v":0},null,null,null,null,null,null,null,0]
["Procent contribuţie publică",null,null,null,null,null,null,null,null,null,null,null,null,null,null,null,null,null,null,null,null,null,null,null,null,null,null,null,null,null,null,null,null,{"$f":"AJ476*100/AJ480","v":{"$error":"#DIV/0!"}},{"$f":"IF(AJ480=0,0,AH481)","v":0},{"$f":"AI481","v":0},null,null,null,null,null,null,null,"%"]
["Avans solicitat"]
["Procent avans solicitat ca procent din ajutorul public nerambursabil",null,null,null,null,null,null,null,null,null,null,null,null,null,null,null,null,null,null,null,null,null,null,null,null,null,null,null,null,null,null,null,null,null,null,{"$f":"IF(AJ476=0,0,AI483)","v":0},null,null,null,null,null,null,null,null,{"$f":"IF(AJ483<=50,\"Suma avans mai mica de 50% din ajutorul public\",\"Suma avans mai mare de 50% din ajutorul public\")","v":"Suma avans mai mica de 50% din ajutorul public"}]
[null,"BUGET INDICATIV TOTALIZATOR"]
["MINISTERUL AGRICULTURII ŞI DEZVOLTĂRII RURALE"]
["AGENŢIA PENTRU FINANŢAREA INVESTIŢIILOR RURALE"]
["Buget Indicativ Totalizator al Proiectului (Valori fara TVA)"]
[]
[null,null,null,null,null,null,null,null,null,null,null,null,null,null,null,null,null,null,null,"Curs EURO",null,null,null,null,null,{"$f":"Z281","v":0},null,null,null,null,null,null,null,null,null,"Data întocmirii devizului general din SF/DALI"]
[]
["Buget Indicativ Totalizator al Proiectului (Valori fara TVA)"]
["Măsura",null,null,null,null,null,null,null,null,null,null,null,null,null,null,null,null,null,null,null,null,null,null,null,null,null,null,null,null,null,null,null,null,null,null,"M2/2A"]
["Denumirea capitolelor de cheltuieli",null,null,null,null,null,null,null,null,null,null,null,null,null,null,null,null,null,null,null,null,null,null,null,null,null,null,null,null,null,null,null,null,null,null,"Cheltuieli eligibile",null,null,null,null,null,null,null,null,"Cheltuieli neeligibile",null,null,null,null,null,null,null,"Total"]
[null,null,null,null,null,null,null,null,null,null,null,null,null,null,null,null,null,null,null,null,null,null,null,null,null,null,null,null,null,null,null,null,null,null,null,"EURO",null,null,null,null,null,null,null,null,"EURO",null,null,null,null,null,null,null,"EURO"]
[1,null,null,null,null,null,null,null,null,null,null,null,null,null,null,null,null,null,null,null,null,null,null,null,null,null,null,null,null,null,null,null,null,null,null,2,null,null,null,null,null,null,null,null,3,null,null,null,null,null,null,null,4]
["Capitolul 1 Cheltuieli pentru obtinerea şi amenajarea terenului - total, din care:",null,null,null,null,null,null,null,null,null,null,null,null,null,null,null,null,null,null,null,null,null,null,null,null,null,null,null,null,null,null,null,null,null,null,{"$f":"SUM(AJ498:AR499)","v":0},null,null,null,null,null,null,null,null,{"$f":"SUM(AS497:AZ499)","v":0},null,null,null,null,null,null,null,{"$f":"SUM(AJ496:AZ496)","v":0}]
["1.1 Cheltuieli pentru obţinerea terenului",null,null,null,null,null,null,null,null,null,null,null,null,null,null,null,null,null,null,null,null,null,null,null,null,null,null,null,null,null,null,null,null,null,null,null,null,null,null,null,null,null,null,null,{"$f":"AS288+AS358+AS427","v":0},null,null,null,null,null,null,null,{"$f":"SUM(AJ497:AZ497)","v":0}]
["1.2 Cheltuieli pentru amenajarea terenului",null,null,null,null,null,null,null,null,null,null,null,null,null,null,null,null,null,null,null,null,null,null,null,null,null,null,null,null,null,null,null,null,null,null,{"$f":"AJ289+AJ359+AJ428","v":0},null,null,null,null,null,null,null,null,{"$f":"AS289+AS359+AS428","v":0},null,null,null,null,null,null,null,0]
["1.3 Cheltuieli cu amenajari pentru protecţia mediului şi aducerea la starea iniţială",null,null,null,null,null,null,null,null,null,null,null,null,null,null,null,null,null,null,null,null,null,null,null,null,null,null,null,null,null,null,null,null,null,null,{"$f":"AJ290+AJ360+AJ429","v":0},null,null,null,null,null,null,null,null,{"$f":"AS290+AS360+AS429","v":0},null,null,null,null,null,null,null,0]
["Capitolul 2 Cheltuieli pentru asigurarea utilităţilor necesare obiectivului",null,null,null,null,null,null,null,null,null,null,null,null,null,null,null,null,null,null,null,null,null,null,null,null,null,null,null,null,null,null,null,null,null,null,{"$f":"AJ291+AJ361+AJ430","v":0},null,null,null,null,null,null,null,null,{"$f":"AS291+AS361+AS430","v":0},null,null,null,null,null,null,null,0]
["Capitolul 3 Cheltuieli pentru proiectare şi asistenţă tehnică - total, din care:",null,null,null,null,null,null,null,null,null,null,null,null,null,null,null,null,null,null,null,null,null,null,null,null,null,null,null,null,null,null,null,null,null,null,{"$f":"SUM(AJ502:AR507)","v":0},null,null,null,null,null,null,null,null,{"$f":"SUM(AS502:AZ507)","v":0},null,null,null,null,null,null,null,0]
["3.1 Studii de teren",null,null,null,null,null,null,null,null,null,null,null,null,null,null,null,null,null,null,null,null,null,null,null,null,null,null,null,null,null,null,null,null,null,null,{"$f":"AJ293+AJ363+AJ432","v":0},null,null,null,null,null,null,null,null,{"$f":"AS293+AS363+AS432","v":0},null,null,null,null,null,null,null,0]
["3.2 Obţinerea de avize, acorduri şi autorizaţii",null,null,null,null,null,null,null,null,null,null,null,null,null,null,null,null,null,null,null,null,null,null,null,null,null,null,null,null,null,null,null,null,null,null,{"$f":"AJ294+AJ364+AJ433","v":0},null,null,null,null,null,null,null,null,0,null,null,null,null,null,null,null,0]
["3.3 Proiectare şi inginerie",null,null,null,null,null,null,null,null,null,null,null,null,null,null,null,null,null,null,null,null,null,null,null,null,null,null,null,null,null,null,null,null,null,null,{"$f":"AJ295+AJ365+AJ434","v":0},null,null,null,null,null,null,null,null,0,null,null,null,null,null,null,null,0]
["3.4 Organizarea procedurilor de achiziţie",null,null,null,null,null,null,null,null,null,null,null,null,null,null,null,null,null,null,null,null,null,null,null,null,null,null,null,null,null,null,null,null,null,null,null,null,null,null,null,null,null,null,null,0,null,null,null,null,null,null,null,0]
["3.5 Consultanţă",null,null,null,null,null,null,null,null,null,null,null,null,null,null,null,null,null,null,null,null,null,null,null,null,null,null,null,null,null,null,null,null,null,null,{"$f":"AJ297+AJ367+AJ436","v":0},null,null,null,null,null,null,null,null,0,null,null,null,null,null,null,null,0]
["3.6 Asistenţă tehnică",null,null,null,null,null,null,null,null,null,null,null,null,null,null,null,null,null,null,null,null,null,null,null,null,null,null,null,null,null,null,null,null,null,null,{"$f":"AJ298+AJ368+AJ437","v":0},null,null,null,null,null,null,null,null,0,null,null,null,null,null,null,null,0]
["Verificare încadrare cheltuieli capitolul 3",null,null,null,null,null,null,null,null,null,null,null,null,null,null,null,null,null,null,null,null,null,null,null,null,null,null,null,null,null,null,null,{"$f":"AJ496+AJ500+AJ509","v":0},{"$f":"IF(AG508=0,0,AI508)","v":0}]
["Capitolul 4 Cheltuieli pentru investiţia de bază - total, din care:",null,null,null,null,null,null,null,null,null,null,null,null,null,null,null,null,null,null,null,null,null,null,null,null,null,null,null,null,null,null,null,null,null,null,{"$f":"AJ510+AJ517","v":0},null,null,null,null,null,null,null,null,{"$f":"AS510+AS517","v":0},null,null,null,null,null,null,null,{"$f":"SUM(AJ509:AZ509)","v":0}]
["A - Constructii şi lucrări de intervenţii - total, din care:",null,null,null,null,null,null,null,null,null,null,null,null,null,null,null,null,null,null,null,null,null,null,null,null,null,null,null,null,null,null,null,null,null,null,{"$f":"SUM(AJ511:AR516)","v":0},null,null,null,null,null,null,null,null,{"$f":"SUM(AS511:AZ516)","v":0},null,null,null,null,null,null,null,0]
["4.1 Construcţii şi instalaţii",null,null,null,null,null,null,null,null,null,null,null,null,null,null,null,null,null,null,null,null,null,null,null,null,null,null,null,null,null,null,null,null,null,null,{"$f":"AJ302+AJ372+AJ441","v":0},null,null,null,null,null,null,null,null,{"$f":"AS302+AS372+AS441","v":0},null,null,null,null,null,null,null,0]
["4.2 Montaj utilaj tehnologic",null,null,null,null,null,null,null,null,null,null,null,null,null,null,null,null,null,null,null,null,null,null,null,null,null,null,null,null,null,null,null,null,null,null,0,null,null,null,null,null,null,null,null,0,null,null,null,null,null,null,null,0]
["4.3 Utilaje, echipamente tehnologice şi funcţionale cu montaj (procurare)",null,null,null,null,null,null,null,null,null,null,null,null,null,null,null,null,null,null,null,null,null,null,null,null,null,null,null,null,null,null,null,null,null,null,0,null,null,null,null,null,null,null,null,0,null,null,null,null,null,null,null,0]
["4.4 Utilaje şi echipamente fară montaj, mijloace de transport, alte achiziţii specifice",null,null,null,null,null,null,null,null,null,null,null,null,null,null,null,null,null,null,null,null,null,null,null,null,null,null,null,null,null,null,null,null,null,null,0,null,null,null,null,null,null,null,null,0,null,null,null,null,null,null,null,0]
["4.5 Dotări",null,null,null,null,null,null,null,null,null,null,null,null,null,null,null,null,null,null,null,null,null,null,null,null,null,null,null,null,null,null,null,null,null,null,0,null,null,null,null,null,null,null,null,0,null,null,null,null,null,null,null,0]
["4.6 Active necorporale",null,null,null,null,null,null,null,null,null,null,null,null,null,null,null,null,null,null,null,null,null,null,null,null,null,null,null,null,null,null,null,null,null,null,0,null,null,null,null,null,null,null,null,0,null,null,null,null,null,null,null,0]
["B - Cheltuieli pentru investitii în culturi/plantaţii",null,null,null,null,null,null,null,null,null,null,null,null,null,null,null,null,null,null,null,null,null,null,null,null,null,null,null,null,null,null,null,null,null,null,{"$f":"SUM(AJ518:AR522)","v":0},null,null,null,null,null,null,null,null,{"$f":"SUM(AS518:AZ522)","v":0},null,null,null,null,null,null,null,0]
["Subcapitol 1 - Lucrări de pregătire a terenului",null,null,null,null,null,null,null,null,null,null,null,null,null,null,null,null,null,null,null,null,null,null,null,null,null,null,null,null,null,null,null,null,null,null,{"$f":"AJ309+AJ379+AJ448","v":0},null,null,null,null,null,null,null,null,{"$f":"AS309+AS379+AS448","v":0},null,null,null,null,null,null,null,0]
["Subcapitol 2 - Infiinţarea plantaţiei",null,null,null,null,null,null,null,null,null,null,null,null,null,null,null,null,null,null,null,null,null,null,null,null,null,null,null,null,null,null,null,null,null,null,{"$f":"AJ310+AJ380+AJ449","v":0},null,null,null,null,null,null,null,null,{"$f":"AS310+AS380+AS449","v":0},null,null,null,null,null,null,null,0]
["Subcapitol 3 - Intreţinere plantaţie în anul 1",null,null,null,null,null,null,null,null,null,null,null,null,null,null,null,null,null,null,null,null,null,null,null,null,null,null,null,null,null,null,null,null,null,null,null,null,null,null,null,null,null,null,null,{"$f":"AS311+AS381+AS450","v":0},null,null,null,null,null,null,null,0]
["Subcapitol 4 - Intreţinere plantaţie în anul 2",null,null,null,null,null,null,null,null,null,null,null,null,null,null,null,null,null,null,null,null,null,null,null,null,null,null,null,null,null,null,null,null,null,null,null,null,null,null,null,null,null,null,null,{"$f":"AS312+AS382+AS451","v":0},null,null,null,null,null,null,null,0]
["Subcapitol 5 - Instalat sistem susţinere şi împrejmuire",null,null,null,null,null,null,null,null,null,null,null,null,null,null,null,null,null,null,null,null,null,null,null,null,null,null,null,null,null,null,null,null,null,null,{"$f":"AJ313+AJ383+AJ452","v":0},null,null,null,null,null,null,null,null,{"$f":"AS313+AS383+AS452","v":0},null,null,null,null,null,null,null,0]
["Capitolul 5 Alte cheltuieli - total, din care:",null,null,null,null,null,null,null,null,null,null,null,null,null,null,null,null,null,null,null,null,null,null,null,null,null,null,null,null,null,null,null,null,null,null,{"$f":"AJ524+AJ527+AJ528","v":0},null,null,null,null,null,null,null,null,{"$f":"AS524+AS527+AS528","v":0},null,null,null,null,null,null,null,0]
["5.1 Organizare de şantier",null,null,null,null,null,null,null,null,null,null,null,null,null,null,null,null,null,null,null,null,null,null,null,null,null,null,null,null,null,null,null,null,null,null,{"$f":"SUM(AJ525:AR526)","v":0},null,null,null,null,null,null,null,null,{"$f":"SUM(AS525:AZ526)","v":0},null,null,null,null,null,null,null,0]
["      5.1.1 lucrări de construcţii şi instalaţii aferente organizării de şantier",null,null,null,null,null,null,null,null,null,null,null,null,null,null,null,null,null,null,null,null,null,null,null,null,null,null,null,null,null,null,null,null,null,null,{"$f":"AJ316+AJ386+AJ455","v":0},null,null,null,null,null,null,null,null,{"$f":"AS316+AS386+AS455","v":0},null,null,null,null,null,null,null,0]
["      5.1.2 cheltuieli conexe organizării şantierului",null,null,null,null,null,null,null,null,null,null,null,null,null,null,null,null,null,null,null,null,null,null,null,null,null,null,null,null,null,null,null,null,null,null,{"$f":"AJ317+AJ387+AJ456","v":0},null,null,null,null,null,null,null,null,{"$f":"AS317+AS387+AS456","v":0},null,null,null,null,null,null,null,0]
["5.2 Comisioane, taxe, costul creditului",null,null,null,null,null,null,null,null,null,null,null,null,null,null,null,null,null,null,null,null,null,null,null,null,null,null,null,null,null,null,null,null,null,null,{"$f":"AJ318+AJ388+AJ457","v":0},null,null,null,null,null,null,null,null,{"$f":"AS318+AS388+AS457","v":0},null,null,null,null,null,null,null,0]
["5.3 Cheltuieli diverse şi neprevăzute",null,null,null,null,null,null,null,null,null,null,null,null,null,null,null,null,null,null,null,null,null,null,null,null,null,null,null,null,null,null,null,null,null,null,{"$f":"AJ319+AJ389+AJ458","v":0},null,null,null,null,null,null,null,null,{"$f":"AS319+AS389+AS458","v":0},null,null,null,null,null,null,null,0]
["Procent cheltuieli diverse şi neprevăzute"]
["Capitolul 6 Cheltuieli pentru darea în exploatare - total, din care:",null,null,null,null,null,null,null,null,null,null,null,null,null,null,null,null,null,null,null,null,null,null,null,null,null,null,null,null,null,null,null,null,null,null,{"$f":"SUM(AJ531:AR532)","v":0},null,null,null,null,null,null,null,null,{"$f":"SUM(AS531:AZ532)","v":0},null,null,null,null,null,null,null,{"$f":"SUM(AJ530:AZ530)","v":0}]
["6.1 Pregătirea personalului de exploatare",null,null,null,null,null,null,null,null,null,null,null,null,null,null,null,null,null,null,null,null,null,null,null,null,null,null,null,null,null,null,null,null,null,null,null,null,null,null,null,null,null,null,null,{"$f":"AS322+AS392+AS461","v":0},null,null,null,null,null,null,null,0]
["6.2 Probe tehnologice şi teste",null,null,null,null,null,null,null,null,null,null,null,null,null,null,null,null,null,null,null,null,null,null,null,null,null,null,null,null,null,null,null,null,null,null,{"$f":"AJ323+AJ393+AJ462","v":0},null,null,null,null,null,null,null,null,{"$f":"AS323+AS393+AS462","v":0},null,null,null,null,null,null,null,0]
["TOTAL GENERAL",null,null,null,null,null,null,null,null,null,null,null,null,null,null,null,null,null,null,null,null,null,null,null,null,null,null,null,null,null,null,null,null,null,null,{"$f":"AJ496+AJ500+AJ501+AJ509+AJ523+AJ530","v":0},null,null,null,null,null,null,null,null,{"$f":"AS496+AS500+AS501+AS509+AS523+AS530","v":0},null,null,null,null,null,null,null,0]
["Verificare actualizare",null,null,null,null,null,null,null,null,null,null,null,null,null,null,null,null,null,null,null,null,null,null,null,null,null,null,null,null,null,null,null,null,null,{"$f":"IF(AJ533=0,0,AF534)","v":0},{"$f":"IF(AI534<=5,\"actualizare mai mică de 5% din valoarea eligibila\",\"actualizare mai mare de 5% din valoarea eligibila\")","v":"actualizare mai mică de 5% din valoarea eligibila"}]
["ACTUALIZARE Cheltuieli Eligibile (max 5%)",null,null,null,null,null,null,null,null,null,null,null,null,null,null,null,null,null,null,null,null,null,null,null,null,null,null,null,null,null,null,null,null,null,null,{"$f":"AJ326+AJ396+AJ465","v":0},null,null,null,null,null,null,null,null,null,null,null,null,null,null,null,null,{"$f":"SUM(AJ535:AZ535)","v":0}]
["TOTAL GENERAL CU ACTUALIZARE",null,null,null,null,null,null,null,null,null,null,null,null,null,null,null,null,null,null,null,null,null,null,null,null,null,null,null,null,null,null,null,null,null,null,{"$f":"AJ533+AJ535","v":0},null,null,null,null,null,null,null,null,{"$f":"AS533","v":0},null,null,null,null,null,null,null,0]
["Valoare TVA",null,null,null,null,null,null,null,null,null,null,null,null,null,null,null,null,null,null,null,null,null,null,null,null,null,null,null,null,null,null,null,null,null,null,{"$f":"AJ328+AJ398+AJ467","v":0},null,null,null,null,null,null,null,null,{"$f":"AS328+AS398+AS467","v":0},null,null,null,null,null,null,null,0]
[null,null,null,null,null,null,null,null,null,null,null,null,null,null,null,null,null,null,null,null,null,null,null,null,null,null,null,null,null,null,null,null,null,null,null,{"$f":"SUM(AJ536:AR537)","v":0},null,null,null,null,null,null,null,null,{"$f":"SUM(AS536:AZ537)","v":0},null,null,null,null,null,null,null,0]
["TOTAL GENERAL inclusiv TVA",null,null,null,null,null,null,null,null,null,null,null,null,null,null,null,null,null,null,null,null,null,null,null,null,null,null,null,null,null,null,null,null,null,null,{"$f":"BA536+BA537","v":0}]
[null,null,null,null,null,null,null,null,null,null,null,null,null,null,null,null,null,null,null,null,null,null,null,null,null,null,null,null,null,null,null,null,null,null,null,"LEI",null,null,null,null,null,null,null,null,"EURO"]
["VALOARE TOTALĂ",null,null,null,null,null,null,null,null,null,null,null,null,null,null,null,null,null,null,null,null,null,null,null,null,null,null,null,null,null,null,null,null,null,null,{"$f":"AS541*Z489","v":0},null,null,null,null,null,null,null,null,{"$f":"AJ539","v":0}]
["VALOARE ELIGIBILĂ",null,null,null,null,null,null,null,null,null,null,null,null,null,null,null,null,null,null,null,null,null,null,null,null,null,null,null,null,null,null,null,null,null,null,{"$f":"AS542*Z489","v":0},null,null,null,null,null,null,null,null,{"$f":"AJ536+AJ537","v":0}]
["VALOARE NEELIGIBILĂ",null,null,null,null,null,null,null,null,null,null,null,null,null,null,null,null,null,null,null,null,null,null,null,null,null,null,null,null,null,null,null,null,null,null,{"$f":"AS543*Z489","v":0},null,null,null,null,null,null,null,null,{"$f":"AS536+AS537","v":0}]
[]
["Plan Financiar",null,null,null,null,null,null,null,null,null,null,null,null,null,null,null,null,null,null,null,null,null,null,null,null,null,null,null,null,null,null,null,null,null,null,"Cheltuieli eligibile EURO",null,null,null,null,null,null,null,null,"Cheltuieli neeligibile EURO",null,null,null,null,null,null,null,"Total"]
["Ajutor public nerambursabil (contribuţie UE şi cofinanţare naţională)",null,null,null,null,null,null,null,null,null,null,null,null,null,null,null,null,null,null,null,null,null,null,null,null,null,null,null,null,null,null,null,null,null,null,{"$f":"AJ337+AJ407+AJ476","v":0},null,null,null,null,null,null,null,null,null,null,null,null,null,null,null,null,{"$f":"SUM(AJ546:AZ546)","v":0}]
["Cofinantare privata, din care:",null,null,null,null,null,null,null,null,null,null,null,null,null,null,null,null,null,null,null,null,null,null,null,null,null,null,null,null,null,null,null,null,null,null,{"$f":"SUM(AJ548:AR550)","v":0},null,null,null,null,null,null,null,null,{"$f":"SUM(AS548:AZ550)","v":0},null,null,null,null,null,null,null,0]
[null,null,null,null,null,null,null,null,null,null,null,null,null,null,null,"- contributia in natura",null,null,null,null,null,null,null,null,null,null,null,null,null,null,null,null,null,null,null,{"$f":"AJ339","v":0},null,null,null,null,null,null,null,null,{"$f":"AS339","v":0},null,null,null,null,null,null,null,0]
[null,null,null,null,null,null,null,null,null,null,null,null,null,null,null,"- autofinanțare",null,null,null,null,null,null,null,null,null,null,null,null,null,null,null,null,null,null,null,{"$f":"AJ340+AJ409+AJ478","v":0},null,null,null,null,null,null,null,null,{"$f":"AS340+AS409+AS478","v":0},null,null,null,null,null,null,null,0]
[null,null,null,null,null,null,null,null,null,null,null,null,null,null,null,"- imprumuturi",null,null,null,null,null,null,null,null,null,null,null,null,null,null,null,null,null,null,null,{"$f":"AJ341+AJ410+AJ479","v":0},null,null,null,null,null,null,null,null,{"$f":"AS341+AS410+AS479","v":0},null,null,null,null,null,null,null,{"$f":"SUM(AJ550:AZ550)","v":0}]
["TOTAL PROIECT",null,null,null,null,null,null,null,null,null,null,null,null,null,null,null,null,null,null,null,null,null,null,null,null,null,null,null,null,null,null,null,null,null,null,{"$f":"AJ546+AJ547","v":0},null,null,null,null,null,null,null,null,{"$f":"AS547","v":0},null,null,null,null,null,null,null,0]
["Avans solicitat"]
["Procent avans solicitat ca procent din ajutorul public nerambursabil",null,null,null,null,null,null,null,null,null,null,null,null,null,null,null,null,null,null,null,null,null,null,null,null,null,null,null,null,null,null,null,null,null,null,{"$f":"IF(AJ546=0,0,AI553)","v":0},null,null,null,null,null,null,null,null,{"$f":"IF(AJ553<=50,\"Suma avans mai mica de 50% din ajutorul public\",\"Suma avans mai mare de 50% din ajutorul public\")","v":"Suma avans mai mica de 50% din ajutorul public"}]
[null,null,null,null,null,null,null,"MINISTERUL AGRICULTURII ŞI DEZVOLTĂRII RURALE"]
[null,null,null,null,null,null,null,null,null,null,null,null,null,null,null,null,null,null,null,null,null,null,null,null,null,null,null,null,null,null,null,null,null,null,null,null,null,null,null,null,null,null,"Anexa A1"]
[null,null,null,null,null,null,null,"AGENŢIA PENTRU FINANŢAREA INVESTIŢIILOR RURALE"]
[null,null,null,null,null,null,null,null,null,null,null,null,null,null,null,null,null,null,null,null,null,null,null,null,null,null,null,null,null,null,null,null,null,null,null,null,null,null,null,null,null,null,null,null,null,null,null,null,null,null,null,"GAL Ţara Vrancei 2018 "]
[null,null,null,null,null,null,null,"Deviz financiar- Capitolul 3 - Cheltuieli pentru proiectare şi asistenţa tehnică - EURO"]
[]
[]
["(Titlu deviz)"]
["Nr.crt",null,null,null,"Specificaţie",null,null,null,null,null,null,null,null,null,null,null,null,null,null,null,null,null,null,null,null,null,null,null,null,null,null,null,null,null,null,null,null,null,null,null,null,null,"Valoare eligibilă",null,null,null,null,null,null,null,null,"Valoare\nneeligibilă"]
[1,null,null,null,"Cheltuieli pentru studii de teren (geotehnice, geologice, hidrologice, hidrogeologice, fotogrammetrice, topografice şi de stabilitate a terenului pe care se amplasează obiectivul de investiţie)"]
[2,null,null,null,"Cheltuieli pentru obţinere de avize, acorduri şi autorizaţii - total, din care:",null,null,null,null,null,null,null,null,null,null,null,null,null,null,null,null,null,null,null,null,null,null,null,null,null,null,null,null,null,null,null,null,null,null,null,null,null,{"$f":"SUM(AQ565:AY574)","v":0},null,null,null,null,null,null,null,null,{"$f":"SUM(AZ565:BI574)","v":0}]
[null,null,null,null,"1. obţinerea/prelungirea valabilităţii ceritificatului de urbanism"]
[null,null,null,null,"2. obţinerea/prelungirea valabilităţii autorizaţiei de construire/desfiinţare, obţinere autorizaţii de scoatere din circuitul agricol"]
[null,null,null,null,"3. obţinerea avizelor şi acordurilor pentru racorduri şi branşamente la reţelele publice de apă, canalizare, gaze, termoficare, energie electrică, telefonie etc."]
[null,null,null,null,"4. obţinere aviz sanitar, sanitar-veterinar şi fitosanitar"]
[null,null,null,null,"5. obţinerea certificatului de nomenclatură stradală şi adresa"]
[null,null,null,null,"6. întocmirea documentaţiei, obţinerea numărului Cadastral provizoriu şi înregistrarea terenului în Cartea Funciară"]
[null,null,null,null,"7. obţinerea avizului PSI"]
[null,null,null,null,"8. obţinerea acordului de mediu"]
[null,null,null,null,"9. căi ferate industriale"]
[null,null,null,null,"10. alte avize, acorduri şi autorizaţii solicitate prin lege"]
[3,null,null,null,"3 Proiectare şi inginerie - total, din care:",null,null,null,null,null,null,null,null,null,null,null,null,null,null,null,null,null,null,null,null,null,null,null,null,null,null,null,null,null,null,null,null,null,null,null,null,null,{"$f":"AQ576+AQ583+AQ584+AQ585","v":0},null,null,null,null,null,null,null,null,{"$f":"AZ576+AZ583+AZ584+AZ585","v":0}]
[null,null,null,null,"1. Cheltuieli pentru elaborarea tuturor fazelor de proiectare - total, din care:",null,null,null,null,null,null,null,null,null,null,null,null,null,null,null,null,null,null,null,null,null,null,null,null,null,null,null,null,null,null,null,null,null,null,null,null,null,{"$f":"SUM(AQ577:AY582)","v":0},null,null,null,null,null,null,null,null,{"$f":"SUM(AZ577:BI582)","v":0}]
[null,null,null,null,null,null,"a. studiu de prefezabilitate"]
[null,null,null,null,null,null,"b. studiu de fezabilitate"]
[null,null,null,null,null,null,"c. proiect tehnic"]
[null,null,null,null,null,null,"d. detalii de execuţie"]
[null,null,null,null,null,null,"e. verificarea tehnică a proiectării"]
[null,null,null,null,null,null,"f. elaborarea certificatului de performanţa energetică a clădirii"]
[null,null,null,null,"2. Documentaţii necesare pentru obţinerea acordurilor, avizelor şi autorizaţiilor aferente obiectivului de investitii"]
[null,null,null,null,"3. Cheltuielile pentru expertiza tehnică efectuată pentru construcţii începute şi neterminate sau care urmează a fi modificate prin proiect (modernizări, consolidări etc.)"]
[null,null,null,null,"4. Cheltuielile pentru efectuarea auditului energetic"]
[4,null,null,null,"Organizarea procedurilor de achiziţie"]
[5,null,null,null,"Cheltuieli pentru consultanţă - total, din care:",null,null,null,null,null,null,null,null,null,null,null,null,null,null,null,null,null,null,null,null,null,null,null,null,null,null,null,null,null,null,null,null,null,null,null,null,null,{"$f":"SUM(AQ588:AY589)","v":0},null,null,null,null,null,null,null,null,{"$f":"SUM(AZ588:BI589)","v":0}]
[null,null,null,null,"1. plata serviciilor de consultanţă la elaborarea memoriului justificativ, studiilor de piaţă, de evaluare, la întocmirea cererii de finanţare"]
[null,null,null,null,"2. plata serviciilor de consultanţă în domeniul managementului investiţiei sau administrarea contractului de execuţie"]
[6,null,null,null,"Cheltuieli pentru asistenţa tehnică - total, din care:",null,null,null,null,null,null,null,null,null,null,null,null,null,null,null,null,null,null,null,null,null,null,null,null,null,null,null,null,null,null,null,null,null,null,null,null,null,{"$f":"SUM(AQ591:AY592)","v":0},null,null,null,null,null,null,null,null,{"$f":"SUM(AZ591:BI592)","v":0}]
[null,null,null,null,"1. asistenţa tehnică din partea proiectantului în cazul când aceasta nu intră în tarifarea proiectării"]
[null,null,null,null,"2. plata diriginţilor de şantier desemnaţi de autoritatea contractantă, autorizaţi conform prevederilor legale pentru verificarea execuţiei lucrărilor de construcţii şi instalaţii"]
[null,null,null,null,"Total valoare fără TVA",null,null,null,null,null,null,null,null,null,null,null,null,null,null,null,null,null,null,null,null,null,null,null,null,null,null,null,null,null,null,null,null,null,null,null,null,null,{"$f":"AQ590+AQ587+AQ575+AQ564+AQ563","v":0},null,null,null,null,null,null,null,null,{"$f":"AZ590+AZ587+AZ586+AZ575+AZ564+AZ563","v":0}]
[null,null,null,null,"Valoare TVA (aferentă cheltuielilor eligibile şi neeligibile)"]
["TOTAL DEVIZ FINANCIAR 1 (inclusiv TVA)",null,null,null,null,null,null,null,null,null,null,null,null,null,null,null,null,null,null,null,null,null,null,null,null,null,null,null,null,null,null,null,null,null,null,null,null,null,null,null,null,null,{"$f":"AQ593+AZ593+AQ594+AZ594","v":0}]
[]
[]
[]
[]
[null,null,null,null,null,null,null,"MINISTERUL AGRICULTURII ŞI DEZVOLTĂRII RURALE"]
[null,null,null,null,null,null,null,null,null,null,null,null,null,null,null,null,null,null,null,null,null,null,null,null,null,null,null,null,null,null,null,null,null,null,null,null,null,null,null,null,null,null,"Anexa A2"]
[null,null,null,null,null,null,null,"AGENŢIA PENTRU FINANŢAREA INVESTIŢIILOR RURALE"]
[null,null,null,null,null,null,null,null,null,null,null,null,null,null,null,null,null,null,null,null,null,null,null,null,null,null,null,null,null,null,null,null,null,null,null,null,null,null,null,null,null,null,null,null,null,null,null,null,null,null,null,"GAL Ţara Vrancei 2018 "]
[null,null,null,null,null,null,null,"DEVIZUL OBIECTULUI *"]
[]
[]
[]
["Nr. crt.",null,null,null,"Denumire",null,null,null,null,null,null,null,null,null,null,null,null,null,null,null,null,null,null,null,null,null,null,null,null,null,null,null,null,null,null,null,null,null,null,null,null,null,"Valoarea pe categorii de lucrări, fară TVA - EURO"]
[null,null,null,null,null,null,null,null,null,null,null,null,null,null,null,null,null,null,null,null,null,null,null,null,null,null,null,null,null,null,null,null,null,null,null,null,null,null,null,null,null,null,"Valoare eligibilă",null,null,null,null,null,null,null,null,"Valoare\nneeligibilă"]
["I - LUCRĂRI DE CONSTRUCŢII ŞI INSTALAŢII"]
[1,null,null,null,"Terasamente"]
[2,null,null,null,"Construcţii : rezistenţă (fundaţii, structură de rezistenţă) şi arhitectură (închideri exterioare, compartimentări, finisaje)"]
[3,null,null,null,"Izolaţii"]
[4,null,null,null,"Instalaţii electrice"]
[5,null,null,null,"Instalaţii sanitare"]
[6,null,null,null,"Instalaţii de încălzire, ventilare, climatizare. PSI, radio-tv, intranet"]
[7,null,null,null,"Instalaţii de alimentare cu gaze naturale"]
[8,null,null,null,"Instalaţii de telecomunicaţii"]
[null,null,null,null,"TOTAL I ( fără TVA)",null,null,null,null,null,null,null,null,null,null,null,null,null,null,null,null,null,null,null,null,null,null,null,null,null,null,null,null,null,null,null,null,null,null,null,null,null,{"$f":"SUM(AQ611:AY618)","v":0},null,null,null,null,null,null,null,null,{"$f":"SUM(AZ611:BI618)","v":0}]
["II - MONTAJ"]
[9,null,null,null,"Montaj utilaje şi echipamente tehnologice"]
[null,null,null,null,"TOTAL II ( fără TVA)",null,null,null,null,null,null,null,null,null,null,null,null,null,null,null,null,null,null,null,null,null,null,null,null,null,null,null,null,null,null,null,null,null,null,null,null,null,{"$f":"SUM(AQ621)","v":0},null,null,null,null,null,null,null,null,{"$f":"SUM(AZ621)","v":0}]
["III - PROCURARE"]
[10,null,null,null,"Utilaje şi echipamente tehnologice"]
[11,null,null,null,"Utilaje şi echipamente de transport"]
[12,null,null,null,"Dotări"]
[null,null,null,null,"TOTAL III ( fără TVA)",null,null,null,null,null,null,null,null,null,null,null,null,null,null,null,null,null,null,null,null,null,null,null,null,null,null,null,null,null,null,null,null,null,null,null,null,null,{"$f":"SUM(AQ624:AY626)","v":0},null,null,null,null,null,null,null,null,{"$f":"SUM(AZ624:BI626)","v":0}]
["TOTAL ( TOTAL I + TOTAL II +TOTAL III) fără TVA",null,null,null,null,null,null,null,null,null,null,null,null,null,null,null,null,null,null,null,null,null,null,null,null,null,null,null,null,null,null,null,null,null,null,null,null,null,null,null,null,null,{"$f":"AQ627+AQ622+AQ619","v":0},null,null,null,null,null,null,null,null,{"$f":"AZ627+AZ622+AZ619","v":0}]
["TVA aferent cheltuielilor eligibile şi neeligibile"]
["TOTAL DEVIZ PE OBIECT (inclusiv TVA)",null,null,null,null,null,null,null,null,null,null,null,null,null,null,null,null,null,null,null,null,null,null,null,null,null,null,null,null,null,null,null,null,null,null,null,null,null,null,null,null,null,{"$f":"AQ628+AZ628+AQ629+AZ629","v":0}]
[]
[null,"*) Se înscrie denumirea obiectului de construcţie sau intervenţie"]
[]
[]
[]
[]
[]
[]
[null,null,null,null,null,null,null,"MINISTERUL AGRICULTURII ŞI DEZVOLTĂRII RURALE",null,null,null,null,null,null,null,null,null,null,null,null,null,null,null,null,null,null,null,null,null,null,null,null,null,null,null,null,null,null,null,null,null,null,"Anexa A3"]
[]
[null,null,null,null,null,null,null,"AGENŢIA PENTRU FINANŢAREA INVESTIŢIILOR RURALE",null,null,null,null,null,null,null,null,null,null,null,null,null,null,null,null,null,null,null,null,null,null,null,null,null,null,null,null,null,null,null,null,null,null,null,null,null,null,null,null,null,null,null,"GAL Ţara Vrancei 2018 "]
[]
[]
[]
[]
["Deviz capitolul 2- Cheltuieli pentru asigurarea utilităţilor necesare obiectivului - EURO"]
["Nr. crt.",null,null,null,"Specificaţie",null,null,null,null,null,null,null,null,null,null,null,null,null,null,null,null,null,null,null,null,null,null,null,null,null,null,null,null,null,null,null,null,null,null,null,null,null,"Valoare eligibilă",null,null,null,null,null,null,null,null,"Valoare\nneeligibilă"]
[1,null,null,null,"Alimentare cu apă"]
[2,null,null,null,"Canalizare"]
[3,null,null,null,"Alimentare cu gaze naturale"]
[4,null,null,null,"Alimentare cu agent termic"]
[5,null,null,null,"Alimentare cu energie electrică"]
[6,null,null,null,"Telecomunicaţii (telefonie, radio-tv etc.)"]
[7,null,null,null,"Alte tipuri de reţele exterioare"]
[8,null,null,null,"Drumuri de acces"]
[9,null,null,null,"Căi ferate industriale"]
[10,null,null,null,"Cheltuieli aferente racordării la reţelele de utilităţi"]
[null,null,null,null,"Total valoare fără TVA",null,null,null,null,null,null,null,null,null,null,null,null,null,null,null,null,null,null,null,null,null,null,null,null,null,null,null,null,null,null,null,null,null,null,null,null,null,{"$f":"SUM(AQ648:AY657)","v":0},null,null,null,null,null,null,null,null,{"$f":"SUM(AZ648:BI657)","v":0}]
[null,null,null,null,"Valoare TVA aferentă cheltuielilor eligibile şi neeligibile"]
["TOTAL DEVIZ CAPITOLUL 2 (inclusiv TVA)",null,null,null,null,null,null,null,null,null,null,null,null,null,null,null,null,null,null,null,null,null,null,null,null,null,null,null,null,null,null,null,null,null,null,null,null,null,null,null,null,null,{"$f":"AQ658+AZ658+AQ659+AZ659","v":0}]
[]
[" Deviz capitolul 5 - Alte cheltuieli - EURO"]
["Nr. crt.",null,null,null,"Specificaţie",null,null,null,null,null,null,null,null,null,null,null,null,null,null,null,null,null,null,null,null,null,null,null,null,null,null,null,null,null,null,null,null,null,null,null,null,null,"Valoare eligibilă",null,null,null,null,null,null,null,null,"Valoare\nneeligibilă"]
[]
["5.1 ",null,null,null,"Organizare de şantier",null,null,null,null,null,null,null,null,null,null,null,null,null,null,null,null,null,null,null,null,null,null,null,null,null,null,null,null,null,null,null,null,null,null,null,null,null,{"$f":"SUM(AQ666:AY667)","v":0},null,null,null,null,null,null,null,null,{"$f":"SUM(AZ666:BI667)","v":0}]
["5.1.1",null,null,null,"lucrări de construcţii şi instalaţii aferente organizării de şantier"]
["5.1.2",null,null,null,"cheltuieli conexe organizării de şantier"]
["5.2",null,null,null,"Comisioane, taxe",null,null,null,null,null,null,null,null,null,null,null,null,null,null,null,null,null,null,null,null,null,null,null,null,null,null,null,null,null,null,null,null,null,null,null,null,null,{"$f":"SUM(AQ670:AY673)","v":0},null,null,null,null,null,null,null,null,{"$f":"SUM(AZ669:BI675)","v":0}]
[null,null,null,null,"comisionul băncii finanţatoare"]
[null,null,null,null,"cota aferentă Inspectoratului de Stat în Construcţii pentru controlul calităţii lucrărilor de construcţii"]
[null,null,null,null,"cota pentru controlul statului în amenajarea teritoriului, urbanism şi pentru autorizarea lucrărilor de construcţii"]
[null,null,null,null,"prime de asigurare din sarcina autorităţii contractante"]
[null,null,null,null,"alte cheltuieli de aceeaşi natură, stabilite în condiţiile legii"]
[null,null,null,null,"cota aferentă Casei Sociale a Constructorilor"]
["5.3",null,null,null," Cheltuieli diverse si neprevazute"]
[null,null,null,null,"TOTAL DEVIZ CAPITOLUL 5",null,null,null,null,null,null,null,null,null,null,null,null,null,null,null,null,null,null,null,null,null,null,null,null,null,null,null,null,null,null,null,null,null,null,null,null,null,{"$f":"AQ665+AQ668","v":0},null,null,null,null,null,null,null,null,{"$f":"AZ665+AZ668+AZ675","v":0}]
[null,null,null,null,"VALOARE TVA aferentă cheltuielilor eligibile şi neeligibile"]
[null,null,null,null,"TOTAL DEVIZ CAPITOLUL 5 ( inclusiv TVA)",null,null,null,null,null,null,null,null,null,null,null,null,null,null,null,null,null,null,null,null,null,null,null,null,null,null,null,null,null,null,null,null,null,null,null,null,null,{"$f":"AQ676+AZ676+AQ677+AZ677","v":0}]
[]
[]
[]
[]
[]
["MINISTERUL AGRICULTURII ŞI DEZVOLTĂRII RURALE",null,null,null,null,null,null,null,null,null,null,null,null,null,null,null,null,null,null,null,null,null,null,null,null,null,null,null,null,null,null,null,null,null,null,null,null,null,null,null,null,null,"Anexa A4"]
["AGENŢIA PENTRU FINANŢAREA INVESTIŢIILOR RURALE"]
[]
["Deviz cheltuieli culturi - EURO - Culturi perene"]
["Nr. crt.",null,null,null,"Specificaţie",null,null,null,null,null,null,null,null,null,null,null,null,null,null,null,null,null,null,null,null,null,null,null,null,null,null,null,null,null,null,null,null,null,null,null,null,null,"Valoare eligibilă",null,null,null,null,null,null,null,null,"Valoare\nneeligibilă"]
["I. LUCRĂRI DE ÎNFIINŢARE PLANTAŢIE"]
[1,null,null,null,"Subcapitolul I Lucrări de pregătire a terenului"]
[null,null,null,null,"1. Manoperă"]
["a"]
[null,null,null,null,"Total (1)",null,null,null,null,null,null,null,null,null,null,null,null,null,null,null,null,null,null,null,null,null,null,null,null,null,null,null,null,null,null,null,null,null,null,null,null,null,{"$f":"AQ692","v":0},null,null,null,null,null,null,null,null,{"$f":"AZ692","v":0}]
[null,null,null,null,"2. Lucrări mecanice"]
["a"]
["b"]
["c"]
[null,null,null,null,"Total (2)",null,null,null,null,null,null,null,null,null,null,null,null,null,null,null,null,null,null,null,null,null,null,null,null,null,null,null,null,null,null,null,null,null,null,null,null,null,{"$f":"SUM(AQ695:AY697)","v":0},null,null,null,null,null,null,null,null,{"$f":"SUM(AZ695:BI697)","v":0}]
[null,null,null,null,"Total subcapitol I (1+2)",null,null,null,null,null,null,null,null,null,null,null,null,null,null,null,null,null,null,null,null,null,null,null,null,null,null,null,null,null,null,null,null,null,null,null,null,null,{"$f":"AQ693+AQ698","v":0},null,null,null,null,null,null,null,null,{"$f":"AZ693+AZ698","v":0}]
[2,null,null,null,"Subcapitolul II Înfiinţarea plantaţiei"]
["Atenţie! Sunt eligibile numai cheltuielile cu servicii executate de terţi."]
[null,null,null,null,"1. Manoperă"]
["a"]
["b"]
["c"]
["d"]
["e"]
["f"]
["g"]
["h"]
["i"]
[null,null,null,null,"Total (1)",null,null,null,null,null,null,null,null,null,null,null,null,null,null,null,null,null,null,null,null,null,null,null,null,null,null,null,null,null,null,null,null,null,null,null,null,null,{"$f":"SUM(AQ703:AY711)","v":0},null,null,null,null,null,null,null,null,{"$f":"SUM(AZ703:BI711)","v":0}]
[null,null,null,null,"2. Lucrări mecanice"]
["a"]
["b"]
["c"]
["d"]
[null,null,null,null,"Total (2)",null,null,null,null,null,null,null,null,null,null,null,null,null,null,null,null,null,null,null,null,null,null,null,null,null,null,null,null,null,null,null,null,null,null,null,null,null,{"$f":"SUM(AQ714:AY717)","v":0},null,null,null,null,null,null,null,null,{"$f":"SUM(AZ714:BI717)","v":0}]
[null,null,null,null,"3. Materii şi materiale "]
["a"]
["b"]
["c"]
["d"]
["e"]
[null,null,null,null,"Total (3)",null,null,null,null,null,null,null,null,null,null,null,null,null,null,null,null,null,null,null,null,null,null,null,null,null,null,null,null,null,null,null,null,null,null,null,null,null,{"$f":"SUM(AQ720:AY724)","v":0},null,null,null,null,null,null,null,null,{"$f":"SUM(AZ720:BI724)","v":0}]
[null,null,null,null,"Total subcapitol II (1+2+3)",null,null,null,null,null,null,null,null,null,null,null,null,null,null,null,null,null,null,null,null,null,null,null,null,null,null,null,null,null,null,null,null,null,null,null,null,null,{"$f":"AQ712+AQ718+AQ725","v":0},null,null,null,null,null,null,null,null,{"$f":"AZ712+AZ718+AZ725","v":0}]
[3,null,null,null,"Subcapitolul III Întreţinere plantaţie în anul 1   ATENŢIE! Cheltuieli neeligibile"]
[null,null,null,null,"1. Manoperă"]
[null,null,null,null,"Total (1)"]
[null,null,null,null,"2. Lucrări mecanice"]
[null,null,null,null,"Total (2)"]
[null,null,null,null,"3. Materii şi materiale "]
[null,null,null,null,"Total (3)"]
[null,null,null,null,"Total subcapitol III (1+2+3)",null,null,null,null,null,null,null,null,null,null,null,null,null,null,null,null,null,null,null,null,null,null,null,null,null,null,null,null,null,null,null,null,null,null,null,null,null,null,null,null,null,null,null,null,null,null,{"$f":"AZ729+AZ731+AZ733","v":0}]
[4,null,null,null,"Subcapitolul IV Întreţinere plantaţie în anul 2   ATENŢIE! Cheltuieli neeligibile"]
[null,null,null,null,"1. Manoperă"]
[null,null,null,null,"Total (1)"]
[null,null,null,null,"2. Lucrări mecanice"]
[null,null,null,null,"Total (2)"]
[null,null,null,null,"3. Materii şi materiale "]
[null,null,null,null,"Total (3)"]
[null,null,null,null,"Total subcapitol IV (1+2+3)",null,null,null,null,null,null,null,null,null,null,null,null,null,null,null,null,null,null,null,null,null,null,null,null,null,null,null,null,null,null,null,null,null,null,null,null,null,null,null,null,null,null,null,null,null,null,{"$f":"AZ737+AZ739+AZ741","v":0}]
[5,null,null,null,"Subcapitolul V Instalat sistem susţinere şi împrejmuire"]
[null,null,null,null,"1. Manoperă"]
["a"]
["b"]
["c"]
["d"]
["e"]
["f"]
["g"]
[null,null,null,null,"Total (1)",null,null,null,null,null,null,null,null,null,null,null,null,null,null,null,null,null,null,null,null,null,null,null,null,null,null,null,null,null,null,null,null,null,null,null,null,null,{"$f":"SUM(AQ745:AY751)","v":0},null,null,null,null,null,null,null,null,{"$f":"SUM(AZ745:BI751)","v":0}]
[null,null,null,null,"2. Materii şi materiale"]
["a"]
["b"]
["c"]
["d"]
[null,null,null,null,"Total (2)",null,null,null,null,null,null,null,null,null,null,null,null,null,null,null,null,null,null,null,null,null,null,null,null,null,null,null,null,null,null,null,null,null,null,null,null,null,{"$f":"SUM(AQ754:AY757)","v":0},null,null,null,null,null,null,null,null,{"$f":"SUM(AZ754:BI757)","v":0}]
[null,null,null,null,"Total subcapitol V (1+2)",null,null,null,null,null,null,null,null,null,null,null,null,null,null,null,null,null,null,null,null,null,null,null,null,null,null,null,null,null,null,null,null,null,null,null,null,null,{"$f":"AQ752+AQ758","v":0},null,null,null,null,null,null,null,null,{"$f":"AZ752+AZ758","v":0}]
["TOTAL ELIGIBIL / NEELIGIBIL FĂRĂ TVA",null,null,null,null,null,null,null,null,null,null,null,null,null,null,null,null,null,null,null,null,null,null,null,null,null,null,null,null,null,null,null,null,null,null,null,null,null,null,null,null,null,{"$f":"AQ699+AQ726+AQ759","v":0},null,null,null,null,null,null,null,null,{"$f":"AZ699+AZ726+AZ734+AZ742+AZ759","v":0}]
["VALOARE TVA aferentă cheltuielilor eligibile şi neeligibile"]
["TOTAL DEVIZ CU TVA",null,null,null,null,null,null,null,null,null,null,null,null,null,null,null,null,null,null,null,null,null,null,null,null,null,null,null,null,null,null,null,null,null,null,null,null,null,null,null,null,null,{"$f":"SUM(AQ760:BI761)","v":0}]
[]
["MINISTERUL AGRICULTURII ŞI DEZVOLTĂRII RURALE",null,null,null,null,null,null,null,null,null,null,null,null,null,null,null,null,null,null,null,null,null,null,null,null,null,null,null,null,null,null,null,null,null,null,null,null,null,null,null,null,null,"Anexa A5"]
["AGENŢIA PENTRU FINANŢAREA INVESTIŢIILOR RURALE"]
["VALORI PENTRU COSTURI STANDARD ŞI CONTRIBUŢIE ÎN NATURĂ, APLICABILE INVESTIŢIILOR\nprivind înfiinţarea plantaţiilor de struguri de masă\nMĂSURA 2/2A"]
[]
[]
[]
[null,"Înfiinţare plantaţii viticole pentru struguri de masă"]
[]
[null,"Desime de plantaţie (viţe/ha):"]
[]
[null,null,null,null,null,null,null,null,null,null,null,null,null,"Costuri în Euro / ha"]
["Nr. crt.",null,"Specificare",null,null,null,null,null,null,null,null,null,null,"în regie proprie",null,null,null,"Suprafaţa (ha)",null,null,null,"Total costuri (euro)",null,null,null,"în  antrepriză",null,null,null,"Suprafaţa (ha)",null,null,null,null,"Total costuri (euro)",null,null,null,"în regie proprie",null,null,null,"Suprafaţa (ha)",null,null,null,"Total costuri (euro)",null,null,null,"în antrepriză",null,null,null,"Suprafaţa (ha)",null,null,"Total costuri (euro)"]
[null,null,"Desime de plantare: viţe/ha",null,null,null,null,null,null,null,null,null,null,"<= 3333",null,null,null,null,null,null,null,null,null,null,null,null,null,null,null,null,null,null,null,null,null,null,null,null,"peste 3333 şi <= 4167"]
[1,null,"Proiectare, analize sol",null,null,null,null,null,null,null,null,null,null,350,null,null,null,null,null,null,null,{"$f":"N777*R777","v":0},null,null,null,385,null,null,null,null,null,null,null,null,{"$f":"Z777*AD777","v":0},null,null,null,350,null,null,null,null,null,null,null,{"$f":"AM777*AQ777","v":0},null,null,null,385,null,null,null,null,null,null,{"$f":"AY777*BC777","v":0}]
[2,null,"Pregătirea terenului:",null,null,null,null,null,null,null,null,null,null,758.42,null,null,null,null,null,null,null,{"$f":"N778*R778","v":0},null,null,null,834.26,null,null,null,null,null,null,null,null,{"$f":"Z778*AD778","v":0},null,null,null,758.42,null,null,null,null,null,null,null,{"$f":"AM778*AQ778","v":0},null,null,null,834.26,null,null,null,null,null,null,{"$f":"AY778*BC778","v":0}]
[null,null,"din care: - lucrări mecanice",null,null,null,null,null,null,null,null,null,null,679.52,null,null,null,null,null,null,null,0,null,null,null,747.47,null,null,null,null,null,null,null,null,0,null,null,null,679.52,null,null,null,null,null,null,null,0,null,null,null,747.47,null,null,null,null,null,null,0]
[null,null,"               - lucrări manuale",null,null,null,null,null,null,null,null,null,null,78.900000000000006,null,null,null,null,null,null,null,0,null,null,null,86.79,null,null,null,null,null,null,null,null,0,null,null,null,78.900000000000006,null,null,null,null,null,null,null,0,null,null,null,86.79,null,null,null,null,null,null,0]
[3,null,"Fertilizarea solului",null,null,null,null,null,null,null,null,null,null,737.66,null,null,null,null,null,null,null,0,null,null,null,811.42,null,null,null,null,null,null,null,null,0,null,null,null,737.66,null,null,null,null,null,null,null,0,null,null,null,811.42,null,null,null,null,null,null,0]
[4,null,"Sistem de susţinere",null,null,null,null,null,null,null,null,null,null,5605.61,null,null,null,null,null,null,null,0,null,null,null,6166.17,null,null,null,null,null,null,null,null,0,null,null,null,10991.22,null,null,null,null,null,null,null,0,null,null,null,12090.35,null,null,null,null,null,null,0]
[5,null,"Instalat sistem de susţinere",null,null,null,null,null,null,null,null,null,null,826.78,null,null,null,null,null,null,null,0,null,null,null,909.46,null,null,null,null,null,null,null,null,0,null,null,null,665.53,null,null,null,null,null,null,null,0,null,null,null,732.08,null,null,null,null,null,null,0]
[null,null,"din care: - lucrări mecanice",null,null,null,null,null,null,null,null,null,null,41.29,null,null,null,null,null,null,null,0,null,null,null,45.42,null,null,null,null,null,null,null,null,0,null,null,null,44.7,null,null,null,null,null,null,null,0,null,null,null,49.17,null,null,null,null,null,null,0]
[null,null,"               - lucrări manuale",null,null,null,null,null,null,null,null,null,null,785.49,null,null,null,null,null,null,null,0,null,null,null,864.04,null,null,null,null,null,null,null,null,0,null,null,null,620.83000000000004,null,null,null,null,null,null,null,0,null,null,null,682.91,null,null,null,null,null,null,0]
[6,null,"Echipament de irigare localizată",null,null,null,null,null,null,null,null,null,null,2527.41,null,null,null,null,null,null,null,0,null,null,null,2780.15,null,null,null,null,null,null,null,null,0,null,null,null,2527.41,null,null,null,null,null,null,null,0,null,null,null,2780.15,null,null,null,null,null,null,0]
[7,null,"Instalat sistem de irigare localizată",null,null,null,null,null,null,null,null,null,null,379.11,null,null,null,null,null,null,null,0,null,null,null,417.02,null,null,null,null,null,null,null,null,0,null,null,null,379.11,null,null,null,null,null,null,null,0,null,null,null,417.02,null,null,null,null,null,null,0]
[8,null,"Sistem plasă antigrindină",null,null,null,null,null,null,null,null,null,null,7824.64,null,null,null,null,null,null,null,0,null,null,null,8607.1,null,null,null,null,null,null,null,null,0,null,null,null,16327.96,null,null,null,null,null,null,null,0,null,null,null,17960.759999999998,null,null,null,null,null,null,0]
[9,null,"Instalat sistem antigrindină",null,null,null,null,null,null,null,null,null,null,1173.7,null,null,null,null,null,null,null,0,null,null,null,1291.07,null,null,null,null,null,null,null,null,0,null,null,null,2449.19,null,null,null,null,null,null,null,0,null,null,null,2694.11,null,null,null,null,null,null,0]
[10,null,"Sistem protecţie antiploaie",null,null,null,null,null,null,null,null,null,null,5250,null,null,null,null,null,null,null,0,null,null,null,5775,null,null,null,null,null,null,null,null,0,null,null,null,8400,null,null,null,null,null,null,null,0,null,null,null,9240,null,null,null,null,null,null,0]
[11,null,"Instalat sistem antiploaie",null,null,null,null,null,null,null,null,null,null,787.5,null,null,null,null,null,null,null,0,null,null,null,866.25,null,null,null,null,null,null,null,null,0,null,null,null,1260,null,null,null,null,null,null,null,0,null,null,null,1386,null,null,null,null,null,null,0]
[12,null,"Defrişare",null,null,null,null,null,null,null,null,null,null,713.42,null,null,null,null,null,null,null,0,null,null,null,784.76,null,null,null,null,null,null,null,null,0,null,null,null,713.42,null,null,null,null,null,null,null,0,null,null,null,784.76,null,null,null,null,null,null,0]
[null,null,"din care: - lucrări mecanice",null,null,null,null,null,null,null,null,null,null,98.57,null,null,null,null,null,null,null,0,null,null,null,108.43,null,null,null,null,null,null,null,null,0,null,null,null,98.57,null,null,null,null,null,null,null,0,null,null,null,108.43,null,null,null,null,null,null,0]
[null,null,"               - lucrări manuale",null,null,null,null,null,null,null,null,null,null,608.11,null,null,null,null,null,null,null,0,null,null,null,668.91,null,null,null,null,null,null,null,null,0,null,null,null,608.11,null,null,null,null,null,null,null,0,null,null,null,668.91,null,null,null,null,null,null,0]
[null,null,"               - materiale",null,null,null,null,null,null,null,null,null,null,6.74,null,null,null,null,null,null,null,0,null,null,null,7.42,null,null,null,null,null,null,null,null,0,null,null,null,6.74,null,null,null,null,null,null,null,0,null,null,null,7.42,null,null,null,null,null,null,0]
[null,null,"Total:",null,null,null,null,null,null,null,null,null,null,null,null,null,null,null,null,null,null,{"$f":"SUM(V777:Y795)","v":0},null,null,null,null,null,null,null,null,null,null,null,null,{"$f":"SUM(AI777:AL795)","v":0},null,null,null,null,null,null,null,null,null,null,null,{"$f":"SUM(AU777:AX795)","v":0},null,null,null,null,null,null,null,null,null,null,{"$f":"SUM(BF777:BJ795)","v":0}]
[]
["Cost unitar în EURO per material săditior şi plantare",null,null,null,null,null,null,null,null,null,null,null,null,"în regie proprie",null,null,null,"Suprafaţa (ha)",null,null,null,"Total costuri (euro)",null,null,null,"în  antrepriză",null,null,null,"Suprafaţa (ha)",null,null,null,null,"Total costuri (euro)",null,null,null,"în regie proprie",null,null,null,"Suprafaţa (ha)",null,null,null,"Total costuri (euro)",null,null,null,"în antrepriză",null,null,null,"Suprafaţa (ha)",null,null,"Total costuri (euro)"]
[13,null,"Material săditor",null,null,null,null,null,null,null,null,null,null,1.58,null,null,null,null,null,null,null,{"$f":"N799*R799","v":0},null,null,null,1.73,null,null,null,null,null,null,null,null,{"$f":"Z799*AD799","v":0},null,null,null,1.59,null,null,null,null,null,null,null,{"$f":"AM799*AQ799","v":0},null,null,null,1.75,null,null,null,null,null,null,{"$f":"AY799*BC799","v":0}]
[14,null,"Plantarea viţei de vie (lucrări mecanice, lucrări manuale şi alte materiale)",null,null,null,null,null,null,null,null,null,null,1.19,null,null,null,null,null,null,null,{"$f":"N800*R800","v":0},null,null,null,1.3,null,null,null,null,null,null,null,null,{"$f":"Z800*AD800","v":0},null,null,null,1.21,null,null,null,null,null,null,null,{"$f":"AM800*AQ800","v":0},null,null,null,1.33,null,null,null,null,null,null,{"$f":"AY800*BC800","v":0}]
[null,null,"Total:",null,null,null,null,null,null,null,null,null,null,null,null,null,null,null,null,null,null,{"$f":"SUM(V799:Y800)","v":0},null,null,null,null,null,null,null,null,null,null,null,null,{"$f":"SUM(AI799:AL800)","v":0},null,null,null,null,null,null,null,null,null,null,null,{"$f":"SUM(AU799:AX800)","v":0},null,null,null,null,null,null,null,null,null,null,{"$f":"SUM(BF799:BJ800)","v":0}]
[]
[null,null,null,null,null,null,null,null,null,null,null,null,null,"Costuri în Euro / ml"]
["Nr. crt.",null,"Specificare",null,null,null,null,null,null,null,null,null,null,"în regie proprie",null,null,null,"Suprafaţa (ha)",null,null,null,"Total costuri (euro)",null,null,null,"în  antrepriză",null,null,null,"Suprafaţa (ha)",null,null,null,null,"Total costuri (euro)",null,null,null,"în regie proprie",null,null,null,"Suprafaţa (ha)",null,null,null,"Total costuri (euro)",null,null,null,"în antrepriză",null,null,null,"Suprafaţa (ha)",null,null,"Total costuri (euro)"]
[15,null,"Sistem împrejmuire",null,null,null,null,null,null,null,null,null,null,12,null,null,null,null,null,null,null,{"$f":"N805*R805","v":0},null,null,null,13.2,null,null,null,null,null,null,null,null,{"$f":"Z805*AD805","v":0},null,null,null,12,null,null,null,null,null,null,null,{"$f":"AM805*AQ805","v":0},null,null,null,13.2,null,null,null,null,null,null,{"$f":"AY805*BC805","v":0}]
[16,null,"Instalat sistem împrejmuire",null,null,null,null,null,null,null,null,null,null,2,null,null,null,null,null,null,null,{"$f":"N806*R806","v":0},null,null,null,2.2000000000000002,null,null,null,null,null,null,null,null,{"$f":"Z806*AD806","v":0},null,null,null,2,null,null,null,null,null,null,null,{"$f":"AM806*AQ806","v":0},null,null,null,2.2000000000000002,null,null,null,null,null,null,{"$f":"AY806*BC806","v":0}]
[null,null,"Total:",null,null,null,null,null,null,null,null,null,null,null,null,null,null,null,null,null,null,{"$f":"SUM(V805:Y806)","v":0},null,null,null,null,null,null,null,null,null,null,null,null,{"$f":"SUM(AI805:AL806)","v":0},null,null,null,null,null,null,null,null,null,null,null,{"$f":"SUM(AU805:AX806)","v":0},null,null,null,null,null,null,null,null,null,null,{"$f":"SUM(BF805:BJ806)","v":0}]
[null,null,"Total general:",null,null,null,null,null,null,null,null,null,null,null,null,null,null,null,null,null,null,{"$f":"V796+V801+V807","v":0},null,null,null,null,null,null,null,null,null,null,null,null,{"$f":"AI796+AI801+AI807","v":0},null,null,null,null,null,null,null,null,null,null,null,{"$f":"AU796+AU801+AU807","v":0},null,null,null,null,null,null,null,null,null,null,0]
["Notă: 1. Costurile nu conţin TVA"]
["MINISTERUL AGRICULTURII ŞI DEZVOLTĂRII RURALE",null,null,null,null,null,null,null,null,null,null,null,null,null,null,null,null,null,null,null,null,null,null,null,null,null,null,null,null,null,"SECTIUNE SPECIFICĂ MĂSURA 2/2A"]
["AGENŢIA PENTRU FINANŢAREA INVESTIŢIILOR RURALE"]
[]
["D. ALTE INFORMAȚII :"]
["Programarea proiectului:"]
["Numar luni de implementare"]
[]
["E. LISTA DOCUMENTELOR ANEXATE PROIECTELOR AFERENTE MĂSURII 2/2A",null,null,null,null,null,null,null,null,null,null,null,null,null,null,null,null,null,null,null,null,null,null,null,null,null,null,null,null,null,null,null,null,null,null,null,null,null,null,null,null,null,null,null,null,null,null,null,null,null,null,null,null,null,null,"OPIS"]
[null,null,null,null,null,null,null,null,null,null,null,null,null,null,null,null,null,null,null,null,null,null,null,null,null,null,null,null,null,null,null,null,null,null,null,null,null,null,null,null,null,null,null,null,null,null,null,null,null,null,null,null,null,null,null,"documente"]
["A se anexa documentele în ordinea de mai jos:"]
["Lista documente",null,null,null,null,null,null,null,null,null,null,null,null,null,null,null,null,null,null,null,null,null,null,null,null,null,null,null,null,null,"Obligatoriu pentru toate proiectele",null,null,null,null,"Obligatoriu, dacă proiectul impune",null,null,null,null,null,null,"PAGINA de la - până la",null,null,null,null,null,null,null,"Obligatoriu pentru toate proiectele",null,null,null,null,"Obligatoriu, dacă proiectul impune"]
["ETAPA:",null,null,null,null,null,null,null,null,null,null,null,null,null,null,null,null,null,null,null,null,null,null,null,null,null,null,null,null,null,"DEPUNERE",null,null,null,null,null,null,null,null,null,null,null,null,null,null,null,null,null,null,null,"CONTRACTARE"]
["1. a) STUDIUL DE FEZABILITATE însotit de Proiectul de plantare avizat de Stațiunea Viticolă (dacă este cazul)\n(pentru achiziţiile simple se vor completa doar punctele care vizează acest tip de investiţie)                                                                                                                     sau"]
["1.b) Studiu de fezabilitate însoțit de Proiectul de înființare a plantației pomicole și avizat de ICDP Mărăcineni sau de stațiunile de cercetare – dezvoltare pomicole din zonă(dacă este cazul).\n(pentru achizițiile simple se vor completa doar punctele care vizează acest tip de investiție).                                                                                                                       sau"]
["1.c) EXPERTIZA TEHNICĂ DE SPECIALITATE ASUPRA CONSTRUCŢIEI\nEXISTENTE (dacă este cazul)                                                                                                 sau"]
["1.d) RAPORTUL PRIVIND STADIUL FIZIC AL LUCRĂRILOR (dacă este cazul) "]
["2. SITUAŢIILE FINANCIARE (bilanţ - formularul 10, contul de profit şi pierderi - formularul 20, formularele 30 și 40), precedente anului depunerii proiectului înregistrate la Administraţia Financiară. În cazul în care solicitantul este înfiinţat cu cel puţin trei ani financiari înainte de anul depunerii cererii de finanţare se vor depune ultimile trei situaţii financiare.                                       "]
["Pentru persoane fizice autorizate, intreprinderi familiale și intreprinderi individuale:\nDeclarație specială privind veniturile realizate în anul precedent depunerii proiectului înregistrată la Administrația Financiară (formularul 200 însoțit de Anexele la Formular) în care rezultatul brut obţinut anual să fie pozitiv (inclusiv 0)                                                                                                                   și/sau                                                                                                                        Declarația privind veniturile din activități agricole impuse pe norme de venit (formularul 221)\nsau                                                                                                                                                     Declaraţa de inactivitate înregistrata la Administraţia Financiară, în cazul solicitanţilor care nu au desfăşurat activitate anterior depunerii proiectului sau",null,null,null,null,null,null,null,null,null,null,null,null,null,null,null,null,null,null,null,null,null,null,null,null,null,null,null,null,null," "]
["3.a1). DOCUMENTE SOLICITATE PENTRU TERENUL AGRICOL AFERENT PLANTAȚIILOR DE VIȚĂ DE VIE PENTRU STRUGURI DE MASĂ EXISTENTE/NOU ÎNFIINȚATE ȘI A ALTOR PLANTAȚII:\nCOPIE DUPĂ DOCUMENTUL AUTENTIFICAT LA NOTAR CARE ATESTĂ DREPTUL DE PROPRIETATE asupra terenului                                                                                      şi/ sau                                                                                                                                                  tabel centralizator emis de Primărie semnat de persoanele autorizate conform legii, conţinând sumarul contractelor de arendare cu suprafeţele luate în arendă pe categorii de folosinţă, perioada de arendare care trebuie să fie de cel puţin 10 ani începând cu anul depunerii cererii de finanţare                         şi/ sau                                                                                                                                       contractul de concesiune care să certifice dreptul de folosinţă al terenului cel puţin 10 ani începând cu anul depunerii cererii de finanţare."]
["Contractul de concesiune va fi însoţit de adresa emisă de concedent şi trebuie să conţină:\n- situaţia privind respectarea clauzelor contractuale și dacă este în graficul de realizare a investiţiilor prevăzute în contract şi alte clauze;\n· suprafaţa concesionată la zi (dacă pentru suprafaţa concesionată există solicitări privind retrocedarea sau diminuarea, și dacă da, să se menţioneze care este suprafaţa supusă acestui proces)\n- Pentru cooperative agricole, societăţi cooperative agricole, grupuri de producatori, se vor prezenta documentele prevăzute mai sus pentru toţi membrii fermieri ai acestor solicitanţi"]
["a2) În cazul Societăţilor agricole se ataşează tabelul centralizator emis de catre Societatea agricolă, care va cuprinde suprafeţele aduse în folosinţa societăţii, numele membrilor fermieri care le deţin în proprietate şi perioada pe care terenul a fost adus în folosinţa societăţii, care trebuie să fie de minim 10 ani.                                                                                                                                             -    Copie din Registrul Agricol       "]
["b) DOCUMENTE SOLICITATE PENTRU IMOBILUL (CLĂDIRILE ŞI/ SAU\nTERENURILE) pe care sunt/ vor fi realizate investiţiile:\n\nb1) ACTUL DE PROPRIETATE ASUPRA CLĂDIRII sau CONTRACT DE CONCESIUNE SAU ALT DOCUMENT ÎNCHEIAT LA NOTARIAT care să certifice dreptul de folosinţă asupra clădirii pe o perioadă de cel puțin 10 ani începând cu anul depunerii cererii de finanţare, care să confere titularului dreptul de execuție a lucrărilor de construcții, în conformitate cu prevederile Legii nr.50/1991, republicată, cu modificările și completările ulterioare, având în vedere tipul de investiție propusă prin proiect;"]
["b2). DOCUMENTUL CARE ATESTĂ DREPTUL DE PROPRIETATE ASUPRA TERENULUI, CONTRACT DE CONCESIUNE SAU ALT DOCUMENT ÎNCHEIAT LA NOTARIAT, care să certifice dreptul de folosinţă al terenului pe o perioadă de cel puțin 10 ani începând cu anul depunerii cererii de finanțare, care să confere titularului dreptul de execuție a lucrărilor de construcții, în conformitate cu prevederile Legii 50/1991, republicată,cu modificările și completările ulterioare, având în vedere tipul de investiție propusă prin proiect;"]
["Contractul de concesiune va fi însoţit de adresa emisă de concedent şi trebuie să conţină:\n- situaţia privind respectarea clauzelor contractuale și dacă este în graficul de realizare a investiţiilor prevăzute în contract şi alte clauze;\n- suprafaţa concesionată la zi (dacă pentru suprafaţa concesionată există solicitări privind retrocedarea sau diminuarea, și dacă da, să se menţioneze care este suprafaţa supusă acestui proces) pentru terenul pe care este amplasată clădirea."]
["b3) EXTRAS DE CARTE FUNCIARĂ SAU DOCUMENT CARE SĂ CERTIFICE CĂ NU AU FOST FINALIZATE LUCRĂRILE DE CADASTRU, pentru cererile de finanţare care vizează investiţii de lucrări privind construcţiile noi sau modernizări ale acestora.\n\nAtenţie! În situatia în care imobilul pe care se execută investiţia nu este liber de sarcini (gajat pentru un credit), se va depune acordul creditorului privind executia investitiei şi graficul de rambursare a creditului."]
["c) DOCUMENT PENTRU EFECTIVUL DE ANIMALE DEŢINUT ÎN\nPROPRIETATE:\n1) EXTRAS DIN REGISTRUL EXPLOATAȚIEI emis de ANSVSA/DSVSA cu cel mult 30 de zile înainte de data depunerii CF, din care să rezulte efectivul de animale deţinut, însoţit de formular de mişcare ANSVSA/DSVSA (Anexa 4 din Normele sanitare veterinare ale Ordinului ANSVSA nr. 40/2010);\nPentru exploataţiile agricole care deţin păsări şi albine - ADEVERINȚĂ\nELIBERATĂ DE MEDICUL VETERINAR DE CIRCUMSCRIPȚIE, emisă cu cel\nmult 30 de zile înainte de data depunerii CF, din care rezultă numărul păsărilor şi al familiilor de albine şi data înscrierii solicitantului în Registrul Exploataţiei. Pentru cooperative agricole, societăţi cooperative agricole, grupuri de producători, se vor prezenta documentele prevăzute la punctul c) pentru toţi membrii acestor solicitanţi."]
["2) PAŞAPORTUL emis de ANZ pentru ecvideele (cabalinele) cu rasă şi origine."]
["4. CERTIFICAT DE URBANISM pentru proiecte care prevăd construcţii (noi, extinderi sau modernizări)."]
["5. DOCUMENT EMIS DE ANPM PENTRU PROIECT (conform protocolului de colaborare între AFIR – ANPM - GNM) (se va prezenta la momentul încheierii contractului). "]
["6.1 CERTIFICATE CARE SĂ ATESTE LIPSA DATORIILOR RESTANTE FISCALE şi sociale, valabile la data incheierii contractului, emise de Direcţia Generală a Finanţelor Publice și de primăriile pe raza cărora îşi au sediul social și puncte de lucru (numai în cazul în care solicitantul este proprietar asupra imobilelor) şi, dacă este cazul, graficul de reeşalonare a datoriilor către bugetul consolidat.\nSolicitantul va prezenta decizia de rambursare aprobată a sumelor negative solicitate la rambursare prin deconturile de TVA și/sau alte documente aprobate pentru soluționarea cererilor de restituire, decizie/documente care au fost aprobate ulterior eliberării certificatului de atestare fiscală, pentru compensarea obligațiilor fiscale de la Sect.A."]
["6.2 CAZIER JUDICIAR AL RESPONSABILULUI LEGAL, valabil la data\nincheierii contractului."]
["7.1 DOCUMENT EMIS DE DSVSA PENTRU PROIECT, conform Protocolului de colaborare dintre AFIR şi ANSVSA publicat pe pagina de internet www.afir.info."]
["7.2 DOCUMENT EMIS DE DSP JUDEŢEANĂ, conform Protocolului de colaborare dintre AFIR şi MS publicat pe pagina de internet www.afir.info."]
["8.1 DOCUMENTE CARE DOVEDESC CAPACITATEA ŞI SURSA DE COFINANŢARE privată a investiţiei emise de o instituţie financiară (extras de cont şi/sau contract de credit acordat in vederea implementarii proiectului)."]
["8.2 ADRESĂ EMISĂ DE BANCĂ/TREZORERIE cu datele de identificare ale acesteia şi ale contului aferent proiectului FEADR (denumirea, adresa instituţiei financiare, codul IBAN al contului în care se derulează operaţiunile cu AFIR);"]
["9.1 AUTORIZAŢIE SANITARĂ/ NOTIFICARE de constatare a conformităţii cu legislaţia sanitară emise cu cel mult un an înaintea depunerii Cererii de finanţare, pentru unitățile care se modernizează și se autorizează/avizează conform legislației în vigoare."]
["9.2 NOTA DE CONSTATARE PRIVIND CONDIŢIILE DE MEDIU pentru toate unităţile în funcţiune."]
["10.\na) HOTĂRÂRE JUDECĂTOREASCĂ definitivă pronunţată pe baza actului de constituire și a statutului propriu în cazul Societăţilor agricole, însoțită de Statutul Societății agricole;"]
["b) STATUT pentru Societatea cooperativă agricolă (înfiinţată în baza Legii nr. 1/ 2005) și Cooperativa agricolă (înfiinţată în baza Legii nr. 566/ 2004) cu modificările și completările ulterioare și  composesoratele, obștile și alte forme asociative de proprietate asupra terenurilor (menționate în Legea nr.1/2000 pentru reconstituirea dreptului de proprietate asupra terenurilor agricole și celor forestiere, cu modificările și completările ulterioare), din care să reiasă că acestea se încadreaza în categoria: societate cooperativa agricolă , cooperativă agricolă sau fermier în conformitate cu art 7, alin (21) din OUG 3/2015, cu completările și modificările ulterioare;"]
["c) DOCUMENT DE ÎNFIINŢARE A INSTITUTELOR DE CERCETARE, a Centrelor, staţiunilor şi unităţilor de cercetare-dezvoltare şi didactice din domeniul agricol"]
["11.1 DIPLOMĂ DE STUDII SUPERIOARE în domeniul agricol, agro-alimentar, veterinar, economie agrară, mecanică agricolă, inginerie economică în agricultură şi dezvoltare rurală sau, după caz, adeverinţă de absolvire a studiilor respective, însoţită de foaia matricolă pentru cei care au absolvit în ultimele 12 luni."]
["11.2 DIPLOMA DE ABSOLVIRE STUDII postliceale şi liceale în domeniul agricol, agro-alimentar, veterinar, economie agrară, mecanică agricolă."]
["11.3 DIPLOMA DE ABSOLVIRE A ȘCOLII PROFESIONALE sau diploma/ certificat de calificare ce atestă formarea profesională/certificat de competențe emis de un centru de evaluare si certificare a competentelor profesionale obţinute pe alte căi decât cele formale, care trebuie de asemenea să fie autorizat de Autoritatea Naţionala pentru Calificări sau Certificat de absolvire a cursului de calificare emis de ANCA, care conferă un nivel minim de calificare în domeniul agricol, agro-alimentar, veterinar, economie agrară, mecanică agricolă."]
["11.4 FOAIA MATRICOLĂ pentru cel puțin 2 ani de facultate în domeniul agricol, agro-alimentar, veterinar, economie agrară, mecanică agricolă, inginerie economică în agricultură şi dezvoltare rurală.                                                          11.5 ADEVERINȚA DE ABSOLVIRE A STUDIILOR ÎN DOMENIU, PÂNĂ LA ELIBERAREA DOCUMENTULUI DOVEDITOR, DAR NU MAI TÂRZIU DE ULTIMA PLATĂ"]
["11.6 EXTRAS DIN REGISTRUL GENERAL DE EVIDENȚĂ A SALARIAȚILOR care să ateste înregistrarea contractului individual de muncă."]
["12. ÎN CAZUL INVESTIŢIILOR PRIVIND IRIGAŢIILE:\n12.1 AVIZ DE GOSPODARIREA APELOR/ NOTIFICAREA DE ÎNCEPERE A EXECUŢIEI, în cazul investiţiilor noi sau AUTORIZAȚIE DE GOSPODĂRIRE/NOTIFICARE DE PUNERE ÎN FUNCȚIUNE, în cazul funcţionării sistemului de irigaţii."]
["12.2 AVIZ EMIS DE ANIF (dacă este cazul)"]
["12.3 DOCUMENT EMIS DE OUAI privind acordul de branşare (dacă este cazul)"]
["12.4 Document privind acordul de branșare emis de entitatea care administrează sursa de apă (dacă este cazul)"]
["13. CERTIFICATUL DE ORIGINE PENTRU ANIMALE DE RASĂ INDIGENĂ eliberat de Asociații ale crescătorilor sau Organizațiile de ameliorare, autorizate de ANZ "]
["14. DOCUMENT EMIS DE CĂTRE ORGANIZATIA INTERPROFESIONALĂ PENTRU PRODUSELE AGROALIMENTARE (OIPA), din care să reiasă că solicitantul şi, dacă este cazul, terţele persoane cu care acesta încheie precontracte, are/au calitatea de membru al acesteia, însoţit de documentul de înfiinţare al OIPA (act constitutiv și statut), document avizat de consiliul director.\nSe va lua în considerare atât documentul avizat de către Preşedintele Consiliului Director cât și de o altă persoană împuternicită de Consiliul Director conform prevederilor statutului.\nÎn acest caz, pe lângă documentul emis de OIPA din care să reiasă că solicitantul este membru al acesteia, solicitantul trebuie să prezinte şi Hotărârea Consiliului Director de împuternicire a Preşedintelui Consiliului Director sau a unei alte persoane din cadrul Consiliului Director, conform prevederilor statutului, în vederea semnării acestor documente."]
["15.Precontractele/ contracte/ cu membrii OIPA/ Grup de Producători (GP)/ cooperative/ organizație de producători în vederea condiționării/procesării/comercializării producției proprii."]
["16. PRECONTRACTELE CU PERSOANE JURIDICE prin care se realizează comercializarea produselor proprii"]
["17. PRECONTRACTE/ CONTRACTE încheiate direct cu comercianții cu amănuntul, deținătorii de unități turistice, restaurante, unități de procesare ulterioară înregistrate/ autorizate, ferme zootehnice, etc."]
["18.1 FIŞA DE ÎNREGISTRARE CA PRODUCĂTOR ȘI/SAU PROCESATOR ÎN AGRICULTURĂ ECOLOGICĂ, ELIBERATA DE DAJ, ÎNSOȚITĂ DE CONTRACTUL ÎNCHEIAT CU UN ORGANISM DE INSPECȚIE ȘI CERTIFICARE (în cazul investițiilor noi sau în cazul modernizării exploatațiilor care obțin după implementarea proiectului, un produs ecologic)"]
["18.2 Certificat de conformitate a produselor agroalimentare ecologice emis de un organism de inspecţie şi certificare, conform prevederilor OUG 34/2000 privind produsele agroalimentare ecologice cu completările și modificările ulterioare pentru aprobarea regulilor privind organizarea sistemului de inspecție și certificare în agricultura ecologică (pentru modernizări în vederea obținerii unui produs existent)."]
["19. STUDIU OSPA JUDEŢEAN PRIVIND NOTA DE BONITARE A TERENURILOR AGRICOLE în cazul exploataţiilor agricole din sectorul vegetal, însoţit de aviz ICPA pentru încadrarea proiectului în potenţialul agricol."]
["20. ACORD de principiu privind includerea generatoarelor terestre antigrindină în Sistemul Naţional de Antigrindină şi Creştere a Precipitaţiilor (la depunere), emis de Autoritatea pentru Administrarea Sistemului Naţional Antigrindină şi de Creştere a Precipitaţiilor, emis de AASNACP. (dacă este cazul)"]
["21. Document emis de Cooperativa/Grupul de producători din care să reiasă că solicitantul și, dacă este cazul, terțele persoane cu care acesta încheie precontracte, are/au calitatea de membru a/al acesteia/acestuia, însoțit – statutul Cooperativei. "]
["22. CERTIFICAT DE CONFORMITATE A PRODUSELOR AGROALIMENTARE ECOLOGICE (produse finite) emis de un organism de inspecție și certificare, conform prevederilor OUG 34/2000 privind produsele agroalimentare ecologice (pentru intreprinderile existente care le dețin deja)."]
["23. DOCUMENTUL care să demonstreze calitatea de membru al grupului aplicant pentru produsul alimentar care participă la sisteme din domeniul calității produselor agricole și alimentare recunoscute sau în curs de recunoaștere la nivel european."]
["24. ATESTATUL DE PRODUS TRADIȚIONAL emis de MADR , în conformitate cu Ordinul 724/ 2013 privind atestarea produselor tradiţionale (pentru modernizări în vederea obținerii unui produs existent la depunere, pentru investiții în vederea obținerii unui produs nou la ultima plată)."]
["25. ATESTAT PRODUS ALIMENTAR OBŢINUT CONFORM UNEI REŢETE CONSACRATE ROMÂNEŞTI emis de MADR, în conformitate cu Ordinul 394/2014 privind atestarea produselor alimentare obținute conform rețetelor consacrate românești (pentru modernizări în vederea obținerii unui produs existent la depunere, pentru investiții în vederea obținerii unui produs nou la ultima plată). "]
["26. COPIE CERERE depunere documentație în vederea dobândirii dreptului de utilizare a menţiunii de calitate facultative \"produs montan\"-pentru produsele în curs de recunoaștere."]
["27. Declarația cu privire la neîncadrarea în categoria firmă în dificultate. "]
["28. AUTORIZAŢIA DE PLANTARE \nPentru plantațiile de pomi cu suprafaţa mai mare de 2 ha şi pentru plantațiile de arbuşti fructiferi cu suprafaţa mai mare de 0,5 ha autorizaţia de plantare se eliberează în baza unui proiect de înfiinţare a plantației pomicole elaborat de persoane autorizate şi avizat de Institutul de cercetare-dezvoltare pentru pomicultură sau de staţiunea de cercetare-dezvoltare pomicolă din zonă. \n"]
["29. Document din care să rezulte că materialul de plantare fructifer este inclus în Cataloagele oficiale ale statelor membre UE sau care se regăsesc în cataloagele producătorilor comerciali de material de plantare fructifer. "]
["30. Declaraţie prin care beneficiarul se angajează să raporteze către GAL toate plăţile autorizate şi rambursate în cadrul proiectului selectat, ce vor fi efectuate de AFIR către beneficiar."]
["31. Declarație pe propria răspundere că nu este înregistrat cu datorii în registrul debitorilor AFIR (se va verifica prin solicitare de informații de la AFIR în perioada de evaluare a proiectului).                                                                     "]
["32. Proiectul Tehnic, în vederea avizării de către AFIR, va fi depus conform HG 226/2015 cu modificarile și completările ulterioare și a procedurilor în vigoare la momentul notificării."]
["33. Cazier fiscal al solicitantului.   "]
["34.Copie a documentului de identitate al reprezentantului legal al beneficiarului."]
["35. Dovada achitării integrale a datoriei față de AFIR, inclusiv dobânzile și majorările de întârziere, dacă este cazul"]
["36. ALTE DOCUMENTE JUSTIFICATIVE (SE VOR SPECIFICA DUPĂ CAZ):"]
[]
[]
["COEFICIENŢI PRODUCŢIE STANDARD 2013"]
["Coduri EUROSTAT",null,null,null,null,null,null,"Denumire culturi",null,null,null,null,null,null,null,null,null,null,null,null,null,null,null,null,null,null,"SO 2013 euro/ha",null,null,null,null,null,null,"Suprafaţa (ha)",null,null,null,null,null,null,"SO activitate existentă",null,null,null,null,null,null,"Suprafaţa (ha) în urma realizării investiţiei",null,null,null,null,null,null,"SO în urma realizării investiţiei"]
[0,null,null,null,null,null,null,1,null,null,null,null,null,null,null,null,null,null,null,null,null,null,null,null,null,null,2,null,null,null,null,null,null,3,null,null,null,null,null,null,4,null,null,null,null,null,null,5,null,null,null,null,null,null,6]
["B_1_1_1",null,null,null,null,null,null,"Grâu comun (inclusiv seminţe)",null,null,null,null,null,null,null,null,null,null,null,null,null,null,null,null,null,null,614.09,null,null,null,null,null,null,null,null,null,null,null,null,null,{"$f":"AA889*AH889","v":0},null,null,null,null,null,null,null,null,null,null,null,null,null,{"$f":"AA889*AV889","v":0}]
["B_1_1_2",null,null,null,null,null,null,"Grâu dur (inclusiv seminţe)",null,null,null,null,null,null,null,null,null,null,null,null,null,null,null,null,null,null,432.81,null,null,null,null,null,null,null,null,null,null,null,null,null,{"$f":"AA890*AH890","v":0},null,null,null,null,null,null,null,null,null,null,null,null,null,{"$f":"AA890*AV890","v":0}]
["B_1_1_3",null,null,null,null,null,null,"Secară  (inclusiv seminţe)",null,null,null,null,null,null,null,null,null,null,null,null,null,null,null,null,null,null,354.27,null,null,null,null,null,null,null,null,null,null,null,null,null,0,null,null,null,null,null,null,null,null,null,null,null,null,null,0]
["B_1_1_4",null,null,null,null,null,null,"Orz+Orzoaică  (inclusiv seminţe)",null,null,null,null,null,null,null,null,null,null,null,null,null,null,null,null,null,null,529.44000000000005,null,null,null,null,null,null,null,null,null,null,null,null,null,0,null,null,null,null,null,null,null,null,null,null,null,null,null,0]
["B_1_1_5",null,null,null,null,null,null,"Ovăz  (inclusiv seminţe)",null,null,null,null,null,null,null,null,null,null,null,null,null,null,null,null,null,null,331.88,null,null,null,null,null,null,null,null,null,null,null,null,null,0,null,null,null,null,null,null,null,null,null,null,null,null,null,0]
["B_1_1_6",null,null,null,null,null,null,"Porumb boabe  (inclusiv seminţe)",null,null,null,null,null,null,null,null,null,null,null,null,null,null,null,null,null,null,641.79999999999995,null,null,null,null,null,null,null,null,null,null,null,null,null,0,null,null,null,null,null,null,null,null,null,null,null,null,null,0]
["B_1_1_7",null,null,null,null,null,null,"Orez  (inclusiv seminţe)",null,null,null,null,null,null,null,null,null,null,null,null,null,null,null,null,null,null,913.26,null,null,null,null,null,null,null,null,null,null,null,null,null,0,null,null,null,null,null,null,null,null,null,null,null,null,null,0]
["B_1_1_99",null,null,null,null,null,null,"Alte cereale (sorgul, triticale, meiul, hrişca, iarba-cănăraşului, altele)  (inclusiv seminţe)",null,null,null,null,null,null,null,null,null,null,null,null,null,null,null,null,null,null,452.74,null,null,null,null,null,null,null,null,null,null,null,null,null,0,null,null,null,null,null,null,null,null,null,null,null,null,null,0]
["B_1_2_1",null,null,null,null,null,null,"Mazăre boabe, fasole boabe, lupin dulce  (inclusiv seminţe)",null,null,null,null,null,null,null,null,null,null,null,null,null,null,null,null,null,null,533.77,null,null,null,null,null,null,null,null,null,null,null,null,null,0,null,null,null,null,null,null,null,null,null,null,null,null,null,0]
["B_1_2_2",null,null,null,null,null,null,"Linte, bob, măzăriche, năut  (inclusiv seminţe)",null,null,null,null,null,null,null,null,null,null,null,null,null,null,null,null,null,null,454.79,null,null,null,null,null,null,null,null,null,null,null,null,null,0,null,null,null,null,null,null,null,null,null,null,null,null,null,0]
["B_1_3",null,null,null,null,null,null,"Cartofi (inclusiv cartofi noi, material săditor, cartof dulce destinat consumului uman)",null,null,null,null,null,null,null,null,null,null,null,null,null,null,null,null,null,null,3167.88,null,null,null,null,null,null,null,null,null,null,null,null,null,0,null,null,null,null,null,null,null,null,null,null,null,null,null,0]
["B_1_4",null,null,null,null,null,null,"Sfeclă de zahăr  (exclusiv seminţe)",null,null,null,null,null,null,null,null,null,null,null,null,null,null,null,null,null,null,1449.74,null,null,null,null,null,null,null,null,null,null,null,null,null,{"$f":"AA900*AH900","v":0},null,null,null,null,null,null,null,null,null,null,null,null,null,0]
["B_1_5",null,null,null,null,null,null,"Plante rădăcinoase pentru nutreţ (sfecla furajeră, alte plante furajere din familia brasiceelor, morcovi furajeri, batata (cartof dulce), păstârnac, ignama, manioc) ( exclusiv seminţe)",null,null,null,null,null,null,null,null,null,null,null,null,null,null,null,null,null,null,1101.45,null,null,null,null,null,null,null,null,null,null,null,null,null,{"$f":"AA901*AH901","v":0},null,null,null,null,null,null,null,null,null,null,null,null,null,0]
["B_1_6_1",null,null,null,null,null,null,"Tutun",null,null,null,null,null,null,null,null,null,null,null,null,null,null,null,null,null,null,1696.83,null,null,null,null,null,null,null,null,null,null,null,null,null,0,null,null,null,null,null,null,null,null,null,null,null,null,null,0]
["B_1_6_2",null,null,null,null,null,null,"Hamei",null,null,null,null,null,null,null,null,null,null,null,null,null,null,null,null,null,null,4105.24,null,null,null,null,null,null,null,null,null,null,null,null,null,0,null,null,null,null,null,null,null,null,null,null,null,null,null,0]
["B_1_6_4",null,null,null,null,null,null,"Rapiţă  (inclusiv seminţe)",null,null,null,null,null,null,null,null,null,null,null,null,null,null,null,null,null,null,647.72,null,null,null,null,null,null,null,null,null,null,null,null,null,0,null,null,null,null,null,null,null,null,null,null,null,null,null,0]
["B_1_6_5",null,null,null,null,null,null,"Floarea soarelui  (inclusiv seminţe)",null,null,null,null,null,null,null,null,null,null,null,null,null,null,null,null,null,null,564.52,null,null,null,null,null,null,null,null,null,null,null,null,null,0,null,null,null,null,null,null,null,null,null,null,null,null,null,0]
["B_1_6_6",null,null,null,null,null,null,"Soia  (inclusiv seminţe)",null,null,null,null,null,null,null,null,null,null,null,null,null,null,null,null,null,null,611,null,null,null,null,null,null,null,null,null,null,null,null,null,0,null,null,null,null,null,null,null,null,null,null,null,null,null,0]
["B_1_6_7",null,null,null,null,null,null,"In pentru ulei  (inclusiv seminţe)",null,null,null,null,null,null,null,null,null,null,null,null,null,null,null,null,null,null,1563.56,null,null,null,null,null,null,null,null,null,null,null,null,null,0,null,null,null,null,null,null,null,null,null,null,null,null,null,0]
["B_1_6_8",null,null,null,null,null,null,"Alte plante pentru ulei (ricin, şofrănaş, susan, arahide, mac, muştar, alte culturi oleaginoase)  (inclusiv seminţe)",null,null,null,null,null,null,null,null,null,null,null,null,null,null,null,null,null,null,374,null,null,null,null,null,null,null,null,null,null,null,null,null,{"$f":"AA908*AH908","v":0},null,null,null,null,null,null,null,null,null,null,null,null,null,0]
["B_1_6_9",null,null,null,null,null,null,"In textile (exclusiv seminţe)",null,null,null,null,null,null,null,null,null,null,null,null,null,null,null,null,null,null,307.17,null,null,null,null,null,null,null,null,null,null,null,null,null,{"$f":"AA909*AH909","v":0},null,null,null,null,null,null,null,null,null,null,null,null,null,0]
["B_1_6_10",null,null,null,null,null,null,"Cânepă  (exclusiv seminţe)",null,null,null,null,null,null,null,null,null,null,null,null,null,null,null,null,null,null,518.11,null,null,null,null,null,null,null,null,null,null,null,null,null,0,null,null,null,null,null,null,null,null,null,null,null,null,null,0]
["B_1_6_12",null,null,null,null,null,null,"Plante medicinale şi aromatice inclusiv ceaiul, cafeaua şi cicoarea pentru cafea: muşeţel, mătrăguna, menta, mac, angelica,chimen, genţiana, iasomia, lavanda, levănţica, origanul, şofranul, salvia, valeriana, gălbeneaua, etc.",null,null,null,null,null,null,null,null,null,null,null,null,null,null,null,null,null,null,937.85,null,null,null,null,null,null,null,null,null,null,null,null,null,0,null,null,null,null,null,null,null,null,null,null,null,null,null,0]
["B_1_6_99",null,null,null,null,null,null,"Alte plante industriale- cicoarea, trestia de zahăr, alte plante tehnice nemenţionate în altă parte, sorgul tehnic (pentru mături)",null,null,null,null,null,null,null,null,null,null,null,null,null,null,null,null,null,null,717.56,null,null,null,null,null,null,null,null,null,null,null,null,null,0,null,null,null,null,null,null,null,null,null,null,null,null,null,0]
["B_1_7_1_1",null,null,null,null,null,null,"Legume proaspete, pepeni şi căpşuni - în câmp\n- varză, conopidă, broccoli, sparanghel\n- legume pt. frunze (praz, salată, spanac, etc.)\n- tomate\n- porumb dulce\n- legume cultivate pentru fructe - vinete, ardei,dovleci şi dovlecei, castraveciori\n- legume cultivate pentru rădăcină, bulbi, tuberculi (excepţie cartofi): morcovi, păstârnac, ceapă, usturoi, ridichii, napi\n- legume păstăi(fasole, mazăre cu excepţia lintei şi a năutului)\n- fructele plantelor neperene (căpşuni, pepeni galbeni, pepeni verzi, ananas)",null,null,null,null,null,null,null,null,null,null,null,null,null,null,null,null,null,null,6196.49,null,null,null,null,null,null,null,null,null,null,null,null,null,{"$f":"AA913*AH913","v":0},null,null,null,null,null,null,null,null,null,null,null,null,null,0]
["B_1_7_1_2",null,null,null,null,null,null,"Legume proaspete, pepenişi căpşuni - în grădină destinate comercializării:\n- varză, conopidă, broccoli, sparanghel\n- legume pt. frunze (praz, salată, spanac, etc.)\n- tomate\n- porumb dulce\n- legume cultivate pentru fructe - vinete, ardei,dovleci şi dovlecei, castraveciori\n- legume cultivate pentru rădăcină, bulbi, tuberculi (excepţie cartofi): morcovi, păstârnac, ceapă, usturoi,ridichii, napi\n- legume păstăi(fasole, mazăre cu excepţia lintei şi a năutului)\n- fructele plantelor neperene (căpşuni, pepeni galbeni, pepeni verzi, ananas)",null,null,null,null,null,null,null,null,null,null,null,null,null,null,null,null,null,null,7176.16,null,null,null,null,null,null,null,null,null,null,null,null,null,{"$f":"AA914*AH914","v":0},null,null,null,null,null,null,null,null,null,null,null,null,null,0]
["B_1_7_2",null,null,null,null,null,null,"Legume proaspete, pepeni şi căpşuni - în sere şi solarii:\n- varză, conopidă, broccoli, sparanghel\n- legume pt. frunze (praz, salată, spanac, etc.)\n- tomate\n- porumb dulce\n- legume cultivate pentru fructe - vinete, ardei,dovleci şi dovlecei, castraveciori\n- legume cultivate pentru rădăcină, bulbi, tuberculi (excepţie cartofi): morcovi, păstârnac, ceapă, usturoi, ridichii, napi\n- legume păstăi(fasole, mazăre cu excepţia lintei şi a năutului)\n- fructele plantelor neperene (căpşuni, pepeni galbeni, pepeni verzi, ananas)",null,null,null,null,null,null,null,null,null,null,null,null,null,null,null,null,null,null,25507.66,null,null,null,null,null,null,null,null,null,null,null,null,null,{"$f":"AA915*AH915","v":0},null,null,null,null,null,null,null,null,null,null,null,null,null,0]
["B_1_8_1",null,null,null,null,null,null,"Flori - în câmp\n- bulbi de flori, cormi şi tuberculi\n- flori tăiate şi boboci\n- plante cu flori şi plante ornamentale\n",null,null,null,null,null,null,null,null,null,null,null,null,null,null,null,null,null,null,25527.46,null,null,null,null,null,null,null,null,null,null,null,null,null,{"$f":"AA916*AH916","v":0},null,null,null,null,null,null,null,null,null,null,null,null,null,0]
["B_1_8_2",null,null,null,null,null,null,"Flori - în sere şi solarii\n- bulbi de flori, cormi şi tuberculi\n- flori tăiate şi boboci\n- plante cu flori şi plante ornamentale",null,null,null,null,null,null,null,null,null,null,null,null,null,null,null,null,null,null,83743.81,null,null,null,null,null,null,null,null,null,null,null,null,null,{"$f":"AA917*AH917","v":0},null,null,null,null,null,null,null,null,null,null,null,null,null,0]
["B_1_9_1",null,null,null,null,null,null,"Plante de nutreţ - iarba temporară - iarba semănată pe terenuri arabile cedate producţiilor furajere erbacee pe o perioadă mai scurtă de 5 ani şi chiar sub un an",null,null,null,null,null,null,null,null,null,null,null,null,null,null,null,null,null,null,266.22000000000003,null,null,null,null,null,null,null,null,null,null,null,null,null,0,null,null,null,null,null,null,null,null,null,null,null,null,null,0]
["B_1_9_2_1",null,null,null,null,null,null,"Plante de nutreţ - alte furaje verzi - porumb siloz",null,null,null,null,null,null,null,null,null,null,null,null,null,null,null,null,null,null,1029.19,null,null,null,null,null,null,null,null,null,null,null,null,null,0,null,null,null,null,null,null,null,null,null,null,null,null,null,0]
["B_1_9_2_2",null,null,null,null,null,null,"Plante de nutreţ - alte furaje verzi (culturi anuale de cereale recoltate verzi, sorgul anual, anumite graminee anuale cum este firuţa, cruciferele, facelia dacă sunt recoltate  verzi şi nu au fost menţionate în altă parte, mazăriche, lupin dulce)",null,null,null,null,null,null,null,null,null,null,null,null,null,null,null,null,null,null,476.13,null,null,null,null,null,null,null,null,null,null,null,null,null,0,null,null,null,null,null,null,null,null,null,null,null,null,null,0]
["B_1_9_2_99",null,null,null,null,null,null,"Alte plante de nutreţ (diferite specii de trifoi anual sau peren- trifoi alb, trifoi roşu, trifoi de Alexandria - diferite varietăţi de lucernă)",null,null,null,null,null,null,null,null,null,null,null,null,null,null,null,null,null,null,662.78,null,null,null,null,null,null,null,null,null,null,null,null,null,0,null,null,null,null,null,null,null,null,null,null,null,null,null,0]
["B_1_10",null,null,null,null,null,null,"Seminţe şi seminiceri\n- semințe de graminee (altele decât cele de bază)\n- seminţe pentru horticultură\n- seminţe şi răsaduri pentru teren arabil cu excepţia cerealelor, a boabelor de leguminoase uscate, a cartofilor, a plantelor oleaginoase",null,null,null,null,null,null,null,null,null,null,null,null,null,null,null,null,null,null,2993.73,null,null,null,null,null,null,null,null,null,null,null,null,null,0,null,null,null,null,null,null,null,null,null,null,null,null,null,0]
["B_1_11",null,null,null,null,null,null,"Alte plante (culturi de mică importanţă economică care nu pot fi încadrate în altă categorie)",null,null,null,null,null,null,null,null,null,null,null,null,null,null,null,null,null,null,529.99,null,null,null,null,null,null,null,null,null,null,null,null,null,0,null,null,null,null,null,null,null,null,null,null,null,null,null,0]
["B_3_1",null,null,null,null,null,null,"Păşuni şi fâneţe permanente - păşuni şi fâneţe",null,null,null,null,null,null,null,null,null,null,null,null,null,null,null,null,null,null,295.04000000000002,null,null,null,null,null,null,null,null,null,null,null,null,null,0,null,null,null,null,null,null,null,null,null,null,null,null,null,0]
["B_3_2",null,null,null,null,null,null,"Păşuni şi fâneţe permanente - pe terenuri accidentate - păşuni sărace, inclusiv lăstărişul, de obicei nefertilizate şi neîntrebuinţate - păşuni cu randament scăzut situate în locuri accidentate şi la altitudini mari, care nu sunt cosite - terenuri  stâncoase, terenuri mlăştinoase, bărăganuri",null,null,null,null,null,null,null,null,null,null,null,null,null,null,null,null,null,null,92.33,null,null,null,null,null,null,null,null,null,null,null,null,null,0,null,null,null,null,null,null,null,null,null,null,null,null,null,0]
["B_4_1_1_1",null,null,null,null,null,null,"Fructe, pomi şi arbuşti - climă temperată:\nMere\nPere\nPiersici şi nectarine\nAlte fructe vişine, cirese, caise, prune, gutui",null,null,null,null,null,null,null,null,null,null,null,null,null,null,null,null,null,null,2812.04,null,null,null,null,null,null,null,null,null,null,null,null,null,0,null,null,null,null,null,null,null,null,null,null,null,null,null,0]
["B_4_1_2",null,null,null,null,null,null,"Livezi de coacaz, smochin, zmeur, muri, agrişe, cătină, afin, goji",null,null,null,null,null,null,null,null,null,null,null,null,null,null,null,null,null,null,3958.34,null,null,null,null,null,null,null,null,null,null,null,null,null,{"$f":"AA927*AH927","v":0},null,null,null,null,null,null,null,null,null,null,null,null,null,0]
["B_4_1_3",null,null,null,null,null,null,"Fructe, pomi şi arbuşti - nuci, alune",null,null,null,null,null,null,null,null,null,null,null,null,null,null,null,null,null,null,1754.4,null,null,null,null,null,null,null,null,null,null,null,null,null,{"$f":"AA928*AH928","v":0},null,null,null,null,null,null,null,null,null,null,null,null,null,0]
["B_4_4_1",null,null,null,null,null,null,"Vii - vin nobil",null,null,null,null,null,null,null,null,null,null,null,null,null,null,null,null,null,null,1981.83,null,null,null,null,null,null,null,null,null,null,null,null,null,0,null,null,null,null,null,null,null,null,null,null,null,null,null,0]
["B_4_4_2",null,null,null,null,null,null,"Vii - alte vinuri",null,null,null,null,null,null,null,null,null,null,null,null,null,null,null,null,null,null,1889.96,null,null,null,null,null,null,null,null,null,null,null,null,null,0,null,null,null,null,null,null,null,null,null,null,null,null,null,0]
["B_4_4_3",null,null,null,null,null,null,"Vii – struguri de masa",null,null,null,null,null,null,null,null,null,null,null,null,null,null,null,null,null,null,2170.52,null,null,null,null,null,null,null,null,null,null,null,null,null,0,null,null,null,null,null,null,null,null,null,null,null,null,null,0]
["B_4_5",null,null,null,null,null,null,"Pepiniere",null,null,null,null,null,null,null,null,null,null,null,null,null,null,null,null,null,null,5614.25,null,null,null,null,null,null,null,null,null,null,null,null,null,0,null,null,null,null,null,null,null,null,null,null,null,null,null,0]
["B_4_6",null,null,null,null,null,null,"Alte culturi permanente: răchita, papura, bambus, salcie, brazi de Crăciun ",null,null,null,null,null,null,null,null,null,null,null,null,null,null,null,null,null,null,487.35,null,null,null,null,null,null,null,null,null,null,null,null,null,0,null,null,null,null,null,null,null,null,null,null,null,null,null,0]
["B_6_1",null,null,null,null,null,null,"Ciupercării pe 100mp (Nr. recolte pe an - 4)\n",null,null,null,null,null,null,null,null,null,null,null,null,null,null,null,null,null,null,4456.78,null,null,null,null,null,null,null,null,null,null,null,null,null,{"$f":"AA934*AH934","v":0},null,null,null,null,null,null,null,null,null,null,null,null,null,{"$f":"AA934*AV934","v":0}]
[null,null,null,null,null,null,null,"TOTAL vegetal",null,null,null,null,null,null,null,null,null,null,null,null,null,null,null,null,null,null,null,null,null,null,null,null,null,{"$f":"SUM(AH889:AN934)","v":0},null,null,null,null,null,null,{"$f":"SUM(AO889:AU934)","v":0},null,null,null,null,null,null,{"$f":"SUM(AV889:BB934)","v":0},null,null,null,null,null,null,{"$f":"SUM(BC889:BI934)","v":0}]
[]
[]
[]
["Coduri EUROSTAT",null,null,null,null,null,null,"Denumire specii animale",null,null,null,null,null,null,null,null,null,null,null,null,null,null,null,null,null,null,"SO 2013 euro/cap",null,null,null,null,null,null,"Număr capete",null,null,null,null,null,null,"SO activitate existentă",null,null,null,null,null,null,"Total capete animale în urma realizării investiţiei",null,null,null,null,null,null,"SO în urma realizării investiţiei"]
[0,null,null,null,null,null,null,1,null,null,null,null,null,null,null,null,null,null,null,null,null,null,null,null,null,null,2,null,null,null,null,null,null,3,null,null,null,null,null,null,4,null,null,null,null,null,null,5,null,null,null,null,null,null,6]
["C_1",null,null,null,null,null,null,"Echide ",null,null,null,null,null,null,null,null,null,null,null,null,null,null,null,null,null,null,1404.31,null,null,null,null,null,null,null,null,null,null,null,null,null,{"$f":"AA941*AH941","v":0},null,null,null,null,null,null,null,null,null,null,null,null,null,{"$f":"AA941*AV941","v":0}]
["C_2_1",null,null,null,null,null,null,"Bovine sub 1 an - total",null,null,null,null,null,null,null,null,null,null,null,null,null,null,null,null,null,null,216.38,null,null,null,null,null,null,null,null,null,null,null,null,null,{"$f":"AA942*AH942","v":0},null,null,null,null,null,null,null,null,null,null,null,null,null,{"$f":"AA942*AV942","v":0}]
["C_2_2",null,null,null,null,null,null,"Bovine sub 2 ani - masculi",null,null,null,null,null,null,null,null,null,null,null,null,null,null,null,null,null,null,344.4,null,null,null,null,null,null,null,null,null,null,null,null,null,0,null,null,null,null,null,null,null,null,null,null,null,null,null,0]
["C_2_3",null,null,null,null,null,null,"Bovine sub 2 ani - femele",null,null,null,null,null,null,null,null,null,null,null,null,null,null,null,null,null,null,341.49,null,null,null,null,null,null,null,null,null,null,null,null,null,0,null,null,null,null,null,null,null,null,null,null,null,null,null,0]
["C_2_4",null,null,null,null,null,null,"Bovine de 2 ani şi peste - masculi",null,null,null,null,null,null,null,null,null,null,null,null,null,null,null,null,null,null,817.88,null,null,null,null,null,null,null,null,null,null,null,null,null,0,null,null,null,null,null,null,null,null,null,null,null,null,null,0]
["C_2_5",null,null,null,null,null,null,"Bovine de 2 ani si peste - femele (juninci pentru îngrăşat, juninci pentru reproducţie)",null,null,null,null,null,null,null,null,null,null,null,null,null,null,null,null,null,null,801.38,null,null,null,null,null,null,null,null,null,null,null,null,null,0,null,null,null,null,null,null,null,null,null,null,null,null,null,0]
["C_2_6",null,null,null,null,null,null,"Vaci, bivoliţe pentru lapte ",null,null,null,null,null,null,null,null,null,null,null,null,null,null,null,null,null,null,1200.46,null,null,null,null,null,null,null,null,null,null,null,null,null,0,null,null,null,null,null,null,null,null,null,null,null,null,null,0]
["C_2_99",null,null,null,null,null,null,"Bovine de 2 ani şi peste - alte vaci",null,null,null,null,null,null,null,null,null,null,null,null,null,null,null,null,null,null,515.85,null,null,null,null,null,null,null,null,null,null,null,null,null,0,null,null,null,null,null,null,null,null,null,null,null,null,null,0]
["C_3_1_1",null,null,null,null,null,null,"Oi - mioare montate - oi de un an sau mai mult destinate reproducerii, oile reformate care urmează să fete",null,null,null,null,null,null,null,null,null,null,null,null,null,null,null,null,null,null,54.91,null,null,null,null,null,null,null,null,null,null,null,null,null,0,null,null,null,null,null,null,null,null,null,null,null,null,null,0]
["C_3_1_99",null,null,null,null,null,null,"Oi - alte oi : miei, berbeci, oi reformate - oi sterpe care urmează a fi îngrăşate în vederea sacrificării",null,null,null,null,null,null,null,null,null,null,null,null,null,null,null,null,null,null,26.72,null,null,null,null,null,null,null,null,null,null,null,null,null,0,null,null,null,null,null,null,null,null,null,null,null,null,null,0]
["C_3_2_1",null,null,null,null,null,null,"Capre – capre montate - capre montate femele destinate reproducerii, capre re reformate care urmează să fete",null,null,null,null,null,null,null,null,null,null,null,null,null,null,null,null,null,null,112.98,null,null,null,null,null,null,null,null,null,null,null,null,null,0,null,null,null,null,null,null,null,null,null,null,null,null,null,0]
["C_3_2_99",null,null,null,null,null,null,"Capre – alte capre: iezi, ţapi, capre reformate destinate sacrificării",null,null,null,null,null,null,null,null,null,null,null,null,null,null,null,null,null,null,39.67,null,null,null,null,null,null,null,null,null,null,null,null,null,0,null,null,null,null,null,null,null,null,null,null,null,null,null,0]
["C_4_1_1",null,null,null,null,null,null,"Porcine - tineret porcin sub 20 kg",null,null,null,null,null,null,null,null,null,null,null,null,null,null,null,null,null,null,33.36,null,null,null,null,null,null,null,null,null,null,null,null,null,0,null,null,null,null,null,null,null,null,null,null,null,null,null,0]
["C_4_1_2",null,null,null,null,null,null,"Porcine - scroafe pentru reproducţie peste 50 kg",null,null,null,null,null,null,null,null,null,null,null,null,null,null,null,null,null,null,262.55,null,null,null,null,null,null,null,null,null,null,null,null,null,0,null,null,null,null,null,null,null,null,null,null,null,null,null,0]
["C_4_1_99",null,null,null,null,null,null,"Porcine - alte porcine: porci la îngrăşat, vieri, scroafe destinate sacrificării",null,null,null,null,null,null,null,null,null,null,null,null,null,null,null,null,null,null,388.08,null,null,null,null,null,null,null,null,null,null,null,null,null,0,null,null,null,null,null,null,null,null,null,null,null,null,null,0]
["C_5_1",null,null,null,null,null,null,"Pui pentru carne *",null,null,null,null,null,null,null,null,null,null,null,null,null,null,null,null,null,null,473.59,null,null,null,null,null,null,null,null,null,null,null,null,null,0,null,null,null,null,null,null,null,null,null,null,null,null,null,0]
["C_5_2",null,null,null,null,null,null,"Găini ouătoare *",null,null,null,null,null,null,null,null,null,null,null,null,null,null,null,null,null,null,2156,null,null,null,null,null,null,null,null,null,null,null,null,null,0,null,null,null,null,null,null,null,null,null,null,null,null,null,0]
["C_5_3_1",null,null,null,null,null,null,"Curcani şi curci *",null,null,null,null,null,null,null,null,null,null,null,null,null,null,null,null,null,null,4205.5600000000004,null,null,null,null,null,null,null,null,null,null,null,null,null,0,null,null,null,null,null,null,null,null,null,null,null,null,null,0]
["C_5_3_2",null,null,null,null,null,null,"Raţe *",null,null,null,null,null,null,null,null,null,null,null,null,null,null,null,null,null,null,2824.99,null,null,null,null,null,null,null,null,null,null,null,null,null,0,null,null,null,null,null,null,null,null,null,null,null,null,null,0]
["C_5_3_3",null,null,null,null,null,null,"Gâşte *",null,null,null,null,null,null,null,null,null,null,null,null,null,null,null,null,null,null,3602.66,null,null,null,null,null,null,null,null,null,null,null,null,null,0,null,null,null,null,null,null,null,null,null,null,null,null,null,0]
["C_5_3_4",null,null,null,null,null,null,"Struţi *",null,null,null,null,null,null,null,null,null,null,null,null,null,null,null,null,null,null,30083.5,null,null,null,null,null,null,null,null,null,null,null,null,null,0,null,null,null,null,null,null,null,null,null,null,null,null,null,0]
["C_5_3_99",null,null,null,null,null,null,"Alte păsări: bibilici, porumbei, potârnichi, fazani, prepeliţe *",null,null,null,null,null,null,null,null,null,null,null,null,null,null,null,null,null,null,900.34,null,null,null,null,null,null,null,null,null,null,null,null,null,0,null,null,null,null,null,null,null,null,null,null,null,null,null,0]
["C_6",null,null,null,null,null,null,"Iepuri (femele iepuri)",null,null,null,null,null,null,null,null,null,null,null,null,null,null,null,null,null,null,13.91,null,null,null,null,null,null,null,null,null,null,null,null,null,0,null,null,null,null,null,null,null,null,null,null,null,null,null,0]
["C_7",null,null,null,null,null,null,"Familii de albine",null,null,null,null,null,null,null,null,null,null,null,null,null,null,null,null,null,null,59.62,null,null,null,null,null,null,null,null,null,null,null,null,null,0,null,null,null,null,null,null,null,null,null,null,null,null,null,0]
[null,null,null,null,null,null,null,"TOTAL zootehnic",null,null,null,null,null,null,null,null,null,null,null,null,null,null,null,null,null,null,null,null,null,null,null,null,null,null,null,null,null,null,null,null,{"$f":"SUM(AO941:AU964)","v":0},null,null,null,null,null,null,null,null,null,null,null,null,null,{"$f":"SUM(BC941:BI964)","v":0}]
[null,null,null,null,null,null,null,"TOTAL GENERAL",null,null,null,null,null,null,null,null,null,null,null,null,null,null,null,null,null,null,null,null,null,null,null,null,null,null,null,null,null,null,null,null,{"$f":"AO935+AO965","v":0},null,null,null,null,null,null,null,null,null,null,null,null,null,{"$f":"BC935+BC965","v":0}]
[]
["* Valoarea SO se referă la 100 capete"]
["DEFINIŢIA ŞI PRINCIPIILE DE CALCULARE A PRODUCŢIILOR STANDARD\nExploataţia profesională este o exploataţie agricolă suficient de mare încât să ofere o activitate de bază pentru şeful exploataţiei şi un venit suficient pentru susţinerea lui şi a familiei sale.\n (a) Valoarea producţiei standard reprezintă valoarea monetară a producţiei agricole brute la preţul de la poarta exploataţiei. Această valoare este suma dintre valoarea produsului principal (produselor principale) şi cea a produsului secundar (produselor secundare). Valorile se calculează înmulţind producţia per unitate cu preţul de la poarta exploataţiei. TVA-ul, taxele pe produse şi plăţile directe nu sunt incluse.\n (b) Perioada de producţie Producţiile standard corespund unei perioade de producţie de 12 luni (an calendaristic sau an de producţie agricolă). Pentru produsele vegetale şi animale în cazul cărora perioada de producţie este mai mică de 12 luni sau depăşeşte această perioadă, se calculează o producţie standard corespunzătoare creşteriisau producţiei pe o perioadă de 12 luni.\n (c) Unităţi\n1. Producţiile standard  corespunzătoare caracteristicilor culturilor se determină pe baza suprafeţei exprimate în hectare.\nCu toate acestea, pentru ciuperci, producţiile standard se determină pe baza producţiei brute pentru toate recoltele anuale succesive şi se exprimă per 100 m2  de suprafaţă cultivată. În vederea utilizării lor în contextul RICA, aceste producţii standard pentru ciuperci se împart la numărul  de  recolte  anuale  succesive  care  este  comunicat  Comisiei\nEuropene.\n2. Producţiile standard corespunzătoare caracteristicilor efectivului de animale se determină pe cap de animal, cu excepţia păsărilor de curte, pentru care se exprimă per 100 de capete, şi a albinelor, pentru care se determină per stup.\n3. Datele de bază pentru determinarea producţiilor standard, precum şi producţiile standard calculate se stabilesc în euro. Pentru statele membre care nu au aderat la uniunea economică şi monetară, producţiile standard se convertesc în euro, utilizându-se cursurile de schimb medii pentru perioada de referinţă. Aceste cursuri de schimb medii se calculează pe baza cursurilor de schimb oficiale publicate de Comisie (Eurostat).\n\n(d) Defalcarea  producţiilor  standard\nÎn funcţie de caracteristicile culturii vegetale şi ale efectivului de animale producţiile standard se determină pentru toate caracteristicile agricole care sunt in exploataţia agricola.\nDimensiunea economică a unei exploataţii agricole reprezintă valoarea SO totala a exploataţiei,  exprimată în euro, corespunzătoare sumei SO calculată pentru fiecare  dintre  producţiile vegetale  ori animale obţinute în exploataţia respectivă într-o perioadă de un an calendaristic sau an agricol.\nÎn cadrul măsurilor de Finanţare din cadrul Programului Naţional de Dezvoltare Rurală este necesară determinarea dimensiunii economice a exploataţiilor agricole care accesează fondurile europene.\nAceste instrucţiuni sprijină experţii verificatori de la nivel central şi pe cei judeţeni în rezolvarea atribuţiilor ce le revin în procesul de verificare a dimensiunii economice, dimensiune rezultată în urma aplicării coeficienţilor standard output SO.\nAceştia se introduc ca atare şi se aplică la efectivul din teren la data aplicării cererii de Finanţare pentru măsurile de dezvoltare  rurală. Pentru cazul exploataţiilor de îngrăşare a animalelor in mai multe cicluri pe an, dimensiunea economică se calculează în baza unui număr mediu.\n\n\n1 .Culturi\nPentru toate tipurile de culturi(excepţie ciupercile) se aplică formula:\nSO 2013 = nr. ha cultura x coeficient cultura SO 2013\nIndiferent ce se obţine dintr-o cultură - făina, mălai , tărâţe, conserve, compot, dulceaţă, ţuică) - acestea sunt  produse  procesate  fiind considerate ca venituri din  alte activităţi  ale exploataţiei  agricole  şi care nu intră în calculul dimensionării economice. Excepţie face obţinerea vinului.\nPentru exploataţii care au mai multe culturi în cadrul unei categorii , cum ar fi \"Legume proaspete pepeni şi căpşuni - în câmp deschis \" sau - \"Fructe din zone cu climă temperată\", coeficientul SO corespunde mediei ponderate a SO - urilor producţiilor incluse în această categorie. Este la latitudinea  statelor  membre  să  decidă  care  producţie  trebuie  să  fie inclusă în calcul în funcţie de semnificaţia acesteia.\nÎn cazul în care poziţiile  sunt  subdivizate în  sub  poziţii  Statele Membre pot da un singur coeficient regional pentru o poziţie principală; în acest caz,coeficientul pentru poziţia principală se  utilizează  şi  pentru  sub poziţiile aferente  ex. \"Legume proaspete, pepeni şi căpşu ni - în  câmp, Flori, Fructe,  pomi  şi arbuşti  - climă temperată\" etc.\nTratamentul cazurilor speciale\nSe stabilesc regulile următoare pentru calcularea producţiilor standard pentru  anumite  tipuri  de caracteristici:\nPârloage (terenuri scoase temporar din circuitul agricol) fără subvenţii\nProducţia standard corespunzătoare pârloagelor fără niciun fel de subvenţii se ia în considerare la calcularea producţiei standard totale a exploataţiei numai în cazul în care există alte producţii standard pozitive pe exploataţie.\nPârloage pentru care s-au acordat subvenţii, fără uz economic, şi păşuni permanente care nu mai sunt utilizate în producţie şi care sunt eligibile pentru plata subvenţiilor\nAvând în vedere că producţia de pe terenurile în sistem de ajutor fără uz economic este limitată la plăţile directe, producţiile standard ale acestor terenuri se consideră egale cu zero.\nGrădinile familiale\nAvând în vedere că produsele grădinilor familiale sunt în mod obişnuit destinate consumului propriu al exploatantului şi nu comercializării, producţiile standard ale acestora se consideră egale cu zero.\nCultura ciupercilor\nPentru ciuperci cod B_6_ 1, producţiile standard se determină pe baza producţiei brute pentru toate recoltele anuale succesive şi se exprimă per 100 m2 de suprafaţă cultivată.\nSe va dimensiona astfel:\nSuprafaţa totală a culturilor succesive = suprafaţa de bază( care poate fi supraetajată) x numărul de recolte - cicluri - complete Pentru România s-au stabilit 4 cicluri de producţie.\nExemplu de calcul:\nPentru o suprafaţă  totală de 200 mp:\nSO 2013 = 2 x 4456, 78/4 cicluri = 2228, 39 euro \nSeminţe   şi  semininceri\nCulturile de graminee (grâu, orz, orzoaică, ovăz, porumb, alte cereale) - loturi semincere se vor încadra la categoria de baza a culturii. Ca urmare la categoria B_1_10 Seminţe şi semininceri vor fi incluse următoarele:\n- Seminţe de graminee altele decât cele de la categoriile B_ 1_1_1, B_1_1_2, B_1_1_3, B_1_1_4, B_1_1_5, B_1_1_6, B_1_1_7, B_1_1_99\n- Seminţe pentru horticultură\n- Seminţe şi răsaduri pentru teren arabil cu excepţia cerealelor, a boabelor de leguminoase uscate,  a cartofilor, a plantelor oleaginoase\nFuraje\nÎn cazul în care, pe exploataţie, nu există erbivore (ecvidee, bovine, ovine şi caprine), furajele (rădăcinoase furajere şi brasicacee, plante verzi, păşuni şi fâneţe) se consideră ca fiind destinate comercializării şi fac parte din producţia culturilor de câmp.\nÎn cazul în care, pe exploataţie, există erbivore, furajele se consideră a fi destinate hrănirii acestora şi fac parte din producţia corespunzătoare erbivorelor şi furajelor.\n2. Animale\nLa calcularea SO, procesarea produselor agricole nu trebuie luată în considerare chiar dacă această activitate este strâns legată de producţie (lapte în unt, smântână, brânză). Prin urmare, în cazul în care într-o regiune laptele este transformat în brânză, în calcularea SO pentru vacile de lapte numai valoarea laptelui va fi luată în considerare şi nu valoarea brânzei.\nPentru toate speciile de animale se aplică formula:\nSO 2013 = nr. capete specie x coeficient specie  SO 2013\nmai puţin cazul păsărilor de curte la care coeficientul calculat este la 100 capete.\nExploataţia de creştere a cabalinelor\nÎn concordanţă cu codurile utilizate pentru  coeficienţii  producţie standard (standard output, SO) se disting următoarele categorii de cabaline:\nC_1 Echide: caii (inclusiv caii de curse şi de călărie), măgarii, catârii, bardoii, etc.\n- Evaluarea cabalinelor s-a efectuat tinând cont de valoarea orelor de muncă pe care acestea le efectuează în exploataţie ca producţie principală şi de valoarea mânjilor fătaţi ca producţie secundară.\n- Cabalinele şi produsele acestora din anchetele RICA nu sunt destinate consumului uman ci deservesc munca în exploataţie.\nExemplu de calcul:\nExploataţia deţine:\n- 4 cai\n- 2 mânji\nDimensiunea economică  a exploataţiei va fi: \nSO 2013 = 4 x 2052 ,50 = 8210 euro\nExploataţia de creştere bovine\nÎn concordanţă  cu codurile utilizate pentru coeficienţii  producţie standard ( standard output, SO) se disting următoarele categorii de bovine:\nC_2_1. Bovine sub un an, masculi şi femele\nC_2_2. Bovine între unu şi doi ani, masculi\nC_2_3. Bovine între unu şi doi ani, femele. Cu excepţia bovinelor femele care au fătat deja.\nC_2_4. Bovine masculi de doi ani şi de peste doi ani"]
[]
[]
[]
[]
[]
[]
[]
["C_2_ 5. Juninci de reproducţie. Bovine femele de doi ani sau mai mult, care nu au fătat încă şi care sunt destinate reproducerii.\nC_2_5. Juninci pentru îngrăşat. Bovine femele de doi ani sau mai mult, care nu au fătat încă şi care nu sunt destinate reproducerii.\nC_2_6. Vaci de lapte. Bovine femele care au fătat (inclusiv cele de sub doi ani), care sunt ţinute exclusiv sau în principal pentru producţia de lapte destinat consumului uman sau obţinerii de produse lactate.  Sunt incluse vacile de lapte reformate.\nC_2_6. Bivoliţe. Bivoliţele care au fătat (inclusiv cele de sub doi ani) care sunt ţinute exclusiv sau în principal pentru producţia de lapte destinat consumului uman sau obţinerii de produse lactate. Sunt incluse bivolitele reformate.\nC_2_99 . Alte vaci:\n1. Bovine femele care au fătat (inclusiv cele de sub doi ani), care sunt ţinute exclusiv sau în principal pentru producţia de viţei şi al căror lapte nu este utilizat pentru consumul uman sau obţinerea de produse lactate.\n2. Vaci pentru muncă.\n3.  Vaci reformate care nu sunt de lapte (îngrăşate sau nu  înaintea sacrificării)\nCategoriile C_2_1:C_2_5 şi C_2_99 includ şi categoriile corespunzătoare de  bivoli şi  bivoliţe.\nPentru  categoria C_2_1 Bovine  sub  un an  se  întâlnesc următoarele situaţii:\n- dacă în exploataţie se găsesc vaci de lapte cod C_2_6 atunci calculul dimensiunii economice se face prin însumarea producţiilor standard pentru vaci de lapte şi a producţiilor standard pentru viţeii sub 1 an al căror număr depăşeşte numărul vacilor de lapte;\n- dacă în exploataţie nu se găsesc vaci de lapte atunci se iau în considerare producţiile standard corespunzătoare viţeilor sub 1 an pentru numărul care există în acel moment în exploataţie.\n- dacă în exploataţie sunt bovine femele care au fătat codul C_2_99, ţinute exclusiv sau în principal pentru producţia de viţei şi al căror lapte nu este utilizat pentru consumul uman sau obţinerea de produse lactate, calculul dimensiunii economice se face prin însumarea producţiilor standard pentru bovine femele care au fătat codul C_2_99 şi a producţiilor standard pentru viţeii sub 1 an al căror număr depăşeşte numărul bovinelor femele care au fătat cod C_2_99.\nExemple de calcul:\n1) Exploataţia deţine următoarele categorii de bovine:\n-10 vaci de lapte care au fătat 12 viţei,\n-2 tauri mai mari de doi ani,\n-3 vitele mai mari de 2 ani destinate sacrificării,\n-3 bovine femele care au fătat 3 viţei, bovine ţinute exclusiv pentru producţia de viţei\nDimensiunea economică a exploataţiei va fi:\nSO 2013 =  10 x  1200,46 + 2 x  216,38 + 2 x  817,88 + 3 x  801,38 + 3 x  515,85 = 18024,81 Euro\n2) Exploataţia deţine următoarele categoriide bovine:\n- 25 viţei bovine sub un an achiziţionaţi\n- 7 bovine femele care au fătat 9 viţei, bovine ţinute exclusiv pentru producţia de viţei\nDimensiunea economică a exploataţiei va fi:\nSO 2013 = 25 x 216,38 + 7 x 515,85 +2 x 216,38 = 9453 ,21 Euro\nExploataţia de creştere ovine şi caprine\nÎn concordanţă cu codurile utilizate pentru  coeficienţii  producţie standard ( standard output, SO) se disting următoarele categoriide ovine şi caprine:\nC_3_1_1. Oi, femele de reproducţie. Oi de un an sau mai mult destinate reproducţiei.\nC_ 3_ 1_99. Alte ovine. Ovine de toate vârstele, cu excepţia oilor.\nC_3_2_1. Caprine, femele de reproducţie\nC_3_2_99 . Alte caprine. Caprine, altele decât femelele de reproducţie.\nProducţiile standard corespunzătoare altor ovine - miei se iau în considerare la calcularea producţiei standard totale a exploataţiei numai în cazul în care în exploataţie nu există nicio femelă ovină de reproducţie.\nProducţiile standard corespunzătoare altor caprine - Iezi se iau în considerare la calcularea producţiei standard totale a exploataţiei numai în cazul în care în exploataţie nu există nicio femelă caprină de reproducţie.\nAcest lucru se datorează faptului că mieii/iezii sunt consideraţi producţia principală a oilor/caprelor, valoarea acestora fiind inclusă în coeficientul standard output al oilor, respectiv caprelor.\nExemplu de calcul:\nExploataţia  deţine următoarele categorii de ovine şi caprine:\n- 250 oi,\n- 270 miei ,\n- 10 berbeci ,\n- 12 oi sterpe,\n- 25 iezi\nSO 2013 = 250 x 54,91 +   10 x 26,72 +12 x 26,72 + 25 x 39,67 = 15307,09 Euro\nExploataţia de creştere porcine :\nÎn concordanţă cu codurile utilizate pentru coeficienţii producţie standard ( standard output, SO) se disting următoarele categorii de porcine:\nC_4_ 1. Purcei cu greutatea în viu sub 20 kg Purcei cu greutatea în viu sub 20 kg.\nC_4_2. Scroafe de reproducţie de 50 kg şi peste această greutate Scroafe de reproducţie de 50 de kilograme sau mai mult, cu excepţia scroafelor reformate (a se vedea categoria C_4_99,  „Alte porcine\").\nC_4_99. Porci pentru îngrăşat Porci pentru îngrăşat cu greutatea în viu de 20 kg sau mai mult, cu excepţia scroafelor reformate şi a vierilor reformaţi (a se vedea categoria C_4_99,  „Alte porcine\").\nC_4_99. Alte porcine Porci cu greutatea în viu de 20 kg sau mai mult, cu excepţia scroafelor de reproducţie (a se vedea categoria C_4_2) şi a porcilor pentru îngrăşat (a se vedea categoria C_4_99 ).\nProducţiile standard corespunzătoare purceilor se iau în considerare la calcularea producţiei standard totale a exploataţiei numai în cazul în care în exploataţie nu există nicio scroafă de reproducţie.\nAcest lucru se datorează faptului că purceii sub 20 kg sunt consideraţi producţia principală a scroafelor de reproducţie, valoarea acestora fiind inclusă în coeficientul standard output al scroafelor.\nExemplu de calcul: \nExploataţia deţine:\n-12 scroafe,\n-40 purceisub 20 kg,\n-35 porci pentru îngrăşat,\n-2 vieri\nSO 2013 = 12 x 262,55 + 35 x 388,08 + 2 x 388,08 = 17509,56 Euro\n\nln cazul în care exploataţia îşi desfăşoară activitatea pe mai multe cicluri de producţie (îngrăşare), calculul dimensiunii se va face astfel:\n-      SO 2013 total = număr mediu porci îngrăşat x SO 2013 porci îngrăşat unde numărul mediu este exprimat ca număr cu o zecimală şi se calculează proporţional cu durata prezenţei porcilor de îngrăşat în exploataţie în  timpul anului;\n-      Numărul mediu = nr. total porci îngrăşat x numărul de zile (sau luni) prezenţi în exploataţie/365zile (sau 12 luni)\nExemplu de calcul: exploataţia îngraşă porci în trei cicluri prin achiziţionarea unui nr. total de 1800 porci de îngrăşat:\nNumărul mediu = 1800 x 112 zile prezenţi în exploataţie/ 365 zile an= 552,3 porci îngrăşat\nVa rezulta dimensiunea exploataţiei ca fiind:\nSO 2013 TOTAL = 552,3 x 388,08 = 214336,58 euro.\nExploataţia de creştere păsări de curte\nÎn concordanţă cu codurile utilizate pentru  coeficienţii  producţie standard ( standard output, SO) se disting următoarele categorii de păsări de curte:\nC_5_ 1 pui pentru carne\nC_5_2 găini ouătoare: puicuţele (găini tinere care nu au început să ouă), găinile ouătoare, găinile reformate şi cocoşii de reproducţie pentru găini ouătoare.\nC_5_3_ 1 Curcani şi curci \nC_5_3_2 Raţe\nC_5_3_3 Gâşte \nC_5_3_4 Struţi\nC_5_3_99 Alte păsări: bibilici, porumbei, potârnichi, fazani , prepeliţe\nNu se includ puişorii de o zi în nicio categorie de păsări.\n\nPuişorii de o zi, care nu reprezintă o categorie, ca atare, dar sunt incluşi în categoria reziduală \"Alte animale\", sunt principalul produs al găinilor de reproducţie. Pentru acest lucru nu se calculează coeficient SO aferent acestei categorii.\nExploataţiile cu incubatoare pentru obţinerea puişorilor de o zi ar trebui să-şi dimensioneze unitatea prin alte metode decât cea a utilizării coeficienţilor SO, eventual cu producţia de puişori(valoare sau număr) previzionată.\n-  Exploataţiile care îşi desfăşoară activitatea pe mai multe cicluri de producţie de pui de carne într-un an contabil se vor dimensiona la depunerea cererii de finanţare cu efectivul mediu de păsări (a tuturor ciclurilor) conform următoareiformule:\nSO  2013  total  = număr  mediu pui de carne x  SO  2013  pui carne/100 unde numărul mediu este exprimat în cazul păsărilor ca număr întreg şi se calculează proporţional cu durata prezenţei lor în exploataţie în  timpul  anului\nExemplu de calcul\nExploataţia achiziţionează 1000000 pui de carne în timpul unui an în mai multe  cicluri:\n-   Numărul mediu = nr. total păsări x  numărul de  luni  prezente în exploataţie/12 luni = 1000000 x 2/12 = 166667 pui de carne\n-   Coeficientul standard  output  SO aferent  categoriei C_5_1 Pui de carne = 473,59 euro/100 capete\n-    Va rezulta dimensiunea exploataţiei ca fiind:\nSO 2013 TOTAL = 166667 x 473,59 /100 = 789318,25 euro.\n\nRegulamentele care stau la baza calculului SO sunt următoarele:\n-       Regulamentul (CE) nr. 1217/ 2009 al Consiliului privind crearea unei reţele de colectare de informaţii contabile privind veniturile  şi activitatea economică a exploataţiilor agricole în Uniunea Europeană;\n-       Documentul Comitetului Comunitar RICA RI/ CC 1680 v.4 Martie 2015 privind Definiţiile chestionarului utilizat în  anchetă;\n-       Regulamentul de punere în aplicare (UE) 220/ 3 februarie 2015 al Comisiei de stabilire a normelor de aplicare a Regulamentului (CE) nr. 1217/ 2009  al  Consiliului privind  crearea  unei reţele  de  colectare  de informaţii contabile privind veniturile şi activitatea economică a exploataţiilor agricole în Uniunea Europeană;\n-      Documentul Comitetului Comunitar RICA Rl/CC 1500 v.4 Iunie 2016 Manual de tipologie.\n\n\n\n\n\n\n\n\n\n\n"]
[]
[]
["F. DECLARAŢIE PE PROPRIA RĂSPUNDERE A SOLICITANTULUI"]
["Prin această declaraţie solicitantul"]
[]
["care solicită asistență financiară nerambursabilă prin programul FEADR pentru proiectul intitulat"]
[]
["prin reprezentant legal"]
[]
["cunoscând prevederile legii penale cu privire la falsul în declarații:"]
[null,null,null,"1. Declar că proiectul propus asistenței financiare nerambursabile FEADR nu beneficiază de altă finanțare din programe de finanțare nerambursabilă. De asemenea mă angajez ca în cazul în care proiectul va fi selectat pentru finanțare FEADR, nu voi depune acest proiect la nici un alt program de finanțare nerambursabilă la care proiectul poate fi în întregime sau parțial eligibil pentru asistență."]
[]
[null,null,null,"2. Declar că îndeplinesc condițiile de eligibilitate prevăzute în fișa sub-măsurii și Ghidul Solicitantului și mă angajez să le respect pe perioada de valabilitate a contractului de finanțare și monitorizare a investiției, inclusiv criteriile de selecție pentru care proiectul a fost punctat."]
[null,null,null,"3. Declar că toate informațiile din prezenta cerere de finanțare și din documentele anexate sunt corecte și mă angajez să respect condițiile cerute în reglementările referitoare la prezentul program și pe cele legate de proiectul anexat și să furnizez periodic, la cerere, documentele justificative necesare."]
[null,null,null,"4. Declar pe propria răspundere că orice modificări aduse dreptului de proprietate sau de folosinţă vor fi notificate AFIR în termen de trei zile de la data încheierii lor. De asemenea, mă angajez, ca pe perioada de valabilitate a contractului de finanţare şi monitorizare a investiţiei să nu diminuez suprafaţa şi/sau infrastructura cuprinsă în proiect."]
[null,null,null,"5. Declar că eu și organizația mea (UAT sau ONG) nu ne aflăm într-unul din următoarele cazuri:"]
[null,null,null,"Acuzat din cauza unei greșeli privind conduita profesională având ca soluție finală res judicata (împotriva căreia nici un apel nu este posibil)"]
[null,null,null,"Vinovat de grave deficiențe de conduită profesională dovedite prin orice mijloace pe care Agenția le poate justifica."]
[null,null,null,"Vinovat de faptul că nu am prezentat informaţiile cerute de Autoritatea Contractantă ca o condiţie de participare la licitaţie sau contractare"]
[null,null,null,"Încălcarea prevederilor contractuale prin care nu mi-am îndeplinit obligațiile contractuale în legătură cu un alt contract cu Agenția sau alte contracte finanțate din fonduri comunitare."]
[null,null,null,"Încercarea de a obține informații confidențiale sau de influențare a Agenției în timpul procesului de evaluare a proiectului și nu voi face presiuni la adresa evaluatorului."]
["6.",null,null,null,null,"Declar că organizaţia pe care o reprezint ARE datorii către institutii de credit şi/sau instituţii financiare bancare / nebancare pentru care prezint graficul de rambursare"]
[null,null,null,null,null,"Declar că organizaţia pe care o reprezint NU are datorii către instituţii de credit şi/sau instituţii financiare bancare / nebancare"]
["7.",null,null,null,null,"Declar pe propria răspundere că în cazul în care nu respect oricare din punctele prevazute în această declaraţie proiectul să devină neeligibil în baza criteriului \"Eligibilitatea solicitantului\" sau contractul să fie reziliat"]
["8.",null,null,null,null,"Declar pe propria răspundere că:"]
[null,null,null,null,null,"Nu sunt înregistrat în scopuri TVA și că mă angajez să notific Agenției orice modificare a situatiei privind înregistrarea ca plătitor de TVA, în maximum 10 (zece) zile de la data înregistrării în scopuri TVA."]
[null,null,null,null,null,"Sunt înregistrat în scopuri de TVA (certificat de înregistrare fiscală în scopuri de TVA)."]
["9.",null,null,null,null,"Declar pe propria răspundere că nu am înscrisuri care privesc sancțiuni economico-financiare în cazierul judiciar pe care mă oblig să îl depun la încheierea contractului de finanţare . Prin prezenta îmi exprim consimțământul ca AFIR să solicite instituțiilor abilitate conform legii, extrasul de pe cazierul judiciar privind situația mea.\n(Până la reglementarea posibilităţii aplicării de către experţii evaluatori AFIR a normelor metodologice aferente Legii nr. 290/2004 privind cazierul judiciar, cu modificările şi completările ulterioare, solicitantul are obligaţia depunerii documentului justificativ mai sus enunţat.)"]
["10.",null,null,null,null,"Declar pe propria raspundere că nu am fapte înscrise în cazierul fiscal."]
["11.",null,null,null,null,"Declar pe propria răspundere că toate cheltuielile neeligibile vor fi suportate de solicitant şi că acestea vor fi realizate până la finalizarea proiectului."]
["12.",null,null,null,null,"Declar pe propria răspundere că dosarul cererii de finanţare în original, va fi identic cu dosarul cererii de finanţare depus online. În caz contrar, proiectul nu va fi contractat."]
["13.",null,null,null,null,"Declar că mă angajez să îndeplinesc - Cerinţele minime obligatorii de respectare a bunelor practici agricole privind gestionarea gunoiului de grajd."]
["14.",null,null,null,null,"Mă angajez ca în termenul prevăzut în „Notificărea beneficiarului privind selectarea cererii de finanţare şi semnarea contractului de finanţare”, să prezint documentul privind cofinanţarea proiectului şi Angajamentul responsabilului legal al proiectului că nu va utiliza în alte scopuri 50% din cofinanțarea privată, în cazul prezentării cofinanţării prin extras de cont."]
["15.",null,null,null,null,"Mă angajez ca în maxim 4 luni de la data primirii \"Notificării beneficiarului privind selectarea cererii de finantare și semnarea contractului de finanțare\" să prezint documentul ANPM pentru proiect. Prin excepţie de la acest termen, în cazul în care proiectul se supune procedurilor de evaluare a impactului asupra mediului şi de evaluare adecvată sau doar de evaluare adecvată, mă angajez să prezint Acordul de mediu/Avizul Natura 2000 în termen de maximum 7 luni de la primirea Notificării solicitantului privind selectarea cererii de finanţare şi semnarea contractului de finanţare."]
["16.",null,null,null,null,"Mă angajez ca pe durata de execuție a contractului să-mi menţin cel puţin încadrarea în dimensiunea SO a exploataţiei agricole, fără a reduce dimensiunea economică a exploatației agricole, prevazută la depunerea cererii de finanțare, cu mai mult de 15% și fără a scădea, în nicio situație, sub pragul minim de 4.000 SO stabilit prin condițiile de eligibilitate."]
["17.",null,null,null,null,"Sunt de acord ca AFIR sa publice pe site, să consulte și să prelucreze, prin operațiunile prevăzute de legislația în vigoare în vederea desfășurării activității specifice, datele mele cu caracter personal, furnizate AFIR, cu respectarea legislaţiei europene şi naţionale privind transparenţa, publicarea datelor cu caracter personal şi prelucrarea acestora."]
[]
[null,"Semnătura reprezentant legal şi ştampila (după caz)",null,null,null,null,null,null,null,null,null,null,null,null,null,null,null,null,null,null,null,null,null,null,null,null,null,null,null,null,null,null,null,null,null,null,null,null,null,null,null," Data:"]
[]
[]
[]
["Anexa INDICATORI DE MONITORIZARE"]
["Măsura 2/2A - Investiţii în exploatații agricole și procesare"]
["1. Contribuţie la Prioritatea 6"]
["2. Număr de exploatații agricole/ beneficiari sprijiniți:"]
["3. Locuri de muncă create:"]
["Indic. nr. 2 - se va completa numărul de exploatatii agricole/beneficiari sprijiniti                                                                                                               Indic. nr. 3 - se va completa numărul de locuri de muncă create"]
[]
["Factori de risc"]
["I1. Valoarea sprijinului public nerambursabil (EURO)",null,null,null,null,null,null,null,null,null,null,null,null,null,null,null,null,null,null,null,null,null,null,null,null,null,null,null,null,null,null,null,null,null,null,null,null,null,null,null,null,null,null,null,null,null,null,null,null,null,"Punctaj obţinut"]
["• proiecte cu valoarea sprijinului nerambursabil < 100 000 euro",null,null,null,null,null,null,null,null,null,null,null,null,null,null,null,null,null,null,null,null,null,null,null,null,null,null,null,null,null,null,null,null,null,null,null,null,null,null,null,null,null,null,null,null,null,null,null,null,null,2]
["• proiecte cu valoarea sprijinului nerambursabil între 100.000 – 500.000 euro",null,null,null,null,null,null,null,null,null,null,null,null,null,null,null,null,null,null,null,null,null,null,null,null,null,null,null,null,null,null,null,null,null,null,null,null,null,null,null,null,null,null,null,null,null,null,null,null,null,3]
["• proiecte cu valoarea sprijinului nerambursabil între 500.001 – 1.000.000 euro",null,null,null,null,null,null,null,null,null,null,null,null,null,null,null,null,null,null,null,null,null,null,null,null,null,null,null,null,null,null,null,null,null,null,null,null,null,null,null,null,null,null,null,null,null,null,null,null,null,4]
["• proiecte cu valoarea sprijinului nerambursabil între 1.000.001 – 2.000.000 euro",null,null,null,null,null,null,null,null,null,null,null,null,null,null,null,null,null,null,null,null,null,null,null,null,null,null,null,null,null,null,null,null,null,null,null,null,null,null,null,null,null,null,null,null,null,null,null,null,null,5]
[]
["I2. Complexitatea investiţiei"]
["Beneficiari Privaţi/Publici",null,null,null,null,null,null,null,null,null,null,null,null,null,null,null,null,null,null,null,null,null,null,null,null,null,null,null,null,null,null,null,null,null,null,null,null,null,null,null,null,null,null,null,null,null,null,null,null,null,"Punctaj obţinut"]
["• Investiţie nouă",null,null,null,null,null,null,null,null,null,null,null,null,null,null,null,null,null,null,null,null,null,null,null,null,null,null,null,null,null,null,null,null,null,null,null,null,null,null,null,null,null,null,null,null,null,null,null,null,null,5]
["• Modernizări cu C şi/sau M",null,null,null,null,null,null,null,null,null,null,null,null,null,null,null,null,null,null,null,null,null,null,null,null,null,null,null,null,null,null,null,null,null,null,null,null,null,null,null,null,null,null,null,null,null,null,null,null,null,4]
["• Modernizări prin achiziţie simplă(utilaje)",null,null,null,null,null,null,null,null,null,null,null,null,null,null,null,null,null,null,null,null,null,null,null,null,null,null,null,null,null,null,null,null,null,null,null,null,null,null,null,null,null,null,null,null,null,null,null,null,null,3]
[]
["I3. Intensitatea sprijinului (procent contribuţie publică)",null,null,null,null,null,null,null,null,null,null,null,null,null,null,null,null,null,null,null,null,null,null,null,null,null,null,null,null,null,null,null,null,null,null,null,null,null,null,null,null,null,null,null,null,null,null,null,null,null,"Punctaj obţinut"]
["70% -90%",null,null,null,null,null,null,null,null,null,null,null,null,null,null,null,null,null,null,null,null,null,null,null,null,null,null,null,null,null,null,null,null,null,null,null,null,null,null,null,null,null,null,null,null,null,null,null,null,null,5]
["50%-69%",null,null,null,null,null,null,null,null,null,null,null,null,null,null,null,null,null,null,null,null,null,null,null,null,null,null,null,null,null,null,null,null,null,null,null,null,null,null,null,null,null,null,null,null,null,null,null,null,null,4]
["<50%",null,null,null,null,null,null,null,null,null,null,null,null,null,null,null,null,null,null,null,null,null,null,null,null,null,null,null,null,null,null,null,null,null,null,null,null,null,null,null,null,null,null,null,null,null,null,null,null,null,1]
[]
["I4. Riscul proiectului d.p.d.v. al % raportului între cheltuielile suportate de solicitant şi Valoarea ajutorului nerambursabil.\nCheltuielile suportate de solicitant = Total valoare proiect (fără TVA) – Valoarea\najutorului nerambursabil solicitat.\n\n        Total valoare proiect(fără TVA)-Valoarea ajutorului nerambursabil solicitat\n% = --------------------------------------------------------------------------------------- x 100\n                                Valoarea ajutorului nerambursabil solicitat",null,null,null,null,null,null,null,null,null,null,null,null,null,null,null,null,null,null,null,null,null,null,null,null,null,null,null,null,null,null,null,null,null,null,null,null,null,null,null,null,null,null,null,null,null,null,null,null,null,"Punctaj obţinut"]
["• > 200%",null,null,null,null,null,null,null,null,null,null,null,null,null,null,null,null,null,null,null,null,null,null,null,null,null,null,null,null,null,null,null,null,null,null,null,null,null,null,null,null,null,null,null,null,null,null,null,null,null,5]
["• Între 176 şi 200%",null,null,null,null,null,null,null,null,null,null,null,null,null,null,null,null,null,null,null,null,null,null,null,null,null,null,null,null,null,null,null,null,null,null,null,null,null,null,null,null,null,null,null,null,null,null,null,null,null,4]
["• Între 151 şi 175%",null,null,null,null,null,null,null,null,null,null,null,null,null,null,null,null,null,null,null,null,null,null,null,null,null,null,null,null,null,null,null,null,null,null,null,null,null,null,null,null,null,null,null,null,null,null,null,null,null,3]
["• Între 121 şi 150%",null,null,null,null,null,null,null,null,null,null,null,null,null,null,null,null,null,null,null,null,null,null,null,null,null,null,null,null,null,null,null,null,null,null,null,null,null,null,null,null,null,null,null,null,null,null,null,null,null,2]
["• < 121%",null,null,null,null,null,null,null,null,null,null,null,null,null,null,null,null,null,null,null,null,null,null,null,null,null,null,null,null,null,null,null,null,null,null,null,null,null,null,null,null,null,null,null,null,null,null,null,null,null,1]
[]
["I5. Capacitatea societăţii de a manageria proiectul, experienţă în derularea afacerilor",null,null,null,null,null,null,null,null,null,null,null,null,null,null,null,null,null,null,null,null,null,null,null,null,null,null,null,null,null,null,null,null,null,null,null,null,null,null,null,null,null,null,null,null,null,null,null,null,null,"Punctaj obţinut"]
["• Firmă nouă sau fără activitate",null,null,null,null,null,null,null,null,null,null,null,null,null,null,null,null,null,null,null,null,null,null,null,null,null,null,null,null,null,null,null,null,null,null,null,null,null,null,null,null,null,null,null,null,null,null,null,null,null,5]
["• Firmă cu experienţă dar care nu a participat la alt proiect comunitar sau nu a obţinut asistenţă financiară nerambursabilă din partea altui instrument financiar",null,null,null,null,null,null,null,null,null,null,null,null,null,null,null,null,null,null,null,null,null,null,null,null,null,null,null,null,null,null,null,null,null,null,null,null,null,null,null,null,null,null,null,null,null,null,null,null,null,4]
["• Firmă cu experienţă care a finalizat un proiect comunitar sau a obţinut din asistenţă financiară nerambursabilă din partea altui instrument financiar",null,null,null,null,null,null,null,null,null,null,null,null,null,null,null,null,null,null,null,null,null,null,null,null,null,null,null,null,null,null,null,null,null,null,null,null,null,null,null,null,null,null,null,null,null,null,null,null,null,3]
["TOTAL"]
[]
[null,null,"Codul unic de înregistrare APIA"]
[null,null,"În cazul în care nu aveți un cod unic de înregistrare APIA, completați acest formular."]
["FORMULAR"]
["de înscriere în Registrul unic de identificare pentru solicitanţii de finanţare prin măsurile"]
["Programului naţional de dezvoltare rurală 2014 - 2020"]
[]
["Denumire solicitant:"]
[]
["Categorie Solicitant:"]
[]
["Sediul / Adresa"]
[]
["Ţara",null,null,null,null,"România",null,null,null,null,null,null,null,null,"Judeţul",null,null,null,null,null,null,null,null,null,null,null,null,null,null,null,null,null,null,"oraşul"]
[]
["comuna",null,null,null,null,null,null,null,null,null,null,null,null,null,null,null,null,null,null,null,null,"satul",null,null,null,null,null,null,null,null,null,null,null,null,null,null,null,null,null,"strada"]
[]
["nr.",null,null,null,null,null,null,null,"bl.",null,null,null,null,null,"et.",null,null,null,null,"ap.",null,null,null,null,null,"sectorul",null,null,null,null,null,null,null,null,null,null,null,null,"codul poştal"]
[]
["Număr de telefon",null,null,null,null,null,null,null,null,null,null,null,null,null,null,null,null,null,null,null,null,null,null,"Fax",null,null,null,null,null,null,null,null,null,null,null,null,null,null,"E-mail"]
[]
["Număr de înregistrare în registrul comerțului/Registrul asociațiilor și fundațiilor"]
[]
["CUI / CIF"]
[]
["Cod CAEN pentru activitatea principală"]
[]
["Cod CAEN pentru activitatea secundară pentru care se solicită înregistrarea în Registrul unic de identificare"]
[]
["Cod IBAN"]
[]
["deschis la Banca"]
[]
["Sucursala / Agenție"]
[]
["Prin reprezentant legal, doamna/domnul"]
[]
["cu CNP",null,null,null,null,null,null,null,null,null,null,null,null,null,null,"solicit înscrierea în Registrul unic de îdentificare - Agenţia de Plăţi şi Intervenţie pentru Agricultură."]
[]
["Am luat la cunoştinţă că orice modificare a informaţiilor de mai sus trebuie furnizată către APIA în termen de maximum 10 zile lucrătoare de la producerea acestora.\nDeclar pe propria răspundere că cele de mai sus sunt conforme cu realitatea.\nSunt de acord ca datele din cerere să fie introduse în baza de date a Sistemului Integrat de Administrare şi Control, procesate şi verificate în vederea înscrierii în Registrul unic de identificare şi transmise autorităţilor responsabile în vederea elaborării de studii statistice şi de evaluări economice, în condiţiile Legii nr. 677-2001 pentru protecţia persoanelor cu privire la prelucrarea datelor cu caracter personal şi libera circulaţie a acestor date, cu modificarile şi completările ulterioare."]
[]
["Reprezentant legal",null,null,null,null,null,null,null,null,null,null,null,null,null,null,null,null,null,null,null,null,null,null,null,null,null,null,null,null,null,null,null,null,null,null,null,null,null,null,null,null,null,null,"Data:"]
[]
["Numele şi prenumele"]
[]
["Semnătura "]

{"sheet":"Cerere de Finantare","index":1,"n_rows":905,"n_cols":58,"rows_kept":905,"cut":false,"hidden":false,"merged":[[669,42,669,49],[670,42,670,49],[671,42,671,49],[672,42,672,49],[673,42,673,49],[674,42,674,49],[675,42,675,49],[676,42,676,49],[677,42,677,49],[894,21,894,59],[116,1,116,23],[391,51,391,60],[392,0,392,3],[392,4,392,41],[392,42,392,50],[392,51,392,60],[389,0,389,3],[389,4,389,41],[389,42,389,50],[323,0,323,34],[323,35,323,43],[323,44,323,51],[323,52,323,60],[297,44,297,51],[297,52,297,60],[312,0,312,34],[312,35,312,43],[312,44,312,51],[312,52,312,60],[313,0,313,34],[313,35,313,43],[313,44,313,51],[313,52,313,60],[310,0,310,34],[310,35,310,43],[310,44,310,51],[310,52,310,60],[311,0,311,34],[311,35,311,43],[320,0,320,34],[320,35,320,43],[320,44,320,51],[309,52,309,60],[306,0,306,34],[306,35,306,43],[306,44,306,51],[306,52,306,60],[307,0,307,34],[307,35,307,43],[307,44,307,51],[311,44,311,51],[311,52,311,60],[308,0,308,34],[308,35,308,43],[308,44,308,51],[308,52,308,60],[309,0,309,34],[309,35,309,43],[309,44,309,51],[314,0,314,34],[314,35,314,43],[314,44,314,51],[314,52,314,60],[315,0,315,34],[283,0,283,34],[283,35,283,43],[283,44,283,51],[283,52,283,60],[285,44,285,51],[285,52,285,60],[286,0,286,34],[286,35,286,43],[286,44,286,51],[292,0,292,34],[292,35,292,43],[292,44,292,51],[292,52,292,60],[303,35,303,43],[303,44,303,51],[303,52,303,60],[300,0,300,34],[300,35,300,43],[300,44,300,51],[300,52,300,60],[301,0,301,34],[301,35,301,43],[301,44,301,51],[301,52,301,60],[298,0,298,24],[298,35,298,60],[299,0,299,34],[299,35,299,43],[299,44,299,51],[299,52,299,60],[295,0,295,34],[295,35,295,43],[304,52,304,60],[305,0,305,34],[305,35,305,43],[305,44,305,51],[305,52,305,60],[302,0,302,34],[302,35,302,43],[302,44,302,51],[302,52,302,60],[303,0,303,34],[287,0,287,34],[287,35,287,43],[287,44,287,51],[287,52,287,60],[288,0,288,34],[288,35,288,43],[288,44,288,51],[295,44,295,51],[286,52,286,60],[290,35,290,43],[290,44,290,51],[290,52,290,60],[291,0,291,34],[291,35,291,43],[291,44,291,51],[291,52,291,60],[288,52,288,60],[289,0,289,34],[289,35,289,43],[289,44,289,51],[289,52,289,60],[290,0,290,34],[902,0,902,12],[902,13,902,22],[902,23,902,34],[884,20,884,30],[878,0,878,10],[878,11,878,21],[878,23,878,25],[878,26,878,36],[878,38,878,42],[878,43,878,59],[876,19,876,20],[876,21,876,23],[876,25,876,28],[876,30,876,36],[876,38,876,45],[876,47,876,56],[876,0,876,2],[876,3,876,6],[904,0,904,7],[271,0,271,34],[271,35,271,43],[276,0,276,34],[276,35,276,43],[277,0,277,34],[277,35,277,43],[896,0,896,3],[896,4,896,14],[896,15,896,59],[898,0,898,60],[900,0,900,10],[900,12,900,27],[900,43,900,46],[900,47,900,56],[886,0,886,51],[886,52,886,59],[888,0,888,5],[888,6,888,59],[890,12,890,59],[892,12,892,59],[880,0,880,38],[880,40,880,59],[284,0,284,34],[284,35,284,43],[284,44,284,51],[284,52,284,60],[285,0,285,34],[285,35,285,43],[882,0,882,5],[882,6,882,30],[884,0,884,19],[876,8,876,9],[876,10,876,12],[876,14,876,15],[876,16,876,17],[872,38,872,57],[874,0,874,4],[874,5,874,18],[874,21,874,23],[874,25,874,37],[874,39,874,42],[874,44,874,59],[870,0,870,14],[872,0,872,4],[872,5,872,12],[872,14,872,17],[872,18,872,31],[872,33,872,37],[865,0,865,60],[866,0,866,14],[866,15,866,59],[867,0,867,14],[868,0,868,14],[868,15,868,59],[859,0,859,49],[859,50,859,60],[862,0,862,60],[863,0,863,60],[864,0,864,60],[857,0,857,38],[857,39,857,49],[857,50,857,60],[858,0,858,38],[858,39,858,49],[858,50,858,60],[854,0,854,60],[855,0,855,38],[855,39,855,49],[855,50,855,60],[856,0,856,38],[856,39,856,49],[856,50,856,60],[852,0,852,38],[852,39,852,49],[852,50,852,60],[853,0,853,38],[853,39,853,49],[853,50,853,60],[850,0,850,38],[850,39,850,49],[850,50,850,60],[851,0,851,38],[851,39,851,49],[851,50,851,60],[847,0,847,60],[848,0,848,38],[849,0,849,38],[849,39,849,49],[849,50,849,60],[845,0,845,38],[845,39,845,49],[845,50,845,60],[846,0,846,38],[846,39,846,49],[846,50,846,60],[842,0,842,60],[843,0,843,38],[843,39,843,49],[843,50,843,60],[844,0,844,38],[844,39,844,49],[844,50,844,60],[848,51,848,60],[840,0,840,38],[840,50,840,60],[841,0,841,38],[841,50,841,60],[838,0,838,38],[838,50,838,60],[839,0,839,38],[839,50,839,60],[835,0,835,38],[835,50,835,60],[836,0,836,60],[837,0,837,38],[837,50,837,60],[833,0,833,38],[833,50,833,60],[834,0,834,38],[834,50,834,60],[825,50,825,60],[822,1,822,31],[822,41,822,50],[823,0,823,60],[824,0,824,60],[826,0,826,49],[826,50,826,60],[827,0,827,49],[827,50,827,60],[831,0,831,38],[831,39,831,49],[831,50,831,60],[832,0,832,38],[832,50,832,60],[828,0,829,60],[830,0,830,60],[818,0,818,2],[818,5,818,60],[819,0,819,2],[819,5,819,60],[820,0,820,60],[821,1,821,31],[821,41,821,52],[825,1,825,49],[815,0,815,2],[815,5,815,60],[816,0,816,2],[816,5,816,60],[817,0,817,2],[817,5,817,60],[812,0,812,2],[812,5,812,60],[813,0,813,2],[813,5,813,60],[814,0,814,2],[814,5,814,60],[809,0,809,2],[809,5,809,60],[810,0,810,2],[810,5,810,60],[811,0,811,2],[811,5,811,60],[806,0,806,2],[806,5,806,60],[807,0,807,2],[807,5,807,60],[808,0,808,2],[808,5,808,60],[800,3,800,60],[801,3,801,60],[802,3,802,60],[803,3,803,60],[804,3,804,60],[805,0,805,2],[805,5,805,60],[793,0,793,60],[794,3,795,60],[796,3,796,60],[797,3,797,60],[798,3,798,60],[799,3,799,60],[788,1,788,34],[789,0,789,60],[790,1,790,59],[791,0,791,60],[792,1,792,28],[792,31,792,59],[770,54,770,60],[772,0,772,60],[774,0,781,60],[786,0,786,60],[787,0,787,60],[770,0,770,6],[770,7,770,25],[770,26,770,32],[770,33,770,39],[770,40,770,46],[770,47,770,53],[782,1,784,60],[768,54,768,60],[769,0,769,6],[769,7,769,25],[769,26,769,32],[769,33,769,39],[769,40,769,46],[769,47,769,53],[769,54,769,60],[768,0,768,6],[768,7,768,25],[768,26,768,32],[768,33,768,39],[768,40,768,46],[768,47,768,53],[766,54,766,60],[767,0,767,6],[767,7,767,25],[767,26,767,32],[767,33,767,39],[767,40,767,46],[767,47,767,53],[767,54,767,60],[766,0,766,6],[766,7,766,25],[766,26,766,32],[766,33,766,39],[766,40,766,46],[766,47,766,53],[764,54,764,60],[765,0,765,6],[765,7,765,25],[765,26,765,32],[765,33,765,39],[765,40,765,46],[765,47,765,53],[765,54,765,60],[764,0,764,6],[764,7,764,25],[764,26,764,32],[764,33,764,39],[764,40,764,46],[764,47,764,53],[762,54,762,60],[763,0,763,6],[763,7,763,25],[763,26,763,32],[763,33,763,39],[763,40,763,46],[763,47,763,53],[763,54,763,60],[762,0,762,6],[762,7,762,25],[762,26,762,32],[762,33,762,39],[762,40,762,46],[762,47,762,53],[760,54,760,60],[761,0,761,6],[761,7,761,25],[761,26,761,32],[761,33,761,39],[761,40,761,46],[761,47,761,53],[761,54,761,60],[760,0,760,6],[760,7,760,25],[760,26,760,32],[760,33,760,39],[760,40,760,46],[760,47,760,53],[758,54,758,60],[759,0,759,6],[759,7,759,25],[759,26,759,32],[759,33,759,39],[759,40,759,46],[759,47,759,53],[759,54,759,60],[758,0,758,6],[758,7,758,25],[758,26,758,32],[758,33,758,39],[758,40,758,46],[758,47,758,53],[750,40,750,46],[750,47,750,53],[756,54,756,60],[757,0,757,6],[757,7,757,25],[757,26,757,32],[757,33,757,39],[757,40,757,46],[757,47,757,53],[757,54,757,60],[756,0,756,6],[756,7,756,25],[756,26,756,32],[756,33,756,39],[756,40,756,46],[756,47,756,53],[754,54,754,60],[755,0,755,6],[755,7,755,25],[755,26,755,32],[755,33,755,39],[755,40,755,46],[755,47,755,53],[755,54,755,60],[754,0,754,6],[754,7,754,25],[754,26,754,32],[754,33,754,39],[754,40,754,46],[754,47,754,53],[746,0,746,6],[746,7,746,25],[746,26,746,32],[746,33,746,39],[746,40,746,46],[746,47,746,53],[752,54,752,60],[753,0,753,6],[753,7,753,25],[753,26,753,32],[753,33,753,39],[753,40,753,46],[753,47,753,53],[753,54,753,60],[752,0,752,6],[752,7,752,25],[752,26,752,32],[752,33,752,39],[752,40,752,46],[752,47,752,53],[750,54,750,60],[751,0,751,6],[751,7,751,25],[751,26,751,32],[751,33,751,39],[751,40,751,46],[751,47,751,53],[751,54,751,60],[750,0,750,6],[750,7,750,25],[750,26,750,32],[750,33,750,39],[743,33,743,39],[743,40,743,46],[743,47,743,53],[743,54,743,60],[740,0,740,6],[740,7,740,25],[740,26,740,32],[740,33,740,39],[740,40,740,46],[740,47,740,53],[748,54,748,60],[749,0,749,6],[749,7,749,25],[749,26,749,32],[749,33,749,39],[749,40,749,46],[749,47,749,53],[749,54,749,60],[748,0,748,6],[748,7,748,25],[748,26,748,32],[748,33,748,39],[748,40,748,46],[748,47,748,53],[746,54,746,60],[747,0,747,6],[747,7,747,25],[747,26,747,32],[747,33,747,39],[747,40,747,46],[747,47,747,53],[747,54,747,60],[739,54,739,60],[739,0,739,6],[739,7,739,25],[739,26,739,32],[739,33,739,39],[739,40,739,46],[739,47,739,53],[738,54,738,60],[738,0,738,6],[738,7,738,25],[738,26,738,32],[738,33,738,39],[738,40,738,46],[738,47,738,53],[744,54,744,60],[745,0,745,6],[745,7,745,25],[745,26,745,32],[745,33,745,39],[745,40,745,46],[745,47,745,53],[745,54,745,60],[744,0,744,6],[744,7,744,25],[744,26,744,32],[744,33,744,39],[744,40,744,46],[744,47,744,53],[740,54,740,60],[743,0,743,6],[743,7,743,25],[743,26,743,32],[736,54,736,60],[737,0,737,6],[737,7,737,25],[737,26,737,32],[737,33,737,39],[737,40,737,46],[737,47,737,53],[737,54,737,60],[736,0,736,6],[736,7,736,25],[736,26,736,32],[736,33,736,39],[736,40,736,46],[736,47,736,53],[734,54,734,60],[735,0,735,6],[735,7,735,25],[735,26,735,32],[735,33,735,39],[735,40,735,46],[735,47,735,53],[735,54,735,60],[734,0,734,6],[734,7,734,25],[734,26,734,32],[734,33,734,39],[734,40,734,46],[734,47,734,53],[732,54,732,60],[733,0,733,6],[733,7,733,25],[733,26,733,32],[733,33,733,39],[733,40,733,46],[733,47,733,53],[733,54,733,60],[732,0,732,6],[732,7,732,25],[732,26,732,32],[732,33,732,39],[732,40,732,46],[732,47,732,53],[730,54,730,60],[731,0,731,6],[731,7,731,25],[731,26,731,32],[731,33,731,39],[731,40,731,46],[731,47,731,53],[731,54,731,60],[730,0,730,6],[730,7,730,25],[730,26,730,32],[730,33,730,39],[730,40,730,46],[730,47,730,53],[728,54,728,60],[729,0,729,6],[729,7,729,25],[729,26,729,32],[729,33,729,39],[729,40,729,46],[729,47,729,53],[729,54,729,60],[728,0,728,6],[728,7,728,25],[728,26,728,32],[728,33,728,39],[728,40,728,46],[728,47,728,53],[726,54,726,60],[727,0,727,6],[727,7,727,25],[727,26,727,32],[727,33,727,39],[727,40,727,46],[727,47,727,53],[727,54,727,60],[726,0,726,6],[726,7,726,25],[726,26,726,32],[726,33,726,39],[726,40,726,46],[726,47,726,53],[724,54,724,60],[725,0,725,6],[725,7,725,25],[725,26,725,32],[725,33,725,39],[725,40,725,46],[725,47,725,53],[725,54,725,60],[724,0,724,6],[724,7,724,25],[724,26,724,32],[724,33,724,39],[724,40,724,46],[724,47,724,53],[722,54,722,60],[723,0,723,6],[723,7,723,25],[723,26,723,32],[723,33,723,39],[723,40,723,46],[723,47,723,53],[723,54,723,60],[722,0,722,6],[722,7,722,25],[722,26,722,32],[722,33,722,39],[722,40,722,46],[722,47,722,53],[721,0,721,6],[721,7,721,25],[721,26,721,32],[721,33,721,39],[721,40,721,46],[721,47,721,53],[721,54,721,60],[720,0,720,6],[720,7,720,25],[720,26,720,32],[720,33,720,39],[720,40,720,46],[720,47,720,53],[718,54,718,60],[719,0,719,6],[719,7,719,25],[719,26,719,32],[719,33,719,39],[719,40,719,46],[719,47,719,53],[719,54,719,60],[718,0,718,6],[718,7,718,25],[718,26,718,32],[718,33,718,39],[718,40,718,46],[718,47,718,53],[720,54,720,60],[717,0,717,6],[717,7,717,25],[717,26,717,32],[717,33,717,39],[717,40,717,46],[717,47,717,53],[717,54,717,60],[715,54,715,60],[716,0,716,6],[716,7,716,25],[716,26,716,32],[716,33,716,39],[716,40,716,46],[716,47,716,53],[716,54,716,60],[715,0,715,6],[715,7,715,25],[715,26,715,32],[715,33,715,39],[715,40,715,46],[715,47,715,53],[714,0,714,6],[714,7,714,25],[714,26,714,32],[714,33,714,39],[714,40,714,46],[714,47,714,53],[714,54,714,60],[713,0,713,6],[713,7,713,25],[713,26,713,32],[713,33,713,39],[713,40,713,46],[713,47,713,53],[711,54,711,60],[712,0,712,6],[712,7,712,25],[712,26,712,32],[712,33,712,39],[712,40,712,46],[712,47,712,53],[712,54,712,60],[711,0,711,6],[711,7,711,25],[711,26,711,32],[711,33,711,39],[711,40,711,46],[711,47,711,53],[713,54,713,60],[710,0,710,6],[710,7,710,25],[710,26,710,32],[710,33,710,39],[710,40,710,46],[710,47,710,53],[710,54,710,60],[709,0,709,6],[709,7,709,25],[709,26,709,32],[709,33,709,39],[709,40,709,46],[709,47,709,53],[707,54,707,60],[708,0,708,6],[708,7,708,25],[708,26,708,32],[708,33,708,39],[708,40,708,46],[708,47,708,53],[708,54,708,60],[707,0,707,6],[707,7,707,25],[707,26,707,32],[707,33,707,39],[707,40,707,46],[707,47,707,53],[709,54,709,60],[706,0,706,6],[706,7,706,25],[706,26,706,32],[706,33,706,39],[706,40,706,46],[706,47,706,53],[706,54,706,60],[705,0,705,6],[705,7,705,25],[705,26,705,32],[705,33,705,39],[705,40,705,46],[705,47,705,53],[703,54,703,60],[704,0,704,6],[704,7,704,25],[704,26,704,32],[704,33,704,39],[704,40,704,46],[704,47,704,53],[704,54,704,60],[703,0,703,6],[703,7,703,25],[703,26,703,32],[703,33,703,39],[703,40,703,46],[703,47,703,53],[705,54,705,60],[702,0,702,6],[702,7,702,25],[702,26,702,32],[702,33,702,39],[702,40,702,46],[702,47,702,53],[702,54,702,60],[701,0,701,6],[701,7,701,25],[701,26,701,32],[701,33,701,39],[701,40,701,46],[701,47,701,53],[699,54,699,60],[700,0,700,6],[700,7,700,25],[700,26,700,32],[700,33,700,39],[700,40,700,46],[700,47,700,53],[700,54,700,60],[699,0,699,6],[699,7,699,25],[699,26,699,32],[699,33,699,39],[699,40,699,46],[699,47,699,53],[701,54,701,60],[697,33,697,39],[697,40,697,46],[697,47,697,53],[695,54,695,60],[696,0,696,6],[696,7,696,25],[696,26,696,32],[696,33,696,39],[696,40,696,46],[696,47,696,53],[696,54,696,60],[695,0,695,6],[695,7,695,25],[695,26,695,32],[695,33,695,39],[695,40,695,46],[695,47,695,53],[697,54,697,60],[665,0,665,29],[665,30,665,34],[665,35,665,41],[665,42,665,49],[665,50,665,54],[665,55,665,60],[693,54,693,60],[694,0,694,6],[694,7,694,25],[694,26,694,32],[694,33,694,39],[694,40,694,46],[694,47,694,53],[694,54,694,60],[693,0,693,6],[693,7,693,25],[693,26,693,32],[693,33,693,39],[693,40,693,46],[693,47,693,53],[691,0,691,60],[692,0,692,6],[692,7,692,25],[692,26,692,32],[692,33,692,39],[692,40,692,46],[692,47,692,53],[692,54,692,60],[677,1,677,29],[666,1,666,29],[666,30,666,34],[666,35,666,41],[664,0,664,29],[664,30,664,34],[664,35,664,41],[664,42,664,49],[664,50,664,54],[664,55,664,60],[663,0,663,29],[663,30,663,34],[663,35,663,41],[663,42,663,49],[663,50,663,54],[663,55,663,60],[662,0,662,29],[662,30,662,34],[662,35,662,41],[662,42,662,49],[662,50,662,54],[662,55,662,60],[661,0,661,29],[661,30,661,34],[661,35,661,41],[661,42,661,49],[661,50,661,54],[661,55,661,60],[660,0,660,29],[660,30,660,34],[660,35,660,41],[660,42,660,49],[660,50,660,54],[660,55,660,60],[659,0,659,29],[659,30,659,34],[659,35,659,41],[659,42,659,49],[659,50,659,54],[659,55,659,60],[658,0,658,29],[658,30,658,34],[658,35,658,41],[658,42,658,49],[658,50,658,54],[658,55,658,60],[657,0,657,29],[657,30,657,34],[657,35,657,41],[657,42,657,49],[657,50,657,54],[657,55,657,60],[656,0,656,29],[656,30,656,34],[656,35,656,41],[656,42,656,49],[656,50,656,54],[656,55,656,60],[655,0,655,29],[655,30,655,34],[655,35,655,41],[655,42,655,49],[655,50,655,54],[655,55,655,60],[654,0,654,29],[654,30,654,34],[654,35,654,41],[654,42,654,49],[654,50,654,54],[654,55,654,60],[653,0,653,29],[653,30,653,34],[653,35,653,41],[653,42,653,49],[653,50,653,54],[653,55,653,60],[652,0,652,29],[652,30,652,34],[652,35,652,41],[652,42,652,49],[652,50,652,54],[652,55,652,60],[651,0,651,29],[651,30,651,34],[651,35,651,41],[651,42,651,49],[651,50,651,54],[651,55,651,60],[650,0,650,29],[650,30,650,34],[650,35,650,41],[650,42,650,49],[650,50,650,54],[650,55,650,60],[649,0,649,29],[649,30,649,34],[649,35,649,41],[649,42,649,49],[649,50,649,54],[649,55,649,60],[648,0,648,29],[648,30,648,34],[648,35,648,41],[648,42,648,49],[648,50,648,54],[648,55,648,60],[647,0,647,29],[647,30,647,34],[647,35,647,41],[647,42,647,49],[647,50,647,54],[647,55,647,60],[646,0,646,29],[646,30,646,34],[646,35,646,41],[646,42,646,49],[646,50,646,54],[646,55,646,60],[645,0,645,29],[645,30,645,34],[645,35,645,41],[645,42,645,49],[645,50,645,54],[645,55,645,60],[644,0,644,29]],"merged_total":2892,"flags":["merged_cut"]}
[null,null,null,null,null,null,"MINISTERUL AGRICULTURII ŞI DEZVOLTĂRII RURALE"]
[null,null,null,null,null,null,"AGENŢIA PENTRU FINANŢAREA INVESTIŢIILOR RURALE"]
[]
[null,null,null,null,null,null,null,null,null,null,null,null,null,null,null,null,null,null,null,null,null,null,null,null,null,null,null,null,null,null,null,null,null,null,null,null,null,null,null,null,null,null,"SECŢIUNE GENERALĂ"]
[]
["DATE DE ÎNREGISTRARE",null,null,null,null,null,null,null,null,null,null,null,null,null,null,null,null,null,null,null,null,null,null,null,null,null,null,null,null,null,null,null,null,null,null,null,"NUME ŞI PRENUME DIRECTOR OJFIR/"]
[null,null,null,null,null,null,null,null,null,null,null,null,null,null,null,null,null,null,null,null,null,null,null,null,null,null,null,null,null,null,null,null,null,null,null,null,"DIRECTOR GENERAL ADJUNCT CRFIR"]
["Se completează de către Agenția pentru Finanțarea Investițiilor Rurale - Oficiul"]
["Judeţean/ Centrul Regional - Programul FEADR pentru cereri de finanţare"]
[null,null,null,null,null,null,null,null,null,null,null,null,null,null,null,null,null,null,null,null,null,null,null,null,null,null,null,null,null,null,null,null,null,null,null,null,"Semnătura Director OJFIR/Director General Adjunct CRFIR"]
["OJFIR/CRFIR"]
[null,null,null,null,null,null,null,null,null,null,null,null,null,null,null,null,null,null,null,null,null,null,null,null,null,null,null,null,null,null,null,null,null,null,null,null,"Ştampila CRFIR"]
["Număr "]
["înregistrare"]
[null,null,null,null,null,null,"Tip ",null,null,"Codificare",null,null,"Codificare",null,null,"Codificare",null,null,null,null,"Număr de",null,null,null,"Cod",null,null,"Cod",null,null,"Numărul de ordine"]
[null,null,null,null,null,null,"cerere de",null,null,"măsură",null,null,"Sub-",null,null,"de rezervă",null,null,null,null,"referinţă al",null,null,null,"regiune",null,null,"Judeţ",null,null,"în registrul"]
[null,null,null,null,null,null,"finanţare",null,null,null,null,null,"Măsură",null,null,null,null,null,null,null,"licitaţiei de",null,null,null,null,null,null,null,null,null,"Cererilor de"]
[null,null,null,null,null,null,null,null,null,null,null,null,null,null,null,null,null,null,null,null,"proiecte",null,null,null,null,null,null,null,null,null,"Finanţare"]
["Data Înregistrării"]
["Numele şi prenumele persoanei care înregistrează"]
["Semnătura:"]
["Data primirii cererii de finanţare la contractare:"]
["Se completează de către solicitant"]
["A PREZENTARE GENERALĂ"]
[]
[null,null,null,null,null,"A1 Măsura 2/2A Investiţii în exploataţii agricole şi procesare "]
[]
[]
[null,"A2 Nume prenume / Denumire solicitant:"]
[]
[null,"A3 Titlu proiect:"]
[]
[]
[]
[]
[null,"A4 Descrierea succintă a proiectului:"]
[]
[]
[]
[]
[]
[]
[]
[]
[]
[]
[]
[null,null,"A5 Amplasarea proiectului:"]
[]
["Regiunea de dezvoltare:",null,null,null,null,null,null,null,null,null,null,null,null,null,null,null,null,null,null,null,null,null,null,null,null,null,null,"Judeţ/Municipiul Bucureşti:"]
[]
[null,"Obiectivele investiţiei",null,null,null,null,null,null,null,null,null,null,null,null,null,"Judeţ",null,null,null,null,null,null,null,null,null,null,null,"Comună/Oraş",null,null,null,null,null,null,null,null,null,null,null,"Sat/Sector",null,null,null,null,null,null,null,null,null,null,"Sat/Sector"]
[]
[]
[]
[]
[]
[]
[]
[]
[]
[]
[]
[]
[]
[]
[]
[]
[]
[]
[]
[]
[]
[]
[]
[]
[]
[]
[]
[]
[]
[]
[]
[]
[]
[]
[]
[]
[]
[]
[]
[]
[null,"A6 Date despre tipul de proiect şi beneficiar:",null,null,null,null,null,null,null,null,null,null,null,null,null,null,null,null,null,null,null,null,null,null,null,null,null,null,null,null,null,null,null,null,null,null,null,null,null,null,"A 6.5 Sectoare vizate prin proiect"]
[]
[null,"A 6.1",null,null,null,null,null,null,null,null,null,null,null,null,null,null,null,null,null,null,null,null,"A 6.3"]
[]
[null,null,null,null,null,null,null,null,null,null,null,null,null,null,null,null,null,null,null,null,null,null,null,null,null,null,null,null,null,null,null,null,null,null,null,null,null,null,null,null,null,null,null,null,null,"ferma de familie"]
[null,"A 6.2",null,null,null,null,null,null,null,null,null,null,null,null,null,null,null,null,null,null,null,null,"A 6.4",null,null,"Prescorare"]
[]
[]
[]
[]
[null,null,null,null,null,null,"Bugete indicative şi anexe conform HG907/2016"]
[]
[null,null,null,null,null,null,null,null,null,null,null,null,null,"Proiect tehnic",null,null,null,null,null,null,null,null,null,"Acord de mediu",null,null,null,null,null,null,null,null,null,null,null,null,"Aviz Natura2000"]
[]
[null,"Denumire consultant:"]
[null,null,null,null,null,null,null,null,null,null,null,null,null,null,null,null,null,null,null,null,null,null,null,null,null,null,null,null,null,null,"CUI"]
[]
[null,null,null,null,null,null,null,null,null,null,null,null,null,null,null,null,null,null,null,null,null,null,null,null,null,null,null,null,null,null,"Nr. Înreg. ONRC"]
[]
[null,"Denumire proiectant:"]
[null,null,null,null,null,null,null,null,null,null,null,null,null,null,null,null,null,null,null,null,null,null,null,null,null,null,null,null,null,null,"CUI"]
[]
[null,null,null,null,null,null,null,null,null,null,null,null,null,null,null,null,null,null,null,null,null,null,null,null,null,null,null,null,null,null,"Nr. Înreg. ONRC"]
[]
[null,"Detaliere criterii de selecţie îndeplinite"]
[]
[]
[]
[]
[]
[]
[]
[]
[]
[]
["B INFORMAŢII PRIVIND SOLICITANTUL"]
["B1 Descrierea solicitantului"]
["B1.1 Informaţii privind solicitantul"]
[null,"Data înființării / Data de naştere",null,null,null,null,null,null,null,null,null,null,null,null,null,null,null,null,null,"Cod Unic de Înregistrare și/sau Codul de",null,null,null,null,null,null,null,null,null,null,null,null,null,null,null,null,null,null,null,null,null,null,null,"Statut juridic al solicitantului"]
[null,null,null,null,null,null,null,null,null,null,null,null,null,null,null,null,null,null,null,"Înregistrare Fiscală"]
[]
[]
[null,"Număr de înregistrare în registrul comerțului / Registrul asociaţiilor şi fundaţiilor"]
[]
[null,"Codul CAEN al activităţii/activităţilor finanţate prin proiect:"]
[]
[]
[]
[null,"Codul unic de înregistrare APIA",null,null,null,null,null,null,null,null,null,null,null,null,null,null,null,null,null,null,null,null,null,null,null,null,null,null,null,null,null,null,null,null,null,null,"Anul atribuirii codului"]
[]
[]
[null,"B1.2 Sediul social / Domiciliul stabil al solicitantului / Reşedinţa din România"]
[null,"Judeţ",null,null,null,null,null,null,null,null,null,null,null,null,null,null,null,null,null,null,null,null,"Localitate",null,null,null,null,null,null,null,null,null,null,null,null,null,null,null,null,null,null,null,"Sat"]
[]
[null,"Cod Poştal",null,null,null,null,null,null,null,null,null,null,null,null,null,"Strada",null,null,null,null,null,null,null,null,null,null,null,null,null,null,null,null,null,null,null,null,null,null,null,null,null,null,null,null,null,null,null,null,null,null,null,null,"Nr."]
[]
[null,"Bloc",null,null,null,null,null,null,null,null,null,null,null,null,null,null,null,"Scara",null,null,null,null,null,null,null,null,null,null,null,null,null,null,"Et. ",null,null,null,null,null,null,"Ap.",null,null,null,null,null,null,"Sector"]
[]
[null,"Telefon fix/ mobil",null,null,null,null,null,null,null,null,null,null,null,null,null,null,null,null,null,null,"Fax",null,null,null,null,null,null,null,null,null,null,null,null,null,null,null,"E-mail"]
[]
[]
[null,"B1.3 Numele şi prenumele reprezentantului legal şi funcţia acestuia în cadrul organizaţiei, precum şi"]
[null,"specimenul de semnatură:"]
[]
[null,null,null,"Numele",null,null,null,null,null,null,null,null,null,null,"Prenumele",null,null,null,null,null,null,null,null,null,null,"Funcţia",null,null,null,null,null,null,null,null,null,null,"Reprezentant legal",null,null,null,null,null,null,null,null,null,null,"Specimen de"]
[null,null,null,null,null,null,null,null,null,null,null,null,null,null,null,null,null,null,null,null,null,null,null,null,null,null,null,null,null,null,null,null,null,null,null,null,null,null,null,null,null,null,null,null,null,null,null,"semnătură"]
[]
[null,null,null,null,null,null,null,null,null,null,null,null,null,null,null,null,null,null,null,null,null,null,null,null,null,null,null,null,null,null,null,null,null,null,null,null,"LEGAL"]
[]
[]
["B2 Informaţii referitoare la reprezentantul legal de proiect"]
[null,"B2.1 Date de identitate ale reprezentantului legal de proiect"]
[]
[null,null,null,"Data naşterii",null,null,null,null,null,null,null,null,null,null,null,null,null,null,null,null,null,null,null,null,"Cod numeric personal"]
[]
[]
[]
[]
[null,null,null,null,"Act de identitate",null,null,null,null,null,null,null,null,null,null,null,null,null,"Seria",null,null,"Nr.",null,null,null,null,null,null,"Eliberat la data de",null,null,null,null,null,null,null,null,"de:",null,null,null,null,null,null,null,null,null,null,null,null,null,"Valabil până la:"]
[null,null,null,null,"B.I.",null,null,"C.I.",null,null,"Paşaport"]
[]
[]
[]
[null,null,null,"Studii şi coordonate:"]
[]
[]
[]
[]
[]
[]
[]
[]
[]
[]
[]
[]
[null,"B2.2 Domiciliul stabil al reprezentantului legal de proiect"]
[null,"Judeţ",null,null,null,null,null,null,null,null,null,null,null,null,null,null,null,null,null,null,null,null,"Localitate",null,null,null,null,null,null,null,null,null,null,null,null,null,null,null,null,null,null,null,"Sat"]
[]
[null,"Cod Poştal",null,null,null,null,null,null,null,null,null,null,"Strada",null,null,null,null,null,null,null,null,null,null,null,null,null,null,null,null,null,"Nr.",null,null,null,null,null,"Bloc",null,null,null,null,null,null,null,null,null,null,null,"Scara",null,null,null,null,null,"Ap."]
[]
[null,"Telefon fix",null,null,null,null,null,null,null,null,null,null,null,null,null,null,null,null,null,null,"Telefon mobil",null,null,null,null,null,null,null,null,null,null,null,null,null,null,null,null,null,"Fax"]
[]
[null,"E-mail"]
[]
[]
["B3 Informaţii privind contul bancar pentru proiect F.E.A.D.R."]
[]
[null,null,"B3.1 Denumirea Băncii",null,null,null,null,null,null,null,null,null,null,null,null,null,null,null,null,null,null,null,null,null,null,null,null,null,null,null,null,"Denumirea Sucursalei/Filialei"]
[]
[]
[null,null,"B3.2 Adresa Băncii/Sucursalei"]
[]
[]
[null,null,"B3.3 Cod IBAN",null,null,null,null,null,null,null,null,null,null,null,null,null,null,null,null,null,null,null,null,null,null,null,null,null,null,null,null,"B3.4 Titularul contului bancar"]
[]
[]
["REGULI DE COMPLETARE\n\nCâmpurile \"Numele şi prenumele persoanei care înregistrează. Semnătura\", se vor completa după data primirii în format letric a acesteia împreună cu documentele justificative.\nCompletaţi devizele aferente capitolelor de cheltuieli, defalcat pe cheltuieli eligibile şi neeligibile prin completarea tabelelor incluse în acest document, respectiv:\n1. Tabelul \"Deviz financiar_cap3\" cuprinde cheltuielile aferente capitolului 3 - Cheltuieli pentru proiectare şi asistenţă tehnică, cheltuieli care trebuie să se regăsească atât în Bugetul Indicativ (Tabel \"Buget indicativ\" din cererea de finanţare, partea specifică) cât şi în Devizul General din Studiul de Fezabilitate.\n2. Tabelul \"Devize obiect\" cuprinde formatul cadru al devizului pe obiect, iar solicitantul va completa atâtea devize pe obiect câte obiecte de investiţie sunt incluse în proiect. Suma tuturor devizelor pe obiect trebuie să se regăseasca atat in Bugetul Indicativ (tabelul \"Buget indicativ\" din cererea de finanţare, partea specifică) cât şi în Devizul General din Studiul de Fezabilitate În cazul în care proiectul de investiţii presupune mai multe devize pe obiect, solicitantul va crea în documentul curent câte o copie a tabelului \"Devize obiect\" pentru fiecare deviz pe obiect şi va detalia cheltuielile eligibile şi neeligibile pe fiecare în parte.\n3. Tabelul \"cap.2+cap.5\" cuprinde cheltuieli aferente capitolelor 2 şi 5 şi trebuie să se regăsească atât în Bugetul Indicativ (tabel \"Buget indicativ\" din cererea de finanţare, partea specifică) cât şi Devizul General din Studiul de Fezabilitate.\n4. Tabelul \"Deviz culturi\" cuprinde devizele aferente tuturor tipurilor de culturi, plantaţii, vizate de proiect.\n5. Câmpul \"Prescorare\" de la secţiunea A6 este obligatoriu.\n6. Pentru \"Plantaţiile specifice pentru struguri de masă\", se completează Deviz pe obiect separat.\n7. În cazul art 28 (Agromediu), intensitatea suplimentară se acordă după cum urmează:\n1 - Pentru investiţiile adresate terenurilor arabile cu condiția ca suprafața aflată sub angajament sa reprezinte mai mult de 50% din terenul arabil aparținand exploataţiei agricole.\nIntensitatea mărită se acordă pentru utilajele si echipamentele specifice lucrărilor de arat, grăpat, discuit, semănat/ însămânţat, tocat resturi vegetale, încorporat resturi vegetale în sol, numai în cazul în care peste 50% din terenul arabil deținut în cadrul fermei se află sub un angajament în derulare in cazul următoarelor pachete promovate prin Măsura 10 - Agromediu și climă (AGM): Pachetul 4 - culturi verzi, Pachetul 7 - terenuri arabile importante ca zone de hrănire pentru gâsca cu gât roșu (Branta ruficollis), suprafețe pe care se realizează lucrări de tehnologie a culturilor; Intensitatea mărită se acordă pentru facilităţi necesare depozitării şi compostării gunoiului de grajd numai în cazul în care peste 50% din terenul arabil deținut în cadrul fermei se află sub un angajament în derulare in cazul Pachetului 4 - culturi verzi, Pachetului 5 - adaptarea la efectele schimbărilor climatice şi Pachetului 7 - terenuri arabile importante ca zone de hrănire pentru gâsca cu gât roșu (Branta ruficollis).\n2 -Pentru investiţiile adresate pajiștilor cu condiția ca suprafața aflată sub angajament să reprezinte mai mult de 50% din suprafața de pajiști aparținând fermei.\nIntensitatea suplimentară se acordă doar pentru contravaloarea următoarelor:\n- utilajelor folosite pentru cosit, strâns, balotat şi transportat fânul și a altor asemenea investitii utilizate in cazul pajistilor care fac obiectul sprijinului acordat prin Pachetul 1 - pajiști cu înaltă valoare naturală (HNV) fără Pachetul 2 - practici agricole tradiţionale,\n- utilajelor uşoare (utilaje cu lama scurtă, greutate redusă și viteză mică de deplasare) folosite pentru cosit, strâns, balotat şi transportat fânul și a altor asemenea investitii utilizate in cazul pajistilor care fac obiectul sprijinului acordat prin varianta 2.2 - utilaje ușoare pe pajiști permanente utilizate ca fânețe din pachetul 2 - practici agricole tradiţionale, varianta 3.1.2 -utilaje ușoare pe pajiști importante pentru Crex crex din sub-pachetul 3.1 - Crex crex, varianta 3.2.2 -utilaje ușoare pe pajiști importante pentru Lanius minor și Falco vespertinus din sub-pachetul 3.2 - Lanius minor și Falco vespertinus, varianta 6.2 - utilaje ușoare pe pajiști importante pentru fluturi (Maculinea sp.) din pachetul 6 - pajiști importante pentru fluturi (Maculinea sp.);\n- platformele pentru depozitarea şi/sau compostarea gunoiul de grajd şi utilajele/echipamentele de transport şi de\nîmprăştiere a gunoiului de grajd - în cazul pachetelor 1, 3.1, 3.2 şi 6;\n3 -Pentru investitiile ce deservesc animalele care fac obiectul angajamentelor pachetului nr. 8 (rase locale în pericol de abandon)\n- contravaloarea investiţiei în cauză se obţine înmulțind procentul pe care îl detine nucleul de rase locale în pericol de\nabandon în total efective de animale, cu total valoare eligibilă a proiectului. Intensitatea mărită se acordă doar pentru această contravaloare.\nEx. dacă rasele în pericol de abandon reprezintă 10% din total efective (exprimate in UVM), se aplica acest procent la valoarea totala eligibila, si se acorda 20 puncte procentuale suplimentare la intensitate sprijin doar pentru această cota de 10% din valoarea totala eligibilă.\n8. Punctul A6.2 se va completa ţinând cont de următoarele:\nInvestiţie nouă - cuprinde lucrările de construcţii-montaj, utilaje, instalaţii, care se realizează pe amplasamente noi, lucrarile pentru construcţiile existente cărora li se schimbă destinaţia nefuncționale/dezafectate\nModernizarea - cuprinde lucrările de construcţii şi instalaţii privind retehnologizarea, reutilarea și refacerea sau extinderea construcţiilor existente aferente unităţilor în funcţiune şi cu autorizaţii de funcţionare valabile, fără modificarea destinaţiei iniţiale, inclusiv utilarea/reutilarea cu mașini, utilaje și echipamente necesare unei exploatații agricole pentru producția agricolă primară și, după caz, pentru procesare la nivel de fermă.\n"]
[]
[]
[]
[]
[]
[]
[]
[]
[]
[]
[]
[]
[]
[]
[]
[]
[]
[]
[]
[]
[]
[]
[]
[]
[]
[]
[]
[]
[]
[]
[]
[]
[]
[]
[]
[]
[]
[]
[]
[]
[]
[]
["9. Încadrarea cererii de finanțare în zona montană se va face dacă amplasarea investiției și, acolo unde este cazul, peste 50% din terenurile agricole ale exploatației se află în una dintre localitățile în dreptul cărora exista mențiunea ANC ZM în Anexa 3 la Ghidul solicitantului.\n10. Trebuie bifate şi anexate toate documentele de pe coloana “DEPUNERE-Obligatoriu pentru toate proiectele” din secțiunea E - Lista documentelor anexate.\n"]
[]
[]
[]
[]
[null,"Buget Indicativ (Euro) pentru INVESTIŢII în activitatea de producţie AGRICOLĂ cf. HG 907"]
["MINISTERUL AGRICULTURII ŞI DEZVOLTĂRII RURALE"]
["AGENŢIA PENTRU FINANŢAREA INVESTIŢIILOR RURALE"]
[]
[]
[null,"Procentul aferent intensităţii",null,null,null,null,null,null,null,null,null,null,null,null,null,null,null,null,null,"Curs EURO",null,null,null,null,null,null,null,null,null,null,null,null,null,null,null,"Data întocmirii Studiului de Fezabilitate"]
[]
["Măsura",null,null,null,null,null,null,null,null,null,null,null,null,null,null,null,null,null,null,null,null,null,null,null,null,null,null,null,null,null,null,null,null,null,null,"M2/2A"]
["Denumirea capitolelor de cheltuieli",null,null,null,null,null,null,null,null,null,null,null,null,null,null,null,null,null,null,null,null,null,null,null,null,null,null,null,null,null,null,null,null,null,null,"Cheltuieli eligibile",null,null,null,null,null,null,null,null,"Cheltuieli neeligibile",null,null,null,null,null,null,null,"Total"]
[null,null,null,null,null,null,null,null,null,null,null,null,null,null,null,null,null,null,null,null,null,null,null,null,null,null,null,null,null,null,null,null,null,null,null,"EURO",null,null,null,null,null,null,null,null,"EURO",null,null,null,null,null,null,null,"EURO"]
[1,null,null,null,null,null,null,null,null,null,null,null,null,null,null,null,null,null,null,null,null,null,null,null,null,null,null,null,null,null,null,null,null,null,null,2,null,null,null,null,null,null,null,null,3,null,null,null,null,null,null,null,4]
["Capitolul 1 Cheltuieli pentru obtinerea şi amenajarea terenului - total, din care:",null,null,null,null,null,null,null,null,null,null,null,null,null,null,null,null,null,null,null,null,null,null,null,null,null,null,null,null,null,null,null,null,null,null,{"$f":"SUM(AJ271:AR273)","v":0},null,null,null,null,null,null,null,null,{"$f":"SUM(AS270:AZ273)","v":0},null,null,null,null,null,null,null,{"$f":"SUM(AJ269:AZ269)","v":0}]
["1.1 Obţinerea terenului",null,null,null,null,null,null,null,null,null,null,null,null,null,null,null,null,null,null,null,null,null,null,null,null,null,null,null,null,null,null,null,null,null,null,null,null,null,null,null,null,null,null,null,null,null,null,null,null,null,null,null,{"$f":"SUM(AJ270:AZ270)","v":0}]
["1.2 Amenajarea terenului",null,null,null,null,null,null,null,null,null,null,null,null,null,null,null,null,null,null,null,null,null,null,null,null,null,null,null,null,null,null,null,null,null,null,null,null,null,null,null,null,null,null,null,null,null,null,null,null,null,null,null,0]
["1.3 Amenajari pentru protecţia mediului şi aducerea la starea iniţială",null,null,null,null,null,null,null,null,null,null,null,null,null,null,null,null,null,null,null,null,null,null,null,null,null,null,null,null,null,null,null,null,null,null,null,null,null,null,null,null,null,null,null,null,null,null,null,null,null,null,null,{"$f":"SUM(AJ272:AZ272)","v":0}]
["1.4 Cheltuieli pentru relocarea/protecţia utilităţilor",null,null,null,null,null,null,null,null,null,null,null,null,null,null,null,null,null,null,null,null,null,null,null,null,null,null,null,null,null,null,null,null,null,null,null,null,null,null,null,null,null,null,null,null,null,null,null,null,null,null,null,0]
["Capitolul 2 Cheltuieli pentru asigurarea utilităţilor necesare obiectivului de investiţii",null,null,null,null,null,null,null,null,null,null,null,null,null,null,null,null,null,null,null,null,null,null,null,null,null,null,null,null,null,null,null,null,null,null,null,null,null,null,null,null,null,null,null,null,null,null,null,null,null,null,null,0]
["Capitolul 3 Cheltuieli pentru proiectare şi asistenţă tehnică - total, din care:",null,null,null,null,null,null,null,null,null,null,null,null,null,null,null,null,null,null,null,null,null,null,null,null,null,null,null,null,null,null,null,null,null,null,{"$f":"AJ276+AJ280+AJ281+AJ282+AJ283+AJ291+AJ294","v":0},null,null,null,null,null,null,null,null,{"$f":"AS276+AS280+AS281+AS282+AS283+AS290+AS291+AS294","v":0},null,null,null,null,null,null,null,0]
["3.1 Studii",null,null,null,null,null,null,null,null,null,null,null,null,null,null,null,null,null,null,null,null,null,null,null,null,null,null,null,null,null,null,null,null,null,null,{"$f":"SUM(AJ277:AR279)","v":0},null,null,null,null,null,null,null,null,{"$f":"SUM(AS277:AZ279)","v":0},null,null,null,null,null,null,null,0]
["       3.1.1 Studii de teren",null,null,null,null,null,null,null,null,null,null,null,null,null,null,null,null,null,null,null,null,null,null,null,null,null,null,null,null,null,null,null,null,null,null,null,null,null,null,null,null,null,null,null,null,null,null,null,null,null,null,null,{"$f":"SUM(AJ277:AZ277)","v":0}]
["       3.1.2 Raport privind impactul asupra mediului",null,null,null,null,null,null,null,null,null,null,null,null,null,null,null,null,null,null,null,null,null,null,null,null,null,null,null,null,null,null,null,null,null,null,null,null,null,null,null,null,null,null,null,null,null,null,null,null,null,null,null,0]
["       3.1.3 Alte studii specifice",null,null,null,null,null,null,null,null,null,null,null,null,null,null,null,null,null,null,null,null,null,null,null,null,null,null,null,null,null,null,null,null,null,null,null,null,null,null,null,null,null,null,null,null,null,null,null,null,null,null,null,{"$f":"SUM(AJ279:AZ279)","v":0}]
["3.2 Documentaţii-suport şi cheltuieli pentru obţinerea de avize, acorduri şi autorizaţii",null,null,null,null,null,null,null,null,null,null,null,null,null,null,null,null,null,null,null,null,null,null,null,null,null,null,null,null,null,null,null,null,null,null,null,null,null,null,null,null,null,null,null,null,null,null,null,null,null,null,null,{"$f":"SUM(AJ280:AZ280)","v":0}]
["3.3 Expertizare tehnică",null,null,null,null,null,null,null,null,null,null,null,null,null,null,null,null,null,null,null,null,null,null,null,null,null,null,null,null,null,null,null,null,null,null,null,null,null,null,null,null,null,null,null,null,null,null,null,null,null,null,null,0]
["3.4 Certificarea performanţei energetice şi auditul energetic al clădirilor",null,null,null,null,null,null,null,null,null,null,null,null,null,null,null,null,null,null,null,null,null,null,null,null,null,null,null,null,null,null,null,null,null,null,null,null,null,null,null,null,null,null,null,null,null,null,null,null,null,null,null,0]
["3.5 Proiectare",null,null,null,null,null,null,null,null,null,null,null,null,null,null,null,null,null,null,null,null,null,null,null,null,null,null,null,null,null,null,null,null,null,null,{"$f":"SUM(AJ284:AR289)","v":0},null,null,null,null,null,null,null,null,{"$f":"SUM(AS284:AZ289)","v":0},null,null,null,null,null,null,null,0]
["      3.5.1 Temă de proiectare",null,null,null,null,null,null,null,null,null,null,null,null,null,null,null,null,null,null,null,null,null,null,null,null,null,null,null,null,null,null,null,null,null,null,null,null,null,null,null,null,null,null,null,null,null,null,null,null,null,null,null,0]
["      3.5.2 Studiu de prefezabilitate",null,null,null,null,null,null,null,null,null,null,null,null,null,null,null,null,null,null,null,null,null,null,null,null,null,null,null,null,null,null,null,null,null,null,null,null,null,null,null,null,null,null,null,null,null,null,null,null,null,null,null,0]
["      3.5.3. Studiu de fezabilitate/documentaţie de avizare a lucrărilor de intervenţii\n                şi deviz general",null,null,null,null,null,null,null,null,null,null,null,null,null,null,null,null,null,null,null,null,null,null,null,null,null,null,null,null,null,null,null,null,null,null,null,null,null,null,null,null,null,null,null,null,null,null,null,null,null,null,null,0]
["      3.5.4. Documentaţiile tehnice necesare în vederea obţinerii avizelor/\n                acordurilor/autorizaţiilor",null,null,null,null,null,null,null,null,null,null,null,null,null,null,null,null,null,null,null,null,null,null,null,null,null,null,null,null,null,null,null,null,null,null,null,null,null,null,null,null,null,null,null,null,null,null,null,null,null,null,null,0]
["      3.5.5. Verificarea tehnică de calitate a proiectului tehnic şi a detaliilor de execuţie",null,null,null,null,null,null,null,null,null,null,null,null,null,null,null,null,null,null,null,null,null,null,null,null,null,null,null,null,null,null,null,null,null,null,null,null,null,null,null,null,null,null,null,null,null,null,null,null,null,null,null,{"$f":"SUM(AJ288:AZ288)","v":0}]
["      3.5.6. Proiect tehnic şi detalii de execuţie",null,null,null,null,null,null,null,null,null,null,null,null,null,null,null,null,null,null,null,null,null,null,null,null,null,null,null,null,null,null,null,null,null,null,null,null,null,null,null,null,null,null,null,null,null,null,null,null,null,null,null,0]
["3.6 Organizarea procedurilor de achiziţie",null,null,null,null,null,null,null,null,null,null,null,null,null,null,null,null,null,null,null,null,null,null,null,null,null,null,null,null,null,null,null,null,null,null,null,null,null,null,null,null,null,null,null,null,null,null,null,null,null,null,null,0]
["3.7 Consultanţă",null,null,null,null,null,null,null,null,null,null,null,null,null,null,null,null,null,null,null,null,null,null,null,null,null,null,null,null,null,null,null,null,null,null,{"$f":"AJ292","v":0},null,null,null,null,null,null,null,null,{"$f":"AS292+AS293","v":0},null,null,null,null,null,null,null,0]
["      3.7.1 Managementul de proiect pentru obiectivul de investiţii",null,null,null,null,null,null,null,null,null,null,null,null,null,null,null,null,null,null,null,null,null,null,null,null,null,null,null,null,null,null,null,null,null,null,null,null,null,null,null,null,null,null,null,null,null,null,null,null,null,null,null,0]
["     3.7.2 Auditul financiar",null,null,null,null,null,null,null,null,null,null,null,null,null,null,null,null,null,null,null,null,null,null,null,null,null,null,null,null,null,null,null,null,null,null,null,null,null,null,null,null,null,null,null,null,null,null,null,null,null,null,null,{"$f":"SUM(AJ293:AZ293)","v":0}]
["3.8 Asistenţă Tehnică",null,null,null,null,null,null,null,null,null,null,null,null,null,null,null,null,null,null,null,null,null,null,null,null,null,null,null,null,null,null,null,null,null,null,{"$f":"AJ295+AS298","v":0},null,null,null,null,null,null,null,null,{"$f":"AS295+AS298","v":0},null,null,null,null,null,null,null,{"$f":"SUM(AJ294:AZ294)","v":0}]
["      3.8.1 Asistenţă Tehnică din partea proiectantului",null,null,null,null,null,null,null,null,null,null,null,null,null,null,null,null,null,null,null,null,null,null,null,null,null,null,null,null,null,null,null,null,null,null,{"$f":"AJ296+AJ297","v":0},null,null,null,null,null,null,null,null,{"$f":"AS296+AS297","v":0},null,null,null,null,null,null,null,0]
["           3.8.1.1 pe perioada de execuţie a lucrărilor",null,null,null,null,null,null,null,null,null,null,null,null,null,null,null,null,null,null,null,null,null,null,null,null,null,null,null,null,null,null,null,null,null,null,null,null,null,null,null,null,null,null,null,null,null,null,null,null,null,null,null,0]
["           3.8.1.2 pentru participarea proiectantului la fazele incluse în programul de control al\n                       lucrărilor de execuţie, avizat de către Inspectoratul de Stat în Construcţii",null,null,null,null,null,null,null,null,null,null,null,null,null,null,null,null,null,null,null,null,null,null,null,null,null,null,null,null,null,null,null,null,null,null,null,null,null,null,null,null,null,null,null,null,null,null,null,null,null,null,null,0]
["      3.8.2 Dirigenţie de şantier",null,null,null,null,null,null,null,null,null,null,null,null,null,null,null,null,null,null,null,null,null,null,null,null,null,null,null,null,null,null,null,null,null,null,null,null,null,null,null,null,null,null,null,null,null,null,null,null,null,null,null,{"$f":"SUM(AJ298:AZ298)","v":0}]
["Verificare încadrare cheltuieli capitolul 3",null,null,null,null,null,null,null,null,null,null,null,null,null,null,null,null,null,null,null,null,null,null,null,null,null,null,null,null,null,null,null,{"$f":"AJ269+AJ274+AJ300","v":0},{"$f":"IF(AG299=0,0,AI299)","v":0},null,"verificarea se face in Totalizator"]
["Capitolul 4 Cheltuieli pentru investiţia de bază - total, din care:",null,null,null,null,null,null,null,null,null,null,null,null,null,null,null,null,null,null,null,null,null,null,null,null,null,null,null,null,null,null,null,null,null,null,{"$f":"AJ301+AJ308","v":0},null,null,null,null,null,null,null,null,{"$f":"AS301+AS308","v":0},null,null,null,null,null,null,null,{"$f":"SUM(AJ300:AZ300)","v":0}]
["A - Constructii şi lucrări de intervenţii - total, din care:",null,null,null,null,null,null,null,null,null,null,null,null,null,null,null,null,null,null,null,null,null,null,null,null,null,null,null,null,null,null,null,null,null,null,{"$f":"SUM(AJ302:AR307)","v":0},null,null,null,null,null,null,null,null,{"$f":"SUM(AS302:AZ307)","v":0},null,null,null,null,null,null,null,0]
["4.1 Construcţii şi instalaţii",null,null,null,null,null,null,null,null,null,null,null,null,null,null,null,null,null,null,null,null,null,null,null,null,null,null,null,null,null,null,null,null,null,null,null,null,null,null,null,null,null,null,null,null,null,null,null,null,null,null,null,0]
["4.2 Montaj utilaje, echipamente tehnologice şi funcţionale",null,null,null,null,null,null,null,null,null,null,null,null,null,null,null,null,null,null,null,null,null,null,null,null,null,null,null,null,null,null,null,null,null,null,null,null,null,null,null,null,null,null,null,null,null,null,null,null,null,null,null,0]
["4.3 Utilaje, echipamente tehnologice şi funcţionale care necesită montaj",null,null,null,null,null,null,null,null,null,null,null,null,null,null,null,null,null,null,null,null,null,null,null,null,null,null,null,null,null,null,null,null,null,null,null,null,null,null,null,null,null,null,null,null,null,null,null,null,null,null,null,0]
["4.4 Utilaje, echipamente tehnologice şi funcţionale care nu necesită montaj şi echipamente",null,null,null,null,null,null,null,null,null,null,null,null,null,null,null,null,null,null,null,null,null,null,null,null,null,null,null,null,null,null,null,null,null,null,null,null,null,null,null,null,null,null,null,null,null,null,null,null,null,null,null,0]
["4.5 Dotări",null,null,null,null,null,null,null,null,null,null,null,null,null,null,null,null,null,null,null,null,null,null,null,null,null,null,null,null,null,null,null,null,null,null,null,null,null,null,null,null,null,null,null,null,null,null,null,null,null,null,null,0]
["4.6 Active necorporale",null,null,null,null,null,null,null,null,null,null,null,null,null,null,null,null,null,null,null,null,null,null,null,null,null,null,null,null,null,null,null,null,null,null,null,null,null,null,null,null,null,null,null,null,null,null,null,null,null,null,null,0]
["B - Cheltuieli pentru investitii în culturi/plantaţii",null,null,null,null,null,null,null,null,null,null,null,null,null,null,null,null,null,null,null,null,null,null,null,null,null,null,null,null,null,null,null,null,null,null,{"$f":"SUM(AJ309:AR313)","v":0},null,null,null,null,null,null,null,null,{"$f":"SUM(AS309:AZ313)","v":0},null,null,null,null,null,null,null,0]
["Subcapitol 1 - Lucrări de pregătire a terenului",null,null,null,null,null,null,null,null,null,null,null,null,null,null,null,null,null,null,null,null,null,null,null,null,null,null,null,null,null,null,null,null,null,null,null,null,null,null,null,null,null,null,null,null,null,null,null,null,null,null,null,0]
["Subcapitol 2 - Infiinţarea plantaţiei",null,null,null,null,null,null,null,null,null,null,null,null,null,null,null,null,null,null,null,null,null,null,null,null,null,null,null,null,null,null,null,null,null,null,null,null,null,null,null,null,null,null,null,null,null,null,null,null,null,null,null,0]
["Subcapitol 3 - Intreţinere plantaţie în anul 1",null,null,null,null,null,null,null,null,null,null,null,null,null,null,null,null,null,null,null,null,null,null,null,null,null,null,null,null,null,null,null,null,null,null,null,null,null,null,null,null,null,null,null,null,null,null,null,null,null,null,null,0]
["Subcapitol 4 - Intreţinere plantaţie în anul 2",null,null,null,null,null,null,null,null,null,null,null,null,null,null,null,null,null,null,null,null,null,null,null,null,null,null,null,null,null,null,null,null,null,null,null,null,null,null,null,null,null,null,null,null,null,null,null,null,null,null,null,0]
["Subcapitol 5 - Instalat sistem susţinere şi împrejmuire",null,null,null,null,null,null,null,null,null,null,null,null,null,null,null,null,null,null,null,null,null,null,null,null,null,null,null,null,null,null,null,null,null,null,null,null,null,null,null,null,null,null,null,null,null,null,null,null,null,null,null,0]
["Capitolul 5 Alte cheltuieli - total, din care:",null,null,null,null,null,null,null,null,null,null,null,null,null,null,null,null,null,null,null,null,null,null,null,null,null,null,null,null,null,null,null,null,null,null,{"$f":"AJ315+AJ318+AJ324+AJ325","v":0},null,null,null,null,null,null,null,null,{"$f":"AS315+AS318+AS324+AS325","v":0},null,null,null,null,null,null,null,0]
["5.1 Organizare de şantier",null,null,null,null,null,null,null,null,null,null,null,null,null,null,null,null,null,null,null,null,null,null,null,null,null,null,null,null,null,null,null,null,null,null,{"$f":"SUM(AJ316:AR317)","v":0},null,null,null,null,null,null,null,null,{"$f":"SUM(AS316:AZ317)","v":0},null,null,null,null,null,null,null,0]
["      5.1.1 lucrări de construcţii şi instalaţii aferente organizării de şantier",null,null,null,null,null,null,null,null,null,null,null,null,null,null,null,null,null,null,null,null,null,null,null,null,null,null,null,null,null,null,null,null,null,null,null,null,null,null,null,null,null,null,null,null,null,null,null,null,null,null,null,0]
["      5.1.2 cheltuieli conexe orgănizării şantierului",null,null,null,null,null,null,null,null,null,null,null,null,null,null,null,null,null,null,null,null,null,null,null,null,null,null,null,null,null,null,null,null,null,null,null,null,null,null,null,null,null,null,null,null,null,null,null,null,null,null,null,0]
["5.2 Comisioane, taxe, costul creditului",null,null,null,null,null,null,null,null,null,null,null,null,null,null,null,null,null,null,null,null,null,null,null,null,null,null,null,null,null,null,null,null,null,null,{"$f":"SUM(AJ319:AR323)","v":0},null,null,null,null,null,null,null,null,{"$f":"SUM(AS319:AZ323)","v":0},null,null,null,null,null,null,null,0]
["      5.2.1 Comisioanele şi dobânzile aferente creditului băncii finanţatoare",null,null,null,null,null,null,null,null,null,null,null,null,null,null,null,null,null,null,null,null,null,null,null,null,null,null,null,null,null,null,null,null,null,null,null,null,null,null,null,null,null,null,null,null,null,null,null,null,null,null,null,0]
["      5.2.2 Cota aferentă ISC pentru controlul calităţii lucrărilor de construcţii",null,null,null,null,null,null,null,null,null,null,null,null,null,null,null,null,null,null,null,null,null,null,null,null,null,null,null,null,null,null,null,null,null,null,null,null,null,null,null,null,null,null,null,null,null,null,null,null,null,null,null,0]
["      5.2.3 Cota aferentă ISC pentru controlul statului în amenajarea teritoriului,\n               urbanism şi pentru autorizarea lucrărilor de construcţii",null,null,null,null,null,null,null,null,null,null,null,null,null,null,null,null,null,null,null,null,null,null,null,null,null,null,null,null,null,null,null,null,null,null,null,null,null,null,null,null,null,null,null,null,null,null,null,null,null,null,null,0]
["      5.2.4 Cota aferentă Casei Sociale a Constructorilor - CSC",null,null,null,null,null,null,null,null,null,null,null,null,null,null,null,null,null,null,null,null,null,null,null,null,null,null,null,null,null,null,null,null,null,null,null,null,null,null,null,null,null,null,null,null,null,null,null,null,null,null,null,{"$f":"SUM(AJ322:AZ322)","v":0}]
["      5.2.5 Taxe pentru acorduri, avize conforme şi autorizaţia de construire/desfiinţare",null,null,null,null,null,null,null,null,null,null,null,null,null,null,null,null,null,null,null,null,null,null,null,null,null,null,null,null,null,null,null,null,null,null,null,null,null,null,null,null,null,null,null,null,null,null,null,null,null,null,null,0]
["5.3 Cheltuieli diverse şi neprevăzute",null,null,null,null,null,null,null,null,null,null,null,null,null,null,null,null,null,null,null,null,null,null,null,null,null,null,null,null,null,null,null,null,null,null,null,null,null,null,null,null,null,null,null,null,null,null,null,null,null,null,null,0]
["5.4 Cheltuieli pentru informare şi publicitate",null,null,null,null,null,null,null,null,null,null,null,null,null,null,null,null,null,null,null,null,null,null,null,null,null,null,null,null,null,null,null,null,null,null,null,null,null,null,null,null,null,null,null,null,null,null,null,null,null,null,null,0]
["Procent cheltuieli diverse şi neprevăzute",null,null,null,null,null,null,null,null,null,null,null,null,null,null,null,null,null,null,null,null,null,null,null,null,null,null,null,null,null,null,null,null,null,null,{"$f":"IF(SUM(AJ269,AJ274,AJ275,AJ301),AJ324/SUM(AJ269,AJ274,AJ275,AJ301),0)","v":0}]
["Capitolul 6 Cheltuieli pentru darea în exploatare - total, din care:",null,null,null,null,null,null,null,null,null,null,null,null,null,null,null,null,null,null,null,null,null,null,null,null,null,null,null,null,null,null,null,null,null,null,{"$f":"SUM(AJ328:AR329)","v":0},null,null,null,null,null,null,null,null,{"$f":"SUM(AS328:AZ329)","v":0},null,null,null,null,null,null,null,0]
["6.1 Pregătirea personalului de exploatare",null,null,null,null,null,null,null,null,null,null,null,null,null,null,null,null,null,null,null,null,null,null,null,null,null,null,null,null,null,null,null,null,null,null,null,null,null,null,null,null,null,null,null,null,null,null,null,null,null,null,null,0]
["6.2 Probe tehnologice şi teste",null,null,null,null,null,null,null,null,null,null,null,null,null,null,null,null,null,null,null,null,null,null,null,null,null,null,null,null,null,null,null,null,null,null,null,null,null,null,null,null,null,null,null,null,null,null,null,null,null,null,null,0]
["TOTAL GENERAL",null,null,null,null,null,null,null,null,null,null,null,null,null,null,null,null,null,null,null,null,null,null,null,null,null,null,null,null,null,null,null,null,null,null,{"$f":"AJ269+AJ274+AJ275+AJ300+AJ314+AJ327","v":0},null,null,null,null,null,null,null,null,{"$f":"AS269+AS274+AS275+AS300+AS314+AS327","v":0},null,null,null,null,null,null,null,0]
["Verificare actualizare",null,null,null,null,null,null,null,null,null,null,null,null,null,null,null,null,null,null,null,null,null,null,null,null,null,null,null,null,null,null,{"$f":"AJ332*100/AJ330","v":{"$error":"#DIV/0!"}},null,null,{"$f":"IF(AJ330=0,0,AF331)","v":0},{"$f":"IF(AI331<=5,\"actualizare mai mică de 5% din valoarea eligibila\",\"actualizare mai mare de 5% din valoarea eligibila\")","v":"actualizare mai mică de 5% din valoarea eligibila"}]
["ACTUALIZARE Cheltuieli Eligibile (max 5%)",null,null,null,null,null,null,null,null,null,null,null,null,null,null,null,null,null,null,null,null,null,null,null,null,null,null,null,null,null,null,null,null,null,null,null,null,null,null,null,null,null,null,null,null,null,null,null,null,null,null,null,{"$f":"SUM(AJ332:AZ332)","v":0}]
["TOTAL GENERAL CU ACTUALIZARE",null,null,null,null,null,null,null,null,null,null,null,null,null,null,null,null,null,null,null,null,null,null,null,null,null,null,null,null,null,null,null,null,null,null,{"$f":"AJ330+AJ332","v":0},null,null,null,null,null,null,null,null,{"$f":"AS330","v":0},null,null,null,null,null,null,null,0]
["Valoare TVA",null,null,null,null,null,null,null,null,null,null,null,null,null,null,null,null,null,null,null,null,null,null,null,null,null,null,null,null,null,null,null,null,null,null,null,null,null,null,null,null,null,null,null,null,null,null,null,null,null,null,null,0]
["TOTAL GENERAL inclusiv TVA",null,null,null,null,null,null,null,null,null,null,null,null,null,null,null,null,null,null,null,null,null,null,null,null,null,null,null,null,null,null,null,null,null,null,{"$f":"BA333+BA334","v":0}]
[null,null,null,null,null,null,null,null,null,null,null,null,null,null,null,null,null,null,null,null,null,null,null,null,null,null,null,null,null,null,null,null,null,null,null,"LEI",null,null,null,null,null,null,null,null,"EURO"]
["VALOARE TOTALĂ",null,null,null,null,null,null,null,null,null,null,null,null,null,null,null,null,null,null,null,null,null,null,null,null,null,null,null,null,null,null,null,null,null,null,{"$f":"AS337*Z263","v":0},null,null,null,null,null,null,null,null,{"$f":"AJ335","v":0}]
["VALOARE ELIGIBILĂ",null,null,null,null,null,null,null,null,null,null,null,null,null,null,null,null,null,null,null,null,null,null,null,null,null,null,null,null,null,null,null,null,null,null,{"$f":"AS338*Z263","v":0},null,null,null,null,null,null,null,null,{"$f":"AJ333+AJ334","v":0}]
["VALOARE NEELIGIBILĂ",null,null,null,null,null,null,null,null,null,null,null,null,null,null,null,null,null,null,null,null,null,null,null,null,null,null,null,null,null,null,null,null,null,null,{"$f":"AS339*Z263","v":0},null,null,null,null,null,null,null,null,{"$f":"AS333+AS334","v":0}]
[]
["Plan Financiar",null,null,null,null,null,null,null,null,null,null,null,null,null,null,null,null,null,null,null,null,null,null,null,null,null,null,null,null,null,null,null,null,null,null,"Cheltuieli eligibile EURO",null,null,null,null,null,null,null,null,"Cheltuieli neeligibile EURO",null,null,null,null,null,null,null,"Total"]
["Ajutor public nerambursabil (contribuţie UE şi cofinanţare naţională)",null,null,null,null,null,null,null,null,null,null,null,null,null,null,null,null,null,null,null,null,null,null,null,null,null,null,null,null,null,null,null,null,null,null,null,null,null,null,null,null,null,null,null,null,null,null,null,null,null,null,null,{"$f":"SUM(AJ342:AZ342)","v":0}]
["Cofinantare privata, din care:",null,null,null,null,null,null,null,null,null,null,null,null,null,null,null,null,null,null,null,null,null,null,null,null,null,null,null,null,null,null,null,null,null,null,{"$f":"SUM(AJ344:AR346)","v":0},null,null,null,null,null,null,null,null,{"$f":"SUM(AS344:AZ346)","v":0},null,null,null,null,null,null,null,0]
[null,null,null,null,null,null,null,null,null,null,null,null,null,null,null,"- contributia in natura",null,null,null,null,null,null,null,null,null,null,null,null,null,null,null,null,null,null,null,null,null,null,null,null,null,null,null,null,null,null,null,null,null,null,null,null,0]
[null,null,null,null,null,null,null,null,null,null,null,null,null,null,null,"- autofinanțare",null,null,null,null,null,null,null,null,null,null,null,null,null,null,null,null,null,null,null,null,null,null,null,null,null,null,null,null,null,null,null,null,null,null,null,null,0]
[null,null,null,null,null,null,null,null,null,null,null,null,null,null,null,"- împrumuturi",null,null,null,null,null,null,null,null,null,null,null,null,null,null,null,null,null,null,null,null,null,null,null,null,null,null,null,null,null,null,null,null,null,null,null,null,0]
["TOTAL PROIECT",null,null,null,null,null,null,null,null,null,null,null,null,null,null,null,null,null,null,null,null,null,null,null,null,null,null,null,null,null,null,null,null,null,null,{"$f":"AJ342+AJ343","v":0},null,null,null,null,null,null,null,null,{"$f":"AS343","v":0},null,null,null,null,null,null,null,0]
["Procent contribuţie publică",null,null,null,null,null,null,null,null,null,null,null,null,null,null,null,null,null,null,null,null,null,null,null,null,null,null,null,null,null,null,null,null,{"$f":"AJ342*100/AJ347","v":{"$error":"#DIV/0!"}},{"$f":"IF(AJ347=0,0,AH348)","v":0},{"$f":"AI348","v":0},null,null,null,null,null,null,null,"%"]
["Avans solicitat"]
["Procent avans solicitat ca procent din ajutorul public nerambursabil",null,null,null,null,null,null,null,null,null,null,null,null,null,null,null,null,null,null,null,null,null,null,null,null,null,null,null,null,null,null,null,null,null,{"$f":"AJ349*100/AJ342","v":{"$error":"#DIV/0!"}},{"$f":"IF(AJ342=0,0,AI350)","v":0},null,null,null,null,null,null,null,null,{"$f":"IF(AJ350<=50,\"Suma avans mai mica de 50% din ajutorul public\",\"Suma avans mai mare de 50% din ajutorul public\")","v":"Suma avans mai mica de 50% din ajutorul public"}]
[null,null,null,null,null,null,null,"MINISTERUL AGRICULTURII ŞI DEZVOLTĂRII RURALE"]
[null,null,null,null,null,null,null,null,null,null,null,null,null,null,null,null,null,null,null,null,null,null,null,null,null,null,null,null,null,null,null,null,null,null,null,null,null,null,null,null,null,null,"Anexa A1"]
[null,null,null,null,null,null,null,"AGENŢIA PENTRU FINANŢAREA INVESTIŢIILOR RURALE"]
[null,null,null,null,null,null,null,null,null,null,null,null,null,null,null,null,null,null,null,null,null,null,null,null,null,null,null,null,null,null,null,null,null,null,null,null,null,null,null,null,null,null,null,null,null,null,null,null,null,null,null,"GAL Ţara Vrancei 2018 "]
[null,null,null,null,null,null,null,"Deviz financiar- Capitolul 3 - Cheltuieli pentru proiectare şi asistenţa tehnică - EURO"]
[]
[]
["(Titlu deviz)"]
["Nr.crt",null,null,null,"Specificaţie",null,null,null,null,null,null,null,null,null,null,null,null,null,null,null,null,null,null,null,null,null,null,null,null,null,null,null,null,null,null,null,null,null,null,null,null,null,"Valoare eligibilă",null,null,null,null,null,null,null,null,"Valoare\nneeligibilă"]
["3.1",null,null,null,"Cheltuieli pentru studii ",null,null,null,null,null,null,null,null,null,null,null,null,null,null,null,null,null,null,null,null,null,null,null,null,null,null,null,null,null,null,null,null,null,null,null,null,null,{"$f":"SUM(AQ361:AY363)","v":0},null,null,null,null,null,null,null,null,{"$f":"SUM(AZ361:BI363)","v":0}]
[null,null,null,null,"3.1.1 Studii de teren: studii geotehnice, geologice, hidrologice, hidrogeotehnice, fotogrammetrice, topografica şi de stabilitate ale terenului pe care se amplasează obiectivul de investiţie"]
[null,null,null,null,"3.1.2 Raport privind impactul asupra mediului"]
[null,null,null,null,"3.1.3 Studii de specialitate necesare în funcţie de specificul investiţiei"]
["3.2",null,null,null,"Documentaţii-suport şi cheltuieli pentru obţinerea de avize, acorduri şi autorizaţii",null,null,null,null,null,null,null,null,null,null,null,null,null,null,null,null,null,null,null,null,null,null,null,null,null,null,null,null,null,null,null,null,null,null,null,null,null,{"$f":"SUM(AQ365:AY373)","v":0},null,null,null,null,null,null,null,null,{"$f":"SUM(AZ365:BI373)","v":0}]
[null,null,null,null,"1. obţinerea/prelungirea valabilităţii ceritificatului de urbanism"]
[null,null,null,null,"2. obţinerea/prelungirea valabilităţii autorizaţiei de construire/desfiinţare"]
[null,null,null,null,"3. obţinerea avizelor şi acordurilor pentru racorduri şi branşamente la reţele publice de alimentare cu apă, canalizare, alimentare cu gaze, alimentare cu agent termic, energie electrică, telefonie"]
[null,null,null,null,"4. obţinerea certificatului de nomenclatură stradală şi adresă"]
[null,null,null,null,"5. întocmirea documentaţiei, obţinerea numărului cadastral provizoriu şi înregistrarea terenului în cartea funciară"]
[null,null,null,null,"6. obţinerea actului administrativ al autorităţii competente pentru protecţia mediului"]
[null,null,null,null,"7. obţinerea avizului de protecţie civilă"]
[null,null,null,null,"8. avizul de specialitate în cazul obiectivelor de patrimoniu"]
[null,null,null,null,"9. alte avize, acorduri şi autorizaţii"]
["3.3",null,null,null,"Cheltuieli pentru expertizarea tehnică a construcţiilor existente, a structurilor şi/sau, după caz, a proiectelor tehnice, inclusiv întocmirea de către expertul tehnic a raportului de expertiză tehnică"]
["3.4",null,null,null,"Cheltuieli pentru certificarea performanţei energetice şi auditul energetic al clădirilor"]
["3.5",null,null,null,"Cheltuieli pentru proiectare",null,null,null,null,null,null,null,null,null,null,null,null,null,null,null,null,null,null,null,null,null,null,null,null,null,null,null,null,null,null,null,null,null,null,null,null,null,{"$f":"SUM(AQ377:AY382)","v":0},null,null,null,null,null,null,null,null,{"$f":"SUM(AZ377:BI382)","v":0}]
[null,null,null,null,"3.5.1 Temă de proiectare"]
[null,null,null,null,"3.5.2 Studiu de prefezabilitate"]
[null,null,null,null,"3.5.3 Studiu de fezabilitate/documentaţie de avizare a lucrărilor de intervenţii şi deviz general"]
[null,null,null,null,"3.5.4 Documentaţiile tehnice necesare în vederea obţinerii avizelor/acordurilor/ autorizaţiilor"]
[null,null,null,null,"3.5.5 Verificarea tehnică de calitate a proiectului tehnic şi a detaliilor de execuţie"]
[null,null,null,null,"3.5.6 Proiect tehnic şi detalii de execuţie"]
["3.6",null,null,null,"Cheltuieli aferente organizării şi derulării procedurilor de achiziţii publice",null,null,null,null,null,null,null,null,null,null,null,null,null,null,null,null,null,null,null,null,null,null,null,null,null,null,null,null,null,null,null,null,null,null,null,null,null,{"$f":"SUM(AQ384:AY387)","v":0},null,null,null,null,null,null,null,null,{"$f":"SUM(AZ384:BI387)","v":0}]
[null,null,null,null,"1. Cheltuieli aferente întocmirii documentaţiei de atribuire şi multiplicării acesteia (exclusiv cele cumpărate de ofertanţi)"]
[null,null,null,null,"2. Cheltuieli cu onorariile, transportul, cazarea şi diurna membrilor desemnaţi în comisiile de evaluare"]
[null,null,null,null,"3. Anunţuri de intenţie, de participare şi de atribuire a contractelor, corespondenţă prin poştă, fax, poştă electronică în legătură cu procedurile de achiziţie publică"]
[null,null,null,null,"4. Cheltuieli aferente organizării şi derulării procedurilor de achiziţii publice"]
["3.7",null,null,null,"Cheltuieli pentru consultanţă",null,null,null,null,null,null,null,null,null,null,null,null,null,null,null,null,null,null,null,null,null,null,null,null,null,null,null,null,null,null,null,null,null,null,null,null,null,{"$f":"SUM(AQ389:AY390)","v":0},null,null,null,null,null,null,null,null,{"$f":"SUM(AZ389:BI390)","v":0}]
[null,null,null,null,"3.7.1 Managementul de proiect pentru obiectivul de investiţii"]
[null,null,null,null,"3.7.2 Auditul financiar"]
["3.8",null,null,null,"Cheltuieli pentru asistenţă tehnică",null,null,null,null,null,null,null,null,null,null,null,null,null,null,null,null,null,null,null,null,null,null,null,null,null,null,null,null,null,null,null,null,null,null,null,null,null,{"$f":"AQ392+AQ395","v":0},null,null,null,null,null,null,null,null,{"$f":"AZ392+AZ395","v":0}]
[null,null,null,null,"3.8.1. Asistenţă tehnică din partea proiectantului",null,null,null,null,null,null,null,null,null,null,null,null,null,null,null,null,null,null,null,null,null,null,null,null,null,null,null,null,null,null,null,null,null,null,null,null,null,{"$f":"SUM(AQ393:AY394)","v":0},null,null,null,null,null,null,null,null,{"$f":"SUM(AZ393:BI394)","v":0}]
[null,null,null,null,"\n1.1. pe perioada de execuţie a lucrărilor"]
[null,null,null,null,"1.2. pentru participarea proiectantului la fazele incluse în programul de control al lucrărilor de execuţie, avizat de către Inspectoratul de Stat în Construcţii"]
[null,null,null,null,"3.8.2 Dirigenţie de şantier, asigurată de personal tehnic de specialitate, autorizat"]
["Total valoare fără TVA",null,null,null,null,null,null,null,null,null,null,null,null,null,null,null,null,null,null,null,null,null,null,null,null,null,null,null,null,null,null,null,null,null,null,null,null,null,null,null,null,null,{"$f":"AQ360+AQ364+AQ374+AQ375+AQ376+AQ383+AQ388+AQ391","v":0},null,null,null,null,null,null,null,null,{"$f":"AZ360+AZ364+AZ374+AZ375+AZ376+AZ383+AZ388+AZ391","v":0}]
["Valoare TVA (aferentă cheltuielilor eligibile şi neeligibile)"]
["TOTAL DEVIZ FINANCIAR 1 (inclusiv TVA)",null,null,null,null,null,null,null,null,null,null,null,null,null,null,null,null,null,null,null,null,null,null,null,null,null,null,null,null,null,null,null,null,null,null,null,null,null,null,null,null,null,{"$f":"SUM(AQ396:BI397)","v":0}]
[]
[null,null,null,null,null,null,null,"MINISTERUL AGRICULTURII ŞI DEZVOLTĂRII RURALE"]
[null,null,null,null,null,null,null,null,null,null,null,null,null,null,null,null,null,null,null,null,null,null,null,null,null,null,null,null,null,null,null,null,null,null,null,null,null,null,null,null,null,null,"Anexa A2"]
[null,null,null,null,null,null,null,"AGENŢIA PENTRU FINANŢAREA INVESTIŢIILOR RURALE"]
[null,null,null,null,null,null,null,null,null,null,null,null,null,null,null,null,null,null,null,null,null,null,null,null,null,null,null,null,null,null,null,null,null,null,null,null,null,null,null,null,null,null,null,null,null,null,null,null,null,null,null,"GAL Ţara Vrancei 2018 "]
[null,null,null,null,null,null,null,"DEVIZUL OBIECTULUI *"]
[]
[]
[]
["Nr. crt.",null,null,null,"Denumire",null,null,null,null,null,null,null,null,null,null,null,null,null,null,null,null,null,null,null,null,null,null,null,null,null,null,null,null,null,null,null,null,null,null,null,null,null,"Valoarea pe categorii de lucrări, fară TVA - EURO"]
[null,null,null,null,"Cap. 4 - Cheltuieli pentru investiţia de bază",null,null,null,null,null,null,null,null,null,null,null,null,null,null,null,null,null,null,null,null,null,null,null,null,null,null,null,null,null,null,null,null,null,null,null,null,null,"Valoare eligibilă",null,null,null,null,null,null,null,null,"Valoare\nneeligibilă"]
["I - LUCRĂRI DE CONSTRUCŢII ŞI INSTALAŢII"]
["4.1",null,null,null,"Construcţii şi instalaţii"]
[null,null,null,null,"4.1.1 Terasamente, sistematizare pe verticală şi amenajări exterioare"]
[null,null,null,null,"4.1.2 Rezistenţă"]
[null,null,null,null,"4.1.3 Arhitectură"]
[null,null,null,null,"4.1.4 Instalaţii"]
[null,null,null,null,"TOTAL I ( fără TVA)",null,null,null,null,null,null,null,null,null,null,null,null,null,null,null,null,null,null,null,null,null,null,null,null,null,null,null,null,null,null,null,null,null,null,null,null,null,{"$f":"SUM(AQ412:AY415)","v":0},null,null,null,null,null,null,null,null,{"$f":"SUM(AZ412:BI415)","v":0}]
["II - MONTAJ"]
["4.2",null,null,null,"Montaj utilaje, echipamente tehnologice şi funcţionale"]
[null,null,null,null,"TOTAL II ( fără TVA)",null,null,null,null,null,null,null,null,null,null,null,null,null,null,null,null,null,null,null,null,null,null,null,null,null,null,null,null,null,null,null,null,null,null,null,null,null,{"$f":"SUM(AQ418)","v":0},null,null,null,null,null,null,null,null,{"$f":"SUM(AZ418)","v":0}]
["III - PROCURARE"]
["4.3",null,null,null,"Utilaje, echipamente tehnologice şi funcţionale care necesită montaj"]
["4.4",null,null,null,"Utilaje, echipamente tehnologice şi funcţionale care nu necesită montaj şi echipamente de transport"]
["4.5",null,null,null,"Dotări"]
["4.6",null,null,null,"Active necorporale"]
[null,null,null,null,"TOTAL III ( fără TVA)",null,null,null,null,null,null,null,null,null,null,null,null,null,null,null,null,null,null,null,null,null,null,null,null,null,null,null,null,null,null,null,null,null,null,null,null,null,{"$f":"SUM(AQ421:AY424)","v":0},null,null,null,null,null,null,null,null,{"$f":"SUM(AZ421:BI424)","v":0}]
["TOTAL ( TOTAL I + TOTAL II +TOTAL III) fără TVA",null,null,null,null,null,null,null,null,null,null,null,null,null,null,null,null,null,null,null,null,null,null,null,null,null,null,null,null,null,null,null,null,null,null,null,null,null,null,null,null,null,{"$f":"AQ425+AQ419+AQ416","v":0},null,null,null,null,null,null,null,null,{"$f":"AZ425+AZ419+AZ416","v":0}]
["TVA aferent cheltuielilor eligibile şi neeligibile"]
["TOTAL DEVIZ PE OBIECT (inclusiv TVA)",null,null,null,null,null,null,null,null,null,null,null,null,null,null,null,null,null,null,null,null,null,null,null,null,null,null,null,null,null,null,null,null,null,null,null,null,null,null,null,null,null,{"$f":"AQ426+AZ426+AQ427+AZ427","v":0}]
[]
[null,"*) Se înscrie denumirea obiectului de construcţie sau intervenţie"]
[]
[]
[]
[]
[]
[]
[null,null,null,null,null,null,null,"MINISTERUL AGRICULTURII ŞI DEZVOLTĂRII RURALE",null,null,null,null,null,null,null,null,null,null,null,null,null,null,null,null,null,null,null,null,null,null,null,null,null,null,null,null,null,null,null,null,null,null,"Anexa A3"]
[]
[null,null,null,null,null,null,null,"AGENŢIA PENTRU FINANŢAREA INVESTIŢIILOR RURALE",null,null,null,null,null,null,null,null,null,null,null,null,null,null,null,null,null,null,null,null,null,null,null,null,null,null,null,null,null,null,null,null,null,null,null,null,null,null,null,null,null,null,null,"GAL Ţara Vrancei 2018 "]
[]
[]
[]
[]
["Deviz capitolul 2- Cheltuieli pentru asigurarea utilităţilor necesare obiectivului - EURO"]
["Nr. crt.",null,null,null,"Specificaţie",null,null,null,null,null,null,null,null,null,null,null,null,null,null,null,null,null,null,null,null,null,null,null,null,null,null,null,null,null,null,null,null,null,null,null,null,null,"Valoare eligibilă",null,null,null,null,null,null,null,null,"Valoare\nneeligibilă"]
[1,null,null,null,"Alimentare cu apă"]
[2,null,null,null,"Canalizare"]
[3,null,null,null,"Alimentare cu gaze naturale"]
[4,null,null,null,"Alimentare cu agent termic"]
[5,null,null,null,"Alimentare cu energie electrică"]
[6,null,null,null,"Telecomunicaţii (telefonie, radio-tv,etc)"]
[7,null,null,null,"Drumuri de acces"]
[8,null,null,null,"Căi ferate industriale"]
[9,null,null,null,"Alte utilitati"]
[null,null,null,null,"TOTAL DEVIZ CAPITOLUL 2",null,null,null,null,null,null,null,null,null,null,null,null,null,null,null,null,null,null,null,null,null,null,null,null,null,null,null,null,null,null,null,null,null,null,null,null,null,{"$f":"SUM(AQ446:AY454)","v":0},null,null,null,null,null,null,null,null,{"$f":"SUM(AZ446:BI454)","v":0}]
[null,null,null,null,"Valoare TVA aferentă cheltuielilor eligibile şi neeligibile"]
["TOTAL DEVIZ CAPITOLUL 2 (inclusiv TVA)",null,null,null,null,null,null,null,null,null,null,null,null,null,null,null,null,null,null,null,null,null,null,null,null,null,null,null,null,null,null,null,null,null,null,null,null,null,null,null,null,null,{"$f":"AQ455+AZ455+AQ456+AZ456","v":0}]
[]
[" Deviz capitolul 5 - Alte cheltuieli - EURO"]
["Nr. crt.",null,null,null,"Specificaţie",null,null,null,null,null,null,null,null,null,null,null,null,null,null,null,null,null,null,null,null,null,null,null,null,null,null,null,null,null,null,null,null,null,null,null,null,null,"Valoare eligibilă",null,null,null,null,null,null,null,null,"Valoare\nneeligibilă"]
[]
["5.1 ",null,null,null,"Organizare de şantier",null,null,null,null,null,null,null,null,null,null,null,null,null,null,null,null,null,null,null,null,null,null,null,null,null,null,null,null,null,null,null,null,null,null,null,null,null,{"$f":"SUM(AQ463:AY464)","v":0},null,null,null,null,null,null,null,null,{"$f":"SUM(AZ463:BI464)","v":0}]
[null,null,null,null,"5.1.1 Lucrări de construcţii şi instalaţii aferente organizării de şantier"]
[null,null,null,null,"5.1.2 Cheltuieli conexe organizării de şantier"]
["5.2",null,null,null,"Comisioane, cote, taxe, costul creditului",null,null,null,null,null,null,null,null,null,null,null,null,null,null,null,null,null,null,null,null,null,null,null,null,null,null,null,null,null,null,null,null,null,null,null,null,null,{"$f":"SUM(AQ467:AY470)","v":0},null,null,null,null,null,null,null,null,{"$f":"SUM(AZ466:BI470)","v":0}]
[null,null,null,null,"5.2.1. Comisioanele şi dobânzile aferente creditului băncii finanţatoare"]
[null,null,null,null,"5.2.2. Cota aferentă ISC pentru controlul calităţii lucrărilor de construcţii"]
[null,null,null,null,"5.2.3. Cota aferentă ISC pentru controlul statului în amenajarea teritoriului, urbanism şi pentru autorizarea lucrărilor de construcţii"]
[null,null,null,null,"5.2.4. Cota aferentă Casei Sociale a Constructorilor - CSC"]
[null,null,null,null,"5.2.5. Taxe pentru acorduri, avize conforme şi autorizaţia de construire/ desfiinţare"]
["5.3",null,null,null," Cheltuieli diverse si neprevazute"]
["5.4",null,null,null," Cheltuieli pentru informare şi publicitate"]
[null,null,null,null,"TOTAL DEVIZ CAPITOLUL 5",null,null,null,null,null,null,null,null,null,null,null,null,null,null,null,null,null,null,null,null,null,null,null,null,null,null,null,null,null,null,null,null,null,null,null,null,null,{"$f":"AQ462+AQ465+AQ471","v":0},null,null,null,null,null,null,null,null,{"$f":"AZ462+AZ465+AZ471+AZ472","v":0}]
[null,null,null,null,"VALOARE TVA aferentă cheltuielilor eligibile şi neeligibile"]
[null,null,null,null,"TOTAL DEVIZ CAPITOLUL 5 ( inclusiv TVA)",null,null,null,null,null,null,null,null,null,null,null,null,null,null,null,null,null,null,null,null,null,null,null,null,null,null,null,null,null,null,null,null,null,null,null,null,null,{"$f":"AQ473+AZ473+AQ474+AZ474","v":0}]
[]
[]
[]
[]
[]
["MINISTERUL AGRICULTURII ŞI DEZVOLTĂRII RURALE",null,null,null,null,null,null,null,null,null,null,null,null,null,null,null,null,null,null,null,null,null,null,null,null,null,null,null,null,null,null,null,null,null,null,null,null,null,null,null,null,null,"Anexa A4"]
["AGENŢIA PENTRU FINANŢAREA INVESTIŢIILOR RURALE"]
[]
["Deviz cheltuieli culturi - EURO - Culturi perene"]
["Nr. crt.",null,null,null,"Specificaţie",null,null,null,null,null,null,null,null,null,null,null,null,null,null,null,null,null,null,null,null,null,null,null,null,null,null,null,null,null,null,null,null,null,null,null,null,null,"Valoare eligibilă",null,null,null,null,null,null,null,null,"Valoare\nneeligibilă"]
["I. LUCRĂRI DE ÎNFIINŢARE PLANTAŢIE"]
[1,null,null,null,"Subcapitolul I Lucrări de pregătire a terenului"]
[null,null,null,null,"1. Manoperă"]
["a"]
[null,null,null,null,"Total (1)",null,null,null,null,null,null,null,null,null,null,null,null,null,null,null,null,null,null,null,null,null,null,null,null,null,null,null,null,null,null,null,null,null,null,null,null,null,{"$f":"AQ489","v":0},null,null,null,null,null,null,null,null,{"$f":"AZ489","v":0}]
[null,null,null,null,"2. Lucrări mecanice"]
["a"]
["b"]
["c"]
[null,null,null,null,"Total (2)",null,null,null,null,null,null,null,null,null,null,null,null,null,null,null,null,null,null,null,null,null,null,null,null,null,null,null,null,null,null,null,null,null,null,null,null,null,{"$f":"SUM(AQ492:AY494)","v":0},null,null,null,null,null,null,null,null,{"$f":"SUM(AZ492:BI494)","v":0}]
[null,null,null,null,"Total subcapitol I (1+2)",null,null,null,null,null,null,null,null,null,null,null,null,null,null,null,null,null,null,null,null,null,null,null,null,null,null,null,null,null,null,null,null,null,null,null,null,null,{"$f":"AQ490+AQ495","v":0},null,null,null,null,null,null,null,null,{"$f":"AZ490+AZ495","v":0}]
[2,null,null,null,"Subcapitolul II Înfiinţarea plantaţiei"]
["Atenţie! Sunt eligibile numai cheltuielile cu servicii executate de terţi."]
[null,null,null,null,"1. Manoperă"]
["a"]
["b"]
["c"]
["d"]
["e"]
["f"]
["g"]
["h"]
["i"]
[null,null,null,null,"Total (1)",null,null,null,null,null,null,null,null,null,null,null,null,null,null,null,null,null,null,null,null,null,null,null,null,null,null,null,null,null,null,null,null,null,null,null,null,null,{"$f":"SUM(AQ500:AY508)","v":0},null,null,null,null,null,null,null,null,{"$f":"SUM(AZ500:BI508)","v":0}]
[null,null,null,null,"2. Lucrări mecanice"]
["a"]
["b"]
["c"]
["d"]
[null,null,null,null,"Total (2)",null,null,null,null,null,null,null,null,null,null,null,null,null,null,null,null,null,null,null,null,null,null,null,null,null,null,null,null,null,null,null,null,null,null,null,null,null,{"$f":"SUM(AQ511:AY514)","v":0},null,null,null,null,null,null,null,null,{"$f":"SUM(AZ511:BI514)","v":0}]
[null,null,null,null,"3. Materii şi materiale "]
["a"]
["b"]
["c"]
["d"]
["e"]
[null,null,null,null,"Total (3)",null,null,null,null,null,null,null,null,null,null,null,null,null,null,null,null,null,null,null,null,null,null,null,null,null,null,null,null,null,null,null,null,null,null,null,null,null,{"$f":"SUM(AQ517:AY521)","v":0},null,null,null,null,null,null,null,null,{"$f":"SUM(AZ517:BI521)","v":0}]
[null,null,null,null,"Total subcapitol II (1+2+3)",null,null,null,null,null,null,null,null,null,null,null,null,null,null,null,null,null,null,null,null,null,null,null,null,null,null,null,null,null,null,null,null,null,null,null,null,null,{"$f":"AQ509+AQ515+AQ522","v":0},null,null,null,null,null,null,null,null,{"$f":"AZ509+AZ515+AZ522","v":0}]
[3,null,null,null,"Subcapitolul III Întreţinere plantaţie în anul 1   ATENŢIE! Cheltuieli neeligibile"]
[null,null,null,null,"1. Manoperă"]
[null,null,null,null,"Total (1)"]
[null,null,null,null,"2. Lucrări mecanice"]
[null,null,null,null,"Total (2)"]
[null,null,null,null,"3. Materii şi materiale "]
[null,null,null,null,"Total (3)"]
[null,null,null,null,"Total subcapitol III (1+2+3)",null,null,null,null,null,null,null,null,null,null,null,null,null,null,null,null,null,null,null,null,null,null,null,null,null,null,null,null,null,null,null,null,null,null,null,null,null,null,null,null,null,null,null,null,null,null,{"$f":"SUM(AZ526+AZ528+AZ530)","v":0}]
[4,null,null,null,"Subcapitolul IV Întreţinere plantaţie în anul 2   ATENŢIE! Cheltuieli neeligibile"]
[null,null,null,null,"1. Manoperă"]
[null,null,null,null,"Total (1)"]
[null,null,null,null,"2. Lucrări mecanice"]
[null,null,null,null,"Total (2)"]
[null,null,null,null,"3. Materii şi materiale "]
[null,null,null,null,"Total (3)"]
[null,null,null,null,"Total subcapitol IV (1+2+3)",null,null,null,null,null,null,null,null,null,null,null,null,null,null,null,null,null,null,null,null,null,null,null,null,null,null,null,null,null,null,null,null,null,null,null,null,null,null,null,null,null,null,null,null,null,null,{"$f":"SUM(AZ534+AZ536+AZ538)","v":0}]
[5,null,null,null,"Subcapitolul V Instalat sistem susţinere şi împrejmuire"]
[null,null,null,null,"1. Manoperă"]
["a"]
["b"]
["c"]
["d"]
["e"]
["f"]
["g"]
[null,null,null,null,"Total (1)",null,null,null,null,null,null,null,null,null,null,null,null,null,null,null,null,null,null,null,null,null,null,null,null,null,null,null,null,null,null,null,null,null,null,null,null,null,{"$f":"SUM(AQ542:AY548)","v":0},null,null,null,null,null,null,null,null,{"$f":"SUM(AZ542:BI548)","v":0}]
[null,null,null,null,"2. Materii şi materiale"]
["a"]
["b"]
["c"]
["d"]
[null,null,null,null,"Total (2)",null,null,null,null,null,null,null,null,null,null,null,null,null,null,null,null,null,null,null,null,null,null,null,null,null,null,null,null,null,null,null,null,null,null,null,null,null,{"$f":"SUM(AQ551:AY554)","v":0},null,null,null,null,null,null,null,null,{"$f":"SUM(AZ551:BI554)","v":0}]
[null,null,null,null,"Total subcapitol V (1+2)",null,null,null,null,null,null,null,null,null,null,null,null,null,null,null,null,null,null,null,null,null,null,null,null,null,null,null,null,null,null,null,null,null,null,null,null,null,{"$f":"AQ549+AQ555","v":0},null,null,null,null,null,null,null,null,{"$f":"AZ549+AZ555","v":0}]
["TOTAL ELIGIBIL / NEELIGIBIL FĂRĂ TVA",null,null,null,null,null,null,null,null,null,null,null,null,null,null,null,null,null,null,null,null,null,null,null,null,null,null,null,null,null,null,null,null,null,null,null,null,null,null,null,null,null,{"$f":"AQ496+AQ523+AQ556","v":0},null,null,null,null,null,null,null,null,{"$f":"AZ496+AZ523+AZ531+AZ539+AZ556","v":0}]
["VALOARE TVA aferentă cheltuielilor eligibile şi neeligibile"]
["TOTAL DEVIZ CU TVA",null,null,null,null,null,null,null,null,null,null,null,null,null,null,null,null,null,null,null,null,null,null,null,null,null,null,null,null,null,null,null,null,null,null,null,null,null,null,null,null,null,{"$f":"SUM(AQ557:BI558)","v":0}]
[]
["MINISTERUL AGRICULTURII ŞI DEZVOLTĂRII RURALE",null,null,null,null,null,null,null,null,null,null,null,null,null,null,null,null,null,null,null,null,null,null,null,null,null,null,null,null,null,null,null,null,null,null,null,null,null,null,null,null,null,"Anexa A5"]
["AGENŢIA PENTRU FINANŢAREA INVESTIŢIILOR RURALE"]
["VALORI PENTRU COSTURI STANDARD ŞI CONTRIBUŢIE ÎN NATURĂ, APLICABILE INVESTIŢIILOR\nprivind înfiinţarea plantaţiilor de struguri de masă\nMĂSURA 2/2A"]
[]
[]
[]
[null,"Înfiinţare plantaţii viticole pentru struguri de masă"]
[]
[null,"Desime de plantaţie (viţe/ha):"]
[]
[null,null,null,null,null,null,null,null,null,null,null,null,null,"Costuri în Euro / ha"]
["Nr. crt.",null,"Specificare",null,null,null,null,null,null,null,null,null,null,"în regie proprie",null,null,null,"Suprafaţa (ha)",null,null,null,"Total costuri (euro)",null,null,null,"în  antrepriză",null,null,null,"Suprafaţa (ha)",null,null,null,null,"Total costuri (euro)",null,null,null,"în regie proprie",null,null,null,"Suprafaţa (ha)",null,null,null,"Total costuri (euro)",null,null,null,"în antrepriză",null,null,null,"Suprafaţa (ha)",null,null,"Total costuri (euro)"]
[null,null,"Desime de plantare: viţe/ha",null,null,null,null,null,null,null,null,null,null,"<= 3333",null,null,null,null,null,null,null,null,null,null,null,null,null,null,null,null,null,null,null,null,null,null,null,null,"peste 3333 şi <= 4167"]
[1,null,"Proiectare, analize sol",null,null,null,null,null,null,null,null,null,null,350,null,null,null,null,null,null,null,{"$f":"N574*R574","v":0},null,null,null,385,null,null,null,null,null,null,null,null,{"$f":"Z574*AD574","v":0},null,null,null,350,null,null,null,null,null,null,null,{"$f":"AM574*AQ574","v":0},null,null,null,385,null,null,null,null,null,null,{"$f":"AY574*BC574","v":0}]
[2,null,"Pregătirea terenului:",null,null,null,null,null,null,null,null,null,null,758.42,null,null,null,null,null,null,null,{"$f":"N575*R575","v":0},null,null,null,834.26,null,null,null,null,null,null,null,null,{"$f":"Z575*AD575","v":0},null,null,null,758.42,null,null,null,null,null,null,null,{"$f":"AM575*AQ575","v":0},null,null,null,834.26,null,null,null,null,null,null,{"$f":"AY575*BC575","v":0}]
[null,null,"din care: - lucrări mecanice",null,null,null,null,null,null,null,null,null,null,679.52,null,null,null,null,null,null,null,0,null,null,null,747.47,null,null,null,null,null,null,null,null,0,null,null,null,679.52,null,null,null,null,null,null,null,0,null,null,null,747.47,null,null,null,null,null,null,0]
[null,null,"                - lucrări manuale",null,null,null,null,null,null,null,null,null,null,78.900000000000006,null,null,null,null,null,null,null,0,null,null,null,86.79,null,null,null,null,null,null,null,null,0,null,null,null,78.900000000000006,null,null,null,null,null,null,null,0,null,null,null,86.79,null,null,null,null,null,null,0]
[3,null,"Fertilizarea solului",null,null,null,null,null,null,null,null,null,null,737.66,null,null,null,null,null,null,null,0,null,null,null,811.42,null,null,null,null,null,null,null,null,0,null,null,null,737.66,null,null,null,null,null,null,null,0,null,null,null,811.42,null,null,null,null,null,null,0]
[4,null,"Sistem de susţinere",null,null,null,null,null,null,null,null,null,null,5605.61,null,null,null,null,null,null,null,0,null,null,null,6166.17,null,null,null,null,null,null,null,null,0,null,null,null,10991.22,null,null,null,null,null,null,null,0,null,null,null,12090.35,null,null,null,null,null,null,0]
[5,null,"Instalat sistem de susţinere",null,null,null,null,null,null,null,null,null,null,826.78,null,null,null,null,null,null,null,0,null,null,null,909.46,null,null,null,null,null,null,null,null,0,null,null,null,665.53,null,null,null,null,null,null,null,0,null,null,null,732.08,null,null,null,null,null,null,0]
[null,null,"din care: - lucrări mecanice",null,null,null,null,null,null,null,null,null,null,41.29,null,null,null,null,null,null,null,0,null,null,null,45.42,null,null,null,null,null,null,null,null,0,null,null,null,44.7,null,null,null,null,null,null,null,0,null,null,null,49.17,null,null,null,null,null,null,0]
[null,null,"                 - lucrări manuale",null,null,null,null,null,null,null,null,null,null,785.49,null,null,null,null,null,null,null,0,null,null,null,864.04,null,null,null,null,null,null,null,null,0,null,null,null,620.83000000000004,null,null,null,null,null,null,null,0,null,null,null,682.91,null,null,null,null,null,null,0]
[6,null,"Echipament de irigare localizată",null,null,null,null,null,null,null,null,null,null,2527.41,null,null,null,null,null,null,null,0,null,null,null,2780.15,null,null,null,null,null,null,null,null,0,null,null,null,2527.41,null,null,null,null,null,null,null,0,null,null,null,2780.15,null,null,null,null,null,null,0]
[7,null,"Instalat sistem de irigare localizată",null,null,null,null,null,null,null,null,null,null,379.11,null,null,null,null,null,null,null,0,null,null,null,417.02,null,null,null,null,null,null,null,null,0,null,null,null,379.11,null,null,null,null,null,null,null,0,null,null,null,417.02,null,null,null,null,null,null,0]
[8,null,"Sistem plasă antigrindină",null,null,null,null,null,null,null,null,null,null,7824.64,null,null,null,null,null,null,null,0,null,null,null,8607.1,null,null,null,null,null,null,null,null,0,null,null,null,16327.96,null,null,null,null,null,null,null,0,null,null,null,17960.759999999998,null,null,null,null,null,null,0]
[9,null,"Instalat sistem antigrindină",null,null,null,null,null,null,null,null,null,null,1173.7,null,null,null,null,null,null,null,0,null,null,null,1291.07,null,null,null,null,null,null,null,null,0,null,null,null,2449.19,null,null,null,null,null,null,null,0,null,null,null,2694.11,null,null,null,null,null,null,0]
[10,null,"Sistem protecţie antiploaie",null,null,null,null,null,null,null,null,null,null,5250,null,null,null,null,null,null,null,0,null,null,null,5775,null,null,null,null,null,null,null,null,0,null,null,null,8400,null,null,null,null,null,null,null,0,null,null,null,9240,null,null,null,null,null,null,0]
[11,null,"Instalat sistem antiploaie",null,null,null,null,null,null,null,null,null,null,787.5,null,null,null,null,null,null,null,0,null,null,null,866.25,null,null,null,null,null,null,null,null,0,null,null,null,1260,null,null,null,null,null,null,null,0,null,null,null,1386,null,null,null,null,null,null,0]
[12,null,"Defrişare",null,null,null,null,null,null,null,null,null,null,713.42,null,null,null,null,null,null,null,0,null,null,null,784.76,null,null,null,null,null,null,null,null,0,null,null,null,713.42,null,null,null,null,null,null,null,0,null,null,null,784.76,null,null,null,null,null,null,0]
[null,null,"din care: - lucrări mecanice",null,null,null,null,null,null,null,null,null,null,98.57,null,null,null,null,null,null,null,0,null,null,null,108.43,null,null,null,null,null,null,null,null,0,null,null,null,98.57,null,null,null,null,null,null,null,0,null,null,null,108.43,null,null,null,null,null,null,0]
[null,null,"               - lucrări manuale",null,null,null,null,null,null,null,null,null,null,608.11,null,null,null,null,null,null,null,0,null,null,null,668.91,null,null,null,null,null,null,null,null,0,null,null,null,608.11,null,null,null,null,null,null,null,0,null,null,null,668.91,null,null,null,null,null,null,0]
[null,null,"               - materiale",null,null,null,null,null,null,null,null,null,null,6.74,null,null,null,null,null,null,null,0,null,null,null,7.42,null,null,null,null,null,null,null,null,0,null,null,null,6.74,null,null,null,null,null,null,null,0,null,null,null,7.42,null,null,null,null,null,null,0]
[null,null,"Total:",null,null,null,null,null,null,null,null,null,null,null,null,null,null,null,null,null,null,{"$f":"SUM(V574:Y592)","v":0},null,null,null,null,null,null,null,null,null,null,null,null,{"$f":"SUM(AI574:AL592)","v":0},null,null,null,null,null,null,null,null,null,null,null,{"$f":"SUM(AU574:AX592)","v":0},null,null,null,null,null,null,null,null,null,null,{"$f":"SUM(BF574:BJ592)","v":0}]
[]
["Cost unitar în EURO per material săditior şi plantare",null,null,null,null,null,null,null,null,null,null,null,null,"în regie proprie",null,null,null,"Suprafaţa (ha)",null,null,null,"Total costuri (euro)",null,null,null,"în  antrepriză",null,null,null,"Suprafaţa (ha)",null,null,null,null,"Total costuri (euro)",null,null,null,"în regie proprie",null,null,null,"Suprafaţa (ha)",null,null,null,"Total costuri (euro)",null,null,null,"în antrepriză",null,null,null,"Suprafaţa (ha)",null,null,"Total costuri (euro)"]
[13,null,"Material săditor",null,null,null,null,null,null,null,null,null,null,1.58,null,null,null,null,null,null,null,{"$f":"N596*R596","v":0},null,null,null,1.73,null,null,null,null,null,null,null,null,{"$f":"Z596*AD596","v":0},null,null,null,1.59,null,null,null,null,null,null,null,{"$f":"AM596*AQ596","v":0},null,null,null,1.75,null,null,null,null,null,null,{"$f":"AY596*BC596","v":0}]
[14,null,"Plantarea viţei de vie (lucrări mecanice, lucrări manuale şi alte materiale)",null,null,null,null,null,null,null,null,null,null,1.19,null,null,null,null,null,null,null,0,null,null,null,1.3,null,null,null,null,null,null,null,null,0,null,null,null,1.21,null,null,null,null,null,null,null,0,null,null,null,1.33,null,null,null,null,null,null,0]
[null,null,"Total:",null,null,null,null,null,null,null,null,null,null,null,null,null,null,null,null,null,null,{"$f":"SUM(V596:Y597)","v":0},null,null,null,null,null,null,null,null,null,null,null,null,{"$f":"SUM(AI596:AL597)","v":0},null,null,null,null,null,null,null,null,null,null,null,{"$f":"SUM(AU596:AX597)","v":0},null,null,null,null,null,null,null,null,null,null,{"$f":"SUM(BF596:BJ597)","v":0}]
[]
[null,null,null,null,null,null,null,null,null,null,null,null,null,"Costuri în Euro / ml"]
["Nr. crt.",null,"Specificare",null,null,null,null,null,null,null,null,null,null,"în regie proprie",null,null,null,"Suprafaţa (ha)",null,null,null,"Total costuri (euro)",null,null,null,"în  antrepriză",null,null,null,"Suprafaţa (ha)",null,null,null,null,"Total costuri (euro)",null,null,null,"în regie proprie",null,null,null,"Suprafaţa (ha)",null,null,null,"Total costuri (euro)",null,null,null,"în antrepriză",null,null,null,"Suprafaţa (ha)",null,null,"Total costuri (euro)"]
[15,null,"Sistem împrejmuire",null,null,null,null,null,null,null,null,null,null,12,null,null,null,null,null,null,null,{"$f":"N602*R602","v":0},null,null,null,13.2,null,null,null,null,null,null,null,null,{"$f":"Z602*AD602","v":0},null,null,null,12,null,null,null,null,null,null,null,{"$f":"AM602*AQ602","v":0},null,null,null,13.2,null,null,null,null,null,null,{"$f":"AY602*BC602","v":0}]
[16,null,"Instalat sistem împrejmuire",null,null,null,null,null,null,null,null,null,null,2,null,null,null,null,null,null,null,0,null,null,null,2.2000000000000002,null,null,null,null,null,null,null,null,0,null,null,null,2,null,null,null,null,null,null,null,0,null,null,null,2.2000000000000002,null,null,null,null,null,null,0]
[null,null,"Total:",null,null,null,null,null,null,null,null,null,null,null,null,null,null,null,null,null,null,{"$f":"SUM(V602:Y603)","v":0},null,null,null,null,null,null,null,null,null,null,null,null,{"$f":"SUM(AI602:AL603)","v":0},null,null,null,null,null,null,null,null,null,null,null,{"$f":"SUM(AU602:AX603)","v":0},null,null,null,null,null,null,null,null,null,null,{"$f":"SUM(BF602:BJ603)","v":0}]
[null,null,"Total general:",null,null,null,null,null,null,null,null,null,null,null,null,null,null,null,null,null,null,{"$f":"V593+V598+V604","v":0},null,null,null,null,null,null,null,null,null,null,null,null,{"$f":"AI593+AI598+AI604","v":0},null,null,null,null,null,null,null,null,null,null,null,{"$f":"AU593+AU598+AU604","v":0},null,null,null,null,null,null,null,null,null,null,{"$f":"BF593+BF598+BF604","v":0}]
["Notă: 1. Costurile nu conţin TVA"]
["MINISTERUL AGRICULTURII ŞI DEZVOLTĂRII RURALE",null,null,null,null,null,null,null,null,null,null,null,null,null,null,null,null,null,null,null,null,null,null,null,null,null,null,null,null,null,"SECTIUNE SPECIFICĂ MĂSURA 2/2A"]
["AGENŢIA PENTRU FINANŢAREA INVESTIŢIILOR RURALE"]
[]
["D. ALTE INFORMAȚII :"]
["Programarea proiectului:"]
["Numar luni de implementare"]
[]
["E. LISTA DOCUMENTELOR ANEXATE PROIECTELOR AFERENTE MĂSURII 2/2A ",null,null,null,null,null,null,null,null,null,null,null,null,null,null,null,null,null,null,null,null,null,null,null,null,null,null,null,null,null,null,null,null,null,null,null,null,null,null,null,null,null,null,null,null,null,null,null,null,null,null,null,null,null,null,"OPIS"]
[null,null,null,null,null,null,null,null,null,null,null,null,null,null,null,null,null,null,null,null,null,null,null,null,null,null,null,null,null,null,null,null,null,null,null,null,null,null,null,null,null,null,null,null,null,null,null,null,null,null,null,null,null,null,null,"documente"]
["A se anexa documentele în ordinea de mai jos:"]
["Lista documente",null,null,null,null,null,null,null,null,null,null,null,null,null,null,null,null,null,null,null,null,null,null,null,null,null,null,null,null,null,"Obligatoriu pentru toate proiectele",null,null,null,null,"Obligatoriu, dacă proiectul impune",null,null,null,null,null,null,"PAGINA de la - până la",null,null,null,null,null,null,null,"Obligatoriu pentru toate proiectele",null,null,null,null,"Obligatoriu, dacă proiectul impune"]
["ETAPA:",null,null,null,null,null,null,null,null,null,null,null,null,null,null,null,null,null,null,null,null,null,null,null,null,null,null,null,null,null,"DEPUNERE",null,null,null,null,null,null,null,null,null,null,null,null,null,null,null,null,null,null,null,"CONTRACTARE"]
["1. a) STUDIUL DE FEZABILITATE însotit de Proiectul de plantare avizat de\nStațiunea Viticolă (dacă este cazul)\n(pentru achiziţiile simple se vor completa doar punctele care vizează acest tip de investiţie)                                                                                                                                              sau                                                                                                                                                                     1.b) Studiu de fezabilitate însoțit de Proiectul de înființare a plantației pomicole și avizat de ICDP Mărăcineni sau de stațiunile de cercetare – dezvoltare pomicole din zonă(dacă este cazul).\n(pentru achizițiile simple se vor completa doar punctele care vizează acest tip de investiție).                                                                                                                                           sau"]
["1.b) EXPERTIZA TEHNICĂ DE SPECIALITATE ASUPRA CONSTRUCŢIEI\nEXISTENTE (dacă este cazul)                                                                                                                   sau"]
["1.c) RAPORTUL PRIVIND STADIUL FIZIC AL LUCRĂRILOR (dacă este cazul)"]
["2. SITUAŢIILE FINANCIARE (bilanţ - formularul 10, contul de profit şi pierderi - formularul 20, formularele 30 și 40), precedente anului depunerii proiectului înregistrate la Administraţia Financiară. În cazul în care solicitantul este înfiinţat cu cel puţin trei ani financiari înainte de anul depunerii cererii de finanţare se vor depune ultimile trei situaţii financiare\n"]
["Pentru persoane fizice autorizate, intreprinderi familiale și intreprinderi individuale:\nDeclarație specială privind veniturile realizate în anul precedent depunerii proiectului înregistrată la Administrația Financiară (formularul 200 însoțit de Anexele la Formular) în care rezultatul brut obţinut anual să fie pozitiv (inclusiv 0)                                                                                                                                                 și/sau                                                                                                                                                          Declarația privind veniturile din activități agricole impuse pe norme de venit (formularul 221) Declaraţa de inactivitate înregistrata la Administraţia Financiară, în cazul solicitanţilor care nu au desfăşurat activitate anterior depunerii proiectului\nsau\nDeclaraţa de inactivitate înregistrata la Administraţia Financiară, în cazul solicitanţilor care nu au desfăşurat activitate anterior depunerii proiectului "]
["3.a1). DOCUMENTE SOLICITATE PENTRU TERENUL AGRICOL AFERENT PLANTAȚIILOR DE VIȚĂ DE VIE PENTRU STRUGURI DE MASĂ EXISTENTE/NOU ÎNFIINȚATE ȘI A ALTOR PLANTAȚII:\nCOPIE DUPĂ DOCUMENTUL AUTENTIFICAT LA NOTAR CARE\nATESTĂ DREPTUL DE PROPRIETATE asupra terenului                                                             \nşi/ sau                                                                                                                                                             \ntabel centralizator emis de Primărie semnat de persoanele autorizate conform legii, conţinând sumarul contractelor de arendare cu suprafeţele luate în arendă pe categorii de folosinţă, perioada de arendare care trebuie să fie de cel puţin 10 ani începând cu anul depunerii cererii de finanţare        \nşi/ sau                                                                                                                                                        \ncontractul de concesiune care să certifice dreptul de folosinţă al terenului cel puţin 10 ani începând cu anul depunerii cererii de finanţare."]
["Contractul de concesiune va fi însoţit de adresa emisă de concedent şi\ntrebuie să conţină:\n- situaţia privind respectarea clauzelor contractuale și dacă este în graficul de realizare a investiţiilor prevăzute în contract şi alte clauze;\n· suprafaţa concesionată la zi (dacă pentru suprafaţa concesionată există solicitări privind retrocedarea sau diminuarea, și dacă da, să se menţioneze care este suprafaţa supusă acestui proces)\n- Pentru cooperative agricole, societăţi cooperative agricole, grupuri de\nproducatori, se vor prezenta documentele prevăzute mai sus pentru toţi membrii fermieri ai acestor solicitanţi"]
["a2) În cazul Societăţilor agricole se ataşează tabelul centralizator emis de catre Societatea agricolă, care va cuprinde suprafeţele aduse în folosinţa societăţii, numele membrilor fermieri care le deţin în proprietate şi perioada pe care terenul a fost adus în folosinţa societăţii, care trebuie să fie de minim 10 ani.                                                                                                                                     - Copie din RegistruL Agricol"]
["b) DOCUMENTE SOLICITATE PENTRU IMOBILUL (CLĂDIRILE ŞI/ SAU\nTERENURILE) pe care sunt/ vor fi realizate investiţiile:\n\nb1) ACTUL DE PROPRIETATE ASUPRA CLĂDIRII sau CONTRACT DE CONCESIUNE SAU ALT DOCUMENT ÎNCHEIAT LA NOTARIAT care să certifice dreptul de folosinţă asupra clădirii pe o perioadă de cel puțin 10 ani începând cu anul depunerii cererii de finanţare, care să confere titularului dreptul de execuție a lucrărilor de construcții, în conformitate cu prevederile Legii nr.50/1991, republicată, cu modificările și completările ulterioare, având în vedere tipul de investiție propusă prin proiect;"]
["b2). DOCUMENTUL CARE ATESTĂ DREPTUL DE PROPRIETATE ASUPRA TERENULUI, CONTRACT DE CONCESIUNE SAU ALT DOCUMENT ÎNCHEIAT LA NOTARIAT, care să certifice dreptul de folosinţă al terenului pe o perioadă de cel puțin 10 ani începând cu anul depunerii cererii de finanțare, care să confere titularului dreptul de execuție a lucrărilor de construcții, în conformitate cu prevederile Legii 50/1991, republicată,cu modificările și completările ulterioare, având în vedere tipul de investiție propusă prin proiect;"]
["Contractul de concesiune va fi însoţit de adresa emisă de concedent şi trebuie să conţină:\n- situaţia privind respectarea clauzelor contractuale și dacă este în graficul de realizare a investiţiilor prevăzute în contract şi alte clauze;\n- suprafaţa concesionată la zi (dacă pentru suprafaţa concesionată există solicitări privind retrocedarea sau diminuarea, și dacă da, să se menţioneze care este suprafaţa supusă acestui proces) pentru terenul pe care este amplasată clădirea."]
["b3) EXTRAS DE CARTE FUNCIARĂ SAU DOCUMENT CARE SĂ CERTIFICE CĂ NU AU FOST FINALIZATE LUCRĂRILE DE CADASTRU, pentru cererile de finanţare care vizează investiţii de lucrări privind construcţiile noi sau modernizări ale acestora.\n\nAtenţie! În situatia în care imobilul pe care se execută investiţia nu este liber de sarcini (gajat pentru un credit), se va depune acordul creditorului privind executia investitiei şi graficul de rambursare a creditului."]
["c) DOCUMENT PENTRU EFECTIVUL DE ANIMALE DEŢINUT ÎN\nPROPRIETATE:\n1) EXTRAS DIN REGISTRUL EXPLOATAȚIEI emis de ANSVSA/DSVSA cu cel mult 30 de zile înainte de data depunerii CF, din care să rezulte efectivul de animale deţinut, însoţit de formular de mişcare ANSVSA/DSVSA (Anexa 4 din Normele sanitare veterinare ale Ordinului ANSVSA nr. 40/2010);\nPentru exploataţiile agricole care deţin păsări şi albine - ADEVERINȚĂ\nELIBERATĂ DE MEDICUL VETERINAR DE CIRCUMSCRIPȚIE, emisă cu cel\nmult 30 de zile înainte de data depunerii CF, din care rezultă numărul păsărilor şi al familiilor de albine şi data înscrierii solicitantului în Registrul Exploataţiei. Pentru cooperative agricole, societăţi cooperative agricole, grupuri de producători, se vor prezenta documentele prevăzute la punctul c) pentru toţi membrii acestor solicitanţi."]
["2) PAŞAPORTUL emis de ANZ pentru ecvideele (cabalinele) cu rasă şi origine."]
["4. CERTIFICAT DE URBANISM pentru proiecte care prevăd construcţii (noi, extinderi sau modernizări)."]
["5. DOCUMENT EMIS DE ANPM PENTRU PROIECT (conform protocolului de colaborare intre AFIR - ANPM - GNM)"]
["6.1 CERTIFICATE CARE SĂ ATESTE LIPSA DATORIILOR RESTANTE FISCALE şi sociale, valabile la data incheierii contractului, emise de Direcţia Generală a Finanţelor Publice și de primăriile pe raza cărora îşi au sediul social și puncte de lucru (numai în cazul în care solicitantul este proprietar asupra imobilelor) şi, dacă este cazul, graficul de reeşalonare a datoriilor către bugetul consolidat.\nSolicitantul va prezenta decizia de rambursare aprobată a sumelor negative solicitate la rambursare prin deconturile de TVA și/sau alte documente aprobate pentru soluționarea cererilor de restituire, decizie/documente care au fost aprobate ulterior eliberării certificatului de atestare fiscală, pentru compensarea obligațiilor fiscale de la Sect.A."]
["6.2 CAZIER JUDICIAR AL RESPONSABILULUI LEGAL, valabil la data\nincheierii contractului."]
["7.1 DOCUMENT EMIS DE DSVSA PENTRU PROIECT, conform Protocolului de colaborare dintre AFIR şi ANSVSA publicat pe pagina de internet www.afir.info."]
["7.2 DOCUMENT EMIS DE DSP JUDEŢEANĂ, conform Protocolului de colaborare dintre AFIR şi MS publicat pe pagina de internet www.afir.info."]
["8.1 DOCUMENTE CARE DOVEDESC CAPACITATEA ŞI SURSA DE COFINANŢARE privată a investiţiei emise de o instituţie financiară (extras de cont şi/sau contract de credit acordat in vederea implementarii proiectului)."]
["8.2 ADRESĂ EMISĂ DE BANCĂ/TREZORERIE cu datele de identificare ale acesteia şi ale contului aferent proiectului FEADR (denumirea, adresa instituţiei financiare, codul IBAN al contului în care se derulează operaţiunile cu AFIR);"]
["9.1 AUTORIZAŢIE SANITARĂ/ NOTIFICARE de constatare a conformităţii cu legislaţia sanitară emise cu cel mult un an înaintea depunerii Cererii de finanţare, pentru unitățile care se modernizează și se autorizează/avizează conform legislației în vigoare."]
["9.2 NOTA DE CONSTATARE PRIVIND CONDIŢIILE DE MEDIU pentru toate unităţile în funcţiune."]
["10.\na) HOTĂRÂRE JUDECĂTOREASCĂ definitivă pronunţată pe baza actului de constituire și a statutului propriu în cazul Societăţilor agricole, însoțită de Statutul Societății agricole;"]
["b) STATUT pentru Societatea cooperativă agricolă (înfiinţată în baza Legii nr. 1/ 2005) și Cooperativa agricolă (înfiinţată în baza Legii nr. 566/ 2004) cu modificările și completările ulterioare și  composesoratele, obștile și alte forme asociative de proprietate asupra terenurilor (menționate în Legea nr.1/2000 pentru reconstituirea dreptului de proprietate asupra terenurilor agricole și celor forestiere, cu modificările și completările ulterioare), din care să reiasă că acestea se încadreaza în categoria: societate cooperativa agricolă , cooperativă agricolă sau fermier în conformitate cu art 7, alin (21) din OUG 3/2015, cu completările și modificările ulterioare;"]
["c) DOCUMENT DE ÎNFIINŢARE A INSTITUTELOR DE CERCETARE, a Centrelor, staţiunilor şi unităţilor de cercetare-dezvoltare şi didactice din domeniul agricol"]
["11.1 DIPLOMĂ DE STUDII SUPERIOARE în domeniul agricol, agro-alimentar, veterinar, economie agrară, mecanică agricolă, inginerie economică în agricultură şi dezvoltare rurală sau, după caz, adeverinţă de absolvire a studiilor respective, însoţită de foaia matricolă pentru cei care au absolvit în ultimele 12 luni."]
["11.2 DIPLOMA DE ABSOLVIRE STUDII postliceale şi liceale în domeniul agricol, agro-alimentar, veterinar, economie agrară, mecanică agricolă."]
["11.3 DIPLOMA DE ABSOLVIRE A ȘCOLII PROFESIONALE sau diploma/ certificat de calificare ce atestă formarea profesională/certificat de competențe emis de un centru de evaluare si certificare a competentelor profesionale obţinute pe alte căi decât cele formale, care trebuie de asemenea să fie autorizat de Autoritatea Naţionala pentru Calificări sau Certificat de absolvire a cursului de calificare emis de ANCA, care conferă un nivel minim de calificare în domeniul agricol, agro-alimentar, veterinar, economie agrară, mecanică agricolă."]
["11.4 FOAIA MATRICOLĂ pentru cel puțin 2 ani de facultate în domeniul agricol, agro-alimentar, veterinar, economie agrară, mecanică agricolă, inginerie economică în agricultură şi dezvoltare rurală.                                               \n11.5 ADEVERINȚA DE ABSOLVIRE A STUDIILOR ÎN DOMENIU, PÂNĂ LA ELIBERAREA DOCUMENTULUI DOVEDITOR, DAR NU MAI TÂRZIU DE ULTIMA PLATĂ"]
["11.6 EXTRAS DIN REGISTRUL GENERAL DE EVIDENȚĂ A SALARIAȚILOR care să ateste înregistrarea contractului individual de muncă."]
["12. ÎN CAZUL INVESTIŢIILOR PRIVIND IRIGAŢIILE:\n12.1 AVIZ DE GOSPODARIREA APELOR/ NOTIFICAREA DE ÎNCEPERE A EXECUŢIEI, în cazul investiţiilor noi sau AUTORIZAȚIE DE GOSPODĂRIRE/NOTIFICARE DE PUNERE ÎN FUNCȚIUNE, în cazul funcţionării sistemului de irigaţii."]
["12.2 AVIZ EMIS DE ANIF (dacă este cazul)"]
["12.3 DOCUMENT EMIS DE OUAI privind acordul de branşare (dacă este cazul)"]
["12.4 Document privind acordul de branșare emis de entitatea care administrează sursa de apă (dacă este cazul)"]
["13. CERTIFICATUL DE ORIGINE PENTRU ANIMALE DE RASĂ INDIGENĂ eliberat de Asociații ale crescătorilor sau Organizațiile de ameliorare, autorizate de ANZ "]
["14. DOCUMENT EMIS DE CĂTRE ORGANIZATIA INTERPROFESIONALĂ PENTRU PRODUSELE AGROALIMENTARE (OIPA), din care să reiasă că solicitantul si , daca este cazul, tertele persoane cu care acesta incheie precontracte, are/au calitatea de membru al acesteia, însoţit de documentul de înfiinţare al OIPA (act constitutiv și statut), document avizat de consiliul director. "]
["15.Precontractele/ contracte/ cu membrii OIPA/ Grup de Producători (GP)/ cooperative/ organizație de producători în vederea condiționării/procesării/comercializării producției proprii.. "]
["16.PRECONTRACTELE CU PERSOANE JURIDICE prin care se realizează comercializarea produselor proprii. "]
["17.PRECONTRACTE/ CONTRACTE încheiate direct cu comercianții cu amănuntul, deținătorii de unități turistice, restaurante, unități de procesare ulterioară înregistrate/ autorizate, ferme zootehnice, etc."]
["18.1 FIŞA DE ÎNREGISTRARE CA PRODUCĂTOR ȘI/SAU PROCESATOR ÎN AGRICULTURĂ ECOLOGICĂ, ELIBERATA DE DAJ, ÎNSOȚITĂ DE CONTRACTUL ÎNCHEIAT CU UN ORGANISM DE INSPECȚIE ȘI CERTIFICARE (în cazul investițiilor noi sau în cazul modernizării exploatațiilor care obțin după implementarea proiectului, un produs ecologic)"]
["18.2 Certificat de conformitate a produselor agroalimentare ecologice emis de un organism de inspecţie şi certificare, conform prevederilor OUG 34/2000 privind produsele agroalimentare ecologice cu completările și modificările ulterioare pentru aprobarea regulilor privind organizarea sistemului de inspecție și certificare în agricultura ecologică (pentru modernizări în vederea obținerii unui produs existent)."]
["19. STUDIU OSPA JUDEŢEAN PRIVIND NOTA DE BONITARE A TERENURILOR AGRICOLE în cazul exploataţiilor agricole din sectorul vegetal, însoţit de aviz ICPA pentru încadrarea proiectului în potenţialul agricol."]
["20. ACORD de principiu privind includerea generatoarelor terestre antigrindină în Sistemul Naţional de Antigrindină şi Creştere a Precipitaţiilor (la depunere), emis de Autoritatea pentru Administrarea Sistemului Naţional Antigrindină şi de Creştere a Precipitaţiilor, emis de AASNACP. (dacă este cazul)"]
["21. Document emis de Cooperativa/Grupul de producatori din care sa reiasa ca solicitantul si, dacă este cazul, tertele persoane cu care acesta incheie precontracte, are/au calitatea de membru a/al acesteia/acestuia, insotit – statutul Cooperativei. "]
["22. CERTIFICAT DE CONFORMITATE A PRODUSELOR AGROALIMENTARE ECOLOGICE (produse finite) emis de un organism de inspecție și certificare, conform prevederilor OUG 34/2000 privind produsele agroalimentare ecologice (pentru intreprinderile existente care le dețin deja)."]
["23. DOCUMENTUL care să demonstreze calitatea de membru al grupului aplicant pentru produsul alimentar care participă la sisteme din domeniul calității produselor agricole și alimentare recunoscute sau în curs de recunoaștere la nivel european."]
[null,"24. ATESTATUL DE PRODUS TRADIȚIONAL emis de MADR , în conformitate cu Ordinul 724/ 2013 privind atestarea produselor tradiţionale (pentru modernizări în vederea obținerii unui produs existent la depunere, pentru investiții în vederea obținerii unui produs nou la ultima plată). "]
[null,"25. ATESTAT PRODUS ALIMENTAR OBŢINUT CONFORM UNEI REŢETE CONSACRATE ROMÂNEŞTI emis de MADR, în conformitate cu Ordinul 394/2014 privind atestarea produselor alimentare obținute conform rețetelor consacrate românești, (pentru modernizări în vederea obținerii unui produs existent la depunere, pentru investiții în vederea obținerii unui produs nou la ultima plată). \n"]
[null,"26. COPIE CERERE depunere documentație în vederea dobândirii dreptului de utilizare a menţiunii de calitate facultative \"produs montan\"-pentru produsele în curs de recunoaștere."]
[null,"27. DECLARAŢIA CU PRIVIRE LA NEÎNCADRAREA ÎN CATEGORIA FIRME ÎN DIFICULTATE. "]
[null,"28. AUTORIZAŢIA DE PLANTARE (la depunerea cererii de finanțare) "]
[null,"29. Document din care să rezulte că materialul de plantare fructifer este inclus în Cataloagele oficiale ale statelor membre UE sau care se regăsesc în cataloagele producătorilor comerciali de material de plantare fructifer. "]
[null,"30.Declaraţie prin care beneficiarul se angajează să raporteze către GAL toate plăţile autorizate şi rambursate în cadrul proiectului selectat, ce vor fi efectuate de AFIR către beneficiar."]
[null,"31. Declarație pe propria răspundere că nu este înregistrat cu datorii în registrul debitorilor AFIR (se va verifica prin solicitare de informații de la AFIR în perioada de evaluare a proiectului)."]
[null,"32. Proiectul Tehnic, în vederea avizării de către AFIR, va fi depus conform HG 226/2015 cu modificarile și completările ulterioare și a procedurilor în vigoare la momentul notificării"]
[null,"33. Cazier fiscal al solicitantului.   "]
[null,"34.Copie a documentului de identitate al reprezentantului legal al beneficiarului"]
[null,"35. Dovada achitării integrale a datoriei față de AFIR, inclusiv dobânzile și majorările de întârziere, dacă este cazul"]
[null,"36. ALTE DOCUMENTE JUSTIFICATIVE (SE VOR SPECIFICA DUPĂ CAZ):"]
[]
[]
[]
[]
[]
[]
[]
[]
[]
[]
[]
[]
["COEFICIENŢI PRODUCŢIE STANDARD 2013"]
["Coduri EUROSTAT",null,null,null,null,null,null,"Denumire culturi",null,null,null,null,null,null,null,null,null,null,null,null,null,null,null,null,null,null,"SO 2013 euro/ha",null,null,null,null,null,null,"Suprafaţa (ha)",null,null,null,null,null,null,"SO activitate existentă",null,null,null,null,null,null,"Suprafaţa (ha) în urma realizării investiţiei",null,null,null,null,null,null,"SO în urma realizării investiţiei"]
[0,null,null,null,null,null,null,1,null,null,null,null,null,null,null,null,null,null,null,null,null,null,null,null,null,null,2,null,null,null,null,null,null,3,null,null,null,null,null,null,4,null,null,null,null,null,null,5,null,null,null,null,null,null,6]
["B_1_1_1",null,null,null,null,null,null,"Grâu comun (inclusiv seminţe)",null,null,null,null,null,null,null,null,null,null,null,null,null,null,null,null,null,null,614.09,null,null,null,null,null,null,null,null,null,null,null,null,null,{"$f":"AA695*AH695","v":0},null,null,null,null,null,null,null,null,null,null,null,null,null,{"$f":"AA695*AV695","v":0}]
["B_1_1_2",null,null,null,null,null,null,"Grâu dur (inclusiv seminţe)",null,null,null,null,null,null,null,null,null,null,null,null,null,null,null,null,null,null,432.81,null,null,null,null,null,null,null,null,null,null,null,null,null,{"$f":"AA696*AH696","v":0},null,null,null,null,null,null,null,null,null,null,null,null,null,{"$f":"AA696*AV696","v":0}]
["B_1_1_3",null,null,null,null,null,null,"Secară (inclusiv seminţe)",null,null,null,null,null,null,null,null,null,null,null,null,null,null,null,null,null,null,354.27,null,null,null,null,null,null,null,null,null,null,null,null,null,0,null,null,null,null,null,null,null,null,null,null,null,null,null,0]
["B_1_1_4",null,null,null,null,null,null,"Orz+Orzoaica (inclusiv seminţe)",null,null,null,null,null,null,null,null,null,null,null,null,null,null,null,null,null,null,529.44000000000005,null,null,null,null,null,null,null,null,null,null,null,null,null,0,null,null,null,null,null,null,null,null,null,null,null,null,null,0]
["B_1_1_5",null,null,null,null,null,null,"Ovăz (inclusiv seminţe)",null,null,null,null,null,null,null,null,null,null,null,null,null,null,null,null,null,null,331.88,null,null,null,null,null,null,null,null,null,null,null,null,null,0,null,null,null,null,null,null,null,null,null,null,null,null,null,0]
["B_1_1_6",null,null,null,null,null,null,"Porumb boabe (inclusiv seminţe)",null,null,null,null,null,null,null,null,null,null,null,null,null,null,null,null,null,null,641.79999999999995,null,null,null,null,null,null,null,null,null,null,null,null,null,0,null,null,null,null,null,null,null,null,null,null,null,null,null,0]
["B_1_1_7",null,null,null,null,null,null,"Orez (inclusiv seminţe)",null,null,null,null,null,null,null,null,null,null,null,null,null,null,null,null,null,null,913.26,null,null,null,null,null,null,null,null,null,null,null,null,null,0,null,null,null,null,null,null,null,null,null,null,null,null,null,0]
["B_1_1_99",null,null,null,null,null,null,"Alte cereale (sorgul, triticale, meiul, hrişca, iarba-cănăraşului, altele) (inclusiv seminţe)",null,null,null,null,null,null,null,null,null,null,null,null,null,null,null,null,null,null,452.74,null,null,null,null,null,null,null,null,null,null,null,null,null,0,null,null,null,null,null,null,null,null,null,null,null,null,null,0]
["B_1_2_1",null,null,null,null,null,null,"Mazăre boabe, fasole boabe, lupin dulce (inclusiv seminţe)",null,null,null,null,null,null,null,null,null,null,null,null,null,null,null,null,null,null,533.77,null,null,null,null,null,null,null,null,null,null,null,null,null,0,null,null,null,null,null,null,null,null,null,null,null,null,null,0]
["B_1_2_2",null,null,null,null,null,null,"Linte, bob, măzăriche şi năut (inclusiv seminţe)",null,null,null,null,null,null,null,null,null,null,null,null,null,null,null,null,null,null,454.79,null,null,null,null,null,null,null,null,null,null,null,null,null,0,null,null,null,null,null,null,null,null,null,null,null,null,null,0]
["B_1_3",null,null,null,null,null,null,"Cartofi (inclusiv cartofi noi, material săditor, cartof dulce destinat consumului uman)",null,null,null,null,null,null,null,null,null,null,null,null,null,null,null,null,null,null,3167.88,null,null,null,null,null,null,null,null,null,null,null,null,null,0,null,null,null,null,null,null,null,null,null,null,null,null,null,0]
["B_1_4",null,null,null,null,null,null,"Sfeclă de zahăr (exclusiv seminţe)",null,null,null,null,null,null,null,null,null,null,null,null,null,null,null,null,null,null,1449.74,null,null,null,null,null,null,null,null,null,null,null,null,null,{"$f":"AA706*AH706","v":0},null,null,null,null,null,null,null,null,null,null,null,null,null,0]
["B_1_5",null,null,null,null,null,null,"Plante rădăcinoase pentru nutreţ (sfecla furajeră, alte plante furajere din familia brasiceelor, morcovi furajeri, batata (cartof dulce), păstârnac, ignama, manioc) (exclusiv seminţe)",null,null,null,null,null,null,null,null,null,null,null,null,null,null,null,null,null,null,1101.45,null,null,null,null,null,null,null,null,null,null,null,null,null,{"$f":"AA707*AH707","v":0},null,null,null,null,null,null,null,null,null,null,null,null,null,0]
["B_1_6_1",null,null,null,null,null,null,"Tutun",null,null,null,null,null,null,null,null,null,null,null,null,null,null,null,null,null,null,1696.83,null,null,null,null,null,null,null,null,null,null,null,null,null,0,null,null,null,null,null,null,null,null,null,null,null,null,null,0]
["B_1_6_2",null,null,null,null,null,null,"Hamei",null,null,null,null,null,null,null,null,null,null,null,null,null,null,null,null,null,null,4105.24,null,null,null,null,null,null,null,null,null,null,null,null,null,0,null,null,null,null,null,null,null,null,null,null,null,null,null,0]
["B_1_6_4",null,null,null,null,null,null,"Rapiţă (inclusiv seminţe)",null,null,null,null,null,null,null,null,null,null,null,null,null,null,null,null,null,null,647.72,null,null,null,null,null,null,null,null,null,null,null,null,null,0,null,null,null,null,null,null,null,null,null,null,null,null,null,0]
["B_1_6_5",null,null,null,null,null,null,"Floarea soarelui (inclusiv seminţe)",null,null,null,null,null,null,null,null,null,null,null,null,null,null,null,null,null,null,564.52,null,null,null,null,null,null,null,null,null,null,null,null,null,0,null,null,null,null,null,null,null,null,null,null,null,null,null,0]
["B_1_6_6",null,null,null,null,null,null,"Soia (inclusiv seminţe)",null,null,null,null,null,null,null,null,null,null,null,null,null,null,null,null,null,null,611,null,null,null,null,null,null,null,null,null,null,null,null,null,0,null,null,null,null,null,null,null,null,null,null,null,null,null,0]
["B_1_6_7",null,null,null,null,null,null,"In pentru ulei (inclusiv seminţe)",null,null,null,null,null,null,null,null,null,null,null,null,null,null,null,null,null,null,1563.56,null,null,null,null,null,null,null,null,null,null,null,null,null,0,null,null,null,null,null,null,null,null,null,null,null,null,null,0]
["B_1_6_8",null,null,null,null,null,null,"Alte plante pentru ulei (ricin, şofrănaş, susan, arahide, mac, muştar, alte culturi oleaginoase) (inclusiv seminţe)",null,null,null,null,null,null,null,null,null,null,null,null,null,null,null,null,null,null,374,null,null,null,null,null,null,null,null,null,null,null,null,null,{"$f":"AA714*AH714","v":0},null,null,null,null,null,null,null,null,null,null,null,null,null,0]
["B_1_6_9",null,null,null,null,null,null,"In textile (inclusiv seminţe)",null,null,null,null,null,null,null,null,null,null,null,null,null,null,null,null,null,null,307.17,null,null,null,null,null,null,null,null,null,null,null,null,null,{"$f":"AA715*AH715","v":0},null,null,null,null,null,null,null,null,null,null,null,null,null,0]
["B_1_6_10",null,null,null,null,null,null,"Cânepă (exclusiv seminţe)",null,null,null,null,null,null,null,null,null,null,null,null,null,null,null,null,null,null,518.11,null,null,null,null,null,null,null,null,null,null,null,null,null,0,null,null,null,null,null,null,null,null,null,null,null,null,null,0]
["B_1_6_12",null,null,null,null,null,null,"Plante medicinale şi aromatice inclusiv ceaiul, cafeaua şi cicoarea pentru cafea: muşeţel, mătrăguna, menta, mac, angelica,chimen, genţiana, iasomia, lavanda, levănţica, origanul, şofranul, salvia, valeriana, gălbeneaua,  etc",null,null,null,null,null,null,null,null,null,null,null,null,null,null,null,null,null,null,937.85,null,null,null,null,null,null,null,null,null,null,null,null,null,0,null,null,null,null,null,null,null,null,null,null,null,null,null,0]
["B_1_6_99",null,null,null,null,null,null,"Alte plante industriale- cicoarea, trestia de zahăr, alte plante tehnice nemenţionate în altă parte, sorgul tehnic (pentru mături)",null,null,null,null,null,null,null,null,null,null,null,null,null,null,null,null,null,null,717.56,null,null,null,null,null,null,null,null,null,null,null,null,null,0,null,null,null,null,null,null,null,null,null,null,null,null,null,0]
["B_1_7_1_1",null,null,null,null,null,null,"Legume proaspete, pepeni şi căpşuni - în câmp\n- varză, conopidă, broccoli, sparanghel\n- legume pt. frunze (praz, salată, spanac, etc.)\n- tomate\n- porumb dulce\n- legume cultivate pentru fructe - vinete, ardei, dovleci şi dovlecei, castraveciori\n- legume cultivate pentru rădăcină, bulbi, tuberculi (excepţie cartofi): morcovi, păstârnac, ceapă, usturoi, ridichii, napi\n- legume păstăi(fasole, mazăre cu excepţia lintei şi a năutului)\n- fructele plantelor neperene (căpşuni, pepeni galbeni, pepeni verzi, ananas)",null,null,null,null,null,null,null,null,null,null,null,null,null,null,null,null,null,null,6196.49,null,null,null,null,null,null,null,null,null,null,null,null,null,{"$f":"AA719*AH719","v":0},null,null,null,null,null,null,null,null,null,null,null,null,null,0]
["B_1_7_1_2",null,null,null,null,null,null,"Legume proaspete, pepenişi căpşuni - în grădină destinate comercializării:\n- varză, conopidă, broccoli, sparanghel\n- legume pt. frunze (praz, salată, spanac, etc.)\n- tomate\n- porumb dulce\n- legume cultivate pentru fructe - vinete, ardei,dovleci şi dovlecei, castraveciori\n- legume cultivate pentru rădăcină, bulbi, tuberculi (excepţie cartofi): morcovi, păstârnac, ceapă, usturoi, ridichii, napi\n- legume păstăi(fasole, mazăre cu excepţia lintei şi a năutului)\n- fructele plantelor neperene (căpşuni, pepeni galbeni, pepeni verzi, ananas)",null,null,null,null,null,null,null,null,null,null,null,null,null,null,null,null,null,null,7176.16,null,null,null,null,null,null,null,null,null,null,null,null,null,{"$f":"AA720*AH720","v":0},null,null,null,null,null,null,null,null,null,null,null,null,null,0]
["B_1_7_2",null,null,null,null,null,null,"Legume proaspete, pepeni şi căpşuni - în sere şi solarii:\n- varză, conopidă, broccoli, sparanghel\n- legume pt. frunze (praz, salată, spanac, etc.)\n- tomate\n- porumb dulce\n- legume cultivate pentru fructe - vinete, ardei,dovleci şi dovlecei, castraveciori\n- legume cultivate pentru rădăcină, bulbi, tuberculi (excepţie cartofi): morcovi, păstârnac, ceapă, usturoi, ridichii, napi\n- legume păstăi(fasole, mazăre cu excepţia lintei şi a năutului)\n- fructele plantelor neperene (căpşuni, pepeni galbeni, pepeni verzi, ananas)",null,null,null,null,null,null,null,null,null,null,null,null,null,null,null,null,null,null,27507.66,null,null,null,null,null,null,null,null,null,null,null,null,null,{"$f":"AA721*AH721","v":0},null,null,null,null,null,null,null,null,null,null,null,null,null,0]
["B_1_8_1",null,null,null,null,null,null,"Flori - în câmp\n- bulbi de flori, cormi şi tuberculi\n- flori tăiate şi boboci\n- plante cu flori şi plante ornamentale",null,null,null,null,null,null,null,null,null,null,null,null,null,null,null,null,null,null,25527.46,null,null,null,null,null,null,null,null,null,null,null,null,null,{"$f":"AA722*AH722","v":0},null,null,null,null,null,null,null,null,null,null,null,null,null,0]
["B_1_8_2",null,null,null,null,null,null,"Flori - în sere şi solarii\n- bulbi de flori, cormi şi tuberculi\n- flori tăiate şi boboci\n- plante cu flori şi plante ornamentale",null,null,null,null,null,null,null,null,null,null,null,null,null,null,null,null,null,null,83743.81,null,null,null,null,null,null,null,null,null,null,null,null,null,{"$f":"AA723*AH723","v":0},null,null,null,null,null,null,null,null,null,null,null,null,null,0]
["B_1_9_1",null,null,null,null,null,null,"Plante de nutreţ - iarba temporară - iarba semănată pe terenuri arabile cedate producţiilor furajere erbacee pe o perioadă mai scurtă de 5 ani şi chiar sub un an",null,null,null,null,null,null,null,null,null,null,null,null,null,null,null,null,null,null,266.22000000000003,null,null,null,null,null,null,null,null,null,null,null,null,null,0,null,null,null,null,null,null,null,null,null,null,null,null,null,0]
["B_1_9_2_1",null,null,null,null,null,null,"Plante de nutreţ - alte furaje verzi - porumb siloz",null,null,null,null,null,null,null,null,null,null,null,null,null,null,null,null,null,null,1029.19,null,null,null,null,null,null,null,null,null,null,null,null,null,0,null,null,null,null,null,null,null,null,null,null,null,null,null,0]
["B_1_9_2_2",null,null,null,null,null,null,"Plante de nutreţ - alte furaje verzi (culturi anuale de cereale recoltate verzi, sorgul anual, anumite graminee anuale cum este firuţa, cruciferele, facelia dacă sunt recoltate  verzi şi nu au fost menţionate în altă parte, măzăriche, lupin dulce)",null,null,null,null,null,null,null,null,null,null,null,null,null,null,null,null,null,null,476.13,null,null,null,null,null,null,null,null,null,null,null,null,null,0,null,null,null,null,null,null,null,null,null,null,null,null,null,0]
["B_1_9_2_99",null,null,null,null,null,null,"Alte plante de nutreţ (diferite specii de trifoi anual sau peren- trifoi alb, trifoi roşu, trifoi de Alexandria - diferite varietăţi de lucernă)",null,null,null,null,null,null,null,null,null,null,null,null,null,null,null,null,null,null,662.78,null,null,null,null,null,null,null,null,null,null,null,null,null,0,null,null,null,null,null,null,null,null,null,null,null,null,null,0]
["B_1_10",null,null,null,null,null,null,"Seminţe şi seminiceri\n- semințe de graminee (altele decât cerealele de bază)\n- seminţe pentru horticultură\n- seminţe şi răsaduri pentru teren arabil cu excepţia cerealelor, a boabelor de leguminoase uscate, a cartofilor, a plantelor oleaginoase",null,null,null,null,null,null,null,null,null,null,null,null,null,null,null,null,null,null,2993.73,null,null,null,null,null,null,null,null,null,null,null,null,null,0,null,null,null,null,null,null,null,null,null,null,null,null,null,0]
["B_1_11",null,null,null,null,null,null,"Alte plante (culturi de mică importanţă economică care nu pot fi încadrate în altă categorie)",null,null,null,null,null,null,null,null,null,null,null,null,null,null,null,null,null,null,592.99,null,null,null,null,null,null,null,null,null,null,null,null,null,0,null,null,null,null,null,null,null,null,null,null,null,null,null,0]
["B_3_1",null,null,null,null,null,null,"Păşuni şi fâneţe permanente - păşuni şi fâneţe",null,null,null,null,null,null,null,null,null,null,null,null,null,null,null,null,null,null,295.04000000000002,null,null,null,null,null,null,null,null,null,null,null,null,null,0,null,null,null,null,null,null,null,null,null,null,null,null,null,0]
["B_3_2",null,null,null,null,null,null,"Păşuni şi fâneţe permanente - pe terenuri accidentate - păşuni sărace, inclusiv lăstărişul, de obicei nefertilizate şi neîntrebuinţate - păşuni cu randament scăzut situate în locuri accidentate şi la altitudini mari, care nu sunt cosite - terenuri  tâncoase, terenuri mlăştinoase, bărăganuri",null,null,null,null,null,null,null,null,null,null,null,null,null,null,null,null,null,null,92.33,null,null,null,null,null,null,null,null,null,null,null,null,null,0,null,null,null,null,null,null,null,null,null,null,null,null,null,0]
["B_4_1_1_1",null,null,null,null,null,null,"Fructe, pomi şi arbuşti - climă temperată:\nMere\nPere\nPiersici şi nectarine\nAlte fructe vişine, cirese, caise, prune, gutui",null,null,null,null,null,null,null,null,null,null,null,null,null,null,null,null,null,null,2812.04,null,null,null,null,null,null,null,null,null,null,null,null,null,0,null,null,null,null,null,null,null,null,null,null,null,null,null,0]
["B_4_1_2",null,null,null,null,null,null,"Livezi de coacaz, smochin, zmeur, muri, agrişe, cătină, afin, goji",null,null,null,null,null,null,null,null,null,null,null,null,null,null,null,null,null,null,3958.34,null,null,null,null,null,null,null,null,null,null,null,null,null,{"$f":"AA733*AH733","v":0},null,null,null,null,null,null,null,null,null,null,null,null,null,0]
["B_4_1_3",null,null,null,null,null,null,"Fructe, pomi şi arbuşti - nuci, alune",null,null,null,null,null,null,null,null,null,null,null,null,null,null,null,null,null,null,1754.4,null,null,null,null,null,null,null,null,null,null,null,null,null,{"$f":"AA734*AH734","v":0},null,null,null,null,null,null,null,null,null,null,null,null,null,0]
["B_4_4_1",null,null,null,null,null,null,"Vii - vin nobil",null,null,null,null,null,null,null,null,null,null,null,null,null,null,null,null,null,null,1981.83,null,null,null,null,null,null,null,null,null,null,null,null,null,0,null,null,null,null,null,null,null,null,null,null,null,null,null,0]
["B_4_4_2",null,null,null,null,null,null,"Vii - alte vinuri",null,null,null,null,null,null,null,null,null,null,null,null,null,null,null,null,null,null,1889.96,null,null,null,null,null,null,null,null,null,null,null,null,null,0,null,null,null,null,null,null,null,null,null,null,null,null,null,0]
["B_4_4_3",null,null,null,null,null,null,"Vii – struguri de masa",null,null,null,null,null,null,null,null,null,null,null,null,null,null,null,null,null,null,2170.52,null,null,null,null,null,null,null,null,null,null,null,null,null,0,null,null,null,null,null,null,null,null,null,null,null,null,null,0]
["B_4_5",null,null,null,null,null,null,"Pepiniere",null,null,null,null,null,null,null,null,null,null,null,null,null,null,null,null,null,null,5614.25,null,null,null,null,null,null,null,null,null,null,null,null,null,0,null,null,null,null,null,null,null,null,null,null,null,null,null,0]
["B_4_6",null,null,null,null,null,null,"Alte culturi permanente: răchita, papura, bambus, salcie, brazi de Crăciun",null,null,null,null,null,null,null,null,null,null,null,null,null,null,null,null,null,null,487.35,null,null,null,null,null,null,null,null,null,null,null,null,null,0,null,null,null,null,null,null,null,null,null,null,null,null,null,0]
["B_6_1",null,null,null,null,null,null,"Ciupercării pe 100mp (Nr. recolte pe an - 4)\n",null,null,null,null,null,null,null,null,null,null,null,null,null,null,null,null,null,null,4456.78,null,null,null,null,null,null,null,null,null,null,null,null,null,{"$f":"AA740*AH740","v":0},null,null,null,null,null,null,null,null,null,null,null,null,null,{"$f":"AA740*AV740","v":0}]
[null,null,null,null,null,null,null,"TOTAL vegetal",null,null,null,null,null,null,null,null,null,null,null,null,null,null,null,null,null,null,null,null,null,null,null,null,null,{"$f":"SUM(AH695:AN740)","v":0},null,null,null,null,null,null,{"$f":"SUM(AO695:AU740)","v":0},null,null,null,null,null,null,{"$f":"SUM(AV695:BB740)","v":0},null,null,null,null,null,null,{"$f":"SUM(BC695:BI740)","v":0}]
[]
[]
["Coduri EUROSTAT",null,null,null,null,null,null,"Denumire specii animale",null,null,null,null,null,null,null,null,null,null,null,null,null,null,null,null,null,null,"SO 2013 euro/cap",null,null,null,null,null,null,"Număr capete",null,null,null,null,null,null,"SO activitate existentă",null,null,null,null,null,null,"Total capete animale în urma realizării investiţiei",null,null,null,null,null,null,"SO în urma realizării investiţiei"]
[0,null,null,null,null,null,null,1,null,null,null,null,null,null,null,null,null,null,null,null,null,null,null,null,null,null,2,null,null,null,null,null,null,3,null,null,null,null,null,null,4,null,null,null,null,null,null,5,null,null,null,null,null,null,6]
["C_1",null,null,null,null,null,null,"Echide ",null,null,null,null,null,null,null,null,null,null,null,null,null,null,null,null,null,null,1404.31,null,null,null,null,null,null,null,null,null,null,null,null,null,{"$f":"AA746*AH746","v":0},null,null,null,null,null,null,null,null,null,null,null,null,null,{"$f":"AA746*AV746","v":0}]
["C_2_1",null,null,null,null,null,null,"Bovine sub 1 an - total",null,null,null,null,null,null,null,null,null,null,null,null,null,null,null,null,null,null,216.38,null,null,null,null,null,null,null,null,null,null,null,null,null,{"$f":"AA747*AH747","v":0},null,null,null,null,null,null,null,null,null,null,null,null,null,{"$f":"AA747*AV747","v":0}]
["C_2_2",null,null,null,null,null,null,"Bovine sub 2 ani - masculi",null,null,null,null,null,null,null,null,null,null,null,null,null,null,null,null,null,null,344.4,null,null,null,null,null,null,null,null,null,null,null,null,null,0,null,null,null,null,null,null,null,null,null,null,null,null,null,0]
["C_2_3",null,null,null,null,null,null,"Bovine sub 2 ani - femele",null,null,null,null,null,null,null,null,null,null,null,null,null,null,null,null,null,null,341.49,null,null,null,null,null,null,null,null,null,null,null,null,null,0,null,null,null,null,null,null,null,null,null,null,null,null,null,0]
["C_2_4",null,null,null,null,null,null,"Bovine de 2 ani şi peste - masculi",null,null,null,null,null,null,null,null,null,null,null,null,null,null,null,null,null,null,817.88,null,null,null,null,null,null,null,null,null,null,null,null,null,0,null,null,null,null,null,null,null,null,null,null,null,null,null,0]
["C_2_5",null,null,null,null,null,null,"Bovine de 2 ani si peste - femele (juninci pentru îngrăşat, juninci pentru reproducţie)",null,null,null,null,null,null,null,null,null,null,null,null,null,null,null,null,null,null,801.38,null,null,null,null,null,null,null,null,null,null,null,null,null,0,null,null,null,null,null,null,null,null,null,null,null,null,null,0]
["C_2_6",null,null,null,null,null,null,"Vaci, bivoliţe pentru lapte",null,null,null,null,null,null,null,null,null,null,null,null,null,null,null,null,null,null,1200.46,null,null,null,null,null,null,null,null,null,null,null,null,null,0,null,null,null,null,null,null,null,null,null,null,null,null,null,0]
["C_2_99",null,null,null,null,null,null,"Bovine de 2 ani şi peste - alte vaci",null,null,null,null,null,null,null,null,null,null,null,null,null,null,null,null,null,null,515.85,null,null,null,null,null,null,null,null,null,null,null,null,null,0,null,null,null,null,null,null,null,null,null,null,null,null,null,0]
["C_3_1_1",null,null,null,null,null,null,"Oi - mioare montate - oi de un an sau mai mult destinate reproducerii, oile reformate care urmează să fete",null,null,null,null,null,null,null,null,null,null,null,null,null,null,null,null,null,null,54.91,null,null,null,null,null,null,null,null,null,null,null,null,null,0,null,null,null,null,null,null,null,null,null,null,null,null,null,0]
["C_3_1_99",null,null,null,null,null,null,"Oi - alte oi : miei, berbeci, oi reformate - oi sterpe care urmează a fi îngrăşate în vederea sacrificării",null,null,null,null,null,null,null,null,null,null,null,null,null,null,null,null,null,null,26.72,null,null,null,null,null,null,null,null,null,null,null,null,null,0,null,null,null,null,null,null,null,null,null,null,null,null,null,0]
["C_3_2_1",null,null,null,null,null,null,"Capre – capre montate - capre montate femele destinate reproducerii, capre re reformate care urmează să fete",null,null,null,null,null,null,null,null,null,null,null,null,null,null,null,null,null,null,112.98,null,null,null,null,null,null,null,null,null,null,null,null,null,0,null,null,null,null,null,null,null,null,null,null,null,null,null,0]
["C_3_2_99",null,null,null,null,null,null,"Capre – alte capre: iezi, ţapi, capre reformate destinate sacrificării",null,null,null,null,null,null,null,null,null,null,null,null,null,null,null,null,null,null,39.67,null,null,null,null,null,null,null,null,null,null,null,null,null,0,null,null,null,null,null,null,null,null,null,null,null,null,null,0]
["C_4_1_1",null,null,null,null,null,null,"Porcine - tineret porcin sub 20 kg",null,null,null,null,null,null,null,null,null,null,null,null,null,null,null,null,null,null,33.36,null,null,null,null,null,null,null,null,null,null,null,null,null,0,null,null,null,null,null,null,null,null,null,null,null,null,null,0]
["C_4_1_2",null,null,null,null,null,null,"Porcine - scroafe pentru reproducţie peste 50 kg",null,null,null,null,null,null,null,null,null,null,null,null,null,null,null,null,null,null,262.55,null,null,null,null,null,null,null,null,null,null,null,null,null,0,null,null,null,null,null,null,null,null,null,null,null,null,null,0]
["C_4_1_99",null,null,null,null,null,null,"Porcine - alte porcine: porci la îngrăşat, vieri, scroafe destinate sacrificării",null,null,null,null,null,null,null,null,null,null,null,null,null,null,null,null,null,null,388.08,null,null,null,null,null,null,null,null,null,null,null,null,null,0,null,null,null,null,null,null,null,null,null,null,null,null,null,0]
["C_5_1",null,null,null,null,null,null,"Pui pentru carne *",null,null,null,null,null,null,null,null,null,null,null,null,null,null,null,null,null,null,473.59,null,null,null,null,null,null,null,null,null,null,null,null,null,0,null,null,null,null,null,null,null,null,null,null,null,null,null,0]
["C_5_2",null,null,null,null,null,null,"Găini ouătoare *",null,null,null,null,null,null,null,null,null,null,null,null,null,null,null,null,null,null,2156,null,null,null,null,null,null,null,null,null,null,null,null,null,0,null,null,null,null,null,null,null,null,null,null,null,null,null,0]
["C_5_3_1",null,null,null,null,null,null,"Curcani şi curci *",null,null,null,null,null,null,null,null,null,null,null,null,null,null,null,null,null,null,4205.5600000000004,null,null,null,null,null,null,null,null,null,null,null,null,null,0,null,null,null,null,null,null,null,null,null,null,null,null,null,0]
["C_5_3_2",null,null,null,null,null,null,"Raţe *",null,null,null,null,null,null,null,null,null,null,null,null,null,null,null,null,null,null,2824.99,null,null,null,null,null,null,null,null,null,null,null,null,null,0,null,null,null,null,null,null,null,null,null,null,null,null,null,0]
["C_5_3_3",null,null,null,null,null,null,"Gâşte *",null,null,null,null,null,null,null,null,null,null,null,null,null,null,null,null,null,null,3602.66,null,null,null,null,null,null,null,null,null,null,null,null,null,0,null,null,null,null,null,null,null,null,null,null,null,null,null,0]
["C_5_3_4",null,null,null,null,null,null,"Struţi *",null,null,null,null,null,null,null,null,null,null,null,null,null,null,null,null,null,null,30083.5,null,null,null,null,null,null,null,null,null,null,null,null,null,0,null,null,null,null,null,null,null,null,null,null,null,null,null,0]
["C_5_3_99",null,null,null,null,null,null,"Alte păsări: bibilici, porumbei, potârnichi, fazani, prepeliţe *",null,null,null,null,null,null,null,null,null,null,null,null,null,null,null,null,null,null,900.34,null,null,null,null,null,null,null,null,null,null,null,null,null,0,null,null,null,null,null,null,null,null,null,null,null,null,null,0]
["C_6",null,null,null,null,null,null,"Iepuri (femele iepuri)",null,null,null,null,null,null,null,null,null,null,null,null,null,null,null,null,null,null,13.91,null,null,null,null,null,null,null,null,null,null,null,null,null,0,null,null,null,null,null,null,null,null,null,null,null,null,null,0]
["C_7",null,null,null,null,null,null,"Familii de albine",null,null,null,null,null,null,null,null,null,null,null,null,null,null,null,null,null,null,59.62,null,null,null,null,null,null,null,null,null,null,null,null,null,0,null,null,null,null,null,null,null,null,null,null,null,null,null,0]
[null,null,null,null,null,null,null,"TOTAL zootehnic",null,null,null,null,null,null,null,null,null,null,null,null,null,null,null,null,null,null,null,null,null,null,null,null,null,null,null,null,null,null,null,null,{"$f":"SUM(AO746:AU769)","v":0},null,null,null,null,null,null,null,null,null,null,null,null,null,{"$f":"SUM(BC746:BI769)","v":0}]
[null,null,null,null,null,null,null,"TOTAL GENERAL",null,null,null,null,null,null,null,null,null,null,null,null,null,null,null,null,null,null,null,null,null,null,null,null,null,null,null,null,null,null,null,null,{"$f":"AO741+AO770","v":0},null,null,null,null,null,null,null,null,null,null,null,null,null,{"$f":"BC741+BC770","v":0}]
[]
["* Valoarea SO se referă la 100 capete"]
[]
["DEFINIŢIA ŞI PRINCIPIILE DE CALCULARE A PRODUCŢIILOR STANDARD\nExploataţia profesională este o exploataţie agricolă suficient de mare încât să ofere o activitate de bază pentru şeful exploataţiei şi un venit suficient pentru susţinerea lui şi a familiei sale.\n (a) Valoarea producţiei standard reprezintă valoarea monetară a producţiei agricole brute la preţul de la poarta exploataţiei. Această valoare este suma dintre valoarea produsului principal (produselor principale) şi cea a produsului secundar (produselor secundare). Valorile se calculează înmulţind producţia per unitate cu preţul de la poarta exploataţiei. TVA-ul, taxele pe produse şi plăţile directe nu sunt incluse.\n (b) Perioada de producţie Producţiile standard corespund unei perioade de producţie de 12 luni (an calendaristic sau an de producţie agricolă). Pentru produsele vegetale şi animale în cazul cărora perioada de producţie este mai mică de 12 luni sau depăşeşte această perioadă, se calculează o producţie standard corespunzătoare creşteriisau producţiei pe o perioadă de 12 luni.\n (c) Unităţi\n1. Producţiile standard  corespunzătoare caracteristicilor culturilor se determină pe baza suprafeţei exprimate în hectare.\nCu toate acestea, pentru ciuperci, producţiile standard se determină pe baza producţiei brute pentru toate recoltele anuale succesive şi se exprimă per 100 m2  de suprafaţă cultivată. În vederea utilizării lor în contextul RICA, aceste producţii standard pentru ciuperci se împart la numărul  de  recolte  anuale  succesive  care  este  comunicat  Comisiei\nEuropene.\n2. Producţiile standard corespunzătoare caracteristicilor efectivului de animale se determină pe cap de animal, cu excepţia păsărilor de curte, pentru care se exprimă per 100 de capete, şi a albinelor, pentru care se determină per stup.\n3. Datele de bază pentru determinarea producţiilor standard, precum şi producţiile standard calculate se stabilesc în euro. Pentru statele membre care nu au aderat la uniunea economică şi monetară, producţiile standard se convertesc în euro, utilizându-se cursurile de schimb medii pentru perioada de referinţă. Aceste cursuri de schimb medii se calculează pe baza cursurilor de schimb oficiale publicate de Comisie (Eurostat).\n\n(d) Defalcarea  producţiilor  standard\nÎn funcţie de caracteristicile culturii vegetale şi ale efectivului de animale producţiile standard se determină pentru toate caracteristicile agricole care sunt in exploataţia agricola.\nDimensiunea economică a unei exploataţii agricole reprezintă valoarea SO totala a exploataţiei,  exprimată în euro, corespunzătoare sumei SO calculată pentru fiecare  dintre  producţiile vegetale  ori animale obţinute în exploataţia respectivă într-o perioadă de un an calendaristic sau an agricol.\nÎn cadrul măsurilor de Finanţare din cadrul Programului Naţional de Dezvoltare Rurală este necesară determinarea dimensiunii economice a exploataţiilor agricole care accesează fondurile europene.\nAceste instrucţiuni sprijină experţii verificatori de la nivel central şi pe cei judeţeni în rezolvarea atribuţiilor ce le revin în procesul de verificare a dimensiunii economice, dimensiune rezultată în urma aplicării coeficienţilor standard output SO.\nAceştia se introduc ca atare şi se aplică la efectivul din teren la data aplicării cererii de Finanţare pentru măsurile de dezvoltare  rurală. Pentru cazul exploataţiilor de îngrăşare a animalelor in mai multe cicluri pe an, dimensiunea economică se calculează în baza unui număr mediu.\n\n1 .Culturi\nPentru toate tipurile de culturi(excepţie ciupercile) se aplică formula:\nSO 2013 = nr. ha cultura x coeficient cultura SO 2013\nIndiferent ce se obţine dintr-o cultură - făina, mălai , tărâţe, conserve, compot, dulceaţă, ţuică) - acestea sunt  produse  procesate  fiind considerate ca venituri din  alte activităţi  ale exploataţiei  agricole  şi care nu intră în calculul dimensionării economice. Excepţie face obţinerea vinului.\nPentru exploataţii care au mai multe culturi în cadrul unei categorii , cum ar fi \"Legume proaspete pepeni şi căpşuni - în câmp deschis \" sau - \"Fructe din zone cu climă temperată\", coeficientul SO corespunde mediei ponderate a SO - urilor producţiilor incluse în această categorie. Este la latitudinea  statelor  membre  să  decidă  care  producţie  trebuie  să  fie inclusă în calcul în functie de semnificatia acesteia.\nÎn cazul în care poziţiile  sunt  subdivizate în  sub  poziţii  Statele Membre pot da un singur coeficient regional pentru o poziţie principală; în acest caz,coeficientul pentru poziţia principală se  utilizează  şi  pentru  sub poziţiile aferente  ex. \"Legume proaspete, pepeni şi căpşuni - în  câmp, Flori, Fructe,  pomi  şi arbuşti  - climă temperată\" etc.\nTratamentul cazurilor speciale\nSe stabilesc regulile următoare pentru calcularea producţiilor standard pentru  anumite  tipuri  de caracteristici:\nPârloage (terenuri scoase temporar din circuitul agricol) fără subvenţii\nProducţia standard corespunzătoare pârloagelor fără niciun fel de subvenţii se ia în considerare la calcularea producţiei standard totale a exploataţiei numai în cazul în care există alte producţii standard pozitive pe exploataţie.\nPârloage pentru care s-au acordat subvenţii, fără uz economic, şi păşuni permanente care nu mai sunt utilizate în producţie şi care sunt eligibile pentru plata subvenţiilor\nAvând în vedere că producţia de pe terenurile în sistem de ajutor fără uz economic este limitată la plăţile directe, producţiile standard ale acestor terenuri se consideră egale cu zero.\nGrădinile familiale\nAvând în vedere că produsele grădinilor familiale sunt în mod obişnuit destinate consumului propriu al exploatantului şi nu comercializării, producţiile standard ale acestora se consideră egale cu zero.\nCultura ciupercilor\nPentru ciuperci cod B_6_ 1, producţiile standard se determină pe baza producţiei brute pentru toate recoltele anuale succesive şi se exprimă per 100 m2 de suprafaţă cultivată.\nSe va dimensiona astfel:\nSuprafaţa totală a culturilor succesive = suprafaţa de bază( care poate fi supraetajată) x numărul de recolte - cicluri - complete Pentru România s-au stabilit 4 cicluri de producţie.\nExemplu de calcul:\nPentru o suprafaţă  totală de 200 mp:\nSO 2013 = 2 x 4456, 78/4 cicluri = 2228, 39 euro \nSeminţe   şi  semininceri\nCulturile de graminee (grâu, orz, orzoaică, ovăz, porumb, alte cereale) - loturi semincere se vor încadra la categoria de baza a culturii. Ca urmare la categoria B_1_10 Seminţe şi semininceri vor fi incluse următoarele:\n- Seminţe de graminee altele decât cele de la categoriile B_ 1_1_1, B_1_1_2, B_1_1_3, B_1_1_4, B_1_1_5, B_1_1_6, B_1_1_7, B_1_1_99\n- Seminţe pentru horticultură\n- Seminţe şi răsaduri pentru teren arabil cu excepţia cerealelor, a boabelor de leguminoase uscate,  a cartofilor, a plantelor oleaginoase\nFuraje\nÎn cazul în care, pe exploataţie, nu există erbivore (ecvidee, bovine, ovine şi caprine), furajele (rădăcinoase furajere şi brasicacee, plante verzi, păşuni şi fâneţe) se consideră ca fiind destinate comercializării şi fac parte din producţia culturilor de câmp.\nÎn cazul în care, pe exploataţie, există erbivore, furajele se consideră a fi destinate hrănirii acestora şi fac parte din producţia corespunzătoare erbivorelor şi furajelor.\n2. Animale\nLa calcularea SO, procesarea produselor agricole nu trebuie luată în considerare chiar dacă această activitate este strâns legată de producţie (lapte în unt, smântână, brânză). Prin urmare, în cazul în care într-o regiune laptele este transformat în brânză, în calcularea SO pentru vacile de lapte numai valoarea laptelui va fi luată în considerare şi nu valoarea brânzei.\nPentru toate speciile de animale se aplică formula:\nSO 2013 = nr. capete specie x coeficient specie  SO 2013\nmai puţin cazul păsărilor de curte la care coeficientul calculat este la 100 capete.\nExploataţia de creştere a cabalinelor\nÎn concordanţă cu codurile utilizate pentru  coeficienţii  producţie standard (standard output, SO) se disting următoarele categorii de cabaline:\nC_1 Echide: caii (inclusiv caii de curse şi de călărie), măgarii, catârii, bardoii, etc.\n- Evaluarea cabalinelor s-a efectuat tinând cont de valoarea orelor de muncă pe care acestea le efectuează în exploataţie ca producţie principală şi de valoarea mânjilor fătaţi ca producţie secundară.\n- Cabalinele şi produsele acestora din anchetele RICA nu sunt destinate consumului uman ci deservesc munca în exploataţie.\nExemplu de calcul:\nExploataţia deţine:\n- 4 cai\n- 2 mânji\nDimensiunea economică  a exploataţiei va fi: \nSO 2013 = 4 x 2052 ,50 = 8210 euro\nExploataţia de creştere bovine\nÎn concordanţă  cu codurile utilizate pentru coeficienţii  producţie standard ( standard output, SO) se disting următoarele categorii de bovine:\nC_2_1. Bovine sub un an, masculi şi femele\nC_2_2. Bovine între unu şi doi ani, masculi\nC_2_3. Bovine între unu şi doi ani, femele. Cu excepţia bovinelor femele care au fătat deja.\nC_2_4. Bovine masculi de doi anişi de peste doi ani"]
[]
[]
[]
[]
[]
[]
[]
[null,"C_2_ 5. Juninci de reproducţie. Bovine femele de doi ani sau mai mult, care nu au fătat încă şi care sunt destinate reproducerii.\nC_2_5. Juninci pentru îngrăşat. Bovine femele de doi ani sau mai mult, care nu au fătat încă şi care nu sunt destinate reproducerii.\nC_2_6. Vaci de lapte. Bovine femele care au fătat (inclusiv cele de sub doi ani), care sunt ţinute exclusiv sau în principal pentru producţia de lapte destinat consumului uman sau obţinerii de produse lactate.  Sunt incluse vacile de lapte reformate.\nC_2_6. Bivoliţe. Bivoliţele care au fătat (inclusiv cele de sub doi ani) care sunt ţinute exclusiv sau în principal pentru producţia de lapte destinat consumului uman sau obţinerii de produse lactate. Sunt incluse bivolitele reformate.\nC_2_99 . Alte vaci:\n1. Bovine femele care au fătat (inclusiv cele de sub doi ani), care sunt ţinute exclusiv sau în principal pentru producţia de viţei şi al căror lapte nu este utilizat pentru consumul uman sau obţinerea de produse lactate.\n2. Vaci pentru muncă.\n3.  Vaci reformate care nu sunt de lapte (îngrăşate sau nu  înaintea sacrificării)\nCategoriile C_2_1:C_2_5 şi C_2_99 includ şi categoriile corespunzătoare de  bivoli şi  bivoliţe.\nPentru  categoria C_2_1 Bovine  sub  un an  se  întâlnesc următoarele situaţii:\n- dacă în exploataţie se găsesc vaci de lapte cod C_2_6 atunci calculul dimensiunii economice se face prin însumarea producţiilor standard pentru vaci de lapte şi a producţiilor standard pentru viţeii sub 1 an al căror număr depăşeşte numărul vacilor de lapte;\n- dacă în exploataţie nu se găsesc vaci de lapte atunci se iau în considerare producţiile standard corespunzătoare viţeilor sub 1 an pentru numărul care există în acel moment în exploataţie.\n- dacă în exploataţie sunt bovine femele care au fătat codul C_2_99, ţinute exclusiv sau în principal pentru producţia de viţei şi al căror lapte nu este utilizat pentru consumul uman sau obţinerea de produse lactate, calculul dimensiunii economice se face prin însumarea producţiilor standard pentru bovine femele care au fătat codul C_2_99 şi a producţiilor standard pentru viţeii sub 1 an al căror număr depăşeşte numărul bovinelor femele care au fătat cod C_2_99.\nExemple de calcul:\n1) Exploataţia deţine următoarele categorii de bovine:\n-10 vaci de lapte care au fătat 12 viţei,\n-2 tauri mai mari de doi ani,\n-3 vitele mai mari de 2 ani destinate sacrificării,\n-3 bovine femele care au fătat 3 viţei, bovine ţinute exclusiv pentru producţia de viţei\nDimensiunea economică a exploataţiei va fi:\nSO 2013 =  10 x 1200,46 + 2 x  216,38 + 2 x  817,88 + 3 x  801,38 + 3 x  515,85 = 18024,81 Euro\n2) Exploataţia deţine următoarele categoriide bovine:\n- 25 viţei bovine sub un an achiziţionaţi\n- 7 bovine femele care au fătat 9 viţei, bovine ţinute exclusiv pentru producţia de viţei\nDimensiunea economică a exploataţiei va fi:\nSO 2013 = 25 x 216,38 + 7 x 515,85 +2 x 216,38 = 9453 ,21 Euro\nExploataţia de creştere ovine şi caprine\nÎn concordanţă cu codurile utilizate pentru  coeficienţii  producţie standard ( standard output, SO) se disting următoarele categorii de ovine şi caprine:\nC_3_1_1. Oi, femele de reproducţie. Oi de un an sau mai mult destinate reproducţiei.\nC_ 3_ 1_99. Alte ovine. Ovine de toate vârstele, cu excepţia oilor.\nC_3_2_1. Caprine, femele de reproducţie\nC_3_2_99 . Alte caprine. Caprine, altele decât femelele de reproducţie.\nProducţiile standard corespunzătoare altor ovine - miei se iau în considerare la calcularea producţiei standard totale a exploataţiei numai în cazul în care în exploataţie nu există nicio femelă ovină de reproducţie.\nProducţiile standard corespunzătoare altor caprine - Iezi se iau în considerare la calcularea producţiei standard totale a exploataţiei numai în cazul în care în exploataţie nu există nicio femelă caprină de reproducţie.\nAcest lucru se datorează faptului că mieii/iezii sunt consideraţi producţia principală a oilor/caprelor, valoarea acestora fiind inclusă în coeficientul standard output al oilor, respectiv caprelor.\nExemplu de calcul:\nExploataţia  deţine următoarele categorii de ovine şi caprine:\n- 250 oi,\n- 270 miei ,\n- 10 berbeci ,\n- 12 oi sterpe\n- 25 iezi\nSO 2013 = 250 x 54,91 +   10 x 26,72 +12 x 26,72 + 25 x 39,67 = 15307,09 Euro\nExploataţia de creştere porcine :\nÎn concordanţă cu codurile utilizate pentru coeficienţii producţie standard ( standard output, SO) se disting următoarele categorii de porcine:\nC_4_ 1. Purcei cu greutatea în viu sub 20 kg Purcei cu greutatea în viu sub 20 kg.\nC_4_2. Scroafe de reproducţie de 50 kg şi peste această greutate Scroafe de reproducţie de 50 de kilograme sau mai mult, cu excepţia scroafelor reformate (a se vedea categoria C_4_99,  „Alte porcine\").\nC_4_99. Porci pentru îngrăşat Porci pentru îngrăşat cu greutatea în viu de 20 kg sau mai mult, cu excepţia scroafelor reformate şi a vierilor reformaţi (a se vedea categoria C_4_99,  „Alte porcine\").\nC_4_99. Alte porcine Porci cu greutatea în viu de 20 kg sau mai mult, cu excepţia scroafelor de reproducţie (a se vedea categoria C_4_2) şi a porcilor pentru îngrăşat (a se vedea categoria C_4_99 ).\nProducţiile standard corespunzătoare purceilor se iau în considerare la calcularea producţiei standard totale a exploataţiei numai în cazul în care în exploataţie nu există nicio scroafă de reproducţie.\nAcest lucru se datorează faptului că purceii sub 20 kg sunt consideraţi producţia principală a scroafelor de reproducţie, valoarea acestora fiind inclusă în coeficientul standard output al scroafelor.\nExemplu de calcul: \nExploataţia deţine:\n-12 scroafe,\n-40 purceisub 20 kg,\n-35 porci pentru îngrăşat,\n-2 vieri\nSO 2013 = 12 x 262,55 + 35 x 388,08 + 2 x 388,08 = 17509,56 Euro\n\nln cazul în care exploataţia îşi desfăşoară activitatea pe mai multe cicluri de producţie (îngrăşare), calculul dimensiunii se va face astfel:\n-      SO 2013 total = număr mediu porci îngrăşat x SO 2013 porci îngrăşat unde numărul mediu este exprimat ca număr cu o zecimală şi se calculează proporţional cu durata prezenţei porcilor de îngrăşat în exploataţie în  timpul anului;\n-      Numărul mediu = nr. total porci îngrăşat x numărul de zile (sau luni) prezenţi în exploataţie/365zile (sau 12 luni)\nExemplu de calcul: exploataţia îngraşă porci în trei cicluri prin achiziţionarea unui nr. total de 1800 porci de îngrăşat:\nNumărul mediu = 1800 x 112 zile prezenţi în exploataţie/ 365 zile an= 552,3 porci îngrăşat\nVa rezulta dimensiunea exploataţieica fiind:\nSO 2013 TOTAL = 552,3 x 388,08 = 214336,58 euro.\nExploataţia de creştere păsări de curte\nÎn concordanţă cu codurile utilizate pentru  coeficienţii  producţie standard ( standard output, SO) se disting următoarele categorii de păsări de curte:\nC_5_ 1 pui pentru carne\nC_5_2 găiniouătoare: puicuţele (găini tinere care nu au început să ouă), găinile ouătoare, găinile reformate şi cocoşii de reproducţie pentru găini ouătoare.\nC_5_3_ 1 Curcani şi curci \nC_5_3_2 Raţe\nC_5_3_3 Gâşte \nC_5_3_4 Struţi\nC_5_3_99 Alte păsări: bibilici, porumbei, potârnichi, fazani , prepeliţe\nNu se includ puişorii de o zi în nicio categorie de păsări.\nPuişorii de o zi, care nu reprezintă o categorie, ca atare, dar sunt incluşi în categoria reziduală \"Alte animale\", sunt principalul produs al găinilor de reproducţie. Pentru acest lucru nu se calculează coeficient SO aferent acestei categorii.\nExploataţiile cu incubatoare pentru obţinerea puişorilor de o zi ar trebui să-şi dimensioneze unitatea prin alte metode decât cea a utilizării coeficienţilor SO, eventual cu producţia de puişori(valoare sau număr) previzionată.\n-  Exploataţiile care îşi desfăşoară activitatea pe mai multe cicluri de producţie de pui de carne într-un an contabil se vor dimensiona la depunerea cererii de finanţare cu efectivul mediu de păsări (a tuturor ciclurilor) conform următoarei formule:\nSO  2013  total  = număr  mediu pui de carne x  SO  2013  pui carne/100 unde numărul mediu este exprimat în cazul păsărilor ca număr întreg şi se calculează proporţional cu durata prezenţei lor în exploataţie în  timpul  anului\nExemplu de calcul\nExploataţia achiziţionează 1000000 pui de carne în timpul unui an în mai multe  cicluri:\n-   Numărul mediu = nr. total păsări x  numărul de  luni  prezente în exploataţie/12 luni = 1000000 x 2/12 = 166667 pui de carne\n-   Coeficientul standard  output  SO aferent  categoriei C_5_1 Pui de carne = 473,59 euro/100 capete\n-    Va rezulta dimensiunea exploataţiei ca fiind:\nSO 2013 TOTAL = 166667 x 473,59 /100 = 789318,25 euro.\n\nRegulamentele care stau la baza calculului SO sunt următoarele:\n-       Regulamentul (CE) nr. 1217/ 2009 al Consiliului privind crearea unei reţele de colectare de informaţii contabile privind veniturile  şi activitatea economică a exploataţiilor agricole în Uniunea Europeană;\n-       Documentul Comitetului Comunitar RICA RI/ CC 1680 v.4 Martie 2015 privind Definiţiile chestionarului utilizat în  anchetă;\n-       Regulamentul de punere în aplicare (UE) 220/ 3 februarie 2015 al Comisiei de stabilire a normelor de aplicare a Regulamentului (CE) nr. 1217/ 2009  al  Consiliului privind  crearea  unei reţele  de  colectare  de informaţii contabile privind veniturile şi activitatea economică a exploataţiilor agricole în Uniunea Europeană;\n-      Documentul Comitetului Comunitar RICA Rl/CC 1500 v.4 Iunie 2016 Manual de tipologie."]
[]
[]
[]
["F. DECLARAŢIE PE PROPRIA RĂSPUNDERE A SOLICITANTULUI"]
["Prin această declaraţie solicitantul"]
[]
["care solicită asistență financiară nerambursabilă prin programul FEADR pentru proiectul intitulat"]
[]
["prin reprezentant legal"]
[]
["cunoscând prevederile legii penale cu privire la falsul în declarații:"]
[null,null,null,"1. Declar că proiectul propus asistenței financiare nerambursabile FEADR nu beneficiază de altă finanțare din programe de finanțare nerambursabilă. De asemenea mă angajez ca în cazul în care proiectul va fi selectat pentru finanțare FEADR, nu voi depune acest proiect la nici un alt program de finanțare nerambursabilă la care proiectul poate fi în întregime sau parțial eligibil pentru asistență."]
[]
[null,null,null,"2. Declar că îndeplinesc condițiile de eligibilitate prevăzute în fișa sub-măsurii și Ghidul Solicitantului și mă angajez să le respect pe perioada de valabilitate a contractului de finanțare și monitorizare a investiției, inclusiv criteriile de selecție pentru care proiectul a fost punctat."]
[null,null,null,"3. Declar că toate informațiile din prezenta cerere de finanțare și din documentele anexate sunt corecte și mă angajez să respect condițiile cerute în reglementările referitoare la prezentul program și pe cele legate de proiectul anexat și să furnizez periodic, la cerere, documentele justificative necesare."]
[null,null,null,"4. Declar pe propria răspundere că orice modificări aduse dreptului de proprietate sau de folosinţă vor fi notificate AFIR în termen de trei zile de la data încheierii lor. De asemenea, mă angajez, ca pe perioada de valabilitate a contractului de finanţare şi monitorizare a investiţiei să nu diminuez suprafaţa şi/sau infrastructura cuprinsă în proiect."]
[null,null,null,"5. Declar că eu și organizația mea (UAT sau ONG) nu ne aflăm într-unul din următoarele cazuri:"]
[null,null,null,"Acuzat din cauza unei greșeli privind conduita profesională având ca soluție finală res judicata (împotriva căreia nici un apel nu este posibil)"]
[null,null,null,"Vinovat de grave deficiențe de conduită profesională dovedite prin orice mijloace pe care Agenția le poate justifica."]
[null,null,null,"Vinovat de faptul că nu am prezentat informaţiile cerute de Autoritatea Contractantă ca o condiţie de participare la licitaţie sau contractare"]
[null,null,null,"Încălcarea prevederilor contractuale prin care nu mi-am îndeplinit obligațiile contractuale în legătură cu un alt contract cu Agenția sau alte contracte finanțate din fonduri comunitare."]
[null,null,null,"Încercarea de a obține informații confidențiale sau de influențare a Agenției în timpul procesului de evaluare a proiectului și nu voi face presiuni la adresa evaluatorului."]
["6.",null,null,null,null,"Declar că organizaţia pe care o reprezint ARE datorii către institutii de credit şi/sau instituţii financiare bancare / nebancare pentru care prezint graficul de rambursare"]
[null,null,null,null,null,"Declar că organizaţia pe care o reprezint NU are datorii către instituţii de credit şi/sau instituţii financiare bancare / nebancare"]
["7.",null,null,null,null,"Declar pe propria răspundere că în cazul în care nu respect oricare din punctele prevazute în această declaraţie proiectul să devină neeligibil în baza criteriului \"Eligibilitatea solicitantului\" sau contractul să fie reziliat"]
["8.",null,null,null,null,"Declar pe propria răspundere că:"]
[null,null,null,null,null,"Nu sunt înregistrat în scopuri TVA și că mă angajez să notific Agenției orice modificare a situatiei privind înregistrarea ca plătitor de TVA, în maximum 10 (zece) zile de la data înregistrării în scopuri TVA."]
[null,null,null,null,null,"Sunt înregistrat în scopuri de TVA (certificat de înregistrare fiscală în scopuri de TVA)."]
["9.",null,null,null,null,"Declar pe propria răspundere că nu am înscrisuri care privesc sancțiuni economico-financiare în cazierul judiciar pe care mă oblig să îl depun la încheierea contractului de finanţare . Prin prezenta îmi exprim consimțământul ca AFIR să solicite instituțiilor abilitate conform legii, extrasul de pe cazierul judiciar privind situația mea.\n(Până la reglementarea posibilităţii aplicării de către experţii evaluatori AFIR a normelor metodologice aferente Legii nr. 290/2004 privind cazierul judiciar, cu modificările şi completările ulterioare, solicitantul are obligaţia depunerii documentului justificativ mai sus enunţat.)"]
["10.",null,null,null,null,"Declar pe propria raspundere că nu am fapte înscrise în cazierul fiscal."]
["11.",null,null,null,null,"Declar pe propria răspundere că toate cheltuielile neeligibile vor fi suportate de solicitant şi că acestea vor fi realizate până la finalizarea proiectului."]
["12.",null,null,null,null,"Declar pe propria răspundere că dosarul cererii de finanţare în original, va fi identic cu dosarul cererii de finanţare depus online. În caz contrar, proiectul nu va fi contractat."]
["13.",null,null,null,null,"Declar că mă angajez să îndeplinesc - Cerinţele minime obligatorii de respectare a bunelor practici agricole privind gestionarea gunoiului de grajd."]
["14.",null,null,null,null,"Mă angajez ca în termenul prevăzut în „Notificărea beneficiarului privind selectarea cererii de finanţare şi semnarea contractului de finanţare”, să prezint documentul privind cofinanţarea proiectului şi Angajamentul responsabilului legal al proiectului că nu va utiliza în alte scopuri 50% din cofinanțarea privată, în cazul prezentării cofinanţării prin extras de cont."]
["15.",null,null,null,null,"Mă angajez ca în maxim 4 luni de la data primirii \"Notificării beneficiarului privind selectarea cererii de finantare și semnarea contractului de finanțare\" să prezint documentul ANPM pentru proiect. Prin excepţie de la acest termen, în cazul în care proiectul se supune procedurilor de evaluare a impactului asupra mediului şi de evaluare adecvată sau doar de evaluare adecvată, mă angajez să prezint Acordul de mediu/Avizul Natura 2000 în termen de maximum 7 luni de la primirea Notificării solicitantului privind selectarea cererii de finanţare şi semnarea contractului de finanţare."]
["16.",null,null,null,null,"Mă angajez ca pe durata de execuție a contractului să-mi menţin cel puţin încadrarea în dimensiunea SO a exploataţiei agricole, fără a reduce dimensiunea economică a exploatației agricole, prevazută la depunerea cererii de finanțare, cu mai mult de 15% și fără a scădea, în nicio situație, sub pragul minim de 4.000 SO stabilit prin condițiile de eligibilitate."]
["17.",null,null,null,null,"Sunt de acord ca AFIR sa publice pe site, să consulte și să prelucreze, prin operațiunile prevăzute de legislația în vigoare în vederea desfășurării activității specifice, datele mele cu caracter personal, furnizate AFIR, cu respectarea legislaţiei europene şi naţionale privind transparenţa, publicarea datelor cu caracter personal şi prelucrarea acestora."]
[]
[null,"Semnătura reprezentant legal şi ştampila (după caz)",null,null,null,null,null,null,null,null,null,null,null,null,null,null,null,null,null,null,null,null,null,null,null,null,null,null,null,null,null,null,null,null,null,null,null,null,null,null,null," Data:"]
[]
["Anexa INDICATORI DE MONITORIZARE"]
["Măsura 2/2A  - Investiţii în activități agricole și procesare"]
["1. Contribuţie la Prioritatea 6","1. Contribuţie la Prioritatea 6"]
["2. Număr de exploatații agricole/ beneficiari sprijiniți:"]
["3. Locuri de muncă create:"]
["                                     Indic. nr.1 - se va bifa daca contribuie la Prioritatea 6\n                                     Indic. nr. 2 - se va completa numărul de exploatatii agricole/beneficiari sprijiniti                                                                                                               \n                                     Indic. nr. 3 - se va completa numărul de locuri de muncă create"]
[]
["Factori de risc"]
["I1. Valoarea sprijinului public nerambursabil (EURO)",null,null,null,null,null,null,null,null,null,null,null,null,null,null,null,null,null,null,null,null,null,null,null,null,null,null,null,null,null,null,null,null,null,null,null,null,null,null,null,null,null,null,null,null,null,null,null,null,null,"Punctaj obţinut"]
["• proiecte cu valoarea sprijinului nerambursabil < 100 000 euro",null,null,null,null,null,null,null,null,null,null,null,null,null,null,null,null,null,null,null,null,null,null,null,null,null,null,null,null,null,null,null,null,null,null,null,null,null,null,null,null,null,null,null,null,null,null,null,null,null,2]
["• proiecte cu valoarea sprijinului nerambursabil între 100.000 – 500.000 euro",null,null,null,null,null,null,null,null,null,null,null,null,null,null,null,null,null,null,null,null,null,null,null,null,null,null,null,null,null,null,null,null,null,null,null,null,null,null,null,null,null,null,null,null,null,null,null,null,null,3]
["• proiecte cu valoarea sprijinului nerambursabil între 500.001 – 1.000.000 euro",null,null,null,null,null,null,null,null,null,null,null,null,null,null,null,null,null,null,null,null,null,null,null,null,null,null,null,null,null,null,null,null,null,null,null,null,null,null,null,null,null,null,null,null,null,null,null,null,null,4]
["• proiecte cu valoarea sprijinului nerambursabil între 1.000.001 – 2.000.000 euro",null,null,null,null,null,null,null,null,null,null,null,null,null,null,null,null,null,null,null,null,null,null,null,null,null,null,null,null,null,null,null,null,null,null,null,null,null,null,null,null,null,null,null,null,null,null,null,null,null,5]
[]
["I2. Complexitatea investiţiei"]
["Beneficiari Privaţi/Publici",null,null,null,null,null,null,null,null,null,null,null,null,null,null,null,null,null,null,null,null,null,null,null,null,null,null,null,null,null,null,null,null,null,null,null,null,null,null,null,null,null,null,null,null,null,null,null,null,null,"Punctaj obţinut"]
["• Investiţie nouă",null,null,null,null,null,null,null,null,null,null,null,null,null,null,null,null,null,null,null,null,null,null,null,null,null,null,null,null,null,null,null,null,null,null,null,null,null,null,null,null,null,null,null,null,null,null,null,null,null,5]
["• Modernizări cu C şi/sau M",null,null,null,null,null,null,null,null,null,null,null,null,null,null,null,null,null,null,null,null,null,null,null,null,null,null,null,null,null,null,null,null,null,null,null,null,null,null,null,null,null,null,null,null,null,null,null,null,null,4]
["• Modernizări prin achiziţie simplă(utilaje)",null,null,null,null,null,null,null,null,null,null,null,null,null,null,null,null,null,null,null,null,null,null,null,null,null,null,null,null,null,null,null,null,null,null,null,null,null,null,null,null,null,null,null,null,null,null,null,null,null,3]
[]
["I3. Intensitatea sprijinului (procent contribuţie publică)",null,null,null,null,null,null,null,null,null,null,null,null,null,null,null,null,null,null,null,null,null,null,null,null,null,null,null,null,null,null,null,null,null,null,null,null,null,null,null,null,null,null,null,null,null,null,null,null,null,"Punctaj obţinut"]
["70% -90%",null,null,null,null,null,null,null,null,null,null,null,null,null,null,null,null,null,null,null,null,null,null,null,null,null,null,null,null,null,null,null,null,null,null,null,null,null,null,null,null,null,null,null,null,null,null,null,null,null,5]
["50%-69%",null,null,null,null,null,null,null,null,null,null,null,null,null,null,null,null,null,null,null,null,null,null,null,null,null,null,null,null,null,null,null,null,null,null,null,null,null,null,null,null,null,null,null,null,null,null,null,null,null,4]
["<50%",null,null,null,null,null,null,null,null,null,null,null,null,null,null,null,null,null,null,null,null,null,null,null,null,null,null,null,null,null,null,null,null,null,null,null,null,null,null,null,null,null,null,null,null,null,null,null,null,null,1]
[]
["I4. Riscul proiectului d.p.d.v. al % raportului între cheltuielile suportate de solicitant şi Valoarea ajutorului nerambursabil.\nCheltuielile suportate de solicitant = Total valoare proiect (fără TVA) – Valoarea\najutorului nerambursabil solicitat.\n\n        Total valoare proiect(fără TVA)-Valoarea ajutorului nerambursabil solicitat\n% = --------------------------------------------------------------------------------------- x 100\n                               Valoarea ajutorului nerambursabil solicitat",null,null,null,null,null,null,null,null,null,null,null,null,null,null,null,null,null,null,null,null,null,null,null,null,null,null,null,null,null,null,null,null,null,null,null,null,null,null,null,null,null,null,null,null,null,null,null,null,null,null,"Punctaj obtinut"]
["• > 200%",null,null,null,null,null,null,null,null,null,null,null,null,null,null,null,null,null,null,null,null,null,null,null,null,null,null,null,null,null,null,null,null,null,null,null,null,null,null,null,null,null,null,null,null,null,null,null,null,null,5]
["• Între 176 şi 200%",null,null,null,null,null,null,null,null,null,null,null,null,null,null,null,null,null,null,null,null,null,null,null,null,null,null,null,null,null,null,null,null,null,null,null,null,null,null,null,null,null,null,null,null,null,null,null,null,null,4]
["• Între 151 şi 175%",null,null,null,null,null,null,null,null,null,null,null,null,null,null,null,null,null,null,null,null,null,null,null,null,null,null,null,null,null,null,null,null,null,null,null,null,null,null,null,null,null,null,null,null,null,null,null,null,null,3]
["• Între 121 şi 150%",null,null,null,null,null,null,null,null,null,null,null,null,null,null,null,null,null,null,null,null,null,null,null,null,null,null,null,null,null,null,null,null,null,null,null,null,null,null,null,null,null,null,null,null,null,null,null,null,null,2]
["• < 121%",null,null,null,null,null,null,null,null,null,null,null,null,null,null,null,null,null,null,null,null,null,null,null,null,null,null,null,null,null,null,null,null,null,null,null,null,null,null,null,null,null,null,null,null,null,null,null,null,null,1]
[]
["I5. Capacitatea societăţii de a manageria proiectul, experienţă în derularea afacerilor",null,null,null,null,null,null,null,null,null,null,null,null,null,null,null,null,null,null,null,null,null,null,null,null,null,null,null,null,null,null,null,null,null,null,null,null,null,null,null,null,null,null,null,null,null,null,null,null,null,"Punctaj obţinut"]
["• Firmă nouă sau fără activitate",null,null,null,null,null,null,null,null,null,null,null,null,null,null,null,null,null,null,null,null,null,null,null,null,null,null,null,null,null,null,null,null,null,null,null,null,null,null,null,null,null,null,null,null,null,null,null,null,null,5]
["• Firmă cu experienţă dar care nu a participat la alt proiect comunitar sau nu a obţinut asistenţă financiară nerambursabilă din partea altui instrument financiar",null,null,null,null,null,null,null,null,null,null,null,null,null,null,null,null,null,null,null,null,null,null,null,null,null,null,null,null,null,null,null,null,null,null,null,null,null,null,null,null,null,null,null,null,null,null,null,null,null,4]
["• Firmă cu experienţă care a finalizat un proiect comunitar sau a obţinut din asistenţă financiară nerambursabilă din partea altui instrument financiar",null,null,null,null,null,null,null,null,null,null,null,null,null,null,null,null,null,null,null,null,null,null,null,null,null,null,null,null,null,null,null,null,null,null,null,null,null,null,null,null,null,null,null,null,null,null,null,null,null,3]
["TOTAL"]
[null,null,"Codul unic de înregistrare APIA"]
[null,null,"În cazul în care nu aveți un cod unic de înregistrare APIA, completați acest formular."]
["FORMULAR"]
["de înscriere în Registrul unic de identificare pentru solicitanţii de finanţare prin măsurile"]
["Programului naţional de dezvoltare rurală 2014 - 2020"]
[]
["Denumire solicitant:"]
[]
["Categorie Solicitant:"]
[]
["Sediul / Adresa"]
[]
["Ţara",null,null,null,null,"România",null,null,null,null,null,null,null,null,"Judeţul",null,null,null,null,null,null,null,null,null,null,null,null,null,null,null,null,null,null,"oraşul"]
[]
["comuna",null,null,null,null,null,null,null,null,null,null,null,null,null,null,null,null,null,null,null,null,"satul",null,null,null,null,null,null,null,null,null,null,null,null,null,null,null,null,null,"strada"]
[]
["nr.",null,null,null,null,null,null,null,"bl.",null,null,null,null,null,"et.",null,null,null,null,"ap.",null,null,null,null,null,"sectorul",null,null,null,null,null,null,null,null,null,null,null,null,"codul poştal"]
[]
["Număr de telefon",null,null,null,null,null,null,null,null,null,null,null,null,null,null,null,null,null,null,null,null,null,null,"Fax",null,null,null,null,null,null,null,null,null,null,null,null,null,null,"E-mail"]
[]
["Număr de înregistrare în registrul comerțului/Registrul asociațiilor și fundațiilor"]
[]
["CUI / CIF"]
[]
["Cod CAEN pentru activitatea principală"]
[]
["Cod CAEN pentru activitatea secundară pentru care se solicită înregistrarea în Registrul unic de identificare"]
[]
["Cod IBAN"]
[]
["deschis la Banca"]
[]
["Sucursala / Agenție"]
[]
["Prin reprezentant legal, doamna/domnul"]
[]
["cu CNP",null,null,null,null,null,null,null,null,null,null,null,null,null,null,"solicit înscrierea în Registrul unic de îdentificare - Agenţia de Plăţi şi Intervenţie pentru Agricultură."]
[]
["Am luat la cunoştinţă că orice modificare a informaţiilor de mai sus trebuie furnizată către APIA în termen de maximum 10 zile\nlucrătoare de la producerea acestora.\nDeclar pe propria răspundere că cele de mai sus sunt conforme cu realitatea.\nSunt de acord ca datele din cerere să fie introduse în baza de date a Sistemului Integrat de Administrare şi Control, procesate şi\nverificate în vederea înscrierii în Registrul unic de identificare şi transmise autorităţilor responsabile în vederea elaborării de studii\nstatistice şi de evaluări economice, în condiţiile Legii nr. 677-2001 pentru protecţia persoanelor cu privire la prelucrarea datelor cu\ncaracter personal şi libera circulaţie a acestor date, cu modificarile şi completările ulterioare."]
[]
["Reprezentant legal",null,null,null,null,null,null,null,null,null,null,null,null,null,null,null,null,null,null,null,null,null,null,null,null,null,null,null,null,null,null,null,null,null,null,null,null,null,null,null,null,null,null,"Data:"]
[]
["Numele şi prenumele"]
[]
["Semnătura "]

{"sheet":"Anexa 1","index":2,"n_rows":48,"n_cols":52,"rows_kept":48,"cut":false,"hidden":false,"merged":[[46,0,46,41],[46,42,46,50],[46,51,46,60],[47,0,47,41],[47,42,47,60],[43,0,43,3],[43,4,43,41],[43,42,43,50],[43,51,43,60],[44,0,44,3],[44,4,44,41],[44,42,44,50],[44,51,44,60],[45,0,45,41],[45,42,45,50],[45,51,45,60],[40,0,40,3],[40,4,40,41],[40,42,40,50],[40,51,40,60],[41,0,41,3],[41,4,41,41],[41,42,41,50],[41,51,41,60],[42,0,42,3],[42,4,42,41],[42,42,42,50],[42,51,42,60],[37,0,37,3],[37,4,37,41],[37,42,37,50],[37,51,37,60],[38,0,38,3],[38,4,38,41],[38,42,38,50],[38,51,38,60],[39,0,39,3],[39,4,39,41],[39,42,39,50],[39,51,39,60],[34,0,34,3],[34,4,34,41],[34,42,34,50],[34,51,34,60],[35,0,35,3],[35,4,35,41],[35,42,35,50],[35,51,35,60],[36,0,36,3],[36,4,36,41],[36,42,36,50],[36,51,36,60],[31,0,31,3],[31,4,31,41],[31,42,31,50],[31,51,31,60],[32,0,32,3],[32,4,32,41],[32,42,32,50],[32,51,32,60],[33,0,33,3],[33,4,33,41],[33,42,33,50],[33,51,33,60],[28,0,28,3],[28,4,28,41],[28,42,28,50],[28,51,28,60],[29,0,29,3],[29,4,29,41],[29,42,29,50],[29,51,29,60],[30,0,30,3],[30,4,30,41],[30,42,30,50],[30,51,30,60],[25,0,25,3],[25,4,25,41],[25,42,25,50],[25,51,25,60],[26,0,26,3],[26,4,26,41],[26,42,26,50],[26,51,26,60],[27,0,27,3],[27,4,27,41],[27,42,27,50],[27,51,27,60],[22,0,22,3],[22,4,22,41],[22,42,22,50],[22,51,22,60],[23,0,23,3],[23,4,23,41],[23,42,23,50],[23,51,23,60],[24,0,24,3],[24,4,24,41],[24,42,24,50],[24,51,24,60],[19,0,19,3],[19,4,19,41],[19,42,19,50],[19,51,19,60],[20,0,20,3],[20,4,20,41],[20,42,20,50],[20,51,20,60],[21,0,21,3],[21,4,21,41],[21,42,21,50],[21,51,21,60],[16,0,16,3],[16,4,16,41],[16,42,16,50],[16,51,16,60],[17,0,17,3],[17,4,17,41],[17,42,17,50],[17,51,17,60],[18,0,18,3],[18,4,18,41],[18,42,18,50],[18,51,18,60],[13,0,13,3],[13,4,13,41],[13,42,13,50],[13,51,13,60],[14,0,14,3],[14,4,14,41],[14,42,14,50],[14,51,14,60],[15,0,15,3],[15,4,15,41],[15,42,15,50],[15,51,15,60],[10,0,10,3],[10,4,10,41],[10,42,10,50],[10,51,10,60],[11,0,11,3],[11,4,11,41],[11,42,11,50],[11,51,11,60],[12,0,12,3],[12,4,12,41],[12,42,12,50],[12,51,12,60],[6,0,6,60],[7,0,7,60],[8,0,8,3],[8,4,8,41],[8,42,8,50],[8,51,8,60],[9,0,9,3],[9,4,9,41],[9,42,9,50],[9,51,9,60],[0,7,0,41],[1,7,1,41],[1,42,2,60],[2,7,2,41],[3,7,3,41],[3,42,3,50],[3,51,3,60],[4,7,4,60],[5,0,5,60]]}
[50,null,null,null,null,null,null,"MINISTERUL AGRICULTURII ŞI DEZVOLTĂRII RURALE"]
[null,null,null,null,null,null,null,null,null,null,null,null,null,null,null,null,null,null,null,null,null,null,null,null,null,null,null,null,null,null,null,null,null,null,null,null,null,null,null,null,null,null,"Anexa A1"]
[null,null,null,null,null,null,null,"AGENŢIA PENTRU FINANŢAREA INVESTIŢIILOR RURALE"]
[null,null,null,null,null,null,null,null,null,null,null,null,null,null,null,null,null,null,null,null,null,null,null,null,null,null,null,null,null,null,null,null,null,null,null,null,null,null,null,null,null,null,null,null,null,null,null,null,null,null,null,"GAL Ţara Vrancei 2018 "]
[null,null,null,null,null,null,null,"Deviz financiar- Capitolul 3 - Cheltuieli pentru proiectare şi asistenţa tehnică - EURO"]
[]
[]
["(Titlu deviz)"]
["Nr.crt",null,null,null,"Specificaţie",null,null,null,null,null,null,null,null,null,null,null,null,null,null,null,null,null,null,null,null,null,null,null,null,null,null,null,null,null,null,null,null,null,null,null,null,null,"Valoare eligibilă",null,null,null,null,null,null,null,null,"Valoare\nneeligibilă"]
["3.1",null,null,null,"Cheltuieli pentru studii ",null,null,null,null,null,null,null,null,null,null,null,null,null,null,null,null,null,null,null,null,null,null,null,null,null,null,null,null,null,null,null,null,null,null,null,null,null,{"$f":"SUM(AQ11:AY13)","v":0},null,null,null,null,null,null,null,null,{"$f":"SUM(AZ11:BI13)","v":0}]
[null,null,null,null,"3.1.1 Studii de teren: studii geotehnice, geologice, hidrologice, hidrogeotehnice, fotogrammetrice, topografica şi de stabilitate ale terenului pe care se amplasează obiectivul de investiţie"]
[null,null,null,null,"3.1.2 Raport privind impactul asupra mediului"]
[null,null,null,null,"3.1.3 Studii de specialitate necesare în funcţie de specificul investiţiei"]
["3.2",null,null,null,"Documentaţii-suport şi cheltuieli pentru obţinerea de avize, acorduri şi autorizaţii",null,null,null,null,null,null,null,null,null,null,null,null,null,null,null,null,null,null,null,null,null,null,null,null,null,null,null,null,null,null,null,null,null,null,null,null,null,{"$f":"SUM(AQ15:AY23)","v":0},null,null,null,null,null,null,null,null,{"$f":"SUM(AZ15:BI23)","v":0}]
[null,null,null,null,"1. obţinerea/prelungirea valabilităţii ceritificatului de urbanism"]
[null,null,null,null,"2. obţinerea/prelungirea valabilităţii autorizaţiei de construire/desfiinţare"]
[null,null,null,null,"3. obţinerea avizelor şi acordurilor pentru racorduri şi branşamente la reţele publice de alimentare cu apă, canalizare, alimentare cu gaze, alimentare cu agent termic, energie electrică, telefonie"]
[null,null,null,null,"4. obţinerea certificatului de nomenclatură stradală şi adresă"]
[null,null,null,null,"5. întocmirea documentaţiei, obţinerea numărului cadastral provizoriu şi înregistrarea terenului în cartea funciară"]
[null,null,null,null,"6. obţinerea actului administrativ al autorităţii competente pentru protecţia mediului"]
[null,null,null,null,"7. obţinerea avizului de protecţie civilă"]
[null,null,null,null,"8. avizul de specialitate în cazul obiectivelor de patrimoniu"]
[null,null,null,null,"9. alte avize, acorduri şi autorizaţii"]
["3.3",null,null,null,"Cheltuieli pentru expertizarea tehnică a construcţiilor existente, a structurilor şi/sau, după caz, a proiectelor tehnice, inclusiv întocmirea de către expertul tehnic a raportului de expertiză tehnică"]
["3.4",null,null,null,"Cheltuieli pentru certificarea performanţei energetice şi auditul energetic al clădirilor"]
["3.5",null,null,null,"Cheltuieli pentru proiectare",null,null,null,null,null,null,null,null,null,null,null,null,null,null,null,null,null,null,null,null,null,null,null,null,null,null,null,null,null,null,null,null,null,null,null,null,null,{"$f":"SUM(AQ27:AY32)","v":0},null,null,null,null,null,null,null,null,{"$f":"SUM(AZ27:BI32)","v":0}]
[null,null,null,null,"3.5.1 Temă de proiectare"]
[null,null,null,null,"3.5.2 Studiu de prefezabilitate"]
[null,null,null,null,"3.5.3 Studiu de fezabilitate/documentaţie de avizare a lucrărilor de intervenţii şi deviz general"]
[null,null,null,null,"3.5.4 Documentaţiile tehnice necesare în vederea obţinerii avizelor/acordurilor/ autorizaţiilor"]
[null,null,null,null,"3.5.5 Verificarea tehnică de calitate a proiectului tehnic şi a detaliilor de execuţie"]
[null,null,null,null,"3.5.6 Proiect tehnic şi detalii de execuţie"]
["3.6",null,null,null,"Cheltuieli aferente organizării şi derulării procedurilor de achiziţii publice",null,null,null,null,null,null,null,null,null,null,null,null,null,null,null,null,null,null,null,null,null,null,null,null,null,null,null,null,null,null,null,null,null,null,null,null,null,{"$f":"SUM(AQ34:AY37)","v":0},null,null,null,null,null,null,null,null,{"$f":"SUM(AZ34:BI37)","v":0}]
[null,null,null,null,"1. Cheltuieli aferente întocmirii documentaţiei de atribuire şi multiplicării acesteia (exclusiv cele cumpărate de ofertanţi)"]
[null,null,null,null,"2. Cheltuieli cu onorariile, transportul, cazarea şi diurna membrilor desemnaţi în comisiile de evaluare"]
[null,null,null,null,"3. Anunţuri de intenţie, de participare şi de atribuire a contractelor, corespondenţă prin poştă, fax, poştă electronică în legătură cu procedurile de achiziţie publică"]
[null,null,null,null,"4. Cheltuieli aferente organizării şi derulării procedurilor de achiziţii publice"]
["3.7",null,null,null,"Cheltuieli pentru consultanţă",null,null,null,null,null,null,null,null,null,null,null,null,null,null,null,null,null,null,null,null,null,null,null,null,null,null,null,null,null,null,null,null,null,null,null,null,null,{"$f":"SUM(AQ39:AY40)","v":0},null,null,null,null,null,null,null,null,{"$f":"SUM(AZ39:BI40)","v":0}]
[null,null,null,null,"3.7.1 Managementul de proiect pentru obiectivul de investiţii"]
[null,null,null,null,"3.7.2 Auditul financiar"]
["3.8",null,null,null,"Cheltuieli pentru asistenţă tehnică",null,null,null,null,null,null,null,null,null,null,null,null,null,null,null,null,null,null,null,null,null,null,null,null,null,null,null,null,null,null,null,null,null,null,null,null,null,{"$f":"AQ42+AQ45","v":0},null,null,null,null,null,null,null,null,{"$f":"AZ42+AZ45","v":0}]
[null,null,null,null,"3.8.1. Asistenţă tehnică din partea proiectantului",null,null,null,null,null,null,null,null,null,null,null,null,null,null,null,null,null,null,null,null,null,null,null,null,null,null,null,null,null,null,null,null,null,null,null,null,null,{"$f":"SUM(AQ43:AY44)","v":0},null,null,null,null,null,null,null,null,{"$f":"SUM(AZ43:BI44)","v":0}]
[null,null,null,null,"\n1.1. pe perioada de execuţie a lucrărilor"]
[null,null,null,null,"1.2. pentru participarea proiectantului la fazele incluse în programul de control al lucrărilor de execuţie, avizat de către Inspectoratul de Stat în Construcţii"]
[null,null,null,null,"3.8.2 Dirigenţie de şantier, asigurată de personal tehnic de specialitate, autorizat"]
["Total valoare fără TVA",null,null,null,null,null,null,null,null,null,null,null,null,null,null,null,null,null,null,null,null,null,null,null,null,null,null,null,null,null,null,null,null,null,null,null,null,null,null,null,null,null,{"$f":"AQ10+AQ14+AQ24+AQ25+AQ26+AQ33+AQ38+AQ41","v":0},null,null,null,null,null,null,null,null,{"$f":"AZ10+AZ14+AZ24+AZ25+AZ26+AZ33+AZ38+AZ41","v":0}]
["Valoare TVA (aferentă cheltuielilor eligibile şi neeligibile)"]
["TOTAL DEVIZ FINANCIAR 1 (inclusiv TVA)",null,null,null,null,null,null,null,null,null,null,null,null,null,null,null,null,null,null,null,null,null,null,null,null,null,null,null,null,null,null,null,null,null,null,null,null,null,null,null,null,null,{"$f":"SUM(AQ46:BI47)","v":0}]

{"sheet":"Anexa 2","index":3,"n_rows":29,"n_cols":58,"rows_kept":29,"cut":false,"hidden":false,"merged":[[27,0,27,41],[27,42,27,50],[27,51,27,60],[28,0,28,41],[28,42,28,60],[25,0,25,3],[25,4,25,41],[25,42,25,50],[25,51,25,60],[26,0,26,41],[26,42,26,50],[26,51,26,60],[23,0,23,3],[23,4,23,41],[23,42,23,50],[23,51,23,60],[24,0,24,3],[24,4,24,41],[24,42,24,50],[24,51,24,60],[21,0,21,3],[21,4,21,41],[21,42,21,50],[21,51,21,60],[22,0,22,3],[22,4,22,41],[22,42,22,50],[22,51,22,60],[19,0,19,3],[19,4,19,41],[19,42,19,50],[19,51,19,60],[20,0,20,60],[17,0,17,60],[18,0,18,3],[18,4,18,41],[18,42,18,50],[18,51,18,60],[15,0,15,3],[15,4,15,41],[15,42,15,50],[15,51,15,60],[16,0,16,3],[16,4,16,41],[16,42,16,50],[16,51,16,60],[13,0,13,3],[13,4,13,41],[13,42,13,50],[13,51,13,60],[14,0,14,3],[14,4,14,41],[14,42,14,50],[14,51,14,60],[11,0,11,3],[11,4,11,41],[11,42,11,50],[11,51,11,60],[12,0,12,3],[12,4,12,41],[12,42,12,50],[12,51,12,60],[9,0,9,41],[9,42,9,50],[9,51,9,60],[10,0,10,41],[10,42,10,50],[10,51,10,60],[4,7,4,60],[5,0,5,60],[6,0,6,60],[7,0,7,60],[8,0,8,3],[8,4,8,41],[8,42,8,60],[0,7,0,41],[1,7,1,41],[1,42,2,60],[2,7,2,41],[3,7,3,41],[3,57,3,59]]}
[31,null,null,null,null,null,null,"MINISTERUL AGRICULTURII ŞI DEZVOLTĂRII RURALE"]
[null,null,null,null,null,null,null,null,null,null,null,null,null,null,null,null,null,null,null,null,null,null,null,null,null,null,null,null,null,null,null,null,null,null,null,null,null,null,null,null,null,null,"Anexa A2\nHG 907/2016"]
[null,null,null,null,null,null,null,"AGENŢIA PENTRU FINANŢAREA INVESTIŢIILOR RURALE"]
[null,null,null,null,null,null,null,null,null,null,null,null,null,null,null,null,null,null,null,null,null,null,null,null,null,null,null,null,null,null,null,null,null,null,null,null,null,null,null,null,null,null,"GAL Ţara Vrancei 2018",null,null,null,null,null,null,null,null,null,null,null,null,null,null,"Nr.2"]
[null,null,null,null,null,null,null,"DEVIZ PE OBIECT *"]
[]
[]
["(Descriere obiect de construcţie)"]
["Nr. crt.",null,null,null,"Denumire",null,null,null,null,null,null,null,null,null,null,null,null,null,null,null,null,null,null,null,null,null,null,null,null,null,null,null,null,null,null,null,null,null,null,null,null,null,"Valoarea pe categorii de lucrări, fară TVA - EURO"]
["Cap. 4 + Cheltuieli pentru investiţia de bază",null,null,null,null,null,null,null,null,null,null,null,null,null,null,null,null,null,null,null,null,null,null,null,null,null,null,null,null,null,null,null,null,null,null,null,null,null,null,null,null,null,"Valoare eligibilă",null,null,null,null,null,null,null,null,"Valoare\nneeligibilă"]
["I - LUCRĂRI DE CONSTRUCŢII ŞI INSTALAŢII"]
["4.1",null,null,null,"Construcții și instalații"]
[null,null,null,null,"4.1.1 Terasamente, sistematizare pe verticală și amenajări exterioare"]
[null,null,null,null,"4.1.2 Rezistență"]
[null,null,null,null,"4.1.3 Arhitectură"]
[null,null,null,null,"4.1.4 Instalații"]
[null,null,null,null,"TOTAL I ( fără TVA)",null,null,null,null,null,null,null,null,null,null,null,null,null,null,null,null,null,null,null,null,null,null,null,null,null,null,null,null,null,null,null,null,null,null,null,null,null,{"$f":"SUM(AQ13:AY16)","v":0},null,null,null,null,null,null,null,null,{"$f":"SUM(AZ13:BI16)","v":0}]
["II - MONTAJ"]
["4.2",null,null,null,"Montaj utilaje, echipamente tehnologice și funcționale"]
[null,null,null,null,"TOTAL II ( fără TVA)",null,null,null,null,null,null,null,null,null,null,null,null,null,null,null,null,null,null,null,null,null,null,null,null,null,null,null,null,null,null,null,null,null,null,null,null,null,{"$f":"SUM(AQ19)","v":0},null,null,null,null,null,null,null,null,{"$f":"SUM(AZ19)","v":0}]
["III - PROCURARE"]
["4.3",null,null,null,"Utilaje, echipamente tehnologice și funcționale care necesită montaj"]
["4.4",null,null,null,"Utilaje, echipamente tehnologice și funcționale care nu necesită montaj și echipamente de transport"]
["4.5",null,null,null,"Dotări"]
["4.6",null,null,null,"Active necorporale"]
[null,null,null,null,"TOTAL III ( fără TVA)",null,null,null,null,null,null,null,null,null,null,null,null,null,null,null,null,null,null,null,null,null,null,null,null,null,null,null,null,null,null,null,null,null,null,null,null,null,{"$f":"SUM(AQ22:AY25)","v":0},null,null,null,null,null,null,null,null,{"$f":"SUM(AZ22:BI25)","v":0}]
["TOTAL ( TOTAL I + TOTAL II +TOTAL III) fără TVA",null,null,null,null,null,null,null,null,null,null,null,null,null,null,null,null,null,null,null,null,null,null,null,null,null,null,null,null,null,null,null,null,null,null,null,null,null,null,null,null,null,{"$f":"AQ26+AQ20+AQ17","v":0},null,null,null,null,null,null,null,null,{"$f":"AZ26+AZ20+AZ17","v":0}]
["TVA aferent cheltuielilor eligibile şi neeligibile"]
["TOTAL DEVIZ PE OBIECT (inclusiv TVA)",null,null,null,null,null,null,null,null,null,null,null,null,null,null,null,null,null,null,null,null,null,null,null,null,null,null,null,null,null,null,null,null,null,null,null,null,null,null,null,null,null,{"$f":"AQ27+AZ27+AQ28+AZ28","v":0}]

{"sheet":"Anexa 3","index":4,"n_rows":80,"n_cols":52,"rows_kept":80,"cut":false,"hidden":false,"merged":[[37,0,37,3],[37,4,37,41],[37,42,37,50],[37,51,37,60],[38,0,38,3],[38,4,38,41],[38,42,38,60],[34,0,34,3],[34,4,34,41],[34,42,34,50],[34,51,34,60],[35,0,35,3],[35,4,35,41],[35,42,35,50],[35,51,35,60],[36,0,36,3],[36,4,36,41],[36,42,36,50],[36,51,36,60],[31,0,31,3],[31,4,31,41],[31,42,31,50],[31,51,31,60],[32,0,32,3],[32,4,32,41],[32,42,32,50],[32,51,32,60],[33,0,33,3],[33,4,33,41],[33,42,33,50],[33,51,33,60],[28,0,28,3],[28,4,28,41],[28,42,28,50],[28,51,28,60],[29,0,29,3],[29,4,29,41],[29,42,29,50],[29,51,29,60],[30,0,30,3],[30,4,30,41],[30,42,30,50],[30,51,30,60],[25,51,25,60],[26,0,26,3],[26,4,26,41],[26,42,26,50],[26,51,26,60],[27,0,27,3],[27,4,27,41],[27,42,27,50],[27,51,27,60],[39,0,39,44],[18,0,18,3],[18,4,18,41],[18,42,18,50],[18,51,18,60],[19,0,19,3],[19,4,19,41],[19,42,19,50],[19,51,19,60],[20,0,20,41],[20,42,20,60],[21,0,21,3],[21,4,21,41],[21,42,21,50],[21,51,21,60],[22,0,22,60],[23,0,23,3],[23,4,23,41],[23,42,23,50],[23,51,23,60],[24,0,24,60],[25,0,25,3],[25,4,25,41],[25,42,25,50],[15,0,15,3],[15,4,15,41],[15,42,15,50],[15,51,15,60],[16,0,16,3],[16,4,16,41],[16,42,16,50],[16,51,16,60],[17,0,17,3],[17,4,17,41],[17,42,17,50],[17,51,17,60],[13,0,13,3],[13,4,13,41],[13,42,13,50],[13,51,13,60],[14,0,14,3],[14,4,14,41],[14,42,14,50],[14,51,14,60],[10,0,10,3],[10,4,10,41],[10,42,10,50],[10,51,10,60],[11,0,11,3],[11,4,11,41],[11,42,11,50],[11,51,11,60],[12,0,12,3],[12,4,12,41],[12,42,12,50],[12,51,12,60],[6,0,6,60],[7,0,7,60],[8,0,8,3],[8,4,8,41],[8,42,8,50],[8,51,8,60],[9,0,9,3],[9,4,9,41],[9,42,9,50],[9,51,9,60],[0,7,0,41],[0,42,1,60],[1,7,1,41],[2,7,2,41],[2,42,2,50],[2,51,2,60],[3,7,3,60],[4,0,4,60],[5,0,5,60],[41,7,41,41],[41,42,42,60],[42,7,42,41],[43,7,43,41],[43,42,43,50],[43,51,43,60],[44,7,44,60],[45,0,45,60],[46,0,46,60],[47,0,47,60],[48,0,48,60],[49,0,49,3],[49,4,49,41],[49,42,49,50],[49,51,49,60],[50,0,50,3],[50,4,50,41],[50,42,50,50],[50,51,50,60],[51,0,51,3],[51,4,51,41],[51,42,51,50],[51,51,51,60],[52,0,52,3],[52,4,52,41],[52,42,52,50],[52,51,52,60],[53,0,53,3],[53,4,53,41],[53,42,53,50],[53,51,53,60],[54,0,54,3],[54,4,54,41],[54,42,54,50],[54,51,54,60],[55,0,55,3],[55,4,55,41],[55,42,55,50],[55,51,55,60],[56,0,56,3],[56,4,56,41],[56,42,56,50],[56,51,56,60],[57,0,57,3],[57,4,57,41],[57,42,57,50],[57,51,57,60],[58,0,58,3],[58,4,58,41],[58,42,58,50],[58,51,58,60],[59,0,59,3],[59,4,59,41],[59,42,59,50],[59,51,59,60],[60,0,60,3],[60,4,60,41],[60,42,60,50],[60,51,60,60],[61,0,61,41],[61,42,61,60],[62,0,62,3],[62,4,62,41],[62,42,62,50],[62,51,62,60],[63,0,63,60],[64,0,64,3],[64,4,64,41],[64,42,64,50],[64,51,64,60],[65,0,65,60],[66,0,66,3],[66,4,66,41],[66,42,66,50],[66,51,66,60],[67,0,67,3],[67,4,67,41],[67,42,67,50],[67,51,67,60],[68,0,68,3],[68,4,68,41],[68,42,68,50],[68,51,68,60],[69,0,69,3],[69,4,69,41],[69,42,69,50],[69,51,69,60],[70,0,70,3],[70,4,70,41],[70,42,70,50],[70,51,70,60],[71,0,71,3],[71,4,71,41],[71,42,71,50],[71,51,71,60],[72,0,72,3],[72,4,72,41],[72,42,72,50],[72,51,72,60],[73,0,73,3],[73,4,73,41],[73,42,73,50],[73,51,73,60],[74,0,74,3],[74,4,74,41],[74,42,74,50],[74,51,74,60],[75,0,75,3],[75,4,75,41],[75,42,75,50],[75,51,75,60],[79,0,79,3],[79,4,79,41],[79,42,79,60],[80,0,80,44],[76,0,76,3],[76,4,76,41],[76,42,76,50],[76,51,76,60],[77,0,77,3],[77,4,77,41],[77,42,77,50],[77,51,77,60],[78,0,78,3],[78,4,78,41],[78,42,78,50],[78,51,78,60]]}
[83,null,null,null,null,null,null,"MINISTERUL AGRICULTURII ŞI DEZVOLTĂRII RURALE",null,null,null,null,null,null,null,null,null,null,null,null,null,null,null,null,null,null,null,null,null,null,null,null,null,null,null,null,null,null,null,null,null,null,"Anexa A3"]
[]
[null,null,null,null,null,null,null,"AGENŢIA PENTRU FINANŢAREA INVESTIŢIILOR RURALE",null,null,null,null,null,null,null,null,null,null,null,null,null,null,null,null,null,null,null,null,null,null,null,null,null,null,null,null,null,null,null,null,null,null,null,null,null,null,null,null,null,null,null,"GAL Ţara Vrancei 2018 "]
[]
[]
[]
[]
["Deviz capitolul 2- Cheltuieli pentru asigurarea utilităţilor necesare obiectivului - EURO"]
["Nr. crt.",null,null,null,"Specificaţie",null,null,null,null,null,null,null,null,null,null,null,null,null,null,null,null,null,null,null,null,null,null,null,null,null,null,null,null,null,null,null,null,null,null,null,null,null,"Valoare eligibilă",null,null,null,null,null,null,null,null,"Valoare\nneeligibilă"]
[1,null,null,null,"Alimentare cu apă"]
[2,null,null,null,"Canalizare"]
[3,null,null,null,"Alimentare cu gaze naturale"]
[4,null,null,null,"Alimentare cu agent termic"]
[5,null,null,null,"Alimentare cu energie electrică"]
[6,null,null,null,"Telecomunicaţii (telefonie, radio-tv,etc)"]
[7,null,null,null,"Drumuri de acces"]
[8,null,null,null,"Căi ferate industriale"]
[9,null,null,null,"Alte utilitati"]
[null,null,null,null,"Total valoare fără TVA",null,null,null,null,null,null,null,null,null,null,null,null,null,null,null,null,null,null,null,null,null,null,null,null,null,null,null,null,null,null,null,null,null,null,null,null,null,{"$f":"SUM(AQ10:AY18)","v":0},null,null,null,null,null,null,null,null,{"$f":"SUM(AZ10:BI18)","v":0}]
[null,null,null,null,"Valoare TVA aferentă cheltuielilor eligibile şi neeligibile"]
["TOTAL DEVIZ CAPITOLUL 2 (inclusiv TVA)",null,null,null,null,null,null,null,null,null,null,null,null,null,null,null,null,null,null,null,null,null,null,null,null,null,null,null,null,null,null,null,null,null,null,null,null,null,null,null,null,null,{"$f":"AQ19+AZ19+AQ20+AZ20","v":0}]
[]
[" Deviz capitolul 5 - Alte cheltuieli - EURO"]
["Nr. crt.",null,null,null,"Specificaţie",null,null,null,null,null,null,null,null,null,null,null,null,null,null,null,null,null,null,null,null,null,null,null,null,null,null,null,null,null,null,null,null,null,null,null,null,null,"Valoare eligibilă",null,null,null,null,null,null,null,null,"Valoare\nneeligibilă"]
[]
["5.1 ",null,null,null,"Organizare de şantier",null,null,null,null,null,null,null,null,null,null,null,null,null,null,null,null,null,null,null,null,null,null,null,null,null,null,null,null,null,null,null,null,null,null,null,null,null,{"$f":"SUM(AQ27:AY28)","v":0},null,null,null,null,null,null,null,null,{"$f":"SUM(AZ27:BI28)","v":0}]
[null,null,null,null,"5.1.1 Lucrări de construcţii şi instalaţii aferente organizării de şantier"]
[null,null,null,null,"5.1.2 Cheltuieli conexe organizării de şantier"]
["5.2",null,null,null,"Comisioane, cote, taxe, costul creditului",null,null,null,null,null,null,null,null,null,null,null,null,null,null,null,null,null,null,null,null,null,null,null,null,null,null,null,null,null,null,null,null,null,null,null,null,null,{"$f":"AQ31+AQ32+AQ34","v":0},null,null,null,null,null,null,null,null,{"$f":"SUM(AZ30:BI34)","v":0}]
[null,null,null,null,"5.2.1. Comisioanele şi dobânzile aferente creditului băncii finanţatoare"]
[null,null,null,null,"5.2.2. Cota aferentă ISC pentru controlul calităţii lucrărilor de construcţii"]
[null,null,null,null,"5.2.3. Cota aferentă ISC pentru controlul statului în amenajarea teritoriului, urbanism şi pentru autorizarea lucrărilor de construcţii"]
[null,null,null,null,"5.2.4. Cota aferentă Casei Sociale a Constructorilor - CSC"]
[null,null,null,null,"5.2.5. Taxe pentru acorduri, avize conforme şi autorizaţia de construire/ desfiinţare"]
["5.3",null,null,null," Cheltuieli diverse si neprevazute"]
["5.4",null,null,null," Cheltuieli pentru informare şi publicitate"]
[null,null,null,null,"TOTAL DEVIZ CAPITOLUL 5",null,null,null,null,null,null,null,null,null,null,null,null,null,null,null,null,null,null,null,null,null,null,null,null,null,null,null,null,null,null,null,null,null,null,null,null,null,{"$f":"AQ26+AQ29+AQ35","v":0},null,null,null,null,null,null,null,null,{"$f":"AZ26+AZ29+AZ35+AZ36","v":0}]
[null,null,null,null,"VALOARE TVA aferentă cheltuielilor eligibile şi neeligibile"]
[null,null,null,null,"TOTAL DEVIZ CAPITOLUL 5 ( inclusiv TVA)",null,null,null,null,null,null,null,null,null,null,null,null,null,null,null,null,null,null,null,null,null,null,null,null,null,null,null,null,null,null,null,null,null,null,null,null,null,{"$f":"AQ37+AZ37+AQ38+AZ38","v":0}]
[]
[]
[42,null,null,null,null,null,null,"MINISTERUL AGRICULTURII ŞI DEZVOLTĂRII RURALE",null,null,null,null,null,null,null,null,null,null,null,null,null,null,null,null,null,null,null,null,null,null,null,null,null,null,null,null,null,null,null,null,null,null,"Anexa A3"]
[]
[null,null,null,null,null,null,null,"AGENŢIA PENTRU FINANŢAREA INVESTIŢIILOR RURALE",null,null,null,null,null,null,null,null,null,null,null,null,null,null,null,null,null,null,null,null,null,null,null,null,null,null,null,null,null,null,null,null,null,null,null,null,null,null,null,null,null,null,null,"GAL Ţara Vrancei 2018 "]
[]
[]
[]
[]
["Deviz capitolul 2- Cheltuieli pentru asigurarea utilităţilor necesare obiectivului - EURO"]
["Nr. crt.",null,null,null,"Specificaţie",null,null,null,null,null,null,null,null,null,null,null,null,null,null,null,null,null,null,null,null,null,null,null,null,null,null,null,null,null,null,null,null,null,null,null,null,null,"Valoare eligibilă",null,null,null,null,null,null,null,null,"Valoare\nneeligibilă"]
[1,null,null,null,"Alimentare cu apă"]
[2,null,null,null,"Canalizare"]
[3,null,null,null,"Alimentare cu gaze naturale"]
[4,null,null,null,"Alimentare cu agent termic"]
[5,null,null,null,"Alimentare cu energie electrică"]
[6,null,null,null,"Telecomunicaţii (telefonie, radio-tv,etc)"]
[7,null,null,null,"Drumuri de acces"]
[8,null,null,null,"Căi ferate industriale"]
[9,null,null,null,"Alte utilitati"]
[null,null,null,null,"Total valoare fără TVA",null,null,null,null,null,null,null,null,null,null,null,null,null,null,null,null,null,null,null,null,null,null,null,null,null,null,null,null,null,null,null,null,null,null,null,null,null,{"$f":"SUM(AQ51:AY59)","v":0},null,null,null,null,null,null,null,null,{"$f":"SUM(AZ51:BI59)","v":0}]
[null,null,null,null,"Valoare TVA aferentă cheltuielilor eligibile şi neeligibile"]
["TOTAL DEVIZ CAPITOLUL 2 (inclusiv TVA)",null,null,null,null,null,null,null,null,null,null,null,null,null,null,null,null,null,null,null,null,null,null,null,null,null,null,null,null,null,null,null,null,null,null,null,null,null,null,null,null,null,{"$f":"AQ60+AZ60+AQ61+AZ61","v":0}]
[]
[" Deviz capitolul 5 - Alte cheltuieli - EURO"]
["Nr. crt.",null,null,null,"Specificaţie",null,null,null,null,null,null,null,null,null,null,null,null,null,null,null,null,null,null,null,null,null,null,null,null,null,null,null,null,null,null,null,null,null,null,null,null,null,"Valoare eligibilă",null,null,null,null,null,null,null,null,"Valoare\nneeligibilă"]
[]
["5.1 ",null,null,null,"Organizare de şantier",null,null,null,null,null,null,null,null,null,null,null,null,null,null,null,null,null,null,null,null,null,null,null,null,null,null,null,null,null,null,null,null,null,null,null,null,null,{"$f":"SUM(AQ68:AY69)","v":0},null,null,null,null,null,null,null,null,{"$f":"SUM(AZ68:BI69)","v":0}]
[null,null,null,null,"5.1.1 Lucrări de construcţii şi instalaţii aferente organizării de şantier"]
[null,null,null,null,"5.1.2 Cheltuieli conexe organizării de şantier"]
["5.2",null,null,null,"Comisioane, cote, taxe, costul creditului",null,null,null,null,null,null,null,null,null,null,null,null,null,null,null,null,null,null,null,null,null,null,null,null,null,null,null,null,null,null,null,null,null,null,null,null,null,{"$f":"AQ72+AQ73+AQ75","v":0},null,null,null,null,null,null,null,null,{"$f":"SUM(AZ71:BI75)","v":0}]
[null,null,null,null,"5.2.1. Comisioanele şi dobânzile aferente creditului băncii finanţatoare"]
[null,null,null,null,"5.2.2. Cota aferentă ISC pentru controlul calităţii lucrărilor de construcţii"]
[null,null,null,null,"5.2.3. Cota aferentă ISC pentru controlul statului în amenajarea teritoriului, urbanism şi pentru autorizarea lucrărilor de construcţii"]
[null,null,null,null,"5.2.4. Cota aferentă Casei Sociale a Constructorilor - CSC"]
[null,null,null,null,"5.2.5. Taxe pentru acorduri, avize conforme şi autorizaţia de construire/ desfiinţare"]
["5.3",null,null,null," Cheltuieli diverse si neprevazute"]
["5.4",null,null,null," Cheltuieli pentru informare şi publicitate"]
[null,null,null,null,"TOTAL DEVIZ CAPITOLUL 5",null,null,null,null,null,null,null,null,null,null,null,null,null,null,null,null,null,null,null,null,null,null,null,null,null,null,null,null,null,null,null,null,null,null,null,null,null,{"$f":"AQ67+AQ70+AQ76","v":0},null,null,null,null,null,null,null,null,{"$f":"AZ67+AZ70+AZ76+AZ77","v":0}]
[null,null,null,null,"VALOARE TVA aferentă cheltuielilor eligibile şi neeligibile"]
[null,null,null,null,"TOTAL DEVIZ CAPITOLUL 5 ( inclusiv TVA)",null,null,null,null,null,null,null,null,null,null,null,null,null,null,null,null,null,null,null,null,null,null,null,null,null,null,null,null,null,null,null,null,null,null,null,null,null,{"$f":"AQ78+AZ78+AQ79+AZ79","v":0}]